Workbook

Sheet Master_四半期 (Long) (backup) (2) (hidden)
B1: パートナー株主四半期業績サマリー
A3: 手引き | B3: 会計年度 | C3: 2020 | F3: =C3+1 -> 2021 | K3: Level | L3: ="FY"&C3 -> FY2020 | M3: =IF(M4="Q4","FY"&VALUE($C$3-1),L3) -> FY2019 | N3: =IF(N4="Q4","FY"&VALUE($C$3-1),M3) -> FY2019 | O3: FY2019 | P3: FY2019 | AA3: 消さないこと！！
A4: Step①直近四半期を選ぶ＞＞ | B4: 四半期 | C4: Q1 | F4: =VLOOKUP(C4,$AA$4:$AB$7,2,FALSE) -> C1 | L4: =C4 -> Q1 | M4: =VLOOKUP(L4,$AA$4:$AC$7,3,FALSE) -> Q4 | N4: =VLOOKUP(M4,$AA$4:$AC$7,3,FALSE) -> Q3 | O4: Q2 | P4: Q1 | Q4: トレンド | T4: =L3 -> FY2020 | U4: =M3 -> FY2019 | V4: =N3 -> FY2019 | W4: =O3 -> FY2019 | X4: =P3 -> FY2019 | AA4: Q1 | AB4: C1 | AC4: Q4
A5: Step②会社を選ぶ＞＞ | B5: 会社名 | C5: 日本製紙㈱ | J5: 売上高 | S5: =_xll.BDS($C$6,"PG_OPERATING_INCOME", "FUND_PER=Q", "EQY_FUND_YEAR="&$F$3,"cols=7;rows=6") ->  | T5: 1 | U5: 2998 | V5: 4576 | W5: 3505 | X5: 1499 | Y5: 3043 | AA5: Q2 | AB5: C2 | AC5: Q1
B6: ティッカー | C6: =VLOOKUP(C5,#REF!,2,FALSE) ->  | J6: =_xll.BDS($C$6,"PG_REVENUE", "FUND_PER=Q", "EQY_FUND_YEAR="&$F$3,"cols=7;rows=5") ->  | K6: 1 | L6: 134655 | M6: 170132 | N6: 176286 | O6: 177691 | P6: 182301 | S6: エネルギー事業 | T6: 1 | U6: 1449 | V6: 2393 | W6: 1246 | X6: 2108 | Y6: 1048 | AA6: Q3 | AB6: C3 | AC6: Q2
B7: 会社IRサイト | C7: =VLOOKUP($C$5,#REF!,3,FALSE) ->  | J7: 生活関連事業 | K7: 1 | L7: 63285 | M7: 53703 | N7: 51638 | O7: 54211 | P7: 50993 | S7: 木材・建材・土木建設関連事業 | T7: 1 | U7: 1086 | V7: 2018 | W7: 1365 | X7: 1578 | Y7: 943 | AA7: Q4 | AB7: C4 | AC7: Q3
B8: Yahooファイナンス | C8: =VLOOKUP($C$5,#REF!,4,FALSE) ->  | J8: 木材・建材・土木建設関連事業 | K8: 1 | L8: 12424 | M8: 17124 | N8: 16014 | O8: 14946 | P8: 13538 | S8: その他 | T8: 1 | U8: 90 | V8: 1133 | W8: 507 | X8: 812 | Y8: 393
J9: エネルギー事業 | K9: 1 | L9: 7615 | M9: 9384 | N9: 7363 | O9: 9253 | P9: 7003 | S9: 調整額 | T9: 1 | U9: -311 | V9: 94 | W9: 163 | X9: 240 | Y9: -116
J10: その他 | K10: 1 | L10: 5839 | M10: 9324 | N10: 8067 | O10: 7808 | P10: 7130 | S10: 紙・板紙事業 | T10: 1 | U10: -1061 | V10: 2963 | W10: -108 | X10: 1645 | Y10: 1999
C11: =C4 -> Q1 | E11: 前年同期比 | F11: =C4&" YTD" -> Q1 YTD | H11: 前年同期比 | AA11: SALES_REV_TURN
C12: =C3&"年度" -> 2020年度 | D12: =VALUE(C3-1)&"年度" -> 2019年度 | F12: =C12 -> 2020年度 | G12: =D12 -> 2019年度 | AA12: GROSS_PROFIT
B13: 売上高 | C13: =IF(_xll.BDP($C$6,$AA11, "FUND_PER="&C$4, "EQY_FUND_YEAR="&F$3)="#N/A N/A","-",_xll.BDP($C$6,$AA11, "FUND_PER="&C$4, "EQY_FUND_YEAR="&F$3)) ->  | D13: =IF(_xll.BDP($C$6,$AA11, "FUND_PER="&C$4, "EQY_FUND_YEAR="&C$3)="#N/A N/A","",_xll.BDP($C$6,$AA11, "FUND_PER="&C$4, "EQY_FUND_YEAR="&C$3)) ->  | E13: =IFERROR(C13/D13-1,"-") -> - | F13: =IF(_xll.BDP($C$6,$AA11, "FUND_PER="&F$4, "EQY_FUND_YEAR="&F$3)="#N/A N/A","-",_xll.BDP($C$6,$AA11, "FUND_PER="&F$4, "EQY_FUND_YEAR="&F$3)) ->  | G13: =IF(_xll.BDP($C$6,$AA11, "FUND_PER="&F$4, "EQY_FUND_YEAR="&C$3)="#N/A N/A","",_xll.BDP($C$6,$AA11, "FUND_PER="&F$4, "EQY_FUND_YEAR="&C$3)) ->  | H13: =IFERROR(F13/G13-1,"-") -> - | AA13: IS_OPER_INC
B14: 売上総利益 | C14: =IF(_xll.BDP($C$6,$AA12, "FUND_PER="&C$4, "EQY_FUND_YEAR="&F$3)="#N/A N/A","-",_xll.BDP($C$6,$AA12, "FUND_PER="&C$4, "EQY_FUND_YEAR="&F$3)) ->  | D14: =IF(_xll.BDP($C$6,$AA12, "FUND_PER="&C$4, "EQY_FUND_YEAR="&C$3)="#N/A N/A","",_xll.BDP($C$6,$AA12, "FUND_PER="&C$4, "EQY_FUND_YEAR="&C$3)) ->  | E14: =IFERROR(C14/D14-1,"-") -> - | F14: =IF(_xll.BDP($C$6,$AA12, "FUND_PER="&F$4, "EQY_FUND_YEAR="&F$3)="#N/A N/A","-",_xll.BDP($C$6,$AA12, "FUND_PER="&F$4, "EQY_FUND_YEAR="&F$3)) ->  | G14: =IF(_xll.BDP($C$6,$AA12, "FUND_PER="&F$4, "EQY_FUND_YEAR="&C$3)="#N/A N/A","",_xll.BDP($C$6,$AA12, "FUND_PER="&F$4, "EQY_FUND_YEAR="&C$3)) ->  | H14: =IFERROR(F14/G14-1,"-") -> - | AA14: ARD_NET_INC
B15: 営業利益 | C15: =IF(_xll.BDP($C$6,$AA13, "FUND_PER="&C$4, "EQY_FUND_YEAR="&F$3)="#N/A N/A","-",_xll.BDP($C$6,$AA13, "FUND_PER="&C$4, "EQY_FUND_YEAR="&F$3)) ->  | D15: =IF(_xll.BDP($C$6,$AA13, "FUND_PER="&C$4, "EQY_FUND_YEAR="&C$3)="#N/A N/A","",_xll.BDP($C$6,$AA13, "FUND_PER="&C$4, "EQY_FUND_YEAR="&C$3)) ->  | E15: - | F15: =IF(_xll.BDP($C$6,$AA13, "FUND_PER="&F$4, "EQY_FUND_YEAR="&F$3)="#N/A N/A","-",_xll.BDP($C$6,$AA13, "FUND_PER="&F$4, "EQY_FUND_YEAR="&F$3)) ->  | G15: =IF(_xll.BDP($C$6,$AA13, "FUND_PER="&F$4, "EQY_FUND_YEAR="&C$3)="#N/A N/A","",_xll.BDP($C$6,$AA13, "FUND_PER="&F$4, "EQY_FUND_YEAR="&C$3)) ->  | H15: - | AA15: EBITDA
B16: 純利益 | C16: =IF(_xll.BDP($C$6,$AA14, "FUND_PER="&C$4, "EQY_FUND_YEAR="&F$3)="#N/A N/A","-",_xll.BDP($C$6,$AA14, "FUND_PER="&C$4, "EQY_FUND_YEAR="&F$3)) ->  | D16: =IF(_xll.BDP($C$6,$AA14, "FUND_PER="&C$4, "EQY_FUND_YEAR="&C$3)="#N/A N/A","",_xll.BDP($C$6,$AA14, "FUND_PER="&C$4, "EQY_FUND_YEAR="&C$3)) ->  | E16: - | F16: =IF(_xll.BDP($C$6,$AA14, "FUND_PER="&F$4, "EQY_FUND_YEAR="&F$3)="#N/A N/A","-",_xll.BDP($C$6,$AA14, "FUND_PER="&F$4, "EQY_FUND_YEAR="&F$3)) ->  | G16: =IF(_xll.BDP($C$6,$AA14, "FUND_PER="&F$4, "EQY_FUND_YEAR="&C$3)="#N/A N/A","",_xll.BDP($C$6,$AA14, "FUND_PER="&F$4, "EQY_FUND_YEAR="&C$3)) ->  | H16: -
B17: EBITDA | C17: =IF(_xll.BDP($C$6,$AA15, "FUND_PER="&C$4, "EQY_FUND_YEAR="&F$3)="#N/A N/A","-",_xll.BDP($C$6,$AA15, "FUND_PER="&C$4, "EQY_FUND_YEAR="&F$3)) ->  | D17: =IF(_xll.BDP($C$6,$AA15, "FUND_PER="&C$4, "EQY_FUND_YEAR="&C$3)="#N/A N/A","",_xll.BDP($C$6,$AA15, "FUND_PER="&C$4, "EQY_FUND_YEAR="&C$3)) ->  | E17: - | F17: =IF(_xll.BDP($C$6,$AA15, "FUND_PER="&F$4, "EQY_FUND_YEAR="&F$3)="#N/A N/A","-",_xll.BDP($C$6,$AA15, "FUND_PER="&F$4, "EQY_FUND_YEAR="&F$3)) ->  | G17: =IF(_xll.BDP($C$6,$AA15, "FUND_PER="&F$4, "EQY_FUND_YEAR="&C$3)="#N/A N/A","",_xll.BDP($C$6,$AA15, "FUND_PER="&F$4, "EQY_FUND_YEAR="&C$3)) ->  | H17: -
B19: 売上総利益率 | C19: =C14/C$13 ->  | D19: =IFERROR(D14/D$13,"-") -> - | E19: =IFERROR(C19-D19,"-") -> - | F19: =F14/F$13 ->  | G19: =IFERROR(G14/G$13,"-") -> - | H19: =IFERROR(F19-G19,"-") -> -
B20: 営業利益率 | C20: =C15/C$13 ->  | D20: =IFERROR(D15/D$13,"-") -> - | E20: =IFERROR(C20-D20,"-") -> - | F20: =F15/F$13 ->  | G20: =IFERROR(G15/G$13,"-") -> - | H20: =IFERROR(F20-G20,"-") -> -
B21: 純利益率 | D21: =IFERROR(D16/D$13,"-") -> - | E21: - | G21: =IFERROR(G16/G$13,"-") -> - | H21: -
B22: EBITDAマージン | D22: =IFERROR(D17/D$13,"-") -> - | E22: - | G22: =IFERROR(G17/G$13,"-") -> - | H22: - | AA22: RETURN_COM_EQY
J23: 営業利益
B24: ROE | C24: =IF(_xll.BDP($C$6,$AA22, "FUND_PER="&C$4, "EQY_FUND_YEAR="&F$3)="#N/A N/A","-",_xll.BDP($C$6,$AA22, "FUND_PER="&C$4, "EQY_FUND_YEAR="&F$3)/100) ->  | D24: =IF(_xll.BDP($C$6,$AA22, "FUND_PER="&C$4, "EQY_FUND_YEAR="&C$3)="#N/A N/A","",_xll.BDP($C$6,$AA22, "FUND_PER="&C$4, "EQY_FUND_YEAR="&C$3)/100) ->  | E24: - | J24: =IF(J6="","",J6) ->  | L24: =IF($J24="","",VLOOKUP($J24,$S$5:$Y$12,3,FALSE)) ->  | M24: =IF($J24="","",VLOOKUP($J24,$S$5:$Y$12,4,FALSE)) ->  | N24: =IF($J24="","",VLOOKUP($J24,$S$5:$Y$12,5,FALSE)) ->  | O24: =IF($J24="","",VLOOKUP($J24,$S$5:$Y$12,6,FALSE)) ->  | P24: =IF($J24="","",VLOOKUP($J24,$S$5:$Y$12,7,FALSE)) -> 
J25: 生活関連事業
J26: 木材・建材・土木建設関連事業 | L26: 1086 | M26: 2018 | N26: 1365 | O26: 1578 | P26: 943
J27: エネルギー事業 | L27: 1449 | M27: 2393 | N27: 1246 | O27: 2108 | P27: 1048
J28: その他 | L28: 90 | M28: 1133 | N28: 507 | O28: 812 | P28: 393
J42: 営業利益率
J43: =IF(J24="","",J24) ->  | L43: =IF(L6="","",L24/L6) -> 
J44: 生活関連事業
J45: 木材・建材・土木建設関連事業 | L45: 0.08741146169 | M45: 0.1178462976 | N45: 0.08523791682 | O45: 0.1055800883 | P45: 0.06965578372
J46: エネルギー事業 | L46: 0.1902823375 | M46: 0.2550085251 | N46: 0.1692245009 | O46: 0.227818005 | P46: 0.1496501499
J47: その他 | L47: 0.01541359822 | M47: 0.1215143715 | N47: 0.06284864262 | O47: 0.1039959016 | P47: 0.05511921459
L53: =IF(L16="","",L34/L16) -> 

Sheet Master_四半期 (Long) (backup) (3) (hidden)
B1: パートナー株主四半期業績サマリー
A3: 手引き | B3: 会計年度 | C3: 2020 | F3: =C3+1 -> 2021 | K3: Level | L3: ="FY"&C3 -> FY2020 | M3: =IF(M4="Q4","FY"&VALUE($C$3-1),L3) -> FY2019 | N3: =IF(N4="Q4","FY"&VALUE($C$3-1),M3) -> FY2019 | O3: FY2019 | P3: FY2019 | AA3: 消さないこと！！
A4: Step①直近四半期を選ぶ＞＞ | B4: 四半期 | C4: Q1 | F4: =VLOOKUP(C4,$AA$4:$AB$7,2,FALSE) -> C1 | L4: =C4 -> Q1 | M4: =VLOOKUP(L4,$AA$4:$AC$7,3,FALSE) -> Q4 | N4: =VLOOKUP(M4,$AA$4:$AC$7,3,FALSE) -> Q3 | O4: Q2 | P4: Q1 | Q4: トレンド | T4: =L3 -> FY2020 | U4: =M3 -> FY2019 | V4: =N3 -> FY2019 | W4: =O3 -> FY2019 | X4: =P3 -> FY2019 | AA4: Q1 | AB4: C1 | AC4: Q4
A5: Step②会社を選ぶ＞＞ | B5: 会社名 | C5: ㈱野村総合研究所 | J5: 売上高 | S5: =_xll.BDS($C$6,"PG_OPERATING_INCOME", "FUND_PER=Q", "EQY_FUND_YEAR="&$F$3,"cols=7;rows=5") ->  | T5: 1 | U5: 8442 | V5: 8099 | W5: 8705 | X5: 7918 | Y5: 10312 | AA5: Q2 | AB5: C2 | AC5: Q1
B6: ティッカー | C6: =VLOOKUP(C5,#REF!,2,FALSE) ->  | J6: =_xll.BDS($C$6,"PG_REVENUE", "FUND_PER=Q", "EQY_FUND_YEAR="&$F$3,"cols=7;rows=10") ->  | K6: 1 | L6: 69462 | M6: 71011 | N6: 67480 | O6: 67053 | P6: 68027 | S6: 産業ITソリューション | T6: 1 | U6: 4719 | V6: 5216 | W6: 4520 | X6: 4793 | Y6: 5190 | AA6: Q3 | AB6: C3 | AC6: Q2
B7: 会社IRサイト | C7: =VLOOKUP($C$5,#REF!,3,FALSE) ->  | J7: 証券業 | K7: 2 | L7: 30636 | M7: 31297 | N7: 27585 | O7: 26480 | P7: 27400 | S7: IT基盤サービス | T7: 1 | U7: 4265 | V7: 4179 | W7: 5267 | X7: 5053 | Y7: 3955 | AA7: Q4 | AB7: C4 | AC7: Q3
B8: Yahooファイナンス | C8: =VLOOKUP($C$5,#REF!,4,FALSE) ->  | J8: 保険業 | K8: 2 | L8: 15040 | M8: 16212 | N8: 16245 | O8: 17206 | P8: 16711 | S8: コンサルティング | T8: 1 | U8: 670 | V8: 3824 | W8: 2394 | X8: 2684 | Y8: 613
J9: 銀行業 | K9: 2 | L9: 12287 | M9: 12908 | N9: 12953 | O9: 12532 | P9: 12629 | S9: 調整額 | T9: 1 | U9: 80 | V9: -245 | W9: 311 | X9: 108 | Y9: 280
J10: その他金融業等 | K10: 2 | L10: 11498 | M10: 10594 | N10: 10697 | O10: 10835 | P10: 11285
C11: =C4 -> Q1 | E11: 前年同期比 | F11: =C4&" YTD" -> Q1 YTD | H11: 前年同期比 | J11: 産業ITソリューション | K11: 1 | L11: 45691 | M11: 44712 | N11: 44247 | O11: 43727 | P11: 45804 | AA11: SALES_REV_TURN
C12: =C3&"年度" -> 2020年度 | D12: =VALUE(C3-1)&"年度" -> 2019年度 | F12: =C12 -> 2020年度 | G12: =D12 -> 2019年度 | J12: 製造・サービス業等 | K12: 2 | L12: 30163 | M12: 28817 | N12: 27780 | O12: 26945 | P12: 28158 | AA12: GROSS_PROFIT
B13: 売上高 | C13: =IF(_xll.BDP($C$6,$AA11, "FUND_PER="&C$4, "EQY_FUND_YEAR="&F$3)="#N/A N/A","-",_xll.BDP($C$6,$AA11, "FUND_PER="&C$4, "EQY_FUND_YEAR="&F$3)) ->  | D13: =IF(_xll.BDP($C$6,$AA11, "FUND_PER="&C$4, "EQY_FUND_YEAR="&C$3)="#N/A N/A","",_xll.BDP($C$6,$AA11, "FUND_PER="&C$4, "EQY_FUND_YEAR="&C$3)) ->  | E13: =IFERROR(C13/D13-1,"-") -> - | F13: =IF(_xll.BDP($C$6,$AA11, "FUND_PER="&F$4, "EQY_FUND_YEAR="&F$3)="#N/A N/A","-",_xll.BDP($C$6,$AA11, "FUND_PER="&F$4, "EQY_FUND_YEAR="&F$3)) ->  | G13: =IF(_xll.BDP($C$6,$AA11, "FUND_PER="&F$4, "EQY_FUND_YEAR="&C$3)="#N/A N/A","",_xll.BDP($C$6,$AA11, "FUND_PER="&F$4, "EQY_FUND_YEAR="&C$3)) ->  | H13: =IFERROR(F13/G13-1,"-") -> - | J13: 流通業 | K13: 2 | L13: 15527 | M13: 15894 | N13: 16468 | O13: 16782 | P13: 17645 | AA13: IS_OPER_INC
B14: 売上総利益 | C14: =IF(_xll.BDP($C$6,$AA12, "FUND_PER="&C$4, "EQY_FUND_YEAR="&F$3)="#N/A N/A","-",_xll.BDP($C$6,$AA12, "FUND_PER="&C$4, "EQY_FUND_YEAR="&F$3)) ->  | D14: =IF(_xll.BDP($C$6,$AA12, "FUND_PER="&C$4, "EQY_FUND_YEAR="&C$3)="#N/A N/A","",_xll.BDP($C$6,$AA12, "FUND_PER="&C$4, "EQY_FUND_YEAR="&C$3)) ->  | E14: =IFERROR(C14/D14-1,"-") -> - | F14: =IF(_xll.BDP($C$6,$AA12, "FUND_PER="&F$4, "EQY_FUND_YEAR="&F$3)="#N/A N/A","-",_xll.BDP($C$6,$AA12, "FUND_PER="&F$4, "EQY_FUND_YEAR="&F$3)) ->  | G14: =IF(_xll.BDP($C$6,$AA12, "FUND_PER="&F$4, "EQY_FUND_YEAR="&C$3)="#N/A N/A","",_xll.BDP($C$6,$AA12, "FUND_PER="&F$4, "EQY_FUND_YEAR="&C$3)) ->  | H14: =IFERROR(F14/G14-1,"-") -> - | J14: IT基盤サービス | K14: 1 | L14: 9085 | M14: 11096 | N14: 9776 | O14: 9326 | P14: 8041 | AA14: ARD_NET_INC
B15: 営業利益 | C15: =IF(_xll.BDP($C$6,$AA13, "FUND_PER="&C$4, "EQY_FUND_YEAR="&F$3)="#N/A N/A","-",_xll.BDP($C$6,$AA13, "FUND_PER="&C$4, "EQY_FUND_YEAR="&F$3)) ->  | D15: =IF(_xll.BDP($C$6,$AA13, "FUND_PER="&C$4, "EQY_FUND_YEAR="&C$3)="#N/A N/A","",_xll.BDP($C$6,$AA13, "FUND_PER="&C$4, "EQY_FUND_YEAR="&C$3)) ->  | E15: - | F15: =IF(_xll.BDP($C$6,$AA13, "FUND_PER="&F$4, "EQY_FUND_YEAR="&F$3)="#N/A N/A","-",_xll.BDP($C$6,$AA13, "FUND_PER="&F$4, "EQY_FUND_YEAR="&F$3)) ->  | G15: =IF(_xll.BDP($C$6,$AA13, "FUND_PER="&F$4, "EQY_FUND_YEAR="&C$3)="#N/A N/A","",_xll.BDP($C$6,$AA13, "FUND_PER="&F$4, "EQY_FUND_YEAR="&C$3)) ->  | H15: - | J15: コンサルティング | K15: 1 | L15: 6915 | M15: 11510 | N15: 9889 | O15: 9552 | P15: 7621 | AA15: EBITDA
B16: 純利益 | C16: =IF(_xll.BDP($C$6,$AA14, "FUND_PER="&C$4, "EQY_FUND_YEAR="&F$3)="#N/A N/A","-",_xll.BDP($C$6,$AA14, "FUND_PER="&C$4, "EQY_FUND_YEAR="&F$3)) ->  | D16: =IF(_xll.BDP($C$6,$AA14, "FUND_PER="&C$4, "EQY_FUND_YEAR="&C$3)="#N/A N/A","",_xll.BDP($C$6,$AA14, "FUND_PER="&C$4, "EQY_FUND_YEAR="&C$3)) ->  | E16: - | F16: =IF(_xll.BDP($C$6,$AA14, "FUND_PER="&F$4, "EQY_FUND_YEAR="&F$3)="#N/A N/A","-",_xll.BDP($C$6,$AA14, "FUND_PER="&F$4, "EQY_FUND_YEAR="&F$3)) ->  | G16: =IF(_xll.BDP($C$6,$AA14, "FUND_PER="&F$4, "EQY_FUND_YEAR="&C$3)="#N/A N/A","",_xll.BDP($C$6,$AA14, "FUND_PER="&F$4, "EQY_FUND_YEAR="&C$3)) ->  | H16: -
B17: EBITDA | C17: =IF(_xll.BDP($C$6,$AA15, "FUND_PER="&C$4, "EQY_FUND_YEAR="&F$3)="#N/A N/A","-",_xll.BDP($C$6,$AA15, "FUND_PER="&C$4, "EQY_FUND_YEAR="&F$3)) ->  | D17: =IF(_xll.BDP($C$6,$AA15, "FUND_PER="&C$4, "EQY_FUND_YEAR="&C$3)="#N/A N/A","",_xll.BDP($C$6,$AA15, "FUND_PER="&C$4, "EQY_FUND_YEAR="&C$3)) ->  | E17: - | F17: =IF(_xll.BDP($C$6,$AA15, "FUND_PER="&F$4, "EQY_FUND_YEAR="&F$3)="#N/A N/A","-",_xll.BDP($C$6,$AA15, "FUND_PER="&F$4, "EQY_FUND_YEAR="&F$3)) ->  | G17: =IF(_xll.BDP($C$6,$AA15, "FUND_PER="&F$4, "EQY_FUND_YEAR="&C$3)="#N/A N/A","",_xll.BDP($C$6,$AA15, "FUND_PER="&F$4, "EQY_FUND_YEAR="&C$3)) ->  | H17: -
B19: 売上総利益率 | C19: =C14/C$13 ->  | D19: =IFERROR(D14/D$13,"-") -> - | E19: =IFERROR(C19-D19,"-") -> - | F19: =F14/F$13 ->  | G19: =IFERROR(G14/G$13,"-") -> - | H19: =IFERROR(F19-G19,"-") -> -
B20: 営業利益率 | C20: =C15/C$13 ->  | D20: =IFERROR(D15/D$13,"-") -> - | E20: =IFERROR(C20-D20,"-") -> - | F20: =F15/F$13 ->  | G20: =IFERROR(G15/G$13,"-") -> - | H20: =IFERROR(F20-G20,"-") -> -
B21: 純利益率 | D21: =IFERROR(D16/D$13,"-") -> - | E21: - | G21: =IFERROR(G16/G$13,"-") -> - | H21: -
B22: EBITDAマージン | D22: =IFERROR(D17/D$13,"-") -> - | E22: - | G22: =IFERROR(G17/G$13,"-") -> - | H22: - | AA22: RETURN_COM_EQY
J23: 営業利益
B24: ROE | C24: =IF(_xll.BDP($C$6,$AA22, "FUND_PER="&C$4, "EQY_FUND_YEAR="&F$3)="#N/A N/A","-",_xll.BDP($C$6,$AA22, "FUND_PER="&C$4, "EQY_FUND_YEAR="&F$3)/100) ->  | D24: =IF(_xll.BDP($C$6,$AA22, "FUND_PER="&C$4, "EQY_FUND_YEAR="&C$3)="#N/A N/A","",_xll.BDP($C$6,$AA22, "FUND_PER="&C$4, "EQY_FUND_YEAR="&C$3)/100) ->  | E24: - | J24: =IF(J6="","",J6) ->  | L24: =IF($J24="","",VLOOKUP($J24,$S$5:$Y$12,3,FALSE)) ->  | M24: =IF($J24="","",VLOOKUP($J24,$S$5:$Y$12,4,FALSE)) ->  | N24: =IF($J24="","",VLOOKUP($J24,$S$5:$Y$12,5,FALSE)) ->  | O24: =IF($J24="","",VLOOKUP($J24,$S$5:$Y$12,6,FALSE)) ->  | P24: =IF($J24="","",VLOOKUP($J24,$S$5:$Y$12,7,FALSE)) -> 
J25: 証券業
J26: 保険業
J27: 銀行業
J28: その他金融業等
J29: 産業ITソリューション | L29: 4719 | M29: 5216 | N29: 4520 | O29: 4793 | P29: 5190
J30: 製造・サービス業等
J31: 流通業
J32: IT基盤サービス | L32: 4265 | M32: 4179 | N32: 5267 | O32: 5053 | P32: 3955
J33: コンサルティング | L33: 670 | M33: 3824 | N33: 2394 | O33: 2684 | P33: 613
J42: 営業利益率
J43: =IF(J24="","",J24) ->  | L43: =IF(L6="","",L24/L6) -> 
J44: 証券業
J45: 保険業
J46: 銀行業
J47: その他金融業等
J48: 産業ITソリューション | L48: 0.1032807336 | M48: 0.1166577205 | N48: 0.1021538183 | O48: 0.1096119103 | P48: 0.1133088813
J49: 製造・サービス業等
J50: 流通業
J51: IT基盤サービス | L51: 0.4694551458 | M51: 0.3766222062 | N51: 0.5387684124 | O51: 0.5418185717 | P51: 0.491854247
J52: コンサルティング | L52: 0.09689081706 | M52: 0.332232841 | N52: 0.2420871676 | O52: 0.2809882747 | P52: 0.08043563837
L53: =IF(L16="","",L34/L16) -> 

Sheet Master_四半期サマリー_backup (hidden)
B1: パートナー株主四半期業績サマリー
A3: 手引き | B3: 会計年度 | C3: 2020 | F3: =C3+1 -> 2021 | K3: Level | L3: ="FY"&C3 -> FY2020 | M3: =IF(M4="Q4","FY"&VALUE($C$3-1),L3) -> FY2019 | N3: =IF(N4="Q4","FY"&VALUE($C$3-1),M3) -> FY2019 | O3: FY2019 | P3: FY2019 | AA3: 消さないこと！！
A4: Step①直近四半期を選ぶ＞＞ | B4: 四半期 | C4: Q1 | F4: =VLOOKUP(C4,$AA$4:$AB$7,2,FALSE) -> C1 | L4: =C4 -> Q1 | M4: =VLOOKUP(L4,$AA$4:$AC$7,3,FALSE) -> Q4 | N4: =VLOOKUP(M4,$AA$4:$AC$7,3,FALSE) -> Q3 | O4: Q2 | P4: Q1 | Q4: トレンド | T4: =L3 -> FY2020 | U4: =M3 -> FY2019 | V4: =N3 -> FY2019 | W4: =O3 -> FY2019 | X4: =P3 -> FY2019 | AA4: Q1 | AB4: C1 | AC4: Q4
A5: Step②会社を選ぶ＞＞ | B5: 会社名 | C5: 日本製紙㈱ | J5: 売上高 | S5: =_xll.BDS($C$6,"PG_OPERATING_INCOME", "FUND_PER=Q", "EQY_FUND_YEAR="&$F$3,"cols=7;rows=6") ->  | T5: 1 | U5: 2998 | V5: 4576 | W5: 3505 | X5: 1499 | Y5: 3043 | AA5: Q2 | AB5: C2 | AC5: Q1
B6: ティッカー | C6: =VLOOKUP(C5,#REF!,2,FALSE) ->  | J6: =_xll.BDS($C$6,"PG_REVENUE", "FUND_PER=Q", "EQY_FUND_YEAR="&$F$3,"cols=7;rows=5") ->  | K6: 1 | L6: 134655 | M6: 170132 | N6: 176286 | O6: 177691 | P6: 182301 | S6: エネルギー事業 | T6: 1 | U6: 1449 | V6: 2393 | W6: 1246 | X6: 2108 | Y6: 1048 | AA6: Q3 | AB6: C3 | AC6: Q2
B7: 会社IRサイト | C7: =VLOOKUP($C$5,#REF!,3,FALSE) ->  | J7: 生活関連事業 | K7: 1 | L7: 63285 | M7: 53703 | N7: 51638 | O7: 54211 | P7: 50993 | S7: 木材・建材・土木建設関連事業 | T7: 1 | U7: 1086 | V7: 2018 | W7: 1365 | X7: 1578 | Y7: 943 | AA7: Q4 | AB7: C4 | AC7: Q3
B8: Yahooファイナンス | C8: =VLOOKUP($C$5,#REF!,4,FALSE) ->  | J8: 木材・建材・土木建設関連事業 | K8: 1 | L8: 12424 | M8: 17124 | N8: 16014 | O8: 14946 | P8: 13538 | S8: その他 | T8: 1 | U8: 90 | V8: 1133 | W8: 507 | X8: 812 | Y8: 393
J9: エネルギー事業 | K9: 1 | L9: 7615 | M9: 9384 | N9: 7363 | O9: 9253 | P9: 7003 | S9: 調整額 | T9: 1 | U9: -311 | V9: 94 | W9: 163 | X9: 240 | Y9: -116
J10: その他 | K10: 1 | L10: 5839 | M10: 9324 | N10: 8067 | O10: 7808 | P10: 7130 | S10: 紙・板紙事業 | T10: 1 | U10: -1061 | V10: 2963 | W10: -108 | X10: 1645 | Y10: 1999
C11: =C4 -> Q1 | E11: 前年同期比 | F11: =C4&" YTD" -> Q1 YTD | H11: 前年同期比 | AA11: SALES_REV_TURN
C12: =C3&"年度" -> 2020年度 | D12: =VALUE(C3-1)&"年度" -> 2019年度 | F12: =C12 -> 2020年度 | G12: =D12 -> 2019年度 | AA12: GROSS_PROFIT
B13: 売上高 | C13: =IF(_xll.BDP($C$6,$AA11, "FUND_PER="&C$4, "EQY_FUND_YEAR="&F$3)="#N/A N/A","-",_xll.BDP($C$6,$AA11, "FUND_PER="&C$4, "EQY_FUND_YEAR="&F$3)) ->  | D13: =IF(_xll.BDP($C$6,$AA11, "FUND_PER="&C$4, "EQY_FUND_YEAR="&C$3)="#N/A N/A","",_xll.BDP($C$6,$AA11, "FUND_PER="&C$4, "EQY_FUND_YEAR="&C$3)) ->  | E13: =IFERROR(C13/D13-1,"-") -> - | F13: =IF(_xll.BDP($C$6,$AA11, "FUND_PER="&F$4, "EQY_FUND_YEAR="&F$3)="#N/A N/A","-",_xll.BDP($C$6,$AA11, "FUND_PER="&F$4, "EQY_FUND_YEAR="&F$3)) ->  | G13: =IF(_xll.BDP($C$6,$AA11, "FUND_PER="&F$4, "EQY_FUND_YEAR="&C$3)="#N/A N/A","",_xll.BDP($C$6,$AA11, "FUND_PER="&F$4, "EQY_FUND_YEAR="&C$3)) ->  | H13: =IFERROR(F13/G13-1,"-") -> - | J13: 営業利益 | AA13: IS_OPER_INC
B14: 売上総利益 | C14: =IF(_xll.BDP($C$6,$AA12, "FUND_PER="&C$4, "EQY_FUND_YEAR="&F$3)="#N/A N/A","-",_xll.BDP($C$6,$AA12, "FUND_PER="&C$4, "EQY_FUND_YEAR="&F$3)) ->  | D14: =IF(_xll.BDP($C$6,$AA12, "FUND_PER="&C$4, "EQY_FUND_YEAR="&C$3)="#N/A N/A","",_xll.BDP($C$6,$AA12, "FUND_PER="&C$4, "EQY_FUND_YEAR="&C$3)) ->  | E14: =IFERROR(C14/D14-1,"-") -> - | F14: =IF(_xll.BDP($C$6,$AA12, "FUND_PER="&F$4, "EQY_FUND_YEAR="&F$3)="#N/A N/A","-",_xll.BDP($C$6,$AA12, "FUND_PER="&F$4, "EQY_FUND_YEAR="&F$3)) ->  | G14: =IF(_xll.BDP($C$6,$AA12, "FUND_PER="&F$4, "EQY_FUND_YEAR="&C$3)="#N/A N/A","",_xll.BDP($C$6,$AA12, "FUND_PER="&F$4, "EQY_FUND_YEAR="&C$3)) ->  | H14: =IFERROR(F14/G14-1,"-") -> - | J14: =IF(J6="","",J6) ->  | L14: =IF($J14="","",VLOOKUP($J14,$S$5:$Y$12,3,FALSE)) ->  | M14: =IF($J14="","",VLOOKUP($J14,$S$5:$Y$12,4,FALSE)) ->  | N14: =IF($J14="","",VLOOKUP($J14,$S$5:$Y$12,5,FALSE)) ->  | O14: =IF($J14="","",VLOOKUP($J14,$S$5:$Y$12,6,FALSE)) ->  | P14: =IF($J14="","",VLOOKUP($J14,$S$5:$Y$12,7,FALSE)) ->  | AA14: ARD_NET_INC
B15: 営業利益 | C15: =IF(_xll.BDP($C$6,$AA13, "FUND_PER="&C$4, "EQY_FUND_YEAR="&F$3)="#N/A N/A","-",_xll.BDP($C$6,$AA13, "FUND_PER="&C$4, "EQY_FUND_YEAR="&F$3)) ->  | D15: =IF(_xll.BDP($C$6,$AA13, "FUND_PER="&C$4, "EQY_FUND_YEAR="&C$3)="#N/A N/A","",_xll.BDP($C$6,$AA13, "FUND_PER="&C$4, "EQY_FUND_YEAR="&C$3)) ->  | E15: - | F15: =IF(_xll.BDP($C$6,$AA13, "FUND_PER="&F$4, "EQY_FUND_YEAR="&F$3)="#N/A N/A","-",_xll.BDP($C$6,$AA13, "FUND_PER="&F$4, "EQY_FUND_YEAR="&F$3)) ->  | G15: =IF(_xll.BDP($C$6,$AA13, "FUND_PER="&F$4, "EQY_FUND_YEAR="&C$3)="#N/A N/A","",_xll.BDP($C$6,$AA13, "FUND_PER="&F$4, "EQY_FUND_YEAR="&C$3)) ->  | H15: - | J15: =IF(J7="","",J7) -> 生活関連事業 | L15: =IF($J15="","",VLOOKUP($J15,$S$5:$Y$12,3,FALSE)) ->  | M15: =IF($J15="","",VLOOKUP($J15,$S$5:$Y$12,4,FALSE)) ->  | N15: =IF($J15="","",VLOOKUP($J15,$S$5:$Y$12,5,FALSE)) ->  | O15: =IF($J15="","",VLOOKUP($J15,$S$5:$Y$12,6,FALSE)) ->  | P15: =IF($J15="","",VLOOKUP($J15,$S$5:$Y$12,7,FALSE)) ->  | AA15: EBITDA
B16: 純利益 | C16: =IF(_xll.BDP($C$6,$AA14, "FUND_PER="&C$4, "EQY_FUND_YEAR="&F$3)="#N/A N/A","-",_xll.BDP($C$6,$AA14, "FUND_PER="&C$4, "EQY_FUND_YEAR="&F$3)) ->  | D16: =IF(_xll.BDP($C$6,$AA14, "FUND_PER="&C$4, "EQY_FUND_YEAR="&C$3)="#N/A N/A","",_xll.BDP($C$6,$AA14, "FUND_PER="&C$4, "EQY_FUND_YEAR="&C$3)) ->  | E16: - | F16: =IF(_xll.BDP($C$6,$AA14, "FUND_PER="&F$4, "EQY_FUND_YEAR="&F$3)="#N/A N/A","-",_xll.BDP($C$6,$AA14, "FUND_PER="&F$4, "EQY_FUND_YEAR="&F$3)) ->  | G16: =IF(_xll.BDP($C$6,$AA14, "FUND_PER="&F$4, "EQY_FUND_YEAR="&C$3)="#N/A N/A","",_xll.BDP($C$6,$AA14, "FUND_PER="&F$4, "EQY_FUND_YEAR="&C$3)) ->  | H16: - | J16: =IF(J8="","",J8) -> 木材・建材・土木建設関連事業 | L16: =IF($J16="","",VLOOKUP($J16,$S$5:$Y$12,3,FALSE)) -> 1086 | M16: =IF($J16="","",VLOOKUP($J16,$S$5:$Y$12,4,FALSE)) -> 2018 | N16: =IF($J16="","",VLOOKUP($J16,$S$5:$Y$12,5,FALSE)) -> 1365 | O16: =IF($J16="","",VLOOKUP($J16,$S$5:$Y$12,6,FALSE)) -> 1578 | P16: =IF($J16="","",VLOOKUP($J16,$S$5:$Y$12,7,FALSE)) -> 943
B17: EBITDA | C17: =IF(_xll.BDP($C$6,$AA15, "FUND_PER="&C$4, "EQY_FUND_YEAR="&F$3)="#N/A N/A","-",_xll.BDP($C$6,$AA15, "FUND_PER="&C$4, "EQY_FUND_YEAR="&F$3)) ->  | D17: =IF(_xll.BDP($C$6,$AA15, "FUND_PER="&C$4, "EQY_FUND_YEAR="&C$3)="#N/A N/A","",_xll.BDP($C$6,$AA15, "FUND_PER="&C$4, "EQY_FUND_YEAR="&C$3)) ->  | E17: - | F17: =IF(_xll.BDP($C$6,$AA15, "FUND_PER="&F$4, "EQY_FUND_YEAR="&F$3)="#N/A N/A","-",_xll.BDP($C$6,$AA15, "FUND_PER="&F$4, "EQY_FUND_YEAR="&F$3)) ->  | G17: =IF(_xll.BDP($C$6,$AA15, "FUND_PER="&F$4, "EQY_FUND_YEAR="&C$3)="#N/A N/A","",_xll.BDP($C$6,$AA15, "FUND_PER="&F$4, "EQY_FUND_YEAR="&C$3)) ->  | H17: - | J17: =IF(J9="","",J9) -> エネルギー事業 | L17: =IF($J17="","",VLOOKUP($J17,$S$5:$Y$12,3,FALSE)) -> 1449 | M17: =IF($J17="","",VLOOKUP($J17,$S$5:$Y$12,4,FALSE)) -> 2393 | N17: =IF($J17="","",VLOOKUP($J17,$S$5:$Y$12,5,FALSE)) -> 1246 | O17: =IF($J17="","",VLOOKUP($J17,$S$5:$Y$12,6,FALSE)) -> 2108 | P17: =IF($J17="","",VLOOKUP($J17,$S$5:$Y$12,7,FALSE)) -> 1048
J18: =IF(J10="","",J10) -> その他 | L18: =IF($J18="","",VLOOKUP($J18,$S$5:$Y$12,3,FALSE)) -> 90 | M18: =IF($J18="","",VLOOKUP($J18,$S$5:$Y$12,4,FALSE)) -> 1133 | N18: =IF($J18="","",VLOOKUP($J18,$S$5:$Y$12,5,FALSE)) -> 507 | O18: =IF($J18="","",VLOOKUP($J18,$S$5:$Y$12,6,FALSE)) -> 812 | P18: =IF($J18="","",VLOOKUP($J18,$S$5:$Y$12,7,FALSE)) -> 393
B19: 売上総利益率 | C19: =C14/C$13 ->  | D19: =IFERROR(D14/D$13,"-") -> - | E19: =IFERROR(C19-D19,"-") -> - | F19: =F14/F$13 ->  | G19: =IFERROR(G14/G$13,"-") -> - | H19: =IFERROR(F19-G19,"-") -> - | J19: =IF(J11="","",J11) ->  | L19: =IF($J19="","",VLOOKUP($J19,$S$5:$Y$12,3,FALSE)) ->  | M19: =IF($J19="","",VLOOKUP($J19,$S$5:$Y$12,4,FALSE)) ->  | N19: =IF($J19="","",VLOOKUP($J19,$S$5:$Y$12,5,FALSE)) ->  | O19: =IF($J19="","",VLOOKUP($J19,$S$5:$Y$12,6,FALSE)) ->  | P19: =IF($J19="","",VLOOKUP($J19,$S$5:$Y$12,7,FALSE)) -> 
B20: 営業利益率 | C20: =C15/C$13 ->  | D20: =IFERROR(D15/D$13,"-") -> - | E20: =IFERROR(C20-D20,"-") -> - | F20: =F15/F$13 ->  | G20: =IFERROR(G15/G$13,"-") -> - | H20: =IFERROR(F20-G20,"-") -> -
B21: 純利益率 | D21: =IFERROR(D16/D$13,"-") -> - | E21: - | G21: =IFERROR(G16/G$13,"-") -> - | H21: - | J21: 営業利益率
B22: EBITDAマージン | D22: =IFERROR(D17/D$13,"-") -> - | E22: - | G22: =IFERROR(G17/G$13,"-") -> - | H22: - | J22: =IF(J14="","",J14) ->  | L22: =IF(L6="","",L14/L6) ->  | AA22: RETURN_COM_EQY
J23: 生活関連事業
B24: ROE | C24: =IF(_xll.BDP($C$6,$AA22, "FUND_PER="&C$4, "EQY_FUND_YEAR="&F$3)="#N/A N/A","-",_xll.BDP($C$6,$AA22, "FUND_PER="&C$4, "EQY_FUND_YEAR="&F$3)/100) ->  | D24: =IF(_xll.BDP($C$6,$AA22, "FUND_PER="&C$4, "EQY_FUND_YEAR="&C$3)="#N/A N/A","",_xll.BDP($C$6,$AA22, "FUND_PER="&C$4, "EQY_FUND_YEAR="&C$3)/100) ->  | E24: - | J24: 木材・建材・土木建設関連事業 | L24: 0.08741146169 | M24: 0.1178462976 | N24: 0.08523791682 | O24: 0.1055800883 | P24: 0.06965578372
J25: エネルギー事業 | L25: 0.1902823375 | M25: 0.2550085251 | N25: 0.1692245009 | O25: 0.227818005 | P25: 0.1496501499
J26: その他 | L26: 0.01541359822 | M26: 0.1215143715 | N26: 0.06284864262 | O26: 0.1039959016 | P26: 0.05511921459
S27: =_xll.BDS($C$6,"PG_OPERATING_INCOME", "FUND_PER=Q", "EQY_FUND_YEAR="&$F$3,"cols=7;rows=6") ->  | T27: 1 | U27: 2998 | V27: 4576 | W27: 3505 | X27: 1499 | Y27: 3043
S28: エネルギー事業 | T28: 1 | U28: 1449 | V28: 2393 | W28: 1246 | X28: 2108 | Y28: 1048
S29: 木材・建材・土木建設関連事業 | T29: 1 | U29: 1086 | V29: 2018 | W29: 1365 | X29: 1578 | Y29: 943
S30: その他 | T30: 1 | U30: 90 | V30: 1133 | W30: 507 | X30: 812 | Y30: 393
S31: 調整額 | T31: 1 | U31: -311 | V31: 94 | W31: 163 | X31: 240 | Y31: -116
S32: 紙・板紙事業 | T32: 1 | U32: -1061 | V32: 2963 | W32: -108 | X32: 1645 | Y32: 1999

Sheet Master
B1: 会社名 | C1: Alphabet | E1: =E2&"0331" -> 20020331 | F1: 20030331 | G1: 20040331 | H1: 20050331 | I1: 20060331 | J1: 20070331 | K1: 20080331 | L1: 20090331 | M1: 20100331 | N1: 20110331 | O1: 20120331 | P1: 20130331 | Q1: 20140331 | R1: 20150331 | S1: 20160331 | T1: 20170331 | U1: 20180331 | V1: 20190331 | W1: 20200331 | X1: =X2&"0331" -> 20210331 | AA1: BS構成
A2: リンク | B2: Ticker | C2: GOOGL US Equity | E2: 2002 | F2: =E2+1 -> 2003 | G2: =F2+1 -> 2004 | H2: 2005 | I2: 2006 | J2: 2007 | K2: 2008 | L2: 2009 | M2: 2010 | N2: 2011 | O2: 2012 | P2: 2013 | Q2: =P2+1 -> 2014 | R2: =Q2+1 -> 2015 | S2: 2016 | T2: 2017 | U2: 2018 | V2: 2019 | W2: 2020 | X2: 2021
B3: 決算月 | C3: 12 | E3: =DATE(E$2,$C$3,31) -> 2002-12-31 | F3: =DATE(F$2,$C$3,31) -> 2003-12-31 | G3: 2004-12-31 | H3: 2005-12-31 | I3: 2006-12-31 | J3: 2007-12-31 | K3: 2008-12-31 | L3: 2009-12-31 | M3: 2010-12-31 | N3: 2011-12-31 | O3: 2012-12-31 | P3: 2013-12-31 | Q3: 2014-12-31 | R3: 2015-12-31 | S3: 2016-12-31 | T3: 2017-12-31 | U3: 2018-12-31 | V3: 2019-12-31 | W3: 2020-12-31 | X3: 2021-12-31
A4: 〇 | C4: 売上高 | D4: SALES_REV_TURN | E4: =IF(_xll.BDP($C$2,$D4,"FUND_PER=Y","EQY_FUND_YEAR",E$2)="#N/A N/A","",_xll.BDP($C$2,$D4,"FUND_PER=Y","EQY_FUND_YEAR",E$2)) -> 439.507996 | F4: =IF(_xll.BDP($C$2,$D4,"FUND_PER=Y","EQY_FUND_YEAR",F$2)="#N/A N/A","",_xll.BDP($C$2,$D4,"FUND_PER=Y","EQY_FUND_YEAR",F$2)) -> 1465.934 | G4: =IF(_xll.BDP($C$2,$D4,"FUND_PER=Y","EQY_FUND_YEAR",G$2)="#N/A N/A","",_xll.BDP($C$2,$D4,"FUND_PER=Y","EQY_FUND_YEAR",G$2)) -> 3189.223 | H4: =IF(_xll.BDP($C$2,$D4,"FUND_PER=Y","EQY_FUND_YEAR",H$2)="#N/A N/A","",_xll.BDP($C$2,$D4,"FUND_PER=Y","EQY_FUND_YEAR",H$2)) -> 6138.56 | I4: =IF(_xll.BDP($C$2,$D4,"FUND_PER=Y","EQY_FUND_YEAR",I$2)="#N/A N/A","",_xll.BDP($C$2,$D4,"FUND_PER=Y","EQY_FUND_YEAR",I$2)) -> 10604.917 | J4: =IF(_xll.BDP($C$2,$D4,"FUND_PER=Y","EQY_FUND_YEAR",J$2)="#N/A N/A","",_xll.BDP($C$2,$D4,"FUND_PER=Y","EQY_FUND_YEAR",J$2)) -> 16593.986 | K4: =IF(_xll.BDP($C$2,$D4,"FUND_PER=Y","EQY_FUND_YEAR",K$2)="#N/A N/A","",_xll.BDP($C$2,$D4,"FUND_PER=Y","EQY_FUND_YEAR",K$2)) -> 21795.55 | L4: =IF(_xll.BDP($C$2,$D4,"FUND_PER=Y","EQY_FUND_YEAR",L$2)="#N/A N/A","",_xll.BDP($C$2,$D4,"FUND_PER=Y","EQY_FUND_YEAR",L$2)) -> 23650.563 | M4: =IF(_xll.BDP($C$2,$D4,"FUND_PER=Y","EQY_FUND_YEAR",M$2)="#N/A N/A","",_xll.BDP($C$2,$D4,"FUND_PER=Y","EQY_FUND_YEAR",M$2)) -> 29321 | N4: =IF(_xll.BDP($C$2,$D4,"FUND_PER=Y","EQY_FUND_YEAR",N$2)="#N/A N/A","",_xll.BDP($C$2,$D4,"FUND_PER=Y","EQY_FUND_YEAR",N$2)) -> 37905 | O4: =IF(_xll.BDP($C$2,$D4,"FUND_PER=Y","EQY_FUND_YEAR",O$2)="#N/A N/A","",_xll.BDP($C$2,$D4,"FUND_PER=Y","EQY_FUND_YEAR",O$2)) -> 46039 | P4: =IF(_xll.BDP($C$2,$D4,"FUND_PER=Y","EQY_FUND_YEAR",P$2)="#N/A N/A","",_xll.BDP($C$2,$D4,"FUND_PER=Y","EQY_FUND_YEAR",P$2)) -> 55519 | Q4: =IF(_xll.BDP($C$2,$D4,"FUND_PER=Y","EQY_FUND_YEAR",Q$2)="#N/A N/A","",_xll.BDP($C$2,$D4,"FUND_PER=Y","EQY_FUND_YEAR",Q$2)) -> 66001 | R4: =IF(_xll.BDP($C$2,$D4,"FUND_PER=Y","EQY_FUND_YEAR",R$2)="#N/A N/A","",_xll.BDP($C$2,$D4,"FUND_PER=Y","EQY_FUND_YEAR",R$2)) -> 74989 | S4: =IF(_xll.BDP($C$2,$D4,"FUND_PER=Y","EQY_FUND_YEAR",S$2)="#N/A N/A","",_xll.BDP($C$2,$D4,"FUND_PER=Y","EQY_FUND_YEAR",S$2)) -> 90272 | T4: =IF(_xll.BDP($C$2,$D4,"FUND_PER=Y","EQY_FUND_YEAR",T$2)="#N/A N/A","",_xll.BDP($C$2,$D4,"FUND_PER=Y","EQY_FUND_YEAR",T$2)) -> 110855 | U4: =IF(_xll.BDP($C$2,$D4,"FUND_PER=Y","EQY_FUND_YEAR",U$2)="#N/A N/A","",_xll.BDP($C$2,$D4,"FUND_PER=Y","EQY_FUND_YEAR",U$2)) -> 136819 | V4: =IF(_xll.BDP($C$2,$D4,"FUND_PER=Y","EQY_FUND_YEAR",V$2)="#N/A N/A","",_xll.BDP($C$2,$D4,"FUND_PER=Y","EQY_FUND_YEAR",V$2)) -> 161857 | W4: =IF(_xll.BDP($C$2,$D4,"FUND_PER=Y","EQY_FUND_YEAR",W$2)="#N/A N/A","",_xll.BDP($C$2,$D4,"FUND_PER=Y","EQY_FUND_YEAR",W$2)) ->  | X4: =IF(_xll.BDP($C$2,$D4,"FUND_PER=Y","EQY_FUND_YEAR",X$2)="#N/A N/A","",_xll.BDP($C$2,$D4,"FUND_PER=Y","EQY_FUND_YEAR",X$2)) -> 
A5: 〇 | C5: 売上総利益 | D5: GROSS_PROFIT | E5: =IF(_xll.BDP($C$2,$D5,"FUND_PER=Y","EQY_FUND_YEAR",E$2)="#N/A N/A","",_xll.BDP($C$2,$D5,"FUND_PER=Y","EQY_FUND_YEAR",E$2)) -> 307.998001 | F5: =IF(_xll.BDP($C$2,$D5,"FUND_PER=Y","EQY_FUND_YEAR",F$2)="#N/A N/A","",_xll.BDP($C$2,$D5,"FUND_PER=Y","EQY_FUND_YEAR",F$2)) -> 840.08 | G5: =IF(_xll.BDP($C$2,$D5,"FUND_PER=Y","EQY_FUND_YEAR",G$2)="#N/A N/A","",_xll.BDP($C$2,$D5,"FUND_PER=Y","EQY_FUND_YEAR",G$2)) -> 1731.57 | H5: =IF(_xll.BDP($C$2,$D5,"FUND_PER=Y","EQY_FUND_YEAR",H$2)="#N/A N/A","",_xll.BDP($C$2,$D5,"FUND_PER=Y","EQY_FUND_YEAR",H$2)) -> 3567.051 | I5: =IF(_xll.BDP($C$2,$D5,"FUND_PER=Y","EQY_FUND_YEAR",I$2)="#N/A N/A","",_xll.BDP($C$2,$D5,"FUND_PER=Y","EQY_FUND_YEAR",I$2)) -> 6379.89 | J5: =IF(_xll.BDP($C$2,$D5,"FUND_PER=Y","EQY_FUND_YEAR",J$2)="#N/A N/A","",_xll.BDP($C$2,$D5,"FUND_PER=Y","EQY_FUND_YEAR",J$2)) -> 9944.901 | K5: =IF(_xll.BDP($C$2,$D5,"FUND_PER=Y","EQY_FUND_YEAR",K$2)="#N/A N/A","",_xll.BDP($C$2,$D5,"FUND_PER=Y","EQY_FUND_YEAR",K$2)) -> 13174.044 | L5: =IF(_xll.BDP($C$2,$D5,"FUND_PER=Y","EQY_FUND_YEAR",L$2)="#N/A N/A","",_xll.BDP($C$2,$D5,"FUND_PER=Y","EQY_FUND_YEAR",L$2)) -> 14806.448 | M5: =IF(_xll.BDP($C$2,$D5,"FUND_PER=Y","EQY_FUND_YEAR",M$2)="#N/A N/A","",_xll.BDP($C$2,$D5,"FUND_PER=Y","EQY_FUND_YEAR",M$2)) -> 18904 | N5: =IF(_xll.BDP($C$2,$D5,"FUND_PER=Y","EQY_FUND_YEAR",N$2)="#N/A N/A","",_xll.BDP($C$2,$D5,"FUND_PER=Y","EQY_FUND_YEAR",N$2)) -> 24717 | O5: =IF(_xll.BDP($C$2,$D5,"FUND_PER=Y","EQY_FUND_YEAR",O$2)="#N/A N/A","",_xll.BDP($C$2,$D5,"FUND_PER=Y","EQY_FUND_YEAR",O$2)) -> 28863 | P5: =IF(_xll.BDP($C$2,$D5,"FUND_PER=Y","EQY_FUND_YEAR",P$2)="#N/A N/A","",_xll.BDP($C$2,$D5,"FUND_PER=Y","EQY_FUND_YEAR",P$2)) -> 33526 | Q5: =IF(_xll.BDP($C$2,$D5,"FUND_PER=Y","EQY_FUND_YEAR",Q$2)="#N/A N/A","",_xll.BDP($C$2,$D5,"FUND_PER=Y","EQY_FUND_YEAR",Q$2)) -> 40310 | R5: =IF(_xll.BDP($C$2,$D5,"FUND_PER=Y","EQY_FUND_YEAR",R$2)="#N/A N/A","",_xll.BDP($C$2,$D5,"FUND_PER=Y","EQY_FUND_YEAR",R$2)) -> 46825 | S5: =IF(_xll.BDP($C$2,$D5,"FUND_PER=Y","EQY_FUND_YEAR",S$2)="#N/A N/A","",_xll.BDP($C$2,$D5,"FUND_PER=Y","EQY_FUND_YEAR",S$2)) -> 55134 | T5: =IF(_xll.BDP($C$2,$D5,"FUND_PER=Y","EQY_FUND_YEAR",T$2)="#N/A N/A","",_xll.BDP($C$2,$D5,"FUND_PER=Y","EQY_FUND_YEAR",T$2)) -> 65272 | U5: =IF(_xll.BDP($C$2,$D5,"FUND_PER=Y","EQY_FUND_YEAR",U$2)="#N/A N/A","",_xll.BDP($C$2,$D5,"FUND_PER=Y","EQY_FUND_YEAR",U$2)) -> 77270 | V5: =IF(_xll.BDP($C$2,$D5,"FUND_PER=Y","EQY_FUND_YEAR",V$2)="#N/A N/A","",_xll.BDP($C$2,$D5,"FUND_PER=Y","EQY_FUND_YEAR",V$2)) -> 89961 | W5: =IF(_xll.BDP($C$2,$D5,"FUND_PER=Y","EQY_FUND_YEAR",W$2)="#N/A N/A","",_xll.BDP($C$2,$D5,"FUND_PER=Y","EQY_FUND_YEAR",W$2)) ->  | X5: =IF(_xll.BDP($C$2,$D5,"FUND_PER=Y","EQY_FUND_YEAR",X$2)="#N/A N/A","",_xll.BDP($C$2,$D5,"FUND_PER=Y","EQY_FUND_YEAR",X$2)) -> 
A6: 〇 | C6: 営業利益 | D6: IS_OPER_INC | E6: =IF(_xll.BDP($C$2,$D6,"FUND_PER=Y","EQY_FUND_YEAR",E$2)="#N/A N/A","",_xll.BDP($C$2,$D6,"FUND_PER=Y","EQY_FUND_YEAR",E$2)) -> 186.466003 | F6: =IF(_xll.BDP($C$2,$D6,"FUND_PER=Y","EQY_FUND_YEAR",F$2)="#N/A N/A","",_xll.BDP($C$2,$D6,"FUND_PER=Y","EQY_FUND_YEAR",F$2)) -> 342.464 | G6: =IF(_xll.BDP($C$2,$D6,"FUND_PER=Y","EQY_FUND_YEAR",G$2)="#N/A N/A","",_xll.BDP($C$2,$D6,"FUND_PER=Y","EQY_FUND_YEAR",G$2)) -> 841.192 | H6: =IF(_xll.BDP($C$2,$D6,"FUND_PER=Y","EQY_FUND_YEAR",H$2)="#N/A N/A","",_xll.BDP($C$2,$D6,"FUND_PER=Y","EQY_FUND_YEAR",H$2)) -> 2107.278 | I6: =IF(_xll.BDP($C$2,$D6,"FUND_PER=Y","EQY_FUND_YEAR",I$2)="#N/A N/A","",_xll.BDP($C$2,$D6,"FUND_PER=Y","EQY_FUND_YEAR",I$2)) -> 3549.996 | J6: =IF(_xll.BDP($C$2,$D6,"FUND_PER=Y","EQY_FUND_YEAR",J$2)="#N/A N/A","",_xll.BDP($C$2,$D6,"FUND_PER=Y","EQY_FUND_YEAR",J$2)) -> 5084.4 | K6: =IF(_xll.BDP($C$2,$D6,"FUND_PER=Y","EQY_FUND_YEAR",K$2)="#N/A N/A","",_xll.BDP($C$2,$D6,"FUND_PER=Y","EQY_FUND_YEAR",K$2)) -> 6631.969 | L6: =IF(_xll.BDP($C$2,$D6,"FUND_PER=Y","EQY_FUND_YEAR",L$2)="#N/A N/A","",_xll.BDP($C$2,$D6,"FUND_PER=Y","EQY_FUND_YEAR",L$2)) -> 8312.186 | M6: =IF(_xll.BDP($C$2,$D6,"FUND_PER=Y","EQY_FUND_YEAR",M$2)="#N/A N/A","",_xll.BDP($C$2,$D6,"FUND_PER=Y","EQY_FUND_YEAR",M$2)) -> 10381 | N6: =IF(_xll.BDP($C$2,$D6,"FUND_PER=Y","EQY_FUND_YEAR",N$2)="#N/A N/A","",_xll.BDP($C$2,$D6,"FUND_PER=Y","EQY_FUND_YEAR",N$2)) -> 11742 | O6: =IF(_xll.BDP($C$2,$D6,"FUND_PER=Y","EQY_FUND_YEAR",O$2)="#N/A N/A","",_xll.BDP($C$2,$D6,"FUND_PER=Y","EQY_FUND_YEAR",O$2)) -> 13834 | P6: =IF(_xll.BDP($C$2,$D6,"FUND_PER=Y","EQY_FUND_YEAR",P$2)="#N/A N/A","",_xll.BDP($C$2,$D6,"FUND_PER=Y","EQY_FUND_YEAR",P$2)) -> 15403 | Q6: =IF(_xll.BDP($C$2,$D6,"FUND_PER=Y","EQY_FUND_YEAR",Q$2)="#N/A N/A","",_xll.BDP($C$2,$D6,"FUND_PER=Y","EQY_FUND_YEAR",Q$2)) -> 16496 | R6: =IF(_xll.BDP($C$2,$D6,"FUND_PER=Y","EQY_FUND_YEAR",R$2)="#N/A N/A","",_xll.BDP($C$2,$D6,"FUND_PER=Y","EQY_FUND_YEAR",R$2)) -> 19360 | S6: =IF(_xll.BDP($C$2,$D6,"FUND_PER=Y","EQY_FUND_YEAR",S$2)="#N/A N/A","",_xll.BDP($C$2,$D6,"FUND_PER=Y","EQY_FUND_YEAR",S$2)) -> 23716 | T6: =IF(_xll.BDP($C$2,$D6,"FUND_PER=Y","EQY_FUND_YEAR",T$2)="#N/A N/A","",_xll.BDP($C$2,$D6,"FUND_PER=Y","EQY_FUND_YEAR",T$2)) -> 26146 | U6: =IF(_xll.BDP($C$2,$D6,"FUND_PER=Y","EQY_FUND_YEAR",U$2)="#N/A N/A","",_xll.BDP($C$2,$D6,"FUND_PER=Y","EQY_FUND_YEAR",U$2)) -> 27524 | V6: =IF(_xll.BDP($C$2,$D6,"FUND_PER=Y","EQY_FUND_YEAR",V$2)="#N/A N/A","",_xll.BDP($C$2,$D6,"FUND_PER=Y","EQY_FUND_YEAR",V$2)) -> 34231 | W6: =IF(_xll.BDP($C$2,$D6,"FUND_PER=Y","EQY_FUND_YEAR",W$2)="#N/A N/A","",_xll.BDP($C$2,$D6,"FUND_PER=Y","EQY_FUND_YEAR",W$2)) ->  | X6: =IF(_xll.BDP($C$2,$D6,"FUND_PER=Y","EQY_FUND_YEAR",X$2)="#N/A N/A","",_xll.BDP($C$2,$D6,"FUND_PER=Y","EQY_FUND_YEAR",X$2)) -> 
A7: 〇 | C7: 純利益 | D7: ARD_NET_INC | E7: =IF(_xll.BDP($C$2,$D7,"FUND_PER=Y","EQY_FUND_YEAR",E$2)="#N/A N/A","",_xll.BDP($C$2,$D7,"FUND_PER=Y","EQY_FUND_YEAR",E$2)) -> 99.656 | F7: =IF(_xll.BDP($C$2,$D7,"FUND_PER=Y","EQY_FUND_YEAR",F$2)="#N/A N/A","",_xll.BDP($C$2,$D7,"FUND_PER=Y","EQY_FUND_YEAR",F$2)) -> 105.648 | G7: =IF(_xll.BDP($C$2,$D7,"FUND_PER=Y","EQY_FUND_YEAR",G$2)="#N/A N/A","",_xll.BDP($C$2,$D7,"FUND_PER=Y","EQY_FUND_YEAR",G$2)) -> 399.119 | H7: =IF(_xll.BDP($C$2,$D7,"FUND_PER=Y","EQY_FUND_YEAR",H$2)="#N/A N/A","",_xll.BDP($C$2,$D7,"FUND_PER=Y","EQY_FUND_YEAR",H$2)) -> 1465.397 | I7: =IF(_xll.BDP($C$2,$D7,"FUND_PER=Y","EQY_FUND_YEAR",I$2)="#N/A N/A","",_xll.BDP($C$2,$D7,"FUND_PER=Y","EQY_FUND_YEAR",I$2)) -> 3077.446 | J7: =IF(_xll.BDP($C$2,$D7,"FUND_PER=Y","EQY_FUND_YEAR",J$2)="#N/A N/A","",_xll.BDP($C$2,$D7,"FUND_PER=Y","EQY_FUND_YEAR",J$2)) -> 4203.72 | K7: =IF(_xll.BDP($C$2,$D7,"FUND_PER=Y","EQY_FUND_YEAR",K$2)="#N/A N/A","",_xll.BDP($C$2,$D7,"FUND_PER=Y","EQY_FUND_YEAR",K$2)) -> 4226.858 | L7: =IF(_xll.BDP($C$2,$D7,"FUND_PER=Y","EQY_FUND_YEAR",L$2)="#N/A N/A","",_xll.BDP($C$2,$D7,"FUND_PER=Y","EQY_FUND_YEAR",L$2)) -> 6520.448 | M7: =IF(_xll.BDP($C$2,$D7,"FUND_PER=Y","EQY_FUND_YEAR",M$2)="#N/A N/A","",_xll.BDP($C$2,$D7,"FUND_PER=Y","EQY_FUND_YEAR",M$2)) -> 8505 | N7: =IF(_xll.BDP($C$2,$D7,"FUND_PER=Y","EQY_FUND_YEAR",N$2)="#N/A N/A","",_xll.BDP($C$2,$D7,"FUND_PER=Y","EQY_FUND_YEAR",N$2)) -> 9737 | O7: =IF(_xll.BDP($C$2,$D7,"FUND_PER=Y","EQY_FUND_YEAR",O$2)="#N/A N/A","",_xll.BDP($C$2,$D7,"FUND_PER=Y","EQY_FUND_YEAR",O$2)) -> 10737 | P7: =IF(_xll.BDP($C$2,$D7,"FUND_PER=Y","EQY_FUND_YEAR",P$2)="#N/A N/A","",_xll.BDP($C$2,$D7,"FUND_PER=Y","EQY_FUND_YEAR",P$2)) -> 12733 | Q7: =IF(_xll.BDP($C$2,$D7,"FUND_PER=Y","EQY_FUND_YEAR",Q$2)="#N/A N/A","",_xll.BDP($C$2,$D7,"FUND_PER=Y","EQY_FUND_YEAR",Q$2)) -> 14136 | R7: =IF(_xll.BDP($C$2,$D7,"FUND_PER=Y","EQY_FUND_YEAR",R$2)="#N/A N/A","",_xll.BDP($C$2,$D7,"FUND_PER=Y","EQY_FUND_YEAR",R$2)) -> 16348 | S7: =IF(_xll.BDP($C$2,$D7,"FUND_PER=Y","EQY_FUND_YEAR",S$2)="#N/A N/A","",_xll.BDP($C$2,$D7,"FUND_PER=Y","EQY_FUND_YEAR",S$2)) -> 19478 | T7: =IF(_xll.BDP($C$2,$D7,"FUND_PER=Y","EQY_FUND_YEAR",T$2)="#N/A N/A","",_xll.BDP($C$2,$D7,"FUND_PER=Y","EQY_FUND_YEAR",T$2)) -> 12662 | U7: =IF(_xll.BDP($C$2,$D7,"FUND_PER=Y","EQY_FUND_YEAR",U$2)="#N/A N/A","",_xll.BDP($C$2,$D7,"FUND_PER=Y","EQY_FUND_YEAR",U$2)) -> 30736 | V7: =IF(_xll.BDP($C$2,$D7,"FUND_PER=Y","EQY_FUND_YEAR",V$2)="#N/A N/A","",_xll.BDP($C$2,$D7,"FUND_PER=Y","EQY_FUND_YEAR",V$2)) -> 34343 | W7: =IF(_xll.BDP($C$2,$D7,"FUND_PER=Y","EQY_FUND_YEAR",W$2)="#N/A N/A","",_xll.BDP($C$2,$D7,"FUND_PER=Y","EQY_FUND_YEAR",W$2)) ->  | X7: =IF(_xll.BDP($C$2,$D7,"FUND_PER=Y","EQY_FUND_YEAR",X$2)="#N/A N/A","",_xll.BDP($C$2,$D7,"FUND_PER=Y","EQY_FUND_YEAR",X$2)) -> 
A8: 〇 | C8: EBITDA | D8: EBITDA | E8: =IF(_xll.BDP($C$2,$D8,"FUND_PER=Y","EQY_FUND_YEAR",E$2)="#N/A N/A","",_xll.BDP($C$2,$D8,"FUND_PER=Y","EQY_FUND_YEAR",E$2)) -> 204.496004 | F8: =IF(_xll.BDP($C$2,$D8,"FUND_PER=Y","EQY_FUND_YEAR",F$2)="#N/A N/A","",_xll.BDP($C$2,$D8,"FUND_PER=Y","EQY_FUND_YEAR",F$2)) -> 392.649001 | G8: =IF(_xll.BDP($C$2,$D8,"FUND_PER=Y","EQY_FUND_YEAR",G$2)="#N/A N/A","",_xll.BDP($C$2,$D8,"FUND_PER=Y","EQY_FUND_YEAR",G$2)) -> 989.665 | H8: =IF(_xll.BDP($C$2,$D8,"FUND_PER=Y","EQY_FUND_YEAR",H$2)="#N/A N/A","",_xll.BDP($C$2,$D8,"FUND_PER=Y","EQY_FUND_YEAR",H$2)) -> 2401.09 | I8: =IF(_xll.BDP($C$2,$D8,"FUND_PER=Y","EQY_FUND_YEAR",I$2)="#N/A N/A","",_xll.BDP($C$2,$D8,"FUND_PER=Y","EQY_FUND_YEAR",I$2)) -> 4121.935 | J8: =IF(_xll.BDP($C$2,$D8,"FUND_PER=Y","EQY_FUND_YEAR",J$2)="#N/A N/A","",_xll.BDP($C$2,$D8,"FUND_PER=Y","EQY_FUND_YEAR",J$2)) -> 6052.058 | K8: =IF(_xll.BDP($C$2,$D8,"FUND_PER=Y","EQY_FUND_YEAR",K$2)="#N/A N/A","",_xll.BDP($C$2,$D8,"FUND_PER=Y","EQY_FUND_YEAR",K$2)) -> 8131.856 | L8: =IF(_xll.BDP($C$2,$D8,"FUND_PER=Y","EQY_FUND_YEAR",L$2)="#N/A N/A","",_xll.BDP($C$2,$D8,"FUND_PER=Y","EQY_FUND_YEAR",L$2)) -> 9836.494 | M8: =IF(_xll.BDP($C$2,$D8,"FUND_PER=Y","EQY_FUND_YEAR",M$2)="#N/A N/A","",_xll.BDP($C$2,$D8,"FUND_PER=Y","EQY_FUND_YEAR",M$2)) -> 11777 | N8: =IF(_xll.BDP($C$2,$D8,"FUND_PER=Y","EQY_FUND_YEAR",N$2)="#N/A N/A","",_xll.BDP($C$2,$D8,"FUND_PER=Y","EQY_FUND_YEAR",N$2)) -> 13593 | O8: =IF(_xll.BDP($C$2,$D8,"FUND_PER=Y","EQY_FUND_YEAR",O$2)="#N/A N/A","",_xll.BDP($C$2,$D8,"FUND_PER=Y","EQY_FUND_YEAR",O$2)) -> 16796 | P8: =IF(_xll.BDP($C$2,$D8,"FUND_PER=Y","EQY_FUND_YEAR",P$2)="#N/A N/A","",_xll.BDP($C$2,$D8,"FUND_PER=Y","EQY_FUND_YEAR",P$2)) -> 19342 | Q8: =IF(_xll.BDP($C$2,$D8,"FUND_PER=Y","EQY_FUND_YEAR",Q$2)="#N/A N/A","",_xll.BDP($C$2,$D8,"FUND_PER=Y","EQY_FUND_YEAR",Q$2)) -> 21475 | R8: =IF(_xll.BDP($C$2,$D8,"FUND_PER=Y","EQY_FUND_YEAR",R$2)="#N/A N/A","",_xll.BDP($C$2,$D8,"FUND_PER=Y","EQY_FUND_YEAR",R$2)) -> 24423 | S8: =IF(_xll.BDP($C$2,$D8,"FUND_PER=Y","EQY_FUND_YEAR",S$2)="#N/A N/A","",_xll.BDP($C$2,$D8,"FUND_PER=Y","EQY_FUND_YEAR",S$2)) -> 29860 | T8: =IF(_xll.BDP($C$2,$D8,"FUND_PER=Y","EQY_FUND_YEAR",T$2)="#N/A N/A","",_xll.BDP($C$2,$D8,"FUND_PER=Y","EQY_FUND_YEAR",T$2)) -> 33061 | U8: =IF(_xll.BDP($C$2,$D8,"FUND_PER=Y","EQY_FUND_YEAR",U$2)="#N/A N/A","",_xll.BDP($C$2,$D8,"FUND_PER=Y","EQY_FUND_YEAR",U$2)) -> 36559 | V8: =IF(_xll.BDP($C$2,$D8,"FUND_PER=Y","EQY_FUND_YEAR",V$2)="#N/A N/A","",_xll.BDP($C$2,$D8,"FUND_PER=Y","EQY_FUND_YEAR",V$2)) -> 47832 | W8: =IF(_xll.BDP($C$2,$D8,"FUND_PER=Y","EQY_FUND_YEAR",W$2)="#N/A N/A","",_xll.BDP($C$2,$D8,"FUND_PER=Y","EQY_FUND_YEAR",W$2)) ->  | X8: =IF(_xll.BDP($C$2,$D8,"FUND_PER=Y","EQY_FUND_YEAR",X$2)="#N/A N/A","",_xll.BDP($C$2,$D8,"FUND_PER=Y","EQY_FUND_YEAR",X$2)) -> 
A12: 〇 | C12: FCF | D12: CF_FREE_CASH_FLOW | E12: =IF(_xll.BDP($C$2,$D12,"FUND_PER=Y","EQY_FUND_YEAR",E$2)="#N/A N/A","",_xll.BDP($C$2,$D12,"FUND_PER=Y","EQY_FUND_YEAR",E$2)) -> 118.066997 | F12: =IF(_xll.BDP($C$2,$D12,"FUND_PER=Y","EQY_FUND_YEAR",F$2)="#N/A N/A","",_xll.BDP($C$2,$D12,"FUND_PER=Y","EQY_FUND_YEAR",F$2)) -> 218.644012 | G12: =IF(_xll.BDP($C$2,$D12,"FUND_PER=Y","EQY_FUND_YEAR",G$2)="#N/A N/A","",_xll.BDP($C$2,$D12,"FUND_PER=Y","EQY_FUND_YEAR",G$2)) -> 658.049 | H12: =IF(_xll.BDP($C$2,$D12,"FUND_PER=Y","EQY_FUND_YEAR",H$2)="#N/A N/A","",_xll.BDP($C$2,$D12,"FUND_PER=Y","EQY_FUND_YEAR",H$2)) -> 1621.205 | I12: =IF(_xll.BDP($C$2,$D12,"FUND_PER=Y","EQY_FUND_YEAR",I$2)="#N/A N/A","",_xll.BDP($C$2,$D12,"FUND_PER=Y","EQY_FUND_YEAR",I$2)) -> 1677.71 | J12: =IF(_xll.BDP($C$2,$D12,"FUND_PER=Y","EQY_FUND_YEAR",J$2)="#N/A N/A","",_xll.BDP($C$2,$D12,"FUND_PER=Y","EQY_FUND_YEAR",J$2)) -> 3372.57 | K12: =IF(_xll.BDP($C$2,$D12,"FUND_PER=Y","EQY_FUND_YEAR",K$2)="#N/A N/A","",_xll.BDP($C$2,$D12,"FUND_PER=Y","EQY_FUND_YEAR",K$2)) -> 5494.396 | L12: =IF(_xll.BDP($C$2,$D12,"FUND_PER=Y","EQY_FUND_YEAR",L$2)="#N/A N/A","",_xll.BDP($C$2,$D12,"FUND_PER=Y","EQY_FUND_YEAR",L$2)) -> 8506.31 | M12: =IF(_xll.BDP($C$2,$D12,"FUND_PER=Y","EQY_FUND_YEAR",M$2)="#N/A N/A","",_xll.BDP($C$2,$D12,"FUND_PER=Y","EQY_FUND_YEAR",M$2)) -> 7063 | N12: =IF(_xll.BDP($C$2,$D12,"FUND_PER=Y","EQY_FUND_YEAR",N$2)="#N/A N/A","",_xll.BDP($C$2,$D12,"FUND_PER=Y","EQY_FUND_YEAR",N$2)) -> 11127 | O12: =IF(_xll.BDP($C$2,$D12,"FUND_PER=Y","EQY_FUND_YEAR",O$2)="#N/A N/A","",_xll.BDP($C$2,$D12,"FUND_PER=Y","EQY_FUND_YEAR",O$2)) -> 13346 | P12: =IF(_xll.BDP($C$2,$D12,"FUND_PER=Y","EQY_FUND_YEAR",P$2)="#N/A N/A","",_xll.BDP($C$2,$D12,"FUND_PER=Y","EQY_FUND_YEAR",P$2)) -> 11301 | Q12: =IF(_xll.BDP($C$2,$D12,"FUND_PER=Y","EQY_FUND_YEAR",Q$2)="#N/A N/A","",_xll.BDP($C$2,$D12,"FUND_PER=Y","EQY_FUND_YEAR",Q$2)) -> 11417 | R12: =IF(_xll.BDP($C$2,$D12,"FUND_PER=Y","EQY_FUND_YEAR",R$2)="#N/A N/A","",_xll.BDP($C$2,$D12,"FUND_PER=Y","EQY_FUND_YEAR",R$2)) -> 16622 | S12: =IF(_xll.BDP($C$2,$D12,"FUND_PER=Y","EQY_FUND_YEAR",S$2)="#N/A N/A","",_xll.BDP($C$2,$D12,"FUND_PER=Y","EQY_FUND_YEAR",S$2)) -> 25824 | T12: =IF(_xll.BDP($C$2,$D12,"FUND_PER=Y","EQY_FUND_YEAR",T$2)="#N/A N/A","",_xll.BDP($C$2,$D12,"FUND_PER=Y","EQY_FUND_YEAR",T$2)) -> 23907 | U12: =IF(_xll.BDP($C$2,$D12,"FUND_PER=Y","EQY_FUND_YEAR",U$2)="#N/A N/A","",_xll.BDP($C$2,$D12,"FUND_PER=Y","EQY_FUND_YEAR",U$2)) -> 22832 | V12: =IF(_xll.BDP($C$2,$D12,"FUND_PER=Y","EQY_FUND_YEAR",V$2)="#N/A N/A","",_xll.BDP($C$2,$D12,"FUND_PER=Y","EQY_FUND_YEAR",V$2)) -> 30972 | W12: =IF(_xll.BDP($C$2,$D12,"FUND_PER=Y","EQY_FUND_YEAR",W$2)="#N/A N/A","",_xll.BDP($C$2,$D12,"FUND_PER=Y","EQY_FUND_YEAR",W$2)) ->  | X12: =IF(_xll.BDP($C$2,$D12,"FUND_PER=Y","EQY_FUND_YEAR",X$2)="#N/A N/A","",_xll.BDP($C$2,$D12,"FUND_PER=Y","EQY_FUND_YEAR",X$2)) -> 
A13: 〇 | C13: 1株当たり利益 | D13: IS_EPS | E13: =IF(_xll.BDP($C$2,$D13,"FUND_PER=Y","EQY_FUND_YEAR",E$2)="#N/A N/A","",_xll.BDP($C$2,$D13,"FUND_PER=Y","EQY_FUND_YEAR",E$2)) -> 0.43 | F13: =IF(_xll.BDP($C$2,$D13,"FUND_PER=Y","EQY_FUND_YEAR",F$2)="#N/A N/A","",_xll.BDP($C$2,$D13,"FUND_PER=Y","EQY_FUND_YEAR",F$2)) -> 0.385 | G13: =IF(_xll.BDP($C$2,$D13,"FUND_PER=Y","EQY_FUND_YEAR",G$2)="#N/A N/A","",_xll.BDP($C$2,$D13,"FUND_PER=Y","EQY_FUND_YEAR",G$2)) -> 1.035 | H13: =IF(_xll.BDP($C$2,$D13,"FUND_PER=Y","EQY_FUND_YEAR",H$2)="#N/A N/A","",_xll.BDP($C$2,$D13,"FUND_PER=Y","EQY_FUND_YEAR",H$2)) -> 2.655 | I13: =IF(_xll.BDP($C$2,$D13,"FUND_PER=Y","EQY_FUND_YEAR",I$2)="#N/A N/A","",_xll.BDP($C$2,$D13,"FUND_PER=Y","EQY_FUND_YEAR",I$2)) -> 5.105 | J13: =IF(_xll.BDP($C$2,$D13,"FUND_PER=Y","EQY_FUND_YEAR",J$2)="#N/A N/A","",_xll.BDP($C$2,$D13,"FUND_PER=Y","EQY_FUND_YEAR",J$2)) -> 6.765 | K13: =IF(_xll.BDP($C$2,$D13,"FUND_PER=Y","EQY_FUND_YEAR",K$2)="#N/A N/A","",_xll.BDP($C$2,$D13,"FUND_PER=Y","EQY_FUND_YEAR",K$2)) -> 6.73 | L13: =IF(_xll.BDP($C$2,$D13,"FUND_PER=Y","EQY_FUND_YEAR",L$2)="#N/A N/A","",_xll.BDP($C$2,$D13,"FUND_PER=Y","EQY_FUND_YEAR",L$2)) -> 10.31 | M13: =IF(_xll.BDP($C$2,$D13,"FUND_PER=Y","EQY_FUND_YEAR",M$2)="#N/A N/A","",_xll.BDP($C$2,$D13,"FUND_PER=Y","EQY_FUND_YEAR",M$2)) -> 13.345 | N13: =IF(_xll.BDP($C$2,$D13,"FUND_PER=Y","EQY_FUND_YEAR",N$2)="#N/A N/A","",_xll.BDP($C$2,$D13,"FUND_PER=Y","EQY_FUND_YEAR",N$2)) -> 15.085 | O13: =IF(_xll.BDP($C$2,$D13,"FUND_PER=Y","EQY_FUND_YEAR",O$2)="#N/A N/A","",_xll.BDP($C$2,$D13,"FUND_PER=Y","EQY_FUND_YEAR",O$2)) -> 16.41 | P13: =IF(_xll.BDP($C$2,$D13,"FUND_PER=Y","EQY_FUND_YEAR",P$2)="#N/A N/A","",_xll.BDP($C$2,$D13,"FUND_PER=Y","EQY_FUND_YEAR",P$2)) -> 19.129943 | Q13: =IF(_xll.BDP($C$2,$D13,"FUND_PER=Y","EQY_FUND_YEAR",Q$2)="#N/A N/A","",_xll.BDP($C$2,$D13,"FUND_PER=Y","EQY_FUND_YEAR",Q$2)) -> 20.91 | R13: =IF(_xll.BDP($C$2,$D13,"FUND_PER=Y","EQY_FUND_YEAR",R$2)="#N/A N/A","",_xll.BDP($C$2,$D13,"FUND_PER=Y","EQY_FUND_YEAR",R$2)) -> 23.11 | S13: =IF(_xll.BDP($C$2,$D13,"FUND_PER=Y","EQY_FUND_YEAR",S$2)="#N/A N/A","",_xll.BDP($C$2,$D13,"FUND_PER=Y","EQY_FUND_YEAR",S$2)) -> 28.142966 | T13: =IF(_xll.BDP($C$2,$D13,"FUND_PER=Y","EQY_FUND_YEAR",T$2)="#N/A N/A","",_xll.BDP($C$2,$D13,"FUND_PER=Y","EQY_FUND_YEAR",T$2)) -> 18.27 | U13: =IF(_xll.BDP($C$2,$D13,"FUND_PER=Y","EQY_FUND_YEAR",U$2)="#N/A N/A","",_xll.BDP($C$2,$D13,"FUND_PER=Y","EQY_FUND_YEAR",U$2)) -> 44.22 | V13: =IF(_xll.BDP($C$2,$D13,"FUND_PER=Y","EQY_FUND_YEAR",V$2)="#N/A N/A","",_xll.BDP($C$2,$D13,"FUND_PER=Y","EQY_FUND_YEAR",V$2)) -> 49.59 | W13: =IF(_xll.BDP($C$2,$D13,"FUND_PER=Y","EQY_FUND_YEAR",W$2)="#N/A N/A","",_xll.BDP($C$2,$D13,"FUND_PER=Y","EQY_FUND_YEAR",W$2)) ->  | X13: =IF(_xll.BDP($C$2,$D13,"FUND_PER=Y","EQY_FUND_YEAR",X$2)="#N/A N/A","",_xll.BDP($C$2,$D13,"FUND_PER=Y","EQY_FUND_YEAR",X$2)) -> 
A17: 〇 | C17: 現預金 | D17: C&CE_AND_STI_DETAILED | E17: =IF(_xll.BDP($C$2,$D17,"FUND_PER=Y","EQY_FUND_YEAR",E$2)="#N/A N/A","",_xll.BDP($C$2,$D17,"FUND_PER=Y","EQY_FUND_YEAR",E$2)) -> 146.331001 | F17: =IF(_xll.BDP($C$2,$D17,"FUND_PER=Y","EQY_FUND_YEAR",F$2)="#N/A N/A","",_xll.BDP($C$2,$D17,"FUND_PER=Y","EQY_FUND_YEAR",F$2)) -> 334.718002 | G17: =IF(_xll.BDP($C$2,$D17,"FUND_PER=Y","EQY_FUND_YEAR",G$2)="#N/A N/A","",_xll.BDP($C$2,$D17,"FUND_PER=Y","EQY_FUND_YEAR",G$2)) -> 2132.297 | H17: =IF(_xll.BDP($C$2,$D17,"FUND_PER=Y","EQY_FUND_YEAR",H$2)="#N/A N/A","",_xll.BDP($C$2,$D17,"FUND_PER=Y","EQY_FUND_YEAR",H$2)) -> 8034.247 | I17: =IF(_xll.BDP($C$2,$D17,"FUND_PER=Y","EQY_FUND_YEAR",I$2)="#N/A N/A","",_xll.BDP($C$2,$D17,"FUND_PER=Y","EQY_FUND_YEAR",I$2)) -> 11243.914 | J17: =IF(_xll.BDP($C$2,$D17,"FUND_PER=Y","EQY_FUND_YEAR",J$2)="#N/A N/A","",_xll.BDP($C$2,$D17,"FUND_PER=Y","EQY_FUND_YEAR",J$2)) -> 14218.613 | K17: =IF(_xll.BDP($C$2,$D17,"FUND_PER=Y","EQY_FUND_YEAR",K$2)="#N/A N/A","",_xll.BDP($C$2,$D17,"FUND_PER=Y","EQY_FUND_YEAR",K$2)) -> 15845.771 | L17: =IF(_xll.BDP($C$2,$D17,"FUND_PER=Y","EQY_FUND_YEAR",L$2)="#N/A N/A","",_xll.BDP($C$2,$D17,"FUND_PER=Y","EQY_FUND_YEAR",L$2)) -> 24484.775 | M17: =IF(_xll.BDP($C$2,$D17,"FUND_PER=Y","EQY_FUND_YEAR",M$2)="#N/A N/A","",_xll.BDP($C$2,$D17,"FUND_PER=Y","EQY_FUND_YEAR",M$2)) -> 34975 | N17: =IF(_xll.BDP($C$2,$D17,"FUND_PER=Y","EQY_FUND_YEAR",N$2)="#N/A N/A","",_xll.BDP($C$2,$D17,"FUND_PER=Y","EQY_FUND_YEAR",N$2)) -> 44626 | O17: =IF(_xll.BDP($C$2,$D17,"FUND_PER=Y","EQY_FUND_YEAR",O$2)="#N/A N/A","",_xll.BDP($C$2,$D17,"FUND_PER=Y","EQY_FUND_YEAR",O$2)) -> 48088 | P17: =IF(_xll.BDP($C$2,$D17,"FUND_PER=Y","EQY_FUND_YEAR",P$2)="#N/A N/A","",_xll.BDP($C$2,$D17,"FUND_PER=Y","EQY_FUND_YEAR",P$2)) -> 58717 | Q17: =IF(_xll.BDP($C$2,$D17,"FUND_PER=Y","EQY_FUND_YEAR",Q$2)="#N/A N/A","",_xll.BDP($C$2,$D17,"FUND_PER=Y","EQY_FUND_YEAR",Q$2)) -> 64395 | R17: =IF(_xll.BDP($C$2,$D17,"FUND_PER=Y","EQY_FUND_YEAR",R$2)="#N/A N/A","",_xll.BDP($C$2,$D17,"FUND_PER=Y","EQY_FUND_YEAR",R$2)) -> 73066 | S17: =IF(_xll.BDP($C$2,$D17,"FUND_PER=Y","EQY_FUND_YEAR",S$2)="#N/A N/A","",_xll.BDP($C$2,$D17,"FUND_PER=Y","EQY_FUND_YEAR",S$2)) -> 86333 | T17: =IF(_xll.BDP($C$2,$D17,"FUND_PER=Y","EQY_FUND_YEAR",T$2)="#N/A N/A","",_xll.BDP($C$2,$D17,"FUND_PER=Y","EQY_FUND_YEAR",T$2)) -> 101871 | U17: =IF(_xll.BDP($C$2,$D17,"FUND_PER=Y","EQY_FUND_YEAR",U$2)="#N/A N/A","",_xll.BDP($C$2,$D17,"FUND_PER=Y","EQY_FUND_YEAR",U$2)) -> 109140 | V17: =IF(_xll.BDP($C$2,$D17,"FUND_PER=Y","EQY_FUND_YEAR",V$2)="#N/A N/A","",_xll.BDP($C$2,$D17,"FUND_PER=Y","EQY_FUND_YEAR",V$2)) -> 119675 | W17: =IF(_xll.BDP($C$2,$D17,"FUND_PER=Y","EQY_FUND_YEAR",W$2)="#N/A N/A","",_xll.BDP($C$2,$D17,"FUND_PER=Y","EQY_FUND_YEAR",W$2)) ->  | X17: =IF(_xll.BDP($C$2,$D17,"FUND_PER=Y","EQY_FUND_YEAR",X$2)="#N/A N/A","",_xll.BDP($C$2,$D17,"FUND_PER=Y","EQY_FUND_YEAR",X$2)) -> 
A18: 〇 | C18: 売上債権 | D18: BS_ACCT_NOTE_RCV | E18: =IF(_xll.BDP($C$2,$D18,"FUND_PER=Y","EQY_FUND_YEAR",E$2)="#N/A N/A","",_xll.BDP($C$2,$D18,"FUND_PER=Y","EQY_FUND_YEAR",E$2)) -> 61.993999 | F18: =IF(_xll.BDP($C$2,$D18,"FUND_PER=Y","EQY_FUND_YEAR",F$2)="#N/A N/A","",_xll.BDP($C$2,$D18,"FUND_PER=Y","EQY_FUND_YEAR",F$2)) -> 154.690002 | G18: =IF(_xll.BDP($C$2,$D18,"FUND_PER=Y","EQY_FUND_YEAR",G$2)="#N/A N/A","",_xll.BDP($C$2,$D18,"FUND_PER=Y","EQY_FUND_YEAR",G$2)) -> 311.836 | H18: =IF(_xll.BDP($C$2,$D18,"FUND_PER=Y","EQY_FUND_YEAR",H$2)="#N/A N/A","",_xll.BDP($C$2,$D18,"FUND_PER=Y","EQY_FUND_YEAR",H$2)) -> 687.976 | I18: =IF(_xll.BDP($C$2,$D18,"FUND_PER=Y","EQY_FUND_YEAR",I$2)="#N/A N/A","",_xll.BDP($C$2,$D18,"FUND_PER=Y","EQY_FUND_YEAR",I$2)) -> 1322.34 | J18: =IF(_xll.BDP($C$2,$D18,"FUND_PER=Y","EQY_FUND_YEAR",J$2)="#N/A N/A","",_xll.BDP($C$2,$D18,"FUND_PER=Y","EQY_FUND_YEAR",J$2)) -> 2162.521 | K18: =IF(_xll.BDP($C$2,$D18,"FUND_PER=Y","EQY_FUND_YEAR",K$2)="#N/A N/A","",_xll.BDP($C$2,$D18,"FUND_PER=Y","EQY_FUND_YEAR",K$2)) -> 2642.192 | L18: =IF(_xll.BDP($C$2,$D18,"FUND_PER=Y","EQY_FUND_YEAR",L$2)="#N/A N/A","",_xll.BDP($C$2,$D18,"FUND_PER=Y","EQY_FUND_YEAR",L$2)) -> 3178.471 | M18: =IF(_xll.BDP($C$2,$D18,"FUND_PER=Y","EQY_FUND_YEAR",M$2)="#N/A N/A","",_xll.BDP($C$2,$D18,"FUND_PER=Y","EQY_FUND_YEAR",M$2)) -> 4252 | N18: =IF(_xll.BDP($C$2,$D18,"FUND_PER=Y","EQY_FUND_YEAR",N$2)="#N/A N/A","",_xll.BDP($C$2,$D18,"FUND_PER=Y","EQY_FUND_YEAR",N$2)) -> 5427 | O18: =IF(_xll.BDP($C$2,$D18,"FUND_PER=Y","EQY_FUND_YEAR",O$2)="#N/A N/A","",_xll.BDP($C$2,$D18,"FUND_PER=Y","EQY_FUND_YEAR",O$2)) -> 7885 | P18: =IF(_xll.BDP($C$2,$D18,"FUND_PER=Y","EQY_FUND_YEAR",P$2)="#N/A N/A","",_xll.BDP($C$2,$D18,"FUND_PER=Y","EQY_FUND_YEAR",P$2)) -> 8882 | Q18: =IF(_xll.BDP($C$2,$D18,"FUND_PER=Y","EQY_FUND_YEAR",Q$2)="#N/A N/A","",_xll.BDP($C$2,$D18,"FUND_PER=Y","EQY_FUND_YEAR",Q$2)) -> 9383 | R18: =IF(_xll.BDP($C$2,$D18,"FUND_PER=Y","EQY_FUND_YEAR",R$2)="#N/A N/A","",_xll.BDP($C$2,$D18,"FUND_PER=Y","EQY_FUND_YEAR",R$2)) -> 11556 | S18: =IF(_xll.BDP($C$2,$D18,"FUND_PER=Y","EQY_FUND_YEAR",S$2)="#N/A N/A","",_xll.BDP($C$2,$D18,"FUND_PER=Y","EQY_FUND_YEAR",S$2)) -> 14137 | T18: =IF(_xll.BDP($C$2,$D18,"FUND_PER=Y","EQY_FUND_YEAR",T$2)="#N/A N/A","",_xll.BDP($C$2,$D18,"FUND_PER=Y","EQY_FUND_YEAR",T$2)) -> 18336 | U18: =IF(_xll.BDP($C$2,$D18,"FUND_PER=Y","EQY_FUND_YEAR",U$2)="#N/A N/A","",_xll.BDP($C$2,$D18,"FUND_PER=Y","EQY_FUND_YEAR",U$2)) -> 20838 | V18: =IF(_xll.BDP($C$2,$D18,"FUND_PER=Y","EQY_FUND_YEAR",V$2)="#N/A N/A","",_xll.BDP($C$2,$D18,"FUND_PER=Y","EQY_FUND_YEAR",V$2)) -> 25326 | W18: =IF(_xll.BDP($C$2,$D18,"FUND_PER=Y","EQY_FUND_YEAR",W$2)="#N/A N/A","",_xll.BDP($C$2,$D18,"FUND_PER=Y","EQY_FUND_YEAR",W$2)) ->  | X18: =IF(_xll.BDP($C$2,$D18,"FUND_PER=Y","EQY_FUND_YEAR",X$2)="#N/A N/A","",_xll.BDP($C$2,$D18,"FUND_PER=Y","EQY_FUND_YEAR",X$2)) -> 
A19: 〇 | C19: 棚卸資産 | D19: BS_INVENTORIES | E19: =IF(_xll.BDP($C$2,$D19,"FUND_PER=Y","EQY_FUND_YEAR",E$2)="#N/A N/A","",_xll.BDP($C$2,$D19,"FUND_PER=Y","EQY_FUND_YEAR",E$2)) -> 0 | F19: =IF(_xll.BDP($C$2,$D19,"FUND_PER=Y","EQY_FUND_YEAR",F$2)="#N/A N/A","",_xll.BDP($C$2,$D19,"FUND_PER=Y","EQY_FUND_YEAR",F$2)) -> 0 | G19: =IF(_xll.BDP($C$2,$D19,"FUND_PER=Y","EQY_FUND_YEAR",G$2)="#N/A N/A","",_xll.BDP($C$2,$D19,"FUND_PER=Y","EQY_FUND_YEAR",G$2)) -> 0 | H19: =IF(_xll.BDP($C$2,$D19,"FUND_PER=Y","EQY_FUND_YEAR",H$2)="#N/A N/A","",_xll.BDP($C$2,$D19,"FUND_PER=Y","EQY_FUND_YEAR",H$2)) -> 0 | I19: =IF(_xll.BDP($C$2,$D19,"FUND_PER=Y","EQY_FUND_YEAR",I$2)="#N/A N/A","",_xll.BDP($C$2,$D19,"FUND_PER=Y","EQY_FUND_YEAR",I$2)) -> 0 | J19: =IF(_xll.BDP($C$2,$D19,"FUND_PER=Y","EQY_FUND_YEAR",J$2)="#N/A N/A","",_xll.BDP($C$2,$D19,"FUND_PER=Y","EQY_FUND_YEAR",J$2)) -> 0 | K19: =IF(_xll.BDP($C$2,$D19,"FUND_PER=Y","EQY_FUND_YEAR",K$2)="#N/A N/A","",_xll.BDP($C$2,$D19,"FUND_PER=Y","EQY_FUND_YEAR",K$2)) -> 0 | L19: =IF(_xll.BDP($C$2,$D19,"FUND_PER=Y","EQY_FUND_YEAR",L$2)="#N/A N/A","",_xll.BDP($C$2,$D19,"FUND_PER=Y","EQY_FUND_YEAR",L$2)) -> 0 | M19: =IF(_xll.BDP($C$2,$D19,"FUND_PER=Y","EQY_FUND_YEAR",M$2)="#N/A N/A","",_xll.BDP($C$2,$D19,"FUND_PER=Y","EQY_FUND_YEAR",M$2)) -> 0 | N19: =IF(_xll.BDP($C$2,$D19,"FUND_PER=Y","EQY_FUND_YEAR",N$2)="#N/A N/A","",_xll.BDP($C$2,$D19,"FUND_PER=Y","EQY_FUND_YEAR",N$2)) -> 0 | O19: =IF(_xll.BDP($C$2,$D19,"FUND_PER=Y","EQY_FUND_YEAR",O$2)="#N/A N/A","",_xll.BDP($C$2,$D19,"FUND_PER=Y","EQY_FUND_YEAR",O$2)) -> 505 | P19: =IF(_xll.BDP($C$2,$D19,"FUND_PER=Y","EQY_FUND_YEAR",P$2)="#N/A N/A","",_xll.BDP($C$2,$D19,"FUND_PER=Y","EQY_FUND_YEAR",P$2)) -> 426 | Q19: =IF(_xll.BDP($C$2,$D19,"FUND_PER=Y","EQY_FUND_YEAR",Q$2)="#N/A N/A","",_xll.BDP($C$2,$D19,"FUND_PER=Y","EQY_FUND_YEAR",Q$2)) -> 0 | R19: =IF(_xll.BDP($C$2,$D19,"FUND_PER=Y","EQY_FUND_YEAR",R$2)="#N/A N/A","",_xll.BDP($C$2,$D19,"FUND_PER=Y","EQY_FUND_YEAR",R$2)) -> 491 | S19: =IF(_xll.BDP($C$2,$D19,"FUND_PER=Y","EQY_FUND_YEAR",S$2)="#N/A N/A","",_xll.BDP($C$2,$D19,"FUND_PER=Y","EQY_FUND_YEAR",S$2)) -> 268 | T19: =IF(_xll.BDP($C$2,$D19,"FUND_PER=Y","EQY_FUND_YEAR",T$2)="#N/A N/A","",_xll.BDP($C$2,$D19,"FUND_PER=Y","EQY_FUND_YEAR",T$2)) -> 749 | U19: =IF(_xll.BDP($C$2,$D19,"FUND_PER=Y","EQY_FUND_YEAR",U$2)="#N/A N/A","",_xll.BDP($C$2,$D19,"FUND_PER=Y","EQY_FUND_YEAR",U$2)) -> 1107 | V19: =IF(_xll.BDP($C$2,$D19,"FUND_PER=Y","EQY_FUND_YEAR",V$2)="#N/A N/A","",_xll.BDP($C$2,$D19,"FUND_PER=Y","EQY_FUND_YEAR",V$2)) -> 999 | W19: =IF(_xll.BDP($C$2,$D19,"FUND_PER=Y","EQY_FUND_YEAR",W$2)="#N/A N/A","",_xll.BDP($C$2,$D19,"FUND_PER=Y","EQY_FUND_YEAR",W$2)) ->  | X19: =IF(_xll.BDP($C$2,$D19,"FUND_PER=Y","EQY_FUND_YEAR",X$2)="#N/A N/A","",_xll.BDP($C$2,$D19,"FUND_PER=Y","EQY_FUND_YEAR",X$2)) -> 
A20: 〇 | C20: 流動資産 | D20: ARD_TOTAL_CUR_ASSETS | E20: =IF(_xll.BDP($C$2,$D20,"FUND_PER=Y","EQY_FUND_YEAR",E$2)="#N/A N/A","",_xll.BDP($C$2,$D20,"FUND_PER=Y","EQY_FUND_YEAR",E$2)) ->  | F20: =IF(_xll.BDP($C$2,$D20,"FUND_PER=Y","EQY_FUND_YEAR",F$2)="#N/A N/A","",_xll.BDP($C$2,$D20,"FUND_PER=Y","EQY_FUND_YEAR",F$2)) ->  | G20: =IF(_xll.BDP($C$2,$D20,"FUND_PER=Y","EQY_FUND_YEAR",G$2)="#N/A N/A","",_xll.BDP($C$2,$D20,"FUND_PER=Y","EQY_FUND_YEAR",G$2)) -> 2693.465 | H20: =IF(_xll.BDP($C$2,$D20,"FUND_PER=Y","EQY_FUND_YEAR",H$2)="#N/A N/A","",_xll.BDP($C$2,$D20,"FUND_PER=Y","EQY_FUND_YEAR",H$2)) -> 9001.071 | I20: =IF(_xll.BDP($C$2,$D20,"FUND_PER=Y","EQY_FUND_YEAR",I$2)="#N/A N/A","",_xll.BDP($C$2,$D20,"FUND_PER=Y","EQY_FUND_YEAR",I$2)) -> 13039.847 | J20: =IF(_xll.BDP($C$2,$D20,"FUND_PER=Y","EQY_FUND_YEAR",J$2)="#N/A N/A","",_xll.BDP($C$2,$D20,"FUND_PER=Y","EQY_FUND_YEAR",J$2)) -> 17289.138 | K20: =IF(_xll.BDP($C$2,$D20,"FUND_PER=Y","EQY_FUND_YEAR",K$2)="#N/A N/A","",_xll.BDP($C$2,$D20,"FUND_PER=Y","EQY_FUND_YEAR",K$2)) -> 20178.182 | L20: =IF(_xll.BDP($C$2,$D20,"FUND_PER=Y","EQY_FUND_YEAR",L$2)="#N/A N/A","",_xll.BDP($C$2,$D20,"FUND_PER=Y","EQY_FUND_YEAR",L$2)) -> 29166.958 | M20: =IF(_xll.BDP($C$2,$D20,"FUND_PER=Y","EQY_FUND_YEAR",M$2)="#N/A N/A","",_xll.BDP($C$2,$D20,"FUND_PER=Y","EQY_FUND_YEAR",M$2)) -> 41562 | N20: =IF(_xll.BDP($C$2,$D20,"FUND_PER=Y","EQY_FUND_YEAR",N$2)="#N/A N/A","",_xll.BDP($C$2,$D20,"FUND_PER=Y","EQY_FUND_YEAR",N$2)) -> 52758 | O20: =IF(_xll.BDP($C$2,$D20,"FUND_PER=Y","EQY_FUND_YEAR",O$2)="#N/A N/A","",_xll.BDP($C$2,$D20,"FUND_PER=Y","EQY_FUND_YEAR",O$2)) -> 60454 | P20: =IF(_xll.BDP($C$2,$D20,"FUND_PER=Y","EQY_FUND_YEAR",P$2)="#N/A N/A","",_xll.BDP($C$2,$D20,"FUND_PER=Y","EQY_FUND_YEAR",P$2)) -> 72886 | Q20: =IF(_xll.BDP($C$2,$D20,"FUND_PER=Y","EQY_FUND_YEAR",Q$2)="#N/A N/A","",_xll.BDP($C$2,$D20,"FUND_PER=Y","EQY_FUND_YEAR",Q$2)) -> 78656 | R20: =IF(_xll.BDP($C$2,$D20,"FUND_PER=Y","EQY_FUND_YEAR",R$2)="#N/A N/A","",_xll.BDP($C$2,$D20,"FUND_PER=Y","EQY_FUND_YEAR",R$2)) -> 90114 | S20: =IF(_xll.BDP($C$2,$D20,"FUND_PER=Y","EQY_FUND_YEAR",S$2)="#N/A N/A","",_xll.BDP($C$2,$D20,"FUND_PER=Y","EQY_FUND_YEAR",S$2)) -> 105408 | T20: =IF(_xll.BDP($C$2,$D20,"FUND_PER=Y","EQY_FUND_YEAR",T$2)="#N/A N/A","",_xll.BDP($C$2,$D20,"FUND_PER=Y","EQY_FUND_YEAR",T$2)) -> 124308 | U20: =IF(_xll.BDP($C$2,$D20,"FUND_PER=Y","EQY_FUND_YEAR",U$2)="#N/A N/A","",_xll.BDP($C$2,$D20,"FUND_PER=Y","EQY_FUND_YEAR",U$2)) -> 135676 | V20: =IF(_xll.BDP($C$2,$D20,"FUND_PER=Y","EQY_FUND_YEAR",V$2)="#N/A N/A","",_xll.BDP($C$2,$D20,"FUND_PER=Y","EQY_FUND_YEAR",V$2)) -> 152578 | W20: =IF(_xll.BDP($C$2,$D20,"FUND_PER=Y","EQY_FUND_YEAR",W$2)="#N/A N/A","",_xll.BDP($C$2,$D20,"FUND_PER=Y","EQY_FUND_YEAR",W$2)) ->  | X20: =IF(_xll.BDP($C$2,$D20,"FUND_PER=Y","EQY_FUND_YEAR",X$2)="#N/A N/A","",_xll.BDP($C$2,$D20,"FUND_PER=Y","EQY_FUND_YEAR",X$2)) -> 
A21: 〇 | C21: 固定資産（純額） | D21: BS_NET_FIX_ASSET | E21: =IF(_xll.BDP($C$2,$D21,"FUND_PER=Y","EQY_FUND_YEAR",E$2)="#N/A N/A","",_xll.BDP($C$2,$D21,"FUND_PER=Y","EQY_FUND_YEAR",E$2)) -> 53.873001 | F21: =IF(_xll.BDP($C$2,$D21,"FUND_PER=Y","EQY_FUND_YEAR",F$2)="#N/A N/A","",_xll.BDP($C$2,$D21,"FUND_PER=Y","EQY_FUND_YEAR",F$2)) -> 188.255005 | G21: =IF(_xll.BDP($C$2,$D21,"FUND_PER=Y","EQY_FUND_YEAR",G$2)="#N/A N/A","",_xll.BDP($C$2,$D21,"FUND_PER=Y","EQY_FUND_YEAR",G$2)) -> 378.916 | H21: =IF(_xll.BDP($C$2,$D21,"FUND_PER=Y","EQY_FUND_YEAR",H$2)="#N/A N/A","",_xll.BDP($C$2,$D21,"FUND_PER=Y","EQY_FUND_YEAR",H$2)) -> 961.749 | I21: =IF(_xll.BDP($C$2,$D21,"FUND_PER=Y","EQY_FUND_YEAR",I$2)="#N/A N/A","",_xll.BDP($C$2,$D21,"FUND_PER=Y","EQY_FUND_YEAR",I$2)) -> 2395.239 | J21: =IF(_xll.BDP($C$2,$D21,"FUND_PER=Y","EQY_FUND_YEAR",J$2)="#N/A N/A","",_xll.BDP($C$2,$D21,"FUND_PER=Y","EQY_FUND_YEAR",J$2)) -> 4039.261 | K21: =IF(_xll.BDP($C$2,$D21,"FUND_PER=Y","EQY_FUND_YEAR",K$2)="#N/A N/A","",_xll.BDP($C$2,$D21,"FUND_PER=Y","EQY_FUND_YEAR",K$2)) -> 5233.843 | L21: =IF(_xll.BDP($C$2,$D21,"FUND_PER=Y","EQY_FUND_YEAR",L$2)="#N/A N/A","",_xll.BDP($C$2,$D21,"FUND_PER=Y","EQY_FUND_YEAR",L$2)) -> 4844.61 | M21: =IF(_xll.BDP($C$2,$D21,"FUND_PER=Y","EQY_FUND_YEAR",M$2)="#N/A N/A","",_xll.BDP($C$2,$D21,"FUND_PER=Y","EQY_FUND_YEAR",M$2)) -> 7759 | N21: =IF(_xll.BDP($C$2,$D21,"FUND_PER=Y","EQY_FUND_YEAR",N$2)="#N/A N/A","",_xll.BDP($C$2,$D21,"FUND_PER=Y","EQY_FUND_YEAR",N$2)) -> 9603 | O21: =IF(_xll.BDP($C$2,$D21,"FUND_PER=Y","EQY_FUND_YEAR",O$2)="#N/A N/A","",_xll.BDP($C$2,$D21,"FUND_PER=Y","EQY_FUND_YEAR",O$2)) -> 11854 | P21: =IF(_xll.BDP($C$2,$D21,"FUND_PER=Y","EQY_FUND_YEAR",P$2)="#N/A N/A","",_xll.BDP($C$2,$D21,"FUND_PER=Y","EQY_FUND_YEAR",P$2)) -> 16524 | Q21: =IF(_xll.BDP($C$2,$D21,"FUND_PER=Y","EQY_FUND_YEAR",Q$2)="#N/A N/A","",_xll.BDP($C$2,$D21,"FUND_PER=Y","EQY_FUND_YEAR",Q$2)) -> 23883 | R21: =IF(_xll.BDP($C$2,$D21,"FUND_PER=Y","EQY_FUND_YEAR",R$2)="#N/A N/A","",_xll.BDP($C$2,$D21,"FUND_PER=Y","EQY_FUND_YEAR",R$2)) -> 29016 | S21: =IF(_xll.BDP($C$2,$D21,"FUND_PER=Y","EQY_FUND_YEAR",S$2)="#N/A N/A","",_xll.BDP($C$2,$D21,"FUND_PER=Y","EQY_FUND_YEAR",S$2)) -> 34234 | T21: =IF(_xll.BDP($C$2,$D21,"FUND_PER=Y","EQY_FUND_YEAR",T$2)="#N/A N/A","",_xll.BDP($C$2,$D21,"FUND_PER=Y","EQY_FUND_YEAR",T$2)) -> 42383 | U21: =IF(_xll.BDP($C$2,$D21,"FUND_PER=Y","EQY_FUND_YEAR",U$2)="#N/A N/A","",_xll.BDP($C$2,$D21,"FUND_PER=Y","EQY_FUND_YEAR",U$2)) -> 59719 | V21: =IF(_xll.BDP($C$2,$D21,"FUND_PER=Y","EQY_FUND_YEAR",V$2)="#N/A N/A","",_xll.BDP($C$2,$D21,"FUND_PER=Y","EQY_FUND_YEAR",V$2)) -> 84587 | W21: =IF(_xll.BDP($C$2,$D21,"FUND_PER=Y","EQY_FUND_YEAR",W$2)="#N/A N/A","",_xll.BDP($C$2,$D21,"FUND_PER=Y","EQY_FUND_YEAR",W$2)) ->  | X21: =IF(_xll.BDP($C$2,$D21,"FUND_PER=Y","EQY_FUND_YEAR",X$2)="#N/A N/A","",_xll.BDP($C$2,$D21,"FUND_PER=Y","EQY_FUND_YEAR",X$2)) -> 
A22: 〇 | C22: 総長期投資 | D22: BS_LT_INVEST | E22: =IF(_xll.BDP($C$2,$D22,"FUND_PER=Y","EQY_FUND_YEAR",E$2)="#N/A N/A","",_xll.BDP($C$2,$D22,"FUND_PER=Y","EQY_FUND_YEAR",E$2)) -> 0 | F22: =IF(_xll.BDP($C$2,$D22,"FUND_PER=Y","EQY_FUND_YEAR",F$2)="#N/A N/A","",_xll.BDP($C$2,$D22,"FUND_PER=Y","EQY_FUND_YEAR",F$2)) -> 0 | G22: =IF(_xll.BDP($C$2,$D22,"FUND_PER=Y","EQY_FUND_YEAR",G$2)="#N/A N/A","",_xll.BDP($C$2,$D22,"FUND_PER=Y","EQY_FUND_YEAR",G$2)) -> 0 | H22: =IF(_xll.BDP($C$2,$D22,"FUND_PER=Y","EQY_FUND_YEAR",H$2)="#N/A N/A","",_xll.BDP($C$2,$D22,"FUND_PER=Y","EQY_FUND_YEAR",H$2)) -> 0 | I22: =IF(_xll.BDP($C$2,$D22,"FUND_PER=Y","EQY_FUND_YEAR",I$2)="#N/A N/A","",_xll.BDP($C$2,$D22,"FUND_PER=Y","EQY_FUND_YEAR",I$2)) -> 1031.85 | J22: =IF(_xll.BDP($C$2,$D22,"FUND_PER=Y","EQY_FUND_YEAR",J$2)="#N/A N/A","",_xll.BDP($C$2,$D22,"FUND_PER=Y","EQY_FUND_YEAR",J$2)) -> 1059.694 | K22: =IF(_xll.BDP($C$2,$D22,"FUND_PER=Y","EQY_FUND_YEAR",K$2)="#N/A N/A","",_xll.BDP($C$2,$D22,"FUND_PER=Y","EQY_FUND_YEAR",K$2)) -> 85.16 | L22: =IF(_xll.BDP($C$2,$D22,"FUND_PER=Y","EQY_FUND_YEAR",L$2)="#N/A N/A","",_xll.BDP($C$2,$D22,"FUND_PER=Y","EQY_FUND_YEAR",L$2)) -> 128.977 | M22: =IF(_xll.BDP($C$2,$D22,"FUND_PER=Y","EQY_FUND_YEAR",M$2)="#N/A N/A","",_xll.BDP($C$2,$D22,"FUND_PER=Y","EQY_FUND_YEAR",M$2)) -> 523 | N22: =IF(_xll.BDP($C$2,$D22,"FUND_PER=Y","EQY_FUND_YEAR",N$2)="#N/A N/A","",_xll.BDP($C$2,$D22,"FUND_PER=Y","EQY_FUND_YEAR",N$2)) -> 790 | O22: =IF(_xll.BDP($C$2,$D22,"FUND_PER=Y","EQY_FUND_YEAR",O$2)="#N/A N/A","",_xll.BDP($C$2,$D22,"FUND_PER=Y","EQY_FUND_YEAR",O$2)) -> 1469 | P22: =IF(_xll.BDP($C$2,$D22,"FUND_PER=Y","EQY_FUND_YEAR",P$2)="#N/A N/A","",_xll.BDP($C$2,$D22,"FUND_PER=Y","EQY_FUND_YEAR",P$2)) -> 1976 | Q22: =IF(_xll.BDP($C$2,$D22,"FUND_PER=Y","EQY_FUND_YEAR",Q$2)="#N/A N/A","",_xll.BDP($C$2,$D22,"FUND_PER=Y","EQY_FUND_YEAR",Q$2)) -> 3079 | R22: =IF(_xll.BDP($C$2,$D22,"FUND_PER=Y","EQY_FUND_YEAR",R$2)="#N/A N/A","",_xll.BDP($C$2,$D22,"FUND_PER=Y","EQY_FUND_YEAR",R$2)) -> 5183 | S22: =IF(_xll.BDP($C$2,$D22,"FUND_PER=Y","EQY_FUND_YEAR",S$2)="#N/A N/A","",_xll.BDP($C$2,$D22,"FUND_PER=Y","EQY_FUND_YEAR",S$2)) -> 5878 | T22: =IF(_xll.BDP($C$2,$D22,"FUND_PER=Y","EQY_FUND_YEAR",T$2)="#N/A N/A","",_xll.BDP($C$2,$D22,"FUND_PER=Y","EQY_FUND_YEAR",T$2)) -> 7813 | U22: =IF(_xll.BDP($C$2,$D22,"FUND_PER=Y","EQY_FUND_YEAR",U$2)="#N/A N/A","",_xll.BDP($C$2,$D22,"FUND_PER=Y","EQY_FUND_YEAR",U$2)) -> 13859 | V22: =IF(_xll.BDP($C$2,$D22,"FUND_PER=Y","EQY_FUND_YEAR",V$2)="#N/A N/A","",_xll.BDP($C$2,$D22,"FUND_PER=Y","EQY_FUND_YEAR",V$2)) -> 13078 | W22: =IF(_xll.BDP($C$2,$D22,"FUND_PER=Y","EQY_FUND_YEAR",W$2)="#N/A N/A","",_xll.BDP($C$2,$D22,"FUND_PER=Y","EQY_FUND_YEAR",W$2)) ->  | X22: =IF(_xll.BDP($C$2,$D22,"FUND_PER=Y","EQY_FUND_YEAR",X$2)="#N/A N/A","",_xll.BDP($C$2,$D22,"FUND_PER=Y","EQY_FUND_YEAR",X$2)) -> 
A23: 〇 | C23: その他の固定資産 | D23: BS_OTHER_ASSETS_DEF_CHRG_OTHER | E23: =IF(_xll.BDP($C$2,$D23,"FUND_PER=Y","EQY_FUND_YEAR",E$2)="#N/A N/A","",_xll.BDP($C$2,$D23,"FUND_PER=Y","EQY_FUND_YEAR",E$2)) -> 1.223 | F23: =IF(_xll.BDP($C$2,$D23,"FUND_PER=Y","EQY_FUND_YEAR",F$2)="#N/A N/A","",_xll.BDP($C$2,$D23,"FUND_PER=Y","EQY_FUND_YEAR",F$2)) -> 122.969002 | G23: =IF(_xll.BDP($C$2,$D23,"FUND_PER=Y","EQY_FUND_YEAR",G$2)="#N/A N/A","",_xll.BDP($C$2,$D23,"FUND_PER=Y","EQY_FUND_YEAR",G$2)) -> 240.97 | H23: =IF(_xll.BDP($C$2,$D23,"FUND_PER=Y","EQY_FUND_YEAR",H$2)="#N/A N/A","",_xll.BDP($C$2,$D23,"FUND_PER=Y","EQY_FUND_YEAR",H$2)) -> 308.993 | I23: =IF(_xll.BDP($C$2,$D23,"FUND_PER=Y","EQY_FUND_YEAR",I$2)="#N/A N/A","",_xll.BDP($C$2,$D23,"FUND_PER=Y","EQY_FUND_YEAR",I$2)) -> 2006.415 | J23: =IF(_xll.BDP($C$2,$D23,"FUND_PER=Y","EQY_FUND_YEAR",J$2)="#N/A N/A","",_xll.BDP($C$2,$D23,"FUND_PER=Y","EQY_FUND_YEAR",J$2)) -> 2947.713 | K23: =IF(_xll.BDP($C$2,$D23,"FUND_PER=Y","EQY_FUND_YEAR",K$2)="#N/A N/A","",_xll.BDP($C$2,$D23,"FUND_PER=Y","EQY_FUND_YEAR",K$2)) -> 6270.39 | L23: =IF(_xll.BDP($C$2,$D23,"FUND_PER=Y","EQY_FUND_YEAR",L$2)="#N/A N/A","",_xll.BDP($C$2,$D23,"FUND_PER=Y","EQY_FUND_YEAR",L$2)) -> 6356.233 | M23: =IF(_xll.BDP($C$2,$D23,"FUND_PER=Y","EQY_FUND_YEAR",M$2)="#N/A N/A","",_xll.BDP($C$2,$D23,"FUND_PER=Y","EQY_FUND_YEAR",M$2)) -> 8007 | N23: =IF(_xll.BDP($C$2,$D23,"FUND_PER=Y","EQY_FUND_YEAR",N$2)="#N/A N/A","",_xll.BDP($C$2,$D23,"FUND_PER=Y","EQY_FUND_YEAR",N$2)) -> 9423 | O23: =IF(_xll.BDP($C$2,$D23,"FUND_PER=Y","EQY_FUND_YEAR",O$2)="#N/A N/A","",_xll.BDP($C$2,$D23,"FUND_PER=Y","EQY_FUND_YEAR",O$2)) -> 20021 | P23: =IF(_xll.BDP($C$2,$D23,"FUND_PER=Y","EQY_FUND_YEAR",P$2)="#N/A N/A","",_xll.BDP($C$2,$D23,"FUND_PER=Y","EQY_FUND_YEAR",P$2)) -> 19534 | Q23: =IF(_xll.BDP($C$2,$D23,"FUND_PER=Y","EQY_FUND_YEAR",Q$2)="#N/A N/A","",_xll.BDP($C$2,$D23,"FUND_PER=Y","EQY_FUND_YEAR",Q$2)) -> 23569 | R23: =IF(_xll.BDP($C$2,$D23,"FUND_PER=Y","EQY_FUND_YEAR",R$2)="#N/A N/A","",_xll.BDP($C$2,$D23,"FUND_PER=Y","EQY_FUND_YEAR",R$2)) -> 23148 | S23: =IF(_xll.BDP($C$2,$D23,"FUND_PER=Y","EQY_FUND_YEAR",S$2)="#N/A N/A","",_xll.BDP($C$2,$D23,"FUND_PER=Y","EQY_FUND_YEAR",S$2)) -> 21977 | T23: =IF(_xll.BDP($C$2,$D23,"FUND_PER=Y","EQY_FUND_YEAR",T$2)="#N/A N/A","",_xll.BDP($C$2,$D23,"FUND_PER=Y","EQY_FUND_YEAR",T$2)) -> 22791 | U23: =IF(_xll.BDP($C$2,$D23,"FUND_PER=Y","EQY_FUND_YEAR",U$2)="#N/A N/A","",_xll.BDP($C$2,$D23,"FUND_PER=Y","EQY_FUND_YEAR",U$2)) -> 23538 | V23: =IF(_xll.BDP($C$2,$D23,"FUND_PER=Y","EQY_FUND_YEAR",V$2)="#N/A N/A","",_xll.BDP($C$2,$D23,"FUND_PER=Y","EQY_FUND_YEAR",V$2)) -> 25666 | W23: =IF(_xll.BDP($C$2,$D23,"FUND_PER=Y","EQY_FUND_YEAR",W$2)="#N/A N/A","",_xll.BDP($C$2,$D23,"FUND_PER=Y","EQY_FUND_YEAR",W$2)) ->  | X23: =IF(_xll.BDP($C$2,$D23,"FUND_PER=Y","EQY_FUND_YEAR",X$2)="#N/A N/A","",_xll.BDP($C$2,$D23,"FUND_PER=Y","EQY_FUND_YEAR",X$2)) -> 
A24: 〇 | C24: のれん | D24: ARD_GOODWLL | E24: =IF(_xll.BDP($C$2,$D24,"FUND_PER=Y","EQY_FUND_YEAR",E$2)="#N/A N/A","",_xll.BDP($C$2,$D24,"FUND_PER=Y","EQY_FUND_YEAR",E$2)) ->  | F24: =IF(_xll.BDP($C$2,$D24,"FUND_PER=Y","EQY_FUND_YEAR",F$2)="#N/A N/A","",_xll.BDP($C$2,$D24,"FUND_PER=Y","EQY_FUND_YEAR",F$2)) ->  | G24: =IF(_xll.BDP($C$2,$D24,"FUND_PER=Y","EQY_FUND_YEAR",G$2)="#N/A N/A","",_xll.BDP($C$2,$D24,"FUND_PER=Y","EQY_FUND_YEAR",G$2)) -> 122.818 | H24: =IF(_xll.BDP($C$2,$D24,"FUND_PER=Y","EQY_FUND_YEAR",H$2)="#N/A N/A","",_xll.BDP($C$2,$D24,"FUND_PER=Y","EQY_FUND_YEAR",H$2)) -> 194.9 | I24: =IF(_xll.BDP($C$2,$D24,"FUND_PER=Y","EQY_FUND_YEAR",I$2)="#N/A N/A","",_xll.BDP($C$2,$D24,"FUND_PER=Y","EQY_FUND_YEAR",I$2)) -> 1545.119 | J24: =IF(_xll.BDP($C$2,$D24,"FUND_PER=Y","EQY_FUND_YEAR",J$2)="#N/A N/A","",_xll.BDP($C$2,$D24,"FUND_PER=Y","EQY_FUND_YEAR",J$2)) -> 2299.368 | K24: =IF(_xll.BDP($C$2,$D24,"FUND_PER=Y","EQY_FUND_YEAR",K$2)="#N/A N/A","",_xll.BDP($C$2,$D24,"FUND_PER=Y","EQY_FUND_YEAR",K$2)) -> 4839.854 | L24: =IF(_xll.BDP($C$2,$D24,"FUND_PER=Y","EQY_FUND_YEAR",L$2)="#N/A N/A","",_xll.BDP($C$2,$D24,"FUND_PER=Y","EQY_FUND_YEAR",L$2)) -> 4902.565 | M24: =IF(_xll.BDP($C$2,$D24,"FUND_PER=Y","EQY_FUND_YEAR",M$2)="#N/A N/A","",_xll.BDP($C$2,$D24,"FUND_PER=Y","EQY_FUND_YEAR",M$2)) -> 6256 | N24: =IF(_xll.BDP($C$2,$D24,"FUND_PER=Y","EQY_FUND_YEAR",N$2)="#N/A N/A","",_xll.BDP($C$2,$D24,"FUND_PER=Y","EQY_FUND_YEAR",N$2)) -> 7346 | O24: =IF(_xll.BDP($C$2,$D24,"FUND_PER=Y","EQY_FUND_YEAR",O$2)="#N/A N/A","",_xll.BDP($C$2,$D24,"FUND_PER=Y","EQY_FUND_YEAR",O$2)) -> 10537 | P24: =IF(_xll.BDP($C$2,$D24,"FUND_PER=Y","EQY_FUND_YEAR",P$2)="#N/A N/A","",_xll.BDP($C$2,$D24,"FUND_PER=Y","EQY_FUND_YEAR",P$2)) -> 11492 | Q24: =IF(_xll.BDP($C$2,$D24,"FUND_PER=Y","EQY_FUND_YEAR",Q$2)="#N/A N/A","",_xll.BDP($C$2,$D24,"FUND_PER=Y","EQY_FUND_YEAR",Q$2)) -> 15599 | R24: =IF(_xll.BDP($C$2,$D24,"FUND_PER=Y","EQY_FUND_YEAR",R$2)="#N/A N/A","",_xll.BDP($C$2,$D24,"FUND_PER=Y","EQY_FUND_YEAR",R$2)) -> 15869 | S24: =IF(_xll.BDP($C$2,$D24,"FUND_PER=Y","EQY_FUND_YEAR",S$2)="#N/A N/A","",_xll.BDP($C$2,$D24,"FUND_PER=Y","EQY_FUND_YEAR",S$2)) -> 16468 | T24: =IF(_xll.BDP($C$2,$D24,"FUND_PER=Y","EQY_FUND_YEAR",T$2)="#N/A N/A","",_xll.BDP($C$2,$D24,"FUND_PER=Y","EQY_FUND_YEAR",T$2)) -> 16747 | U24: =IF(_xll.BDP($C$2,$D24,"FUND_PER=Y","EQY_FUND_YEAR",U$2)="#N/A N/A","",_xll.BDP($C$2,$D24,"FUND_PER=Y","EQY_FUND_YEAR",U$2)) -> 17888 | V24: =IF(_xll.BDP($C$2,$D24,"FUND_PER=Y","EQY_FUND_YEAR",V$2)="#N/A N/A","",_xll.BDP($C$2,$D24,"FUND_PER=Y","EQY_FUND_YEAR",V$2)) -> 20624 | W24: =IF(_xll.BDP($C$2,$D24,"FUND_PER=Y","EQY_FUND_YEAR",W$2)="#N/A N/A","",_xll.BDP($C$2,$D24,"FUND_PER=Y","EQY_FUND_YEAR",W$2)) ->  | X24: =IF(_xll.BDP($C$2,$D24,"FUND_PER=Y","EQY_FUND_YEAR",X$2)="#N/A N/A","",_xll.BDP($C$2,$D24,"FUND_PER=Y","EQY_FUND_YEAR",X$2)) -> 
A25: 〇 | C25: 非流動資産合計 | D25: BS_TOT_NON_CUR_ASSET | E25: =IF(_xll.BDP($C$2,$D25,"FUND_PER=Y","EQY_FUND_YEAR",E$2)="#N/A N/A","",_xll.BDP($C$2,$D25,"FUND_PER=Y","EQY_FUND_YEAR",E$2)) -> 55.096001 | F25: =IF(_xll.BDP($C$2,$D25,"FUND_PER=Y","EQY_FUND_YEAR",F$2)="#N/A N/A","",_xll.BDP($C$2,$D25,"FUND_PER=Y","EQY_FUND_YEAR",F$2)) -> 311.224007 | G25: =IF(_xll.BDP($C$2,$D25,"FUND_PER=Y","EQY_FUND_YEAR",G$2)="#N/A N/A","",_xll.BDP($C$2,$D25,"FUND_PER=Y","EQY_FUND_YEAR",G$2)) -> 619.886 | H25: =IF(_xll.BDP($C$2,$D25,"FUND_PER=Y","EQY_FUND_YEAR",H$2)="#N/A N/A","",_xll.BDP($C$2,$D25,"FUND_PER=Y","EQY_FUND_YEAR",H$2)) -> 1270.742 | I25: =IF(_xll.BDP($C$2,$D25,"FUND_PER=Y","EQY_FUND_YEAR",I$2)="#N/A N/A","",_xll.BDP($C$2,$D25,"FUND_PER=Y","EQY_FUND_YEAR",I$2)) -> 5433.504 | J25: =IF(_xll.BDP($C$2,$D25,"FUND_PER=Y","EQY_FUND_YEAR",J$2)="#N/A N/A","",_xll.BDP($C$2,$D25,"FUND_PER=Y","EQY_FUND_YEAR",J$2)) -> 8046.668 | K25: =IF(_xll.BDP($C$2,$D25,"FUND_PER=Y","EQY_FUND_YEAR",K$2)="#N/A N/A","",_xll.BDP($C$2,$D25,"FUND_PER=Y","EQY_FUND_YEAR",K$2)) -> 11589.393 | L25: =IF(_xll.BDP($C$2,$D25,"FUND_PER=Y","EQY_FUND_YEAR",L$2)="#N/A N/A","",_xll.BDP($C$2,$D25,"FUND_PER=Y","EQY_FUND_YEAR",L$2)) -> 11329.82 | M25: =IF(_xll.BDP($C$2,$D25,"FUND_PER=Y","EQY_FUND_YEAR",M$2)="#N/A N/A","",_xll.BDP($C$2,$D25,"FUND_PER=Y","EQY_FUND_YEAR",M$2)) -> 16289 | N25: =IF(_xll.BDP($C$2,$D25,"FUND_PER=Y","EQY_FUND_YEAR",N$2)="#N/A N/A","",_xll.BDP($C$2,$D25,"FUND_PER=Y","EQY_FUND_YEAR",N$2)) -> 19816 | O25: =IF(_xll.BDP($C$2,$D25,"FUND_PER=Y","EQY_FUND_YEAR",O$2)="#N/A N/A","",_xll.BDP($C$2,$D25,"FUND_PER=Y","EQY_FUND_YEAR",O$2)) -> 33344 | P25: =IF(_xll.BDP($C$2,$D25,"FUND_PER=Y","EQY_FUND_YEAR",P$2)="#N/A N/A","",_xll.BDP($C$2,$D25,"FUND_PER=Y","EQY_FUND_YEAR",P$2)) -> 38034 | Q25: =IF(_xll.BDP($C$2,$D25,"FUND_PER=Y","EQY_FUND_YEAR",Q$2)="#N/A N/A","",_xll.BDP($C$2,$D25,"FUND_PER=Y","EQY_FUND_YEAR",Q$2)) -> 50531 | R25: =IF(_xll.BDP($C$2,$D25,"FUND_PER=Y","EQY_FUND_YEAR",R$2)="#N/A N/A","",_xll.BDP($C$2,$D25,"FUND_PER=Y","EQY_FUND_YEAR",R$2)) -> 57347 | S25: =IF(_xll.BDP($C$2,$D25,"FUND_PER=Y","EQY_FUND_YEAR",S$2)="#N/A N/A","",_xll.BDP($C$2,$D25,"FUND_PER=Y","EQY_FUND_YEAR",S$2)) -> 62089 | T25: =IF(_xll.BDP($C$2,$D25,"FUND_PER=Y","EQY_FUND_YEAR",T$2)="#N/A N/A","",_xll.BDP($C$2,$D25,"FUND_PER=Y","EQY_FUND_YEAR",T$2)) -> 72987 | U25: =IF(_xll.BDP($C$2,$D25,"FUND_PER=Y","EQY_FUND_YEAR",U$2)="#N/A N/A","",_xll.BDP($C$2,$D25,"FUND_PER=Y","EQY_FUND_YEAR",U$2)) -> 97116 | V25: =IF(_xll.BDP($C$2,$D25,"FUND_PER=Y","EQY_FUND_YEAR",V$2)="#N/A N/A","",_xll.BDP($C$2,$D25,"FUND_PER=Y","EQY_FUND_YEAR",V$2)) -> 123331 | W25: =IF(_xll.BDP($C$2,$D25,"FUND_PER=Y","EQY_FUND_YEAR",W$2)="#N/A N/A","",_xll.BDP($C$2,$D25,"FUND_PER=Y","EQY_FUND_YEAR",W$2)) ->  | X25: =IF(_xll.BDP($C$2,$D25,"FUND_PER=Y","EQY_FUND_YEAR",X$2)="#N/A N/A","",_xll.BDP($C$2,$D25,"FUND_PER=Y","EQY_FUND_YEAR",X$2)) -> 
A26: 〇 | C26: 総資産 | D26: BS_TOT_ASSET | E26: =IF(_xll.BDP($C$2,$D26,"FUND_PER=Y","EQY_FUND_YEAR",E$2)="#N/A N/A","",_xll.BDP($C$2,$D26,"FUND_PER=Y","EQY_FUND_YEAR",E$2)) -> 286.891998 | F26: =IF(_xll.BDP($C$2,$D26,"FUND_PER=Y","EQY_FUND_YEAR",F$2)="#N/A N/A","",_xll.BDP($C$2,$D26,"FUND_PER=Y","EQY_FUND_YEAR",F$2)) -> 871.458008 | G26: =IF(_xll.BDP($C$2,$D26,"FUND_PER=Y","EQY_FUND_YEAR",G$2)="#N/A N/A","",_xll.BDP($C$2,$D26,"FUND_PER=Y","EQY_FUND_YEAR",G$2)) -> 3313.351 | H26: =IF(_xll.BDP($C$2,$D26,"FUND_PER=Y","EQY_FUND_YEAR",H$2)="#N/A N/A","",_xll.BDP($C$2,$D26,"FUND_PER=Y","EQY_FUND_YEAR",H$2)) -> 10271.813 | I26: =IF(_xll.BDP($C$2,$D26,"FUND_PER=Y","EQY_FUND_YEAR",I$2)="#N/A N/A","",_xll.BDP($C$2,$D26,"FUND_PER=Y","EQY_FUND_YEAR",I$2)) -> 18473.351 | J26: =IF(_xll.BDP($C$2,$D26,"FUND_PER=Y","EQY_FUND_YEAR",J$2)="#N/A N/A","",_xll.BDP($C$2,$D26,"FUND_PER=Y","EQY_FUND_YEAR",J$2)) -> 25335.806 | K26: =IF(_xll.BDP($C$2,$D26,"FUND_PER=Y","EQY_FUND_YEAR",K$2)="#N/A N/A","",_xll.BDP($C$2,$D26,"FUND_PER=Y","EQY_FUND_YEAR",K$2)) -> 31767.575 | L26: =IF(_xll.BDP($C$2,$D26,"FUND_PER=Y","EQY_FUND_YEAR",L$2)="#N/A N/A","",_xll.BDP($C$2,$D26,"FUND_PER=Y","EQY_FUND_YEAR",L$2)) -> 40496.778 | M26: =IF(_xll.BDP($C$2,$D26,"FUND_PER=Y","EQY_FUND_YEAR",M$2)="#N/A N/A","",_xll.BDP($C$2,$D26,"FUND_PER=Y","EQY_FUND_YEAR",M$2)) -> 57851 | N26: =IF(_xll.BDP($C$2,$D26,"FUND_PER=Y","EQY_FUND_YEAR",N$2)="#N/A N/A","",_xll.BDP($C$2,$D26,"FUND_PER=Y","EQY_FUND_YEAR",N$2)) -> 72574 | O26: =IF(_xll.BDP($C$2,$D26,"FUND_PER=Y","EQY_FUND_YEAR",O$2)="#N/A N/A","",_xll.BDP($C$2,$D26,"FUND_PER=Y","EQY_FUND_YEAR",O$2)) -> 93798 | P26: =IF(_xll.BDP($C$2,$D26,"FUND_PER=Y","EQY_FUND_YEAR",P$2)="#N/A N/A","",_xll.BDP($C$2,$D26,"FUND_PER=Y","EQY_FUND_YEAR",P$2)) -> 110920 | Q26: =IF(_xll.BDP($C$2,$D26,"FUND_PER=Y","EQY_FUND_YEAR",Q$2)="#N/A N/A","",_xll.BDP($C$2,$D26,"FUND_PER=Y","EQY_FUND_YEAR",Q$2)) -> 129187 | R26: =IF(_xll.BDP($C$2,$D26,"FUND_PER=Y","EQY_FUND_YEAR",R$2)="#N/A N/A","",_xll.BDP($C$2,$D26,"FUND_PER=Y","EQY_FUND_YEAR",R$2)) -> 147461 | S26: =IF(_xll.BDP($C$2,$D26,"FUND_PER=Y","EQY_FUND_YEAR",S$2)="#N/A N/A","",_xll.BDP($C$2,$D26,"FUND_PER=Y","EQY_FUND_YEAR",S$2)) -> 167497 | T26: =IF(_xll.BDP($C$2,$D26,"FUND_PER=Y","EQY_FUND_YEAR",T$2)="#N/A N/A","",_xll.BDP($C$2,$D26,"FUND_PER=Y","EQY_FUND_YEAR",T$2)) -> 197295 | U26: =IF(_xll.BDP($C$2,$D26,"FUND_PER=Y","EQY_FUND_YEAR",U$2)="#N/A N/A","",_xll.BDP($C$2,$D26,"FUND_PER=Y","EQY_FUND_YEAR",U$2)) -> 232792 | V26: =IF(_xll.BDP($C$2,$D26,"FUND_PER=Y","EQY_FUND_YEAR",V$2)="#N/A N/A","",_xll.BDP($C$2,$D26,"FUND_PER=Y","EQY_FUND_YEAR",V$2)) -> 275909 | W26: =IF(_xll.BDP($C$2,$D26,"FUND_PER=Y","EQY_FUND_YEAR",W$2)="#N/A N/A","",_xll.BDP($C$2,$D26,"FUND_PER=Y","EQY_FUND_YEAR",W$2)) ->  | X26: =IF(_xll.BDP($C$2,$D26,"FUND_PER=Y","EQY_FUND_YEAR",X$2)="#N/A N/A","",_xll.BDP($C$2,$D26,"FUND_PER=Y","EQY_FUND_YEAR",X$2)) -> 
A27: 〇 | C27: 買掛金・未払金 | D27: ACCT_PAYABLE_&_ACCRUALS_DETAILED | E27: =IF(_xll.BDP($C$2,$D27,"FUND_PER=Y","EQY_FUND_YEAR",E$2)="#N/A N/A","",_xll.BDP($C$2,$D27,"FUND_PER=Y","EQY_FUND_YEAR",E$2)) -> 9.394 | F27: =IF(_xll.BDP($C$2,$D27,"FUND_PER=Y","EQY_FUND_YEAR",F$2)="#N/A N/A","",_xll.BDP($C$2,$D27,"FUND_PER=Y","EQY_FUND_YEAR",F$2)) -> 46.174999 | G27: =IF(_xll.BDP($C$2,$D27,"FUND_PER=Y","EQY_FUND_YEAR",G$2)="#N/A N/A","",_xll.BDP($C$2,$D27,"FUND_PER=Y","EQY_FUND_YEAR",G$2)) -> 32.672 | H27: =IF(_xll.BDP($C$2,$D27,"FUND_PER=Y","EQY_FUND_YEAR",H$2)="#N/A N/A","",_xll.BDP($C$2,$D27,"FUND_PER=Y","EQY_FUND_YEAR",H$2)) -> 115.575 | I27: =IF(_xll.BDP($C$2,$D27,"FUND_PER=Y","EQY_FUND_YEAR",I$2)="#N/A N/A","",_xll.BDP($C$2,$D27,"FUND_PER=Y","EQY_FUND_YEAR",I$2)) -> 211.169 | J27: =IF(_xll.BDP($C$2,$D27,"FUND_PER=Y","EQY_FUND_YEAR",J$2)="#N/A N/A","",_xll.BDP($C$2,$D27,"FUND_PER=Y","EQY_FUND_YEAR",J$2)) -> 282.106 | K27: =IF(_xll.BDP($C$2,$D27,"FUND_PER=Y","EQY_FUND_YEAR",K$2)="#N/A N/A","",_xll.BDP($C$2,$D27,"FUND_PER=Y","EQY_FUND_YEAR",K$2)) -> 178.004 | L27: =IF(_xll.BDP($C$2,$D27,"FUND_PER=Y","EQY_FUND_YEAR",L$2)="#N/A N/A","",_xll.BDP($C$2,$D27,"FUND_PER=Y","EQY_FUND_YEAR",L$2)) -> 2462.05 | M27: =IF(_xll.BDP($C$2,$D27,"FUND_PER=Y","EQY_FUND_YEAR",M$2)="#N/A N/A","",_xll.BDP($C$2,$D27,"FUND_PER=Y","EQY_FUND_YEAR",M$2)) -> 3768 | N27: =IF(_xll.BDP($C$2,$D27,"FUND_PER=Y","EQY_FUND_YEAR",N$2)="#N/A N/A","",_xll.BDP($C$2,$D27,"FUND_PER=Y","EQY_FUND_YEAR",N$2)) -> 5135 | O27: =IF(_xll.BDP($C$2,$D27,"FUND_PER=Y","EQY_FUND_YEAR",O$2)="#N/A N/A","",_xll.BDP($C$2,$D27,"FUND_PER=Y","EQY_FUND_YEAR",O$2)) -> 9213 | P27: =IF(_xll.BDP($C$2,$D27,"FUND_PER=Y","EQY_FUND_YEAR",P$2)="#N/A N/A","",_xll.BDP($C$2,$D27,"FUND_PER=Y","EQY_FUND_YEAR",P$2)) -> 10459 | Q27: =IF(_xll.BDP($C$2,$D27,"FUND_PER=Y","EQY_FUND_YEAR",Q$2)="#N/A N/A","",_xll.BDP($C$2,$D27,"FUND_PER=Y","EQY_FUND_YEAR",Q$2)) -> 11236 | R27: =IF(_xll.BDP($C$2,$D27,"FUND_PER=Y","EQY_FUND_YEAR",R$2)="#N/A N/A","",_xll.BDP($C$2,$D27,"FUND_PER=Y","EQY_FUND_YEAR",R$2)) -> 12853 | S27: =IF(_xll.BDP($C$2,$D27,"FUND_PER=Y","EQY_FUND_YEAR",S$2)="#N/A N/A","",_xll.BDP($C$2,$D27,"FUND_PER=Y","EQY_FUND_YEAR",S$2)) -> 15535 | T27: =IF(_xll.BDP($C$2,$D27,"FUND_PER=Y","EQY_FUND_YEAR",T$2)="#N/A N/A","",_xll.BDP($C$2,$D27,"FUND_PER=Y","EQY_FUND_YEAR",T$2)) -> 22399 | U27: =IF(_xll.BDP($C$2,$D27,"FUND_PER=Y","EQY_FUND_YEAR",U$2)="#N/A N/A","",_xll.BDP($C$2,$D27,"FUND_PER=Y","EQY_FUND_YEAR",U$2)) -> 32603 | V27: =IF(_xll.BDP($C$2,$D27,"FUND_PER=Y","EQY_FUND_YEAR",V$2)="#N/A N/A","",_xll.BDP($C$2,$D27,"FUND_PER=Y","EQY_FUND_YEAR",V$2)) -> 41745 | W27: =IF(_xll.BDP($C$2,$D27,"FUND_PER=Y","EQY_FUND_YEAR",W$2)="#N/A N/A","",_xll.BDP($C$2,$D27,"FUND_PER=Y","EQY_FUND_YEAR",W$2)) ->  | X27: =IF(_xll.BDP($C$2,$D27,"FUND_PER=Y","EQY_FUND_YEAR",X$2)="#N/A N/A","",_xll.BDP($C$2,$D27,"FUND_PER=Y","EQY_FUND_YEAR",X$2)) -> 
A28: 〇 | C28: 短期有利子負債 | D28: BS_ST_BORROW | E28: =IF(_xll.BDP($C$2,$D28,"FUND_PER=Y","EQY_FUND_YEAR",E$2)="#N/A N/A","",_xll.BDP($C$2,$D28,"FUND_PER=Y","EQY_FUND_YEAR",E$2)) -> 4.35 | F28: =IF(_xll.BDP($C$2,$D28,"FUND_PER=Y","EQY_FUND_YEAR",F$2)="#N/A N/A","",_xll.BDP($C$2,$D28,"FUND_PER=Y","EQY_FUND_YEAR",F$2)) -> 4.621 | G28: =IF(_xll.BDP($C$2,$D28,"FUND_PER=Y","EQY_FUND_YEAR",G$2)="#N/A N/A","",_xll.BDP($C$2,$D28,"FUND_PER=Y","EQY_FUND_YEAR",G$2)) -> 1.902 | H28: =IF(_xll.BDP($C$2,$D28,"FUND_PER=Y","EQY_FUND_YEAR",H$2)="#N/A N/A","",_xll.BDP($C$2,$D28,"FUND_PER=Y","EQY_FUND_YEAR",H$2)) -> 0 | I28: =IF(_xll.BDP($C$2,$D28,"FUND_PER=Y","EQY_FUND_YEAR",I$2)="#N/A N/A","",_xll.BDP($C$2,$D28,"FUND_PER=Y","EQY_FUND_YEAR",I$2)) -> 0 | J28: =IF(_xll.BDP($C$2,$D28,"FUND_PER=Y","EQY_FUND_YEAR",J$2)="#N/A N/A","",_xll.BDP($C$2,$D28,"FUND_PER=Y","EQY_FUND_YEAR",J$2)) -> 0 | K28: =IF(_xll.BDP($C$2,$D28,"FUND_PER=Y","EQY_FUND_YEAR",K$2)="#N/A N/A","",_xll.BDP($C$2,$D28,"FUND_PER=Y","EQY_FUND_YEAR",K$2)) -> 0 | L28: =IF(_xll.BDP($C$2,$D28,"FUND_PER=Y","EQY_FUND_YEAR",L$2)="#N/A N/A","",_xll.BDP($C$2,$D28,"FUND_PER=Y","EQY_FUND_YEAR",L$2)) -> 0 | M28: =IF(_xll.BDP($C$2,$D28,"FUND_PER=Y","EQY_FUND_YEAR",M$2)="#N/A N/A","",_xll.BDP($C$2,$D28,"FUND_PER=Y","EQY_FUND_YEAR",M$2)) -> 3465 | N28: =IF(_xll.BDP($C$2,$D28,"FUND_PER=Y","EQY_FUND_YEAR",N$2)="#N/A N/A","",_xll.BDP($C$2,$D28,"FUND_PER=Y","EQY_FUND_YEAR",N$2)) -> 1218 | O28: =IF(_xll.BDP($C$2,$D28,"FUND_PER=Y","EQY_FUND_YEAR",O$2)="#N/A N/A","",_xll.BDP($C$2,$D28,"FUND_PER=Y","EQY_FUND_YEAR",O$2)) -> 2549 | P28: =IF(_xll.BDP($C$2,$D28,"FUND_PER=Y","EQY_FUND_YEAR",P$2)="#N/A N/A","",_xll.BDP($C$2,$D28,"FUND_PER=Y","EQY_FUND_YEAR",P$2)) -> 3009 | Q28: =IF(_xll.BDP($C$2,$D28,"FUND_PER=Y","EQY_FUND_YEAR",Q$2)="#N/A N/A","",_xll.BDP($C$2,$D28,"FUND_PER=Y","EQY_FUND_YEAR",Q$2)) -> 2009 | R28: =IF(_xll.BDP($C$2,$D28,"FUND_PER=Y","EQY_FUND_YEAR",R$2)="#N/A N/A","",_xll.BDP($C$2,$D28,"FUND_PER=Y","EQY_FUND_YEAR",R$2)) -> 3225 | S28: =IF(_xll.BDP($C$2,$D28,"FUND_PER=Y","EQY_FUND_YEAR",S$2)="#N/A N/A","",_xll.BDP($C$2,$D28,"FUND_PER=Y","EQY_FUND_YEAR",S$2)) -> 0 | T28: =IF(_xll.BDP($C$2,$D28,"FUND_PER=Y","EQY_FUND_YEAR",T$2)="#N/A N/A","",_xll.BDP($C$2,$D28,"FUND_PER=Y","EQY_FUND_YEAR",T$2)) -> 0 | U28: =IF(_xll.BDP($C$2,$D28,"FUND_PER=Y","EQY_FUND_YEAR",U$2)="#N/A N/A","",_xll.BDP($C$2,$D28,"FUND_PER=Y","EQY_FUND_YEAR",U$2)) -> 0 | V28: =IF(_xll.BDP($C$2,$D28,"FUND_PER=Y","EQY_FUND_YEAR",V$2)="#N/A N/A","",_xll.BDP($C$2,$D28,"FUND_PER=Y","EQY_FUND_YEAR",V$2)) -> 1199 | W28: =IF(_xll.BDP($C$2,$D28,"FUND_PER=Y","EQY_FUND_YEAR",W$2)="#N/A N/A","",_xll.BDP($C$2,$D28,"FUND_PER=Y","EQY_FUND_YEAR",W$2)) ->  | X28: =IF(_xll.BDP($C$2,$D28,"FUND_PER=Y","EQY_FUND_YEAR",X$2)="#N/A N/A","",_xll.BDP($C$2,$D28,"FUND_PER=Y","EQY_FUND_YEAR",X$2)) -> 
A29: 〇 | C29: その他流動資産 | D29: OTHER_CURRENT_LIABS_SUB_DETAILED | E29: =IF(_xll.BDP($C$2,$D29,"FUND_PER=Y","EQY_FUND_YEAR",E$2)="#N/A N/A","",_xll.BDP($C$2,$D29,"FUND_PER=Y","EQY_FUND_YEAR",E$2)) -> 75.764003 | F29: =IF(_xll.BDP($C$2,$D29,"FUND_PER=Y","EQY_FUND_YEAR",F$2)="#N/A N/A","",_xll.BDP($C$2,$D29,"FUND_PER=Y","EQY_FUND_YEAR",F$2)) -> 184.655997 | G29: =IF(_xll.BDP($C$2,$D29,"FUND_PER=Y","EQY_FUND_YEAR",G$2)="#N/A N/A","",_xll.BDP($C$2,$D29,"FUND_PER=Y","EQY_FUND_YEAR",G$2)) -> 305.794 | H29: =IF(_xll.BDP($C$2,$D29,"FUND_PER=Y","EQY_FUND_YEAR",H$2)="#N/A N/A","",_xll.BDP($C$2,$D29,"FUND_PER=Y","EQY_FUND_YEAR",H$2)) -> 629.809 | I29: =IF(_xll.BDP($C$2,$D29,"FUND_PER=Y","EQY_FUND_YEAR",I$2)="#N/A N/A","",_xll.BDP($C$2,$D29,"FUND_PER=Y","EQY_FUND_YEAR",I$2)) -> 1093.418 | J29: =IF(_xll.BDP($C$2,$D29,"FUND_PER=Y","EQY_FUND_YEAR",J$2)="#N/A N/A","",_xll.BDP($C$2,$D29,"FUND_PER=Y","EQY_FUND_YEAR",J$2)) -> 1753.496 | K29: =IF(_xll.BDP($C$2,$D29,"FUND_PER=Y","EQY_FUND_YEAR",K$2)="#N/A N/A","",_xll.BDP($C$2,$D29,"FUND_PER=Y","EQY_FUND_YEAR",K$2)) -> 2124.086 | L29: =IF(_xll.BDP($C$2,$D29,"FUND_PER=Y","EQY_FUND_YEAR",L$2)="#N/A N/A","",_xll.BDP($C$2,$D29,"FUND_PER=Y","EQY_FUND_YEAR",L$2)) -> 285.417 | M29: =IF(_xll.BDP($C$2,$D29,"FUND_PER=Y","EQY_FUND_YEAR",M$2)="#N/A N/A","",_xll.BDP($C$2,$D29,"FUND_PER=Y","EQY_FUND_YEAR",M$2)) -> 2763 | N29: =IF(_xll.BDP($C$2,$D29,"FUND_PER=Y","EQY_FUND_YEAR",N$2)="#N/A N/A","",_xll.BDP($C$2,$D29,"FUND_PER=Y","EQY_FUND_YEAR",N$2)) -> 2560 | O29: =IF(_xll.BDP($C$2,$D29,"FUND_PER=Y","EQY_FUND_YEAR",O$2)="#N/A N/A","",_xll.BDP($C$2,$D29,"FUND_PER=Y","EQY_FUND_YEAR",O$2)) -> 2575 | P29: =IF(_xll.BDP($C$2,$D29,"FUND_PER=Y","EQY_FUND_YEAR",P$2)="#N/A N/A","",_xll.BDP($C$2,$D29,"FUND_PER=Y","EQY_FUND_YEAR",P$2)) -> 2440 | Q29: =IF(_xll.BDP($C$2,$D29,"FUND_PER=Y","EQY_FUND_YEAR",Q$2)="#N/A N/A","",_xll.BDP($C$2,$D29,"FUND_PER=Y","EQY_FUND_YEAR",Q$2)) -> 3534 | R29: =IF(_xll.BDP($C$2,$D29,"FUND_PER=Y","EQY_FUND_YEAR",R$2)="#N/A N/A","",_xll.BDP($C$2,$D29,"FUND_PER=Y","EQY_FUND_YEAR",R$2)) -> 3232 | S29: =IF(_xll.BDP($C$2,$D29,"FUND_PER=Y","EQY_FUND_YEAR",S$2)="#N/A N/A","",_xll.BDP($C$2,$D29,"FUND_PER=Y","EQY_FUND_YEAR",S$2)) -> 1221 | T29: =IF(_xll.BDP($C$2,$D29,"FUND_PER=Y","EQY_FUND_YEAR",T$2)="#N/A N/A","",_xll.BDP($C$2,$D29,"FUND_PER=Y","EQY_FUND_YEAR",T$2)) -> 1784 | U29: =IF(_xll.BDP($C$2,$D29,"FUND_PER=Y","EQY_FUND_YEAR",U$2)="#N/A N/A","",_xll.BDP($C$2,$D29,"FUND_PER=Y","EQY_FUND_YEAR",U$2)) -> 2017 | V29: =IF(_xll.BDP($C$2,$D29,"FUND_PER=Y","EQY_FUND_YEAR",V$2)="#N/A N/A","",_xll.BDP($C$2,$D29,"FUND_PER=Y","EQY_FUND_YEAR",V$2)) -> 2277 | W29: =IF(_xll.BDP($C$2,$D29,"FUND_PER=Y","EQY_FUND_YEAR",W$2)="#N/A N/A","",_xll.BDP($C$2,$D29,"FUND_PER=Y","EQY_FUND_YEAR",W$2)) ->  | X29: =IF(_xll.BDP($C$2,$D29,"FUND_PER=Y","EQY_FUND_YEAR",X$2)="#N/A N/A","",_xll.BDP($C$2,$D29,"FUND_PER=Y","EQY_FUND_YEAR",X$2)) -> 
A30: 〇 | C30: 流動負債 合計 | D30: BS_CUR_LIAB | E30: =IF(_xll.BDP($C$2,$D30,"FUND_PER=Y","EQY_FUND_YEAR",E$2)="#N/A N/A","",_xll.BDP($C$2,$D30,"FUND_PER=Y","EQY_FUND_YEAR",E$2)) -> 89.508003 | F30: =IF(_xll.BDP($C$2,$D30,"FUND_PER=Y","EQY_FUND_YEAR",F$2)="#N/A N/A","",_xll.BDP($C$2,$D30,"FUND_PER=Y","EQY_FUND_YEAR",F$2)) -> 235.451996 | G30: =IF(_xll.BDP($C$2,$D30,"FUND_PER=Y","EQY_FUND_YEAR",G$2)="#N/A N/A","",_xll.BDP($C$2,$D30,"FUND_PER=Y","EQY_FUND_YEAR",G$2)) -> 340.368 | H30: =IF(_xll.BDP($C$2,$D30,"FUND_PER=Y","EQY_FUND_YEAR",H$2)="#N/A N/A","",_xll.BDP($C$2,$D30,"FUND_PER=Y","EQY_FUND_YEAR",H$2)) -> 745.384 | I30: =IF(_xll.BDP($C$2,$D30,"FUND_PER=Y","EQY_FUND_YEAR",I$2)="#N/A N/A","",_xll.BDP($C$2,$D30,"FUND_PER=Y","EQY_FUND_YEAR",I$2)) -> 1304.587 | J30: =IF(_xll.BDP($C$2,$D30,"FUND_PER=Y","EQY_FUND_YEAR",J$2)="#N/A N/A","",_xll.BDP($C$2,$D30,"FUND_PER=Y","EQY_FUND_YEAR",J$2)) -> 2035.602 | K30: =IF(_xll.BDP($C$2,$D30,"FUND_PER=Y","EQY_FUND_YEAR",K$2)="#N/A N/A","",_xll.BDP($C$2,$D30,"FUND_PER=Y","EQY_FUND_YEAR",K$2)) -> 2302.09 | L30: =IF(_xll.BDP($C$2,$D30,"FUND_PER=Y","EQY_FUND_YEAR",L$2)="#N/A N/A","",_xll.BDP($C$2,$D30,"FUND_PER=Y","EQY_FUND_YEAR",L$2)) -> 2747.467 | M30: =IF(_xll.BDP($C$2,$D30,"FUND_PER=Y","EQY_FUND_YEAR",M$2)="#N/A N/A","",_xll.BDP($C$2,$D30,"FUND_PER=Y","EQY_FUND_YEAR",M$2)) -> 9996 | N30: =IF(_xll.BDP($C$2,$D30,"FUND_PER=Y","EQY_FUND_YEAR",N$2)="#N/A N/A","",_xll.BDP($C$2,$D30,"FUND_PER=Y","EQY_FUND_YEAR",N$2)) -> 8913 | O30: =IF(_xll.BDP($C$2,$D30,"FUND_PER=Y","EQY_FUND_YEAR",O$2)="#N/A N/A","",_xll.BDP($C$2,$D30,"FUND_PER=Y","EQY_FUND_YEAR",O$2)) -> 14337 | P30: =IF(_xll.BDP($C$2,$D30,"FUND_PER=Y","EQY_FUND_YEAR",P$2)="#N/A N/A","",_xll.BDP($C$2,$D30,"FUND_PER=Y","EQY_FUND_YEAR",P$2)) -> 15908 | Q30: =IF(_xll.BDP($C$2,$D30,"FUND_PER=Y","EQY_FUND_YEAR",Q$2)="#N/A N/A","",_xll.BDP($C$2,$D30,"FUND_PER=Y","EQY_FUND_YEAR",Q$2)) -> 16779 | R30: =IF(_xll.BDP($C$2,$D30,"FUND_PER=Y","EQY_FUND_YEAR",R$2)="#N/A N/A","",_xll.BDP($C$2,$D30,"FUND_PER=Y","EQY_FUND_YEAR",R$2)) -> 19310 | S30: =IF(_xll.BDP($C$2,$D30,"FUND_PER=Y","EQY_FUND_YEAR",S$2)="#N/A N/A","",_xll.BDP($C$2,$D30,"FUND_PER=Y","EQY_FUND_YEAR",S$2)) -> 16756 | T30: =IF(_xll.BDP($C$2,$D30,"FUND_PER=Y","EQY_FUND_YEAR",T$2)="#N/A N/A","",_xll.BDP($C$2,$D30,"FUND_PER=Y","EQY_FUND_YEAR",T$2)) -> 24183 | U30: =IF(_xll.BDP($C$2,$D30,"FUND_PER=Y","EQY_FUND_YEAR",U$2)="#N/A N/A","",_xll.BDP($C$2,$D30,"FUND_PER=Y","EQY_FUND_YEAR",U$2)) -> 34620 | V30: =IF(_xll.BDP($C$2,$D30,"FUND_PER=Y","EQY_FUND_YEAR",V$2)="#N/A N/A","",_xll.BDP($C$2,$D30,"FUND_PER=Y","EQY_FUND_YEAR",V$2)) -> 45221 | W30: =IF(_xll.BDP($C$2,$D30,"FUND_PER=Y","EQY_FUND_YEAR",W$2)="#N/A N/A","",_xll.BDP($C$2,$D30,"FUND_PER=Y","EQY_FUND_YEAR",W$2)) ->  | X30: =IF(_xll.BDP($C$2,$D30,"FUND_PER=Y","EQY_FUND_YEAR",X$2)="#N/A N/A","",_xll.BDP($C$2,$D30,"FUND_PER=Y","EQY_FUND_YEAR",X$2)) -> 
A31: 〇 | C31: 長期有利子負債 | D31: BS_LT_BORROW | E31: =IF(_xll.BDP($C$2,$D31,"FUND_PER=Y","EQY_FUND_YEAR",E$2)="#N/A N/A","",_xll.BDP($C$2,$D31,"FUND_PER=Y","EQY_FUND_YEAR",E$2)) -> 6.512 | F31: =IF(_xll.BDP($C$2,$D31,"FUND_PER=Y","EQY_FUND_YEAR",F$2)="#N/A N/A","",_xll.BDP($C$2,$D31,"FUND_PER=Y","EQY_FUND_YEAR",F$2)) -> 1.988 | G31: =IF(_xll.BDP($C$2,$D31,"FUND_PER=Y","EQY_FUND_YEAR",G$2)="#N/A N/A","",_xll.BDP($C$2,$D31,"FUND_PER=Y","EQY_FUND_YEAR",G$2)) -> 0 | H31: =IF(_xll.BDP($C$2,$D31,"FUND_PER=Y","EQY_FUND_YEAR",H$2)="#N/A N/A","",_xll.BDP($C$2,$D31,"FUND_PER=Y","EQY_FUND_YEAR",H$2)) -> 0 | I31: =IF(_xll.BDP($C$2,$D31,"FUND_PER=Y","EQY_FUND_YEAR",I$2)="#N/A N/A","",_xll.BDP($C$2,$D31,"FUND_PER=Y","EQY_FUND_YEAR",I$2)) -> 0 | J31: =IF(_xll.BDP($C$2,$D31,"FUND_PER=Y","EQY_FUND_YEAR",J$2)="#N/A N/A","",_xll.BDP($C$2,$D31,"FUND_PER=Y","EQY_FUND_YEAR",J$2)) -> 0 | K31: =IF(_xll.BDP($C$2,$D31,"FUND_PER=Y","EQY_FUND_YEAR",K$2)="#N/A N/A","",_xll.BDP($C$2,$D31,"FUND_PER=Y","EQY_FUND_YEAR",K$2)) -> 0 | L31: =IF(_xll.BDP($C$2,$D31,"FUND_PER=Y","EQY_FUND_YEAR",L$2)="#N/A N/A","",_xll.BDP($C$2,$D31,"FUND_PER=Y","EQY_FUND_YEAR",L$2)) -> 0 | M31: =IF(_xll.BDP($C$2,$D31,"FUND_PER=Y","EQY_FUND_YEAR",M$2)="#N/A N/A","",_xll.BDP($C$2,$D31,"FUND_PER=Y","EQY_FUND_YEAR",M$2)) -> 0 | N31: =IF(_xll.BDP($C$2,$D31,"FUND_PER=Y","EQY_FUND_YEAR",N$2)="#N/A N/A","",_xll.BDP($C$2,$D31,"FUND_PER=Y","EQY_FUND_YEAR",N$2)) -> 2986 | O31: =IF(_xll.BDP($C$2,$D31,"FUND_PER=Y","EQY_FUND_YEAR",O$2)="#N/A N/A","",_xll.BDP($C$2,$D31,"FUND_PER=Y","EQY_FUND_YEAR",O$2)) -> 2988 | P31: =IF(_xll.BDP($C$2,$D31,"FUND_PER=Y","EQY_FUND_YEAR",P$2)="#N/A N/A","",_xll.BDP($C$2,$D31,"FUND_PER=Y","EQY_FUND_YEAR",P$2)) -> 2236 | Q31: =IF(_xll.BDP($C$2,$D31,"FUND_PER=Y","EQY_FUND_YEAR",Q$2)="#N/A N/A","",_xll.BDP($C$2,$D31,"FUND_PER=Y","EQY_FUND_YEAR",Q$2)) -> 3228 | R31: =IF(_xll.BDP($C$2,$D31,"FUND_PER=Y","EQY_FUND_YEAR",R$2)="#N/A N/A","",_xll.BDP($C$2,$D31,"FUND_PER=Y","EQY_FUND_YEAR",R$2)) -> 1995 | S31: =IF(_xll.BDP($C$2,$D31,"FUND_PER=Y","EQY_FUND_YEAR",S$2)="#N/A N/A","",_xll.BDP($C$2,$D31,"FUND_PER=Y","EQY_FUND_YEAR",S$2)) -> 3935 | T31: =IF(_xll.BDP($C$2,$D31,"FUND_PER=Y","EQY_FUND_YEAR",T$2)="#N/A N/A","",_xll.BDP($C$2,$D31,"FUND_PER=Y","EQY_FUND_YEAR",T$2)) -> 3969 | U31: =IF(_xll.BDP($C$2,$D31,"FUND_PER=Y","EQY_FUND_YEAR",U$2)="#N/A N/A","",_xll.BDP($C$2,$D31,"FUND_PER=Y","EQY_FUND_YEAR",U$2)) -> 4012 | V31: =IF(_xll.BDP($C$2,$D31,"FUND_PER=Y","EQY_FUND_YEAR",V$2)="#N/A N/A","",_xll.BDP($C$2,$D31,"FUND_PER=Y","EQY_FUND_YEAR",V$2)) -> 14768 | W31: =IF(_xll.BDP($C$2,$D31,"FUND_PER=Y","EQY_FUND_YEAR",W$2)="#N/A N/A","",_xll.BDP($C$2,$D31,"FUND_PER=Y","EQY_FUND_YEAR",W$2)) ->  | X31: =IF(_xll.BDP($C$2,$D31,"FUND_PER=Y","EQY_FUND_YEAR",X$2)="#N/A N/A","",_xll.BDP($C$2,$D31,"FUND_PER=Y","EQY_FUND_YEAR",X$2)) -> 
A32: 〇 | C32: その他の固定負債 | D32: OTHER_NONCUR_LIABS_SUB_DETAILED | E32: =IF(_xll.BDP($C$2,$D32,"FUND_PER=Y","EQY_FUND_YEAR",E$2)="#N/A N/A","",_xll.BDP($C$2,$D32,"FUND_PER=Y","EQY_FUND_YEAR",E$2)) -> 3.048 | F32: =IF(_xll.BDP($C$2,$D32,"FUND_PER=Y","EQY_FUND_YEAR",F$2)="#N/A N/A","",_xll.BDP($C$2,$D32,"FUND_PER=Y","EQY_FUND_YEAR",F$2)) -> 31.377001 | G32: =IF(_xll.BDP($C$2,$D32,"FUND_PER=Y","EQY_FUND_YEAR",G$2)="#N/A N/A","",_xll.BDP($C$2,$D32,"FUND_PER=Y","EQY_FUND_YEAR",G$2)) -> 43.927 | H32: =IF(_xll.BDP($C$2,$D32,"FUND_PER=Y","EQY_FUND_YEAR",H$2)="#N/A N/A","",_xll.BDP($C$2,$D32,"FUND_PER=Y","EQY_FUND_YEAR",H$2)) -> 107.472 | I32: =IF(_xll.BDP($C$2,$D32,"FUND_PER=Y","EQY_FUND_YEAR",I$2)="#N/A N/A","",_xll.BDP($C$2,$D32,"FUND_PER=Y","EQY_FUND_YEAR",I$2)) -> 128.924 | J32: =IF(_xll.BDP($C$2,$D32,"FUND_PER=Y","EQY_FUND_YEAR",J$2)="#N/A N/A","",_xll.BDP($C$2,$D32,"FUND_PER=Y","EQY_FUND_YEAR",J$2)) -> 610.525 | K32: =IF(_xll.BDP($C$2,$D32,"FUND_PER=Y","EQY_FUND_YEAR",K$2)="#N/A N/A","",_xll.BDP($C$2,$D32,"FUND_PER=Y","EQY_FUND_YEAR",K$2)) -> 1226.623 | L32: =IF(_xll.BDP($C$2,$D32,"FUND_PER=Y","EQY_FUND_YEAR",L$2)="#N/A N/A","",_xll.BDP($C$2,$D32,"FUND_PER=Y","EQY_FUND_YEAR",L$2)) -> 1745.087 | M32: =IF(_xll.BDP($C$2,$D32,"FUND_PER=Y","EQY_FUND_YEAR",M$2)="#N/A N/A","",_xll.BDP($C$2,$D32,"FUND_PER=Y","EQY_FUND_YEAR",M$2)) -> 1614 | N32: =IF(_xll.BDP($C$2,$D32,"FUND_PER=Y","EQY_FUND_YEAR",N$2)="#N/A N/A","",_xll.BDP($C$2,$D32,"FUND_PER=Y","EQY_FUND_YEAR",N$2)) -> 2530 | O32: =IF(_xll.BDP($C$2,$D32,"FUND_PER=Y","EQY_FUND_YEAR",O$2)="#N/A N/A","",_xll.BDP($C$2,$D32,"FUND_PER=Y","EQY_FUND_YEAR",O$2)) -> 4758 | P32: =IF(_xll.BDP($C$2,$D32,"FUND_PER=Y","EQY_FUND_YEAR",P$2)="#N/A N/A","",_xll.BDP($C$2,$D32,"FUND_PER=Y","EQY_FUND_YEAR",P$2)) -> 5467 | Q32: =IF(_xll.BDP($C$2,$D32,"FUND_PER=Y","EQY_FUND_YEAR",Q$2)="#N/A N/A","",_xll.BDP($C$2,$D32,"FUND_PER=Y","EQY_FUND_YEAR",Q$2)) -> 5320 | R32: =IF(_xll.BDP($C$2,$D32,"FUND_PER=Y","EQY_FUND_YEAR",R$2)="#N/A N/A","",_xll.BDP($C$2,$D32,"FUND_PER=Y","EQY_FUND_YEAR",R$2)) -> 5825 | S32: =IF(_xll.BDP($C$2,$D32,"FUND_PER=Y","EQY_FUND_YEAR",S$2)="#N/A N/A","",_xll.BDP($C$2,$D32,"FUND_PER=Y","EQY_FUND_YEAR",S$2)) -> 7770 | T32: =IF(_xll.BDP($C$2,$D32,"FUND_PER=Y","EQY_FUND_YEAR",T$2)="#N/A N/A","",_xll.BDP($C$2,$D32,"FUND_PER=Y","EQY_FUND_YEAR",T$2)) -> 16641 | U32: =IF(_xll.BDP($C$2,$D32,"FUND_PER=Y","EQY_FUND_YEAR",U$2)="#N/A N/A","",_xll.BDP($C$2,$D32,"FUND_PER=Y","EQY_FUND_YEAR",U$2)) -> 16532 | V32: =IF(_xll.BDP($C$2,$D32,"FUND_PER=Y","EQY_FUND_YEAR",V$2)="#N/A N/A","",_xll.BDP($C$2,$D32,"FUND_PER=Y","EQY_FUND_YEAR",V$2)) -> 14478 | W32: =IF(_xll.BDP($C$2,$D32,"FUND_PER=Y","EQY_FUND_YEAR",W$2)="#N/A N/A","",_xll.BDP($C$2,$D32,"FUND_PER=Y","EQY_FUND_YEAR",W$2)) ->  | X32: =IF(_xll.BDP($C$2,$D32,"FUND_PER=Y","EQY_FUND_YEAR",X$2)="#N/A N/A","",_xll.BDP($C$2,$D32,"FUND_PER=Y","EQY_FUND_YEAR",X$2)) -> 
A33: 〇 | C33: 非流動負債 合計 | D33: NON_CUR_LIAB | E33: =IF(_xll.BDP($C$2,$D33,"FUND_PER=Y","EQY_FUND_YEAR",E$2)="#N/A N/A","",_xll.BDP($C$2,$D33,"FUND_PER=Y","EQY_FUND_YEAR",E$2)) -> 9.56 | F33: =IF(_xll.BDP($C$2,$D33,"FUND_PER=Y","EQY_FUND_YEAR",F$2)="#N/A N/A","",_xll.BDP($C$2,$D33,"FUND_PER=Y","EQY_FUND_YEAR",F$2)) -> 33.365001 | G33: =IF(_xll.BDP($C$2,$D33,"FUND_PER=Y","EQY_FUND_YEAR",G$2)="#N/A N/A","",_xll.BDP($C$2,$D33,"FUND_PER=Y","EQY_FUND_YEAR",G$2)) -> 43.927 | H33: =IF(_xll.BDP($C$2,$D33,"FUND_PER=Y","EQY_FUND_YEAR",H$2)="#N/A N/A","",_xll.BDP($C$2,$D33,"FUND_PER=Y","EQY_FUND_YEAR",H$2)) -> 107.472 | I33: =IF(_xll.BDP($C$2,$D33,"FUND_PER=Y","EQY_FUND_YEAR",I$2)="#N/A N/A","",_xll.BDP($C$2,$D33,"FUND_PER=Y","EQY_FUND_YEAR",I$2)) -> 128.924 | J33: =IF(_xll.BDP($C$2,$D33,"FUND_PER=Y","EQY_FUND_YEAR",J$2)="#N/A N/A","",_xll.BDP($C$2,$D33,"FUND_PER=Y","EQY_FUND_YEAR",J$2)) -> 610.525 | K33: =IF(_xll.BDP($C$2,$D33,"FUND_PER=Y","EQY_FUND_YEAR",K$2)="#N/A N/A","",_xll.BDP($C$2,$D33,"FUND_PER=Y","EQY_FUND_YEAR",K$2)) -> 1226.623 | L33: =IF(_xll.BDP($C$2,$D33,"FUND_PER=Y","EQY_FUND_YEAR",L$2)="#N/A N/A","",_xll.BDP($C$2,$D33,"FUND_PER=Y","EQY_FUND_YEAR",L$2)) -> 1745.087 | M33: =IF(_xll.BDP($C$2,$D33,"FUND_PER=Y","EQY_FUND_YEAR",M$2)="#N/A N/A","",_xll.BDP($C$2,$D33,"FUND_PER=Y","EQY_FUND_YEAR",M$2)) -> 1614 | N33: =IF(_xll.BDP($C$2,$D33,"FUND_PER=Y","EQY_FUND_YEAR",N$2)="#N/A N/A","",_xll.BDP($C$2,$D33,"FUND_PER=Y","EQY_FUND_YEAR",N$2)) -> 5516 | O33: =IF(_xll.BDP($C$2,$D33,"FUND_PER=Y","EQY_FUND_YEAR",O$2)="#N/A N/A","",_xll.BDP($C$2,$D33,"FUND_PER=Y","EQY_FUND_YEAR",O$2)) -> 7746 | P33: =IF(_xll.BDP($C$2,$D33,"FUND_PER=Y","EQY_FUND_YEAR",P$2)="#N/A N/A","",_xll.BDP($C$2,$D33,"FUND_PER=Y","EQY_FUND_YEAR",P$2)) -> 7703 | Q33: =IF(_xll.BDP($C$2,$D33,"FUND_PER=Y","EQY_FUND_YEAR",Q$2)="#N/A N/A","",_xll.BDP($C$2,$D33,"FUND_PER=Y","EQY_FUND_YEAR",Q$2)) -> 8548 | R33: =IF(_xll.BDP($C$2,$D33,"FUND_PER=Y","EQY_FUND_YEAR",R$2)="#N/A N/A","",_xll.BDP($C$2,$D33,"FUND_PER=Y","EQY_FUND_YEAR",R$2)) -> 7820 | S33: =IF(_xll.BDP($C$2,$D33,"FUND_PER=Y","EQY_FUND_YEAR",S$2)="#N/A N/A","",_xll.BDP($C$2,$D33,"FUND_PER=Y","EQY_FUND_YEAR",S$2)) -> 11705 | T33: =IF(_xll.BDP($C$2,$D33,"FUND_PER=Y","EQY_FUND_YEAR",T$2)="#N/A N/A","",_xll.BDP($C$2,$D33,"FUND_PER=Y","EQY_FUND_YEAR",T$2)) -> 20610 | U33: =IF(_xll.BDP($C$2,$D33,"FUND_PER=Y","EQY_FUND_YEAR",U$2)="#N/A N/A","",_xll.BDP($C$2,$D33,"FUND_PER=Y","EQY_FUND_YEAR",U$2)) -> 20544 | V33: =IF(_xll.BDP($C$2,$D33,"FUND_PER=Y","EQY_FUND_YEAR",V$2)="#N/A N/A","",_xll.BDP($C$2,$D33,"FUND_PER=Y","EQY_FUND_YEAR",V$2)) -> 29246 | W33: =IF(_xll.BDP($C$2,$D33,"FUND_PER=Y","EQY_FUND_YEAR",W$2)="#N/A N/A","",_xll.BDP($C$2,$D33,"FUND_PER=Y","EQY_FUND_YEAR",W$2)) ->  | X33: =IF(_xll.BDP($C$2,$D33,"FUND_PER=Y","EQY_FUND_YEAR",X$2)="#N/A N/A","",_xll.BDP($C$2,$D33,"FUND_PER=Y","EQY_FUND_YEAR",X$2)) -> 
A34: 〇 | C34: 資本金・資本剰余金 | D34: BS_SH_CAP_AND_APIC | E34: =IF(_xll.BDP($C$2,$D34,"FUND_PER=Y","EQY_FUND_YEAR",E$2)="#N/A N/A","",_xll.BDP($C$2,$D34,"FUND_PER=Y","EQY_FUND_YEAR",E$2)) -> 83.555 | F34: =IF(_xll.BDP($C$2,$D34,"FUND_PER=Y","EQY_FUND_YEAR",F$2)="#N/A N/A","",_xll.BDP($C$2,$D34,"FUND_PER=Y","EQY_FUND_YEAR",F$2)) -> 725.380005 | G34: =IF(_xll.BDP($C$2,$D34,"FUND_PER=Y","EQY_FUND_YEAR",G$2)="#N/A N/A","",_xll.BDP($C$2,$D34,"FUND_PER=Y","EQY_FUND_YEAR",G$2)) -> 2582.619 | H34: =IF(_xll.BDP($C$2,$D34,"FUND_PER=Y","EQY_FUND_YEAR",H$2)="#N/A N/A","",_xll.BDP($C$2,$D34,"FUND_PER=Y","EQY_FUND_YEAR",H$2)) -> 7478.085 | I34: =IF(_xll.BDP($C$2,$D34,"FUND_PER=Y","EQY_FUND_YEAR",I$2)="#N/A N/A","",_xll.BDP($C$2,$D34,"FUND_PER=Y","EQY_FUND_YEAR",I$2)) -> 11883.215 | J34: =IF(_xll.BDP($C$2,$D34,"FUND_PER=Y","EQY_FUND_YEAR",J$2)="#N/A N/A","",_xll.BDP($C$2,$D34,"FUND_PER=Y","EQY_FUND_YEAR",J$2)) -> 13241.534 | K34: =IF(_xll.BDP($C$2,$D34,"FUND_PER=Y","EQY_FUND_YEAR",K$2)="#N/A N/A","",_xll.BDP($C$2,$D34,"FUND_PER=Y","EQY_FUND_YEAR",K$2)) -> 14450.653 | L34: =IF(_xll.BDP($C$2,$D34,"FUND_PER=Y","EQY_FUND_YEAR",L$2)="#N/A N/A","",_xll.BDP($C$2,$D34,"FUND_PER=Y","EQY_FUND_YEAR",L$2)) -> 15817.056 | M34: =IF(_xll.BDP($C$2,$D34,"FUND_PER=Y","EQY_FUND_YEAR",M$2)="#N/A N/A","",_xll.BDP($C$2,$D34,"FUND_PER=Y","EQY_FUND_YEAR",M$2)) -> 18235 | N34: =IF(_xll.BDP($C$2,$D34,"FUND_PER=Y","EQY_FUND_YEAR",N$2)="#N/A N/A","",_xll.BDP($C$2,$D34,"FUND_PER=Y","EQY_FUND_YEAR",N$2)) -> 20264 | O34: =IF(_xll.BDP($C$2,$D34,"FUND_PER=Y","EQY_FUND_YEAR",O$2)="#N/A N/A","",_xll.BDP($C$2,$D34,"FUND_PER=Y","EQY_FUND_YEAR",O$2)) -> 22835 | P34: =IF(_xll.BDP($C$2,$D34,"FUND_PER=Y","EQY_FUND_YEAR",P$2)="#N/A N/A","",_xll.BDP($C$2,$D34,"FUND_PER=Y","EQY_FUND_YEAR",P$2)) -> 25922 | Q34: =IF(_xll.BDP($C$2,$D34,"FUND_PER=Y","EQY_FUND_YEAR",Q$2)="#N/A N/A","",_xll.BDP($C$2,$D34,"FUND_PER=Y","EQY_FUND_YEAR",Q$2)) -> 28767 | R34: =IF(_xll.BDP($C$2,$D34,"FUND_PER=Y","EQY_FUND_YEAR",R$2)="#N/A N/A","",_xll.BDP($C$2,$D34,"FUND_PER=Y","EQY_FUND_YEAR",R$2)) -> 32982 | S34: =IF(_xll.BDP($C$2,$D34,"FUND_PER=Y","EQY_FUND_YEAR",S$2)="#N/A N/A","",_xll.BDP($C$2,$D34,"FUND_PER=Y","EQY_FUND_YEAR",S$2)) -> 36307 | T34: =IF(_xll.BDP($C$2,$D34,"FUND_PER=Y","EQY_FUND_YEAR",T$2)="#N/A N/A","",_xll.BDP($C$2,$D34,"FUND_PER=Y","EQY_FUND_YEAR",T$2)) -> 40247 | U34: =IF(_xll.BDP($C$2,$D34,"FUND_PER=Y","EQY_FUND_YEAR",U$2)="#N/A N/A","",_xll.BDP($C$2,$D34,"FUND_PER=Y","EQY_FUND_YEAR",U$2)) -> 45049 | V34: =IF(_xll.BDP($C$2,$D34,"FUND_PER=Y","EQY_FUND_YEAR",V$2)="#N/A N/A","",_xll.BDP($C$2,$D34,"FUND_PER=Y","EQY_FUND_YEAR",V$2)) -> 50552 | W34: =IF(_xll.BDP($C$2,$D34,"FUND_PER=Y","EQY_FUND_YEAR",W$2)="#N/A N/A","",_xll.BDP($C$2,$D34,"FUND_PER=Y","EQY_FUND_YEAR",W$2)) ->  | X34: =IF(_xll.BDP($C$2,$D34,"FUND_PER=Y","EQY_FUND_YEAR",X$2)="#N/A N/A","",_xll.BDP($C$2,$D34,"FUND_PER=Y","EQY_FUND_YEAR",X$2)) -> 
A35: 〇 | C35: 自己株式 | D35: BS_AMT_OF_TSY_STOCK | E35: =IF(_xll.BDP($C$2,$D35,"FUND_PER=Y","EQY_FUND_YEAR",E$2)="#N/A N/A","",_xll.BDP($C$2,$D35,"FUND_PER=Y","EQY_FUND_YEAR",E$2)) -> 0 | F35: =IF(_xll.BDP($C$2,$D35,"FUND_PER=Y","EQY_FUND_YEAR",F$2)="#N/A N/A","",_xll.BDP($C$2,$D35,"FUND_PER=Y","EQY_FUND_YEAR",F$2)) ->  | G35: =IF(_xll.BDP($C$2,$D35,"FUND_PER=Y","EQY_FUND_YEAR",G$2)="#N/A N/A","",_xll.BDP($C$2,$D35,"FUND_PER=Y","EQY_FUND_YEAR",G$2)) -> 0 | H35: =IF(_xll.BDP($C$2,$D35,"FUND_PER=Y","EQY_FUND_YEAR",H$2)="#N/A N/A","",_xll.BDP($C$2,$D35,"FUND_PER=Y","EQY_FUND_YEAR",H$2)) -> 0 | I35: =IF(_xll.BDP($C$2,$D35,"FUND_PER=Y","EQY_FUND_YEAR",I$2)="#N/A N/A","",_xll.BDP($C$2,$D35,"FUND_PER=Y","EQY_FUND_YEAR",I$2)) -> 0 | J35: =IF(_xll.BDP($C$2,$D35,"FUND_PER=Y","EQY_FUND_YEAR",J$2)="#N/A N/A","",_xll.BDP($C$2,$D35,"FUND_PER=Y","EQY_FUND_YEAR",J$2)) -> 0 | K35: =IF(_xll.BDP($C$2,$D35,"FUND_PER=Y","EQY_FUND_YEAR",K$2)="#N/A N/A","",_xll.BDP($C$2,$D35,"FUND_PER=Y","EQY_FUND_YEAR",K$2)) -> 0 | L35: =IF(_xll.BDP($C$2,$D35,"FUND_PER=Y","EQY_FUND_YEAR",L$2)="#N/A N/A","",_xll.BDP($C$2,$D35,"FUND_PER=Y","EQY_FUND_YEAR",L$2)) -> 0 | M35: =IF(_xll.BDP($C$2,$D35,"FUND_PER=Y","EQY_FUND_YEAR",M$2)="#N/A N/A","",_xll.BDP($C$2,$D35,"FUND_PER=Y","EQY_FUND_YEAR",M$2)) -> 0 | N35: =IF(_xll.BDP($C$2,$D35,"FUND_PER=Y","EQY_FUND_YEAR",N$2)="#N/A N/A","",_xll.BDP($C$2,$D35,"FUND_PER=Y","EQY_FUND_YEAR",N$2)) -> 0 | O35: =IF(_xll.BDP($C$2,$D35,"FUND_PER=Y","EQY_FUND_YEAR",O$2)="#N/A N/A","",_xll.BDP($C$2,$D35,"FUND_PER=Y","EQY_FUND_YEAR",O$2)) -> 0 | P35: =IF(_xll.BDP($C$2,$D35,"FUND_PER=Y","EQY_FUND_YEAR",P$2)="#N/A N/A","",_xll.BDP($C$2,$D35,"FUND_PER=Y","EQY_FUND_YEAR",P$2)) -> 0 | Q35: =IF(_xll.BDP($C$2,$D35,"FUND_PER=Y","EQY_FUND_YEAR",Q$2)="#N/A N/A","",_xll.BDP($C$2,$D35,"FUND_PER=Y","EQY_FUND_YEAR",Q$2)) -> 0 | R35: =IF(_xll.BDP($C$2,$D35,"FUND_PER=Y","EQY_FUND_YEAR",R$2)="#N/A N/A","",_xll.BDP($C$2,$D35,"FUND_PER=Y","EQY_FUND_YEAR",R$2)) -> 0 | S35: =IF(_xll.BDP($C$2,$D35,"FUND_PER=Y","EQY_FUND_YEAR",S$2)="#N/A N/A","",_xll.BDP($C$2,$D35,"FUND_PER=Y","EQY_FUND_YEAR",S$2)) -> 0 | T35: =IF(_xll.BDP($C$2,$D35,"FUND_PER=Y","EQY_FUND_YEAR",T$2)="#N/A N/A","",_xll.BDP($C$2,$D35,"FUND_PER=Y","EQY_FUND_YEAR",T$2)) -> 0 | U35: =IF(_xll.BDP($C$2,$D35,"FUND_PER=Y","EQY_FUND_YEAR",U$2)="#N/A N/A","",_xll.BDP($C$2,$D35,"FUND_PER=Y","EQY_FUND_YEAR",U$2)) -> 0 | V35: =IF(_xll.BDP($C$2,$D35,"FUND_PER=Y","EQY_FUND_YEAR",V$2)="#N/A N/A","",_xll.BDP($C$2,$D35,"FUND_PER=Y","EQY_FUND_YEAR",V$2)) -> 0 | W35: =IF(_xll.BDP($C$2,$D35,"FUND_PER=Y","EQY_FUND_YEAR",W$2)="#N/A N/A","",_xll.BDP($C$2,$D35,"FUND_PER=Y","EQY_FUND_YEAR",W$2)) ->  | X35: =IF(_xll.BDP($C$2,$D35,"FUND_PER=Y","EQY_FUND_YEAR",X$2)="#N/A N/A","",_xll.BDP($C$2,$D35,"FUND_PER=Y","EQY_FUND_YEAR",X$2)) ->  | AA35: ROE分析
A36: 〇 | C36: 利益剰余金 | D36: BS_PURE_RETAINED_EARNINGS | E36: =IF(_xll.BDP($C$2,$D36,"FUND_PER=Y","EQY_FUND_YEAR",E$2)="#N/A N/A","",_xll.BDP($C$2,$D36,"FUND_PER=Y","EQY_FUND_YEAR",E$2)) -> 85.704002 | F36: =IF(_xll.BDP($C$2,$D36,"FUND_PER=Y","EQY_FUND_YEAR",F$2)="#N/A N/A","",_xll.BDP($C$2,$D36,"FUND_PER=Y","EQY_FUND_YEAR",F$2)) -> 191.352005 | G36: =IF(_xll.BDP($C$2,$D36,"FUND_PER=Y","EQY_FUND_YEAR",G$2)="#N/A N/A","",_xll.BDP($C$2,$D36,"FUND_PER=Y","EQY_FUND_YEAR",G$2)) -> 590.471 | H36: =IF(_xll.BDP($C$2,$D36,"FUND_PER=Y","EQY_FUND_YEAR",H$2)="#N/A N/A","",_xll.BDP($C$2,$D36,"FUND_PER=Y","EQY_FUND_YEAR",H$2)) -> 2055.868 | I36: =IF(_xll.BDP($C$2,$D36,"FUND_PER=Y","EQY_FUND_YEAR",I$2)="#N/A N/A","",_xll.BDP($C$2,$D36,"FUND_PER=Y","EQY_FUND_YEAR",I$2)) -> 5133.314 | J36: =IF(_xll.BDP($C$2,$D36,"FUND_PER=Y","EQY_FUND_YEAR",J$2)="#N/A N/A","",_xll.BDP($C$2,$D36,"FUND_PER=Y","EQY_FUND_YEAR",J$2)) -> 9334.772 | K36: =IF(_xll.BDP($C$2,$D36,"FUND_PER=Y","EQY_FUND_YEAR",K$2)="#N/A N/A","",_xll.BDP($C$2,$D36,"FUND_PER=Y","EQY_FUND_YEAR",K$2)) -> 13561.63 | L36: =IF(_xll.BDP($C$2,$D36,"FUND_PER=Y","EQY_FUND_YEAR",L$2)="#N/A N/A","",_xll.BDP($C$2,$D36,"FUND_PER=Y","EQY_FUND_YEAR",L$2)) -> 20082.078 | M36: =IF(_xll.BDP($C$2,$D36,"FUND_PER=Y","EQY_FUND_YEAR",M$2)="#N/A N/A","",_xll.BDP($C$2,$D36,"FUND_PER=Y","EQY_FUND_YEAR",M$2)) -> 27868 | N36: =IF(_xll.BDP($C$2,$D36,"FUND_PER=Y","EQY_FUND_YEAR",N$2)="#N/A N/A","",_xll.BDP($C$2,$D36,"FUND_PER=Y","EQY_FUND_YEAR",N$2)) -> 37605 | O36: =IF(_xll.BDP($C$2,$D36,"FUND_PER=Y","EQY_FUND_YEAR",O$2)="#N/A N/A","",_xll.BDP($C$2,$D36,"FUND_PER=Y","EQY_FUND_YEAR",O$2)) -> 48342 | P36: =IF(_xll.BDP($C$2,$D36,"FUND_PER=Y","EQY_FUND_YEAR",P$2)="#N/A N/A","",_xll.BDP($C$2,$D36,"FUND_PER=Y","EQY_FUND_YEAR",P$2)) -> 61262 | Q36: =IF(_xll.BDP($C$2,$D36,"FUND_PER=Y","EQY_FUND_YEAR",Q$2)="#N/A N/A","",_xll.BDP($C$2,$D36,"FUND_PER=Y","EQY_FUND_YEAR",Q$2)) -> 75066 | R36: =IF(_xll.BDP($C$2,$D36,"FUND_PER=Y","EQY_FUND_YEAR",R$2)="#N/A N/A","",_xll.BDP($C$2,$D36,"FUND_PER=Y","EQY_FUND_YEAR",R$2)) -> 89223 | S36: =IF(_xll.BDP($C$2,$D36,"FUND_PER=Y","EQY_FUND_YEAR",S$2)="#N/A N/A","",_xll.BDP($C$2,$D36,"FUND_PER=Y","EQY_FUND_YEAR",S$2)) -> 105131 | T36: =IF(_xll.BDP($C$2,$D36,"FUND_PER=Y","EQY_FUND_YEAR",T$2)="#N/A N/A","",_xll.BDP($C$2,$D36,"FUND_PER=Y","EQY_FUND_YEAR",T$2)) -> 113247 | U36: =IF(_xll.BDP($C$2,$D36,"FUND_PER=Y","EQY_FUND_YEAR",U$2)="#N/A N/A","",_xll.BDP($C$2,$D36,"FUND_PER=Y","EQY_FUND_YEAR",U$2)) -> 134885 | V36: =IF(_xll.BDP($C$2,$D36,"FUND_PER=Y","EQY_FUND_YEAR",V$2)="#N/A N/A","",_xll.BDP($C$2,$D36,"FUND_PER=Y","EQY_FUND_YEAR",V$2)) -> 152122 | W36: =IF(_xll.BDP($C$2,$D36,"FUND_PER=Y","EQY_FUND_YEAR",W$2)="#N/A N/A","",_xll.BDP($C$2,$D36,"FUND_PER=Y","EQY_FUND_YEAR",W$2)) ->  | X36: =IF(_xll.BDP($C$2,$D36,"FUND_PER=Y","EQY_FUND_YEAR",X$2)="#N/A N/A","",_xll.BDP($C$2,$D36,"FUND_PER=Y","EQY_FUND_YEAR",X$2)) -> 
A37: 〇 | C37: その他持分 | D37: OTHER_EQUITY_RATIO | E37: =IF(_xll.BDP($C$2,$D37,"FUND_PER=Y","EQY_FUND_YEAR",E$2)="#N/A N/A","",_xll.BDP($C$2,$D37,"FUND_PER=Y","EQY_FUND_YEAR",E$2)) -> -39.652004 | F37: =IF(_xll.BDP($C$2,$D37,"FUND_PER=Y","EQY_FUND_YEAR",F$2)="#N/A N/A","",_xll.BDP($C$2,$D37,"FUND_PER=Y","EQY_FUND_YEAR",F$2)) -> -372.307999 | G37: =IF(_xll.BDP($C$2,$D37,"FUND_PER=Y","EQY_FUND_YEAR",G$2)="#N/A N/A","",_xll.BDP($C$2,$D37,"FUND_PER=Y","EQY_FUND_YEAR",G$2)) -> -244.034 | H37: =IF(_xll.BDP($C$2,$D37,"FUND_PER=Y","EQY_FUND_YEAR",H$2)="#N/A N/A","",_xll.BDP($C$2,$D37,"FUND_PER=Y","EQY_FUND_YEAR",H$2)) -> -114.996 | I37: =IF(_xll.BDP($C$2,$D37,"FUND_PER=Y","EQY_FUND_YEAR",I$2)="#N/A N/A","",_xll.BDP($C$2,$D37,"FUND_PER=Y","EQY_FUND_YEAR",I$2)) -> 23.311 | J37: =IF(_xll.BDP($C$2,$D37,"FUND_PER=Y","EQY_FUND_YEAR",J$2)="#N/A N/A","",_xll.BDP($C$2,$D37,"FUND_PER=Y","EQY_FUND_YEAR",J$2)) -> 113.373 | K37: =IF(_xll.BDP($C$2,$D37,"FUND_PER=Y","EQY_FUND_YEAR",K$2)="#N/A N/A","",_xll.BDP($C$2,$D37,"FUND_PER=Y","EQY_FUND_YEAR",K$2)) -> 226.579 | L37: =IF(_xll.BDP($C$2,$D37,"FUND_PER=Y","EQY_FUND_YEAR",L$2)="#N/A N/A","",_xll.BDP($C$2,$D37,"FUND_PER=Y","EQY_FUND_YEAR",L$2)) -> 105.09 | M37: =IF(_xll.BDP($C$2,$D37,"FUND_PER=Y","EQY_FUND_YEAR",M$2)="#N/A N/A","",_xll.BDP($C$2,$D37,"FUND_PER=Y","EQY_FUND_YEAR",M$2)) -> 138 | N37: =IF(_xll.BDP($C$2,$D37,"FUND_PER=Y","EQY_FUND_YEAR",N$2)="#N/A N/A","",_xll.BDP($C$2,$D37,"FUND_PER=Y","EQY_FUND_YEAR",N$2)) -> 276 | O37: =IF(_xll.BDP($C$2,$D37,"FUND_PER=Y","EQY_FUND_YEAR",O$2)="#N/A N/A","",_xll.BDP($C$2,$D37,"FUND_PER=Y","EQY_FUND_YEAR",O$2)) -> 538 | P37: =IF(_xll.BDP($C$2,$D37,"FUND_PER=Y","EQY_FUND_YEAR",P$2)="#N/A N/A","",_xll.BDP($C$2,$D37,"FUND_PER=Y","EQY_FUND_YEAR",P$2)) -> 125 | Q37: =IF(_xll.BDP($C$2,$D37,"FUND_PER=Y","EQY_FUND_YEAR",Q$2)="#N/A N/A","",_xll.BDP($C$2,$D37,"FUND_PER=Y","EQY_FUND_YEAR",Q$2)) -> 27 | R37: =IF(_xll.BDP($C$2,$D37,"FUND_PER=Y","EQY_FUND_YEAR",R$2)="#N/A N/A","",_xll.BDP($C$2,$D37,"FUND_PER=Y","EQY_FUND_YEAR",R$2)) -> -1874 | S37: =IF(_xll.BDP($C$2,$D37,"FUND_PER=Y","EQY_FUND_YEAR",S$2)="#N/A N/A","",_xll.BDP($C$2,$D37,"FUND_PER=Y","EQY_FUND_YEAR",S$2)) -> -2402 | T37: =IF(_xll.BDP($C$2,$D37,"FUND_PER=Y","EQY_FUND_YEAR",T$2)="#N/A N/A","",_xll.BDP($C$2,$D37,"FUND_PER=Y","EQY_FUND_YEAR",T$2)) -> -992 | U37: =IF(_xll.BDP($C$2,$D37,"FUND_PER=Y","EQY_FUND_YEAR",U$2)="#N/A N/A","",_xll.BDP($C$2,$D37,"FUND_PER=Y","EQY_FUND_YEAR",U$2)) -> -2306 | V37: =IF(_xll.BDP($C$2,$D37,"FUND_PER=Y","EQY_FUND_YEAR",V$2)="#N/A N/A","",_xll.BDP($C$2,$D37,"FUND_PER=Y","EQY_FUND_YEAR",V$2)) -> -1232 | W37: =IF(_xll.BDP($C$2,$D37,"FUND_PER=Y","EQY_FUND_YEAR",W$2)="#N/A N/A","",_xll.BDP($C$2,$D37,"FUND_PER=Y","EQY_FUND_YEAR",W$2)) ->  | X37: =IF(_xll.BDP($C$2,$D37,"FUND_PER=Y","EQY_FUND_YEAR",X$2)="#N/A N/A","",_xll.BDP($C$2,$D37,"FUND_PER=Y","EQY_FUND_YEAR",X$2)) -> 
A38: 〇 | C38: 少数株主持分 | D38: MINORITY_NONCONTROLLING_INTEREST | E38: =IF(_xll.BDP($C$2,$D38,"FUND_PER=Y","EQY_FUND_YEAR",E$2)="#N/A N/A","",_xll.BDP($C$2,$D38,"FUND_PER=Y","EQY_FUND_YEAR",E$2)) -> 0 | F38: =IF(_xll.BDP($C$2,$D38,"FUND_PER=Y","EQY_FUND_YEAR",F$2)="#N/A N/A","",_xll.BDP($C$2,$D38,"FUND_PER=Y","EQY_FUND_YEAR",F$2)) -> 0 | G38: =IF(_xll.BDP($C$2,$D38,"FUND_PER=Y","EQY_FUND_YEAR",G$2)="#N/A N/A","",_xll.BDP($C$2,$D38,"FUND_PER=Y","EQY_FUND_YEAR",G$2)) -> 0 | H38: =IF(_xll.BDP($C$2,$D38,"FUND_PER=Y","EQY_FUND_YEAR",H$2)="#N/A N/A","",_xll.BDP($C$2,$D38,"FUND_PER=Y","EQY_FUND_YEAR",H$2)) -> 0 | I38: =IF(_xll.BDP($C$2,$D38,"FUND_PER=Y","EQY_FUND_YEAR",I$2)="#N/A N/A","",_xll.BDP($C$2,$D38,"FUND_PER=Y","EQY_FUND_YEAR",I$2)) -> 0 | J38: =IF(_xll.BDP($C$2,$D38,"FUND_PER=Y","EQY_FUND_YEAR",J$2)="#N/A N/A","",_xll.BDP($C$2,$D38,"FUND_PER=Y","EQY_FUND_YEAR",J$2)) -> 0 | K38: =IF(_xll.BDP($C$2,$D38,"FUND_PER=Y","EQY_FUND_YEAR",K$2)="#N/A N/A","",_xll.BDP($C$2,$D38,"FUND_PER=Y","EQY_FUND_YEAR",K$2)) -> 0 | L38: =IF(_xll.BDP($C$2,$D38,"FUND_PER=Y","EQY_FUND_YEAR",L$2)="#N/A N/A","",_xll.BDP($C$2,$D38,"FUND_PER=Y","EQY_FUND_YEAR",L$2)) -> 0 | M38: =IF(_xll.BDP($C$2,$D38,"FUND_PER=Y","EQY_FUND_YEAR",M$2)="#N/A N/A","",_xll.BDP($C$2,$D38,"FUND_PER=Y","EQY_FUND_YEAR",M$2)) -> 0 | N38: =IF(_xll.BDP($C$2,$D38,"FUND_PER=Y","EQY_FUND_YEAR",N$2)="#N/A N/A","",_xll.BDP($C$2,$D38,"FUND_PER=Y","EQY_FUND_YEAR",N$2)) -> 0 | O38: =IF(_xll.BDP($C$2,$D38,"FUND_PER=Y","EQY_FUND_YEAR",O$2)="#N/A N/A","",_xll.BDP($C$2,$D38,"FUND_PER=Y","EQY_FUND_YEAR",O$2)) -> 0 | P38: =IF(_xll.BDP($C$2,$D38,"FUND_PER=Y","EQY_FUND_YEAR",P$2)="#N/A N/A","",_xll.BDP($C$2,$D38,"FUND_PER=Y","EQY_FUND_YEAR",P$2)) -> 0 | Q38: =IF(_xll.BDP($C$2,$D38,"FUND_PER=Y","EQY_FUND_YEAR",Q$2)="#N/A N/A","",_xll.BDP($C$2,$D38,"FUND_PER=Y","EQY_FUND_YEAR",Q$2)) -> 0 | R38: =IF(_xll.BDP($C$2,$D38,"FUND_PER=Y","EQY_FUND_YEAR",R$2)="#N/A N/A","",_xll.BDP($C$2,$D38,"FUND_PER=Y","EQY_FUND_YEAR",R$2)) -> 0 | S38: =IF(_xll.BDP($C$2,$D38,"FUND_PER=Y","EQY_FUND_YEAR",S$2)="#N/A N/A","",_xll.BDP($C$2,$D38,"FUND_PER=Y","EQY_FUND_YEAR",S$2)) -> 0 | T38: =IF(_xll.BDP($C$2,$D38,"FUND_PER=Y","EQY_FUND_YEAR",T$2)="#N/A N/A","",_xll.BDP($C$2,$D38,"FUND_PER=Y","EQY_FUND_YEAR",T$2)) -> 0 | U38: =IF(_xll.BDP($C$2,$D38,"FUND_PER=Y","EQY_FUND_YEAR",U$2)="#N/A N/A","",_xll.BDP($C$2,$D38,"FUND_PER=Y","EQY_FUND_YEAR",U$2)) -> 0 | V38: =IF(_xll.BDP($C$2,$D38,"FUND_PER=Y","EQY_FUND_YEAR",V$2)="#N/A N/A","",_xll.BDP($C$2,$D38,"FUND_PER=Y","EQY_FUND_YEAR",V$2)) -> 0 | W38: =IF(_xll.BDP($C$2,$D38,"FUND_PER=Y","EQY_FUND_YEAR",W$2)="#N/A N/A","",_xll.BDP($C$2,$D38,"FUND_PER=Y","EQY_FUND_YEAR",W$2)) ->  | X38: =IF(_xll.BDP($C$2,$D38,"FUND_PER=Y","EQY_FUND_YEAR",X$2)="#N/A N/A","",_xll.BDP($C$2,$D38,"FUND_PER=Y","EQY_FUND_YEAR",X$2)) -> 
A39: 〇 | C39: 純資産 | D39: TOTAL_EQUITY | E39: =IF(_xll.BDP($C$2,$D39,"FUND_PER=Y","EQY_FUND_YEAR",E$2)="#N/A N/A","",_xll.BDP($C$2,$D39,"FUND_PER=Y","EQY_FUND_YEAR",E$2)) -> 187.823997 | F39: =IF(_xll.BDP($C$2,$D39,"FUND_PER=Y","EQY_FUND_YEAR",F$2)="#N/A N/A","",_xll.BDP($C$2,$D39,"FUND_PER=Y","EQY_FUND_YEAR",F$2)) -> 602.64101 | G39: =IF(_xll.BDP($C$2,$D39,"FUND_PER=Y","EQY_FUND_YEAR",G$2)="#N/A N/A","",_xll.BDP($C$2,$D39,"FUND_PER=Y","EQY_FUND_YEAR",G$2)) -> 2929.056 | H39: =IF(_xll.BDP($C$2,$D39,"FUND_PER=Y","EQY_FUND_YEAR",H$2)="#N/A N/A","",_xll.BDP($C$2,$D39,"FUND_PER=Y","EQY_FUND_YEAR",H$2)) -> 9418.957 | I39: =IF(_xll.BDP($C$2,$D39,"FUND_PER=Y","EQY_FUND_YEAR",I$2)="#N/A N/A","",_xll.BDP($C$2,$D39,"FUND_PER=Y","EQY_FUND_YEAR",I$2)) -> 17039.84 | J39: =IF(_xll.BDP($C$2,$D39,"FUND_PER=Y","EQY_FUND_YEAR",J$2)="#N/A N/A","",_xll.BDP($C$2,$D39,"FUND_PER=Y","EQY_FUND_YEAR",J$2)) -> 22689.679 | K39: =IF(_xll.BDP($C$2,$D39,"FUND_PER=Y","EQY_FUND_YEAR",K$2)="#N/A N/A","",_xll.BDP($C$2,$D39,"FUND_PER=Y","EQY_FUND_YEAR",K$2)) -> 28238.862 | L39: =IF(_xll.BDP($C$2,$D39,"FUND_PER=Y","EQY_FUND_YEAR",L$2)="#N/A N/A","",_xll.BDP($C$2,$D39,"FUND_PER=Y","EQY_FUND_YEAR",L$2)) -> 36004.224 | M39: =IF(_xll.BDP($C$2,$D39,"FUND_PER=Y","EQY_FUND_YEAR",M$2)="#N/A N/A","",_xll.BDP($C$2,$D39,"FUND_PER=Y","EQY_FUND_YEAR",M$2)) -> 46241 | N39: =IF(_xll.BDP($C$2,$D39,"FUND_PER=Y","EQY_FUND_YEAR",N$2)="#N/A N/A","",_xll.BDP($C$2,$D39,"FUND_PER=Y","EQY_FUND_YEAR",N$2)) -> 58145 | O39: =IF(_xll.BDP($C$2,$D39,"FUND_PER=Y","EQY_FUND_YEAR",O$2)="#N/A N/A","",_xll.BDP($C$2,$D39,"FUND_PER=Y","EQY_FUND_YEAR",O$2)) -> 71715 | P39: =IF(_xll.BDP($C$2,$D39,"FUND_PER=Y","EQY_FUND_YEAR",P$2)="#N/A N/A","",_xll.BDP($C$2,$D39,"FUND_PER=Y","EQY_FUND_YEAR",P$2)) -> 87309 | Q39: =IF(_xll.BDP($C$2,$D39,"FUND_PER=Y","EQY_FUND_YEAR",Q$2)="#N/A N/A","",_xll.BDP($C$2,$D39,"FUND_PER=Y","EQY_FUND_YEAR",Q$2)) -> 103860 | R39: =IF(_xll.BDP($C$2,$D39,"FUND_PER=Y","EQY_FUND_YEAR",R$2)="#N/A N/A","",_xll.BDP($C$2,$D39,"FUND_PER=Y","EQY_FUND_YEAR",R$2)) -> 120331 | S39: =IF(_xll.BDP($C$2,$D39,"FUND_PER=Y","EQY_FUND_YEAR",S$2)="#N/A N/A","",_xll.BDP($C$2,$D39,"FUND_PER=Y","EQY_FUND_YEAR",S$2)) -> 139036 | T39: =IF(_xll.BDP($C$2,$D39,"FUND_PER=Y","EQY_FUND_YEAR",T$2)="#N/A N/A","",_xll.BDP($C$2,$D39,"FUND_PER=Y","EQY_FUND_YEAR",T$2)) -> 152502 | U39: =IF(_xll.BDP($C$2,$D39,"FUND_PER=Y","EQY_FUND_YEAR",U$2)="#N/A N/A","",_xll.BDP($C$2,$D39,"FUND_PER=Y","EQY_FUND_YEAR",U$2)) -> 177628 | V39: =IF(_xll.BDP($C$2,$D39,"FUND_PER=Y","EQY_FUND_YEAR",V$2)="#N/A N/A","",_xll.BDP($C$2,$D39,"FUND_PER=Y","EQY_FUND_YEAR",V$2)) -> 201442 | W39: =IF(_xll.BDP($C$2,$D39,"FUND_PER=Y","EQY_FUND_YEAR",W$2)="#N/A N/A","",_xll.BDP($C$2,$D39,"FUND_PER=Y","EQY_FUND_YEAR",W$2)) ->  | X39: =IF(_xll.BDP($C$2,$D39,"FUND_PER=Y","EQY_FUND_YEAR",X$2)="#N/A N/A","",_xll.BDP($C$2,$D39,"FUND_PER=Y","EQY_FUND_YEAR",X$2)) -> 
A42: 〇 | C42: 1株当たり配当 | D42: IS_DIV_PER_SHR | E42: =IF(_xll.BDP($C$2,$D42,"FUND_PER=Y","EQY_FUND_YEAR",E$2)="#N/A N/A","",_xll.BDP($C$2,$D42,"FUND_PER=Y","EQY_FUND_YEAR",E$2)) -> 0 | F42: =IF(_xll.BDP($C$2,$D42,"FUND_PER=Y","EQY_FUND_YEAR",F$2)="#N/A N/A","",_xll.BDP($C$2,$D42,"FUND_PER=Y","EQY_FUND_YEAR",F$2)) -> 0 | G42: =IF(_xll.BDP($C$2,$D42,"FUND_PER=Y","EQY_FUND_YEAR",G$2)="#N/A N/A","",_xll.BDP($C$2,$D42,"FUND_PER=Y","EQY_FUND_YEAR",G$2)) -> 0 | H42: =IF(_xll.BDP($C$2,$D42,"FUND_PER=Y","EQY_FUND_YEAR",H$2)="#N/A N/A","",_xll.BDP($C$2,$D42,"FUND_PER=Y","EQY_FUND_YEAR",H$2)) -> 0 | I42: =IF(_xll.BDP($C$2,$D42,"FUND_PER=Y","EQY_FUND_YEAR",I$2)="#N/A N/A","",_xll.BDP($C$2,$D42,"FUND_PER=Y","EQY_FUND_YEAR",I$2)) -> 0 | J42: =IF(_xll.BDP($C$2,$D42,"FUND_PER=Y","EQY_FUND_YEAR",J$2)="#N/A N/A","",_xll.BDP($C$2,$D42,"FUND_PER=Y","EQY_FUND_YEAR",J$2)) -> 0 | K42: =IF(_xll.BDP($C$2,$D42,"FUND_PER=Y","EQY_FUND_YEAR",K$2)="#N/A N/A","",_xll.BDP($C$2,$D42,"FUND_PER=Y","EQY_FUND_YEAR",K$2)) -> 0 | L42: =IF(_xll.BDP($C$2,$D42,"FUND_PER=Y","EQY_FUND_YEAR",L$2)="#N/A N/A","",_xll.BDP($C$2,$D42,"FUND_PER=Y","EQY_FUND_YEAR",L$2)) -> 0 | M42: =IF(_xll.BDP($C$2,$D42,"FUND_PER=Y","EQY_FUND_YEAR",M$2)="#N/A N/A","",_xll.BDP($C$2,$D42,"FUND_PER=Y","EQY_FUND_YEAR",M$2)) -> 0 | N42: =IF(_xll.BDP($C$2,$D42,"FUND_PER=Y","EQY_FUND_YEAR",N$2)="#N/A N/A","",_xll.BDP($C$2,$D42,"FUND_PER=Y","EQY_FUND_YEAR",N$2)) -> 0 | O42: =IF(_xll.BDP($C$2,$D42,"FUND_PER=Y","EQY_FUND_YEAR",O$2)="#N/A N/A","",_xll.BDP($C$2,$D42,"FUND_PER=Y","EQY_FUND_YEAR",O$2)) -> 0 | P42: =IF(_xll.BDP($C$2,$D42,"FUND_PER=Y","EQY_FUND_YEAR",P$2)="#N/A N/A","",_xll.BDP($C$2,$D42,"FUND_PER=Y","EQY_FUND_YEAR",P$2)) -> 0 | Q42: =IF(_xll.BDP($C$2,$D42,"FUND_PER=Y","EQY_FUND_YEAR",Q$2)="#N/A N/A","",_xll.BDP($C$2,$D42,"FUND_PER=Y","EQY_FUND_YEAR",Q$2)) -> 0 | R42: =IF(_xll.BDP($C$2,$D42,"FUND_PER=Y","EQY_FUND_YEAR",R$2)="#N/A N/A","",_xll.BDP($C$2,$D42,"FUND_PER=Y","EQY_FUND_YEAR",R$2)) -> 0 | S42: =IF(_xll.BDP($C$2,$D42,"FUND_PER=Y","EQY_FUND_YEAR",S$2)="#N/A N/A","",_xll.BDP($C$2,$D42,"FUND_PER=Y","EQY_FUND_YEAR",S$2)) -> 0 | T42: =IF(_xll.BDP($C$2,$D42,"FUND_PER=Y","EQY_FUND_YEAR",T$2)="#N/A N/A","",_xll.BDP($C$2,$D42,"FUND_PER=Y","EQY_FUND_YEAR",T$2)) -> 0 | U42: =IF(_xll.BDP($C$2,$D42,"FUND_PER=Y","EQY_FUND_YEAR",U$2)="#N/A N/A","",_xll.BDP($C$2,$D42,"FUND_PER=Y","EQY_FUND_YEAR",U$2)) -> 0 | V42: =IF(_xll.BDP($C$2,$D42,"FUND_PER=Y","EQY_FUND_YEAR",V$2)="#N/A N/A","",_xll.BDP($C$2,$D42,"FUND_PER=Y","EQY_FUND_YEAR",V$2)) -> 0 | W42: =IF(_xll.BDP($C$2,$D42,"FUND_PER=Y","EQY_FUND_YEAR",W$2)="#N/A N/A","",_xll.BDP($C$2,$D42,"FUND_PER=Y","EQY_FUND_YEAR",W$2)) ->  | X42: =IF(_xll.BDP($C$2,$D42,"FUND_PER=Y","EQY_FUND_YEAR",X$2)="#N/A N/A","",_xll.BDP($C$2,$D42,"FUND_PER=Y","EQY_FUND_YEAR",X$2)) -> 
A44: 〇 | C44: 営業CF | D44: CF_CASH_FROM_OPER | E44: =IF(_xll.BDP($C$2,$D44,"FUND_PER=Y","EQY_FUND_YEAR",E$2)="#N/A N/A","",_xll.BDP($C$2,$D44,"FUND_PER=Y","EQY_FUND_YEAR",E$2)) -> 155.264999 | F44: =IF(_xll.BDP($C$2,$D44,"FUND_PER=Y","EQY_FUND_YEAR",F$2)="#N/A N/A","",_xll.BDP($C$2,$D44,"FUND_PER=Y","EQY_FUND_YEAR",F$2)) -> 395.445007 | G44: =IF(_xll.BDP($C$2,$D44,"FUND_PER=Y","EQY_FUND_YEAR",G$2)="#N/A N/A","",_xll.BDP($C$2,$D44,"FUND_PER=Y","EQY_FUND_YEAR",G$2)) -> 977.044 | H44: =IF(_xll.BDP($C$2,$D44,"FUND_PER=Y","EQY_FUND_YEAR",H$2)="#N/A N/A","",_xll.BDP($C$2,$D44,"FUND_PER=Y","EQY_FUND_YEAR",H$2)) -> 2459.422 | I44: =IF(_xll.BDP($C$2,$D44,"FUND_PER=Y","EQY_FUND_YEAR",I$2)="#N/A N/A","",_xll.BDP($C$2,$D44,"FUND_PER=Y","EQY_FUND_YEAR",I$2)) -> 3580.508 | J44: =IF(_xll.BDP($C$2,$D44,"FUND_PER=Y","EQY_FUND_YEAR",J$2)="#N/A N/A","",_xll.BDP($C$2,$D44,"FUND_PER=Y","EQY_FUND_YEAR",J$2)) -> 5775.41 | K44: =IF(_xll.BDP($C$2,$D44,"FUND_PER=Y","EQY_FUND_YEAR",K$2)="#N/A N/A","",_xll.BDP($C$2,$D44,"FUND_PER=Y","EQY_FUND_YEAR",K$2)) -> 7852.857 | L44: =IF(_xll.BDP($C$2,$D44,"FUND_PER=Y","EQY_FUND_YEAR",L$2)="#N/A N/A","",_xll.BDP($C$2,$D44,"FUND_PER=Y","EQY_FUND_YEAR",L$2)) -> 9316.198 | M44: =IF(_xll.BDP($C$2,$D44,"FUND_PER=Y","EQY_FUND_YEAR",M$2)="#N/A N/A","",_xll.BDP($C$2,$D44,"FUND_PER=Y","EQY_FUND_YEAR",M$2)) -> 11081 | N44: =IF(_xll.BDP($C$2,$D44,"FUND_PER=Y","EQY_FUND_YEAR",N$2)="#N/A N/A","",_xll.BDP($C$2,$D44,"FUND_PER=Y","EQY_FUND_YEAR",N$2)) -> 14565 | O44: =IF(_xll.BDP($C$2,$D44,"FUND_PER=Y","EQY_FUND_YEAR",O$2)="#N/A N/A","",_xll.BDP($C$2,$D44,"FUND_PER=Y","EQY_FUND_YEAR",O$2)) -> 16619 | P44: =IF(_xll.BDP($C$2,$D44,"FUND_PER=Y","EQY_FUND_YEAR",P$2)="#N/A N/A","",_xll.BDP($C$2,$D44,"FUND_PER=Y","EQY_FUND_YEAR",P$2)) -> 18659 | Q44: =IF(_xll.BDP($C$2,$D44,"FUND_PER=Y","EQY_FUND_YEAR",Q$2)="#N/A N/A","",_xll.BDP($C$2,$D44,"FUND_PER=Y","EQY_FUND_YEAR",Q$2)) -> 22376 | R44: =IF(_xll.BDP($C$2,$D44,"FUND_PER=Y","EQY_FUND_YEAR",R$2)="#N/A N/A","",_xll.BDP($C$2,$D44,"FUND_PER=Y","EQY_FUND_YEAR",R$2)) -> 26572 | S44: =IF(_xll.BDP($C$2,$D44,"FUND_PER=Y","EQY_FUND_YEAR",S$2)="#N/A N/A","",_xll.BDP($C$2,$D44,"FUND_PER=Y","EQY_FUND_YEAR",S$2)) -> 36036 | T44: =IF(_xll.BDP($C$2,$D44,"FUND_PER=Y","EQY_FUND_YEAR",T$2)="#N/A N/A","",_xll.BDP($C$2,$D44,"FUND_PER=Y","EQY_FUND_YEAR",T$2)) -> 37091 | U44: =IF(_xll.BDP($C$2,$D44,"FUND_PER=Y","EQY_FUND_YEAR",U$2)="#N/A N/A","",_xll.BDP($C$2,$D44,"FUND_PER=Y","EQY_FUND_YEAR",U$2)) -> 47971 | V44: =IF(_xll.BDP($C$2,$D44,"FUND_PER=Y","EQY_FUND_YEAR",V$2)="#N/A N/A","",_xll.BDP($C$2,$D44,"FUND_PER=Y","EQY_FUND_YEAR",V$2)) -> 54520 | W44: =IF(_xll.BDP($C$2,$D44,"FUND_PER=Y","EQY_FUND_YEAR",W$2)="#N/A N/A","",_xll.BDP($C$2,$D44,"FUND_PER=Y","EQY_FUND_YEAR",W$2)) ->  | X44: =IF(_xll.BDP($C$2,$D44,"FUND_PER=Y","EQY_FUND_YEAR",X$2)="#N/A N/A","",_xll.BDP($C$2,$D44,"FUND_PER=Y","EQY_FUND_YEAR",X$2)) -> 
A45: 〇 | C45: 投資CF | D45: CF_CASH_FROM_INV_ACT | E45: =IF(_xll.BDP($C$2,$D45,"FUND_PER=Y","EQY_FUND_YEAR",E$2)="#N/A N/A","",_xll.BDP($C$2,$D45,"FUND_PER=Y","EQY_FUND_YEAR",E$2)) -> -109.717003 | F45: =IF(_xll.BDP($C$2,$D45,"FUND_PER=Y","EQY_FUND_YEAR",F$2)="#N/A N/A","",_xll.BDP($C$2,$D45,"FUND_PER=Y","EQY_FUND_YEAR",F$2)) -> -313.95401 | G45: =IF(_xll.BDP($C$2,$D45,"FUND_PER=Y","EQY_FUND_YEAR",G$2)="#N/A N/A","",_xll.BDP($C$2,$D45,"FUND_PER=Y","EQY_FUND_YEAR",G$2)) -> -1901.356 | H45: =IF(_xll.BDP($C$2,$D45,"FUND_PER=Y","EQY_FUND_YEAR",H$2)="#N/A N/A","",_xll.BDP($C$2,$D45,"FUND_PER=Y","EQY_FUND_YEAR",H$2)) -> -3358.193 | I45: =IF(_xll.BDP($C$2,$D45,"FUND_PER=Y","EQY_FUND_YEAR",I$2)="#N/A N/A","",_xll.BDP($C$2,$D45,"FUND_PER=Y","EQY_FUND_YEAR",I$2)) -> -6899.15 | J45: =IF(_xll.BDP($C$2,$D45,"FUND_PER=Y","EQY_FUND_YEAR",J$2)="#N/A N/A","",_xll.BDP($C$2,$D45,"FUND_PER=Y","EQY_FUND_YEAR",J$2)) -> -3681.589 | K45: =IF(_xll.BDP($C$2,$D45,"FUND_PER=Y","EQY_FUND_YEAR",K$2)="#N/A N/A","",_xll.BDP($C$2,$D45,"FUND_PER=Y","EQY_FUND_YEAR",K$2)) -> -5319.422 | L45: =IF(_xll.BDP($C$2,$D45,"FUND_PER=Y","EQY_FUND_YEAR",L$2)="#N/A N/A","",_xll.BDP($C$2,$D45,"FUND_PER=Y","EQY_FUND_YEAR",L$2)) -> -8019.205 | M45: =IF(_xll.BDP($C$2,$D45,"FUND_PER=Y","EQY_FUND_YEAR",M$2)="#N/A N/A","",_xll.BDP($C$2,$D45,"FUND_PER=Y","EQY_FUND_YEAR",M$2)) -> -10680 | N45: =IF(_xll.BDP($C$2,$D45,"FUND_PER=Y","EQY_FUND_YEAR",N$2)="#N/A N/A","",_xll.BDP($C$2,$D45,"FUND_PER=Y","EQY_FUND_YEAR",N$2)) -> -19041 | O45: =IF(_xll.BDP($C$2,$D45,"FUND_PER=Y","EQY_FUND_YEAR",O$2)="#N/A N/A","",_xll.BDP($C$2,$D45,"FUND_PER=Y","EQY_FUND_YEAR",O$2)) -> -13056 | P45: =IF(_xll.BDP($C$2,$D45,"FUND_PER=Y","EQY_FUND_YEAR",P$2)="#N/A N/A","",_xll.BDP($C$2,$D45,"FUND_PER=Y","EQY_FUND_YEAR",P$2)) -> -13679 | Q45: =IF(_xll.BDP($C$2,$D45,"FUND_PER=Y","EQY_FUND_YEAR",Q$2)="#N/A N/A","",_xll.BDP($C$2,$D45,"FUND_PER=Y","EQY_FUND_YEAR",Q$2)) -> -21055 | R45: =IF(_xll.BDP($C$2,$D45,"FUND_PER=Y","EQY_FUND_YEAR",R$2)="#N/A N/A","",_xll.BDP($C$2,$D45,"FUND_PER=Y","EQY_FUND_YEAR",R$2)) -> -23711 | S45: =IF(_xll.BDP($C$2,$D45,"FUND_PER=Y","EQY_FUND_YEAR",S$2)="#N/A N/A","",_xll.BDP($C$2,$D45,"FUND_PER=Y","EQY_FUND_YEAR",S$2)) -> -31165 | T45: =IF(_xll.BDP($C$2,$D45,"FUND_PER=Y","EQY_FUND_YEAR",T$2)="#N/A N/A","",_xll.BDP($C$2,$D45,"FUND_PER=Y","EQY_FUND_YEAR",T$2)) -> -31401 | U45: =IF(_xll.BDP($C$2,$D45,"FUND_PER=Y","EQY_FUND_YEAR",U$2)="#N/A N/A","",_xll.BDP($C$2,$D45,"FUND_PER=Y","EQY_FUND_YEAR",U$2)) -> -28504 | V45: =IF(_xll.BDP($C$2,$D45,"FUND_PER=Y","EQY_FUND_YEAR",V$2)="#N/A N/A","",_xll.BDP($C$2,$D45,"FUND_PER=Y","EQY_FUND_YEAR",V$2)) -> -29491 | W45: =IF(_xll.BDP($C$2,$D45,"FUND_PER=Y","EQY_FUND_YEAR",W$2)="#N/A N/A","",_xll.BDP($C$2,$D45,"FUND_PER=Y","EQY_FUND_YEAR",W$2)) ->  | X45: =IF(_xll.BDP($C$2,$D45,"FUND_PER=Y","EQY_FUND_YEAR",X$2)="#N/A N/A","",_xll.BDP($C$2,$D45,"FUND_PER=Y","EQY_FUND_YEAR",X$2)) -> 
A46: 〇 | C46: 財務CF | D46: CFF_ACTIVITIES_DETAILED | E46: =IF(_xll.BDP($C$2,$D46,"FUND_PER=Y","EQY_FUND_YEAR",E$2)="#N/A N/A","",_xll.BDP($C$2,$D46,"FUND_PER=Y","EQY_FUND_YEAR",E$2)) -> -5.473 | F46: =IF(_xll.BDP($C$2,$D46,"FUND_PER=Y","EQY_FUND_YEAR",F$2)="#N/A N/A","",_xll.BDP($C$2,$D46,"FUND_PER=Y","EQY_FUND_YEAR",F$2)) -> 9.752 | G46: =IF(_xll.BDP($C$2,$D46,"FUND_PER=Y","EQY_FUND_YEAR",G$2)="#N/A N/A","",_xll.BDP($C$2,$D46,"FUND_PER=Y","EQY_FUND_YEAR",G$2)) -> 1202.19 | H46: =IF(_xll.BDP($C$2,$D46,"FUND_PER=Y","EQY_FUND_YEAR",H$2)="#N/A N/A","",_xll.BDP($C$2,$D46,"FUND_PER=Y","EQY_FUND_YEAR",H$2)) -> 4349.072 | I46: =IF(_xll.BDP($C$2,$D46,"FUND_PER=Y","EQY_FUND_YEAR",I$2)="#N/A N/A","",_xll.BDP($C$2,$D46,"FUND_PER=Y","EQY_FUND_YEAR",I$2)) -> 2986.139 | J46: =IF(_xll.BDP($C$2,$D46,"FUND_PER=Y","EQY_FUND_YEAR",J$2)="#N/A N/A","",_xll.BDP($C$2,$D46,"FUND_PER=Y","EQY_FUND_YEAR",J$2)) -> 443.101 | K46: =IF(_xll.BDP($C$2,$D46,"FUND_PER=Y","EQY_FUND_YEAR",K$2)="#N/A N/A","",_xll.BDP($C$2,$D46,"FUND_PER=Y","EQY_FUND_YEAR",K$2)) -> 41.644 | L46: =IF(_xll.BDP($C$2,$D46,"FUND_PER=Y","EQY_FUND_YEAR",L$2)="#N/A N/A","",_xll.BDP($C$2,$D46,"FUND_PER=Y","EQY_FUND_YEAR",L$2)) -> 233.412 | M46: =IF(_xll.BDP($C$2,$D46,"FUND_PER=Y","EQY_FUND_YEAR",M$2)="#N/A N/A","",_xll.BDP($C$2,$D46,"FUND_PER=Y","EQY_FUND_YEAR",M$2)) -> 3050 | N46: =IF(_xll.BDP($C$2,$D46,"FUND_PER=Y","EQY_FUND_YEAR",N$2)="#N/A N/A","",_xll.BDP($C$2,$D46,"FUND_PER=Y","EQY_FUND_YEAR",N$2)) -> 807 | O46: =IF(_xll.BDP($C$2,$D46,"FUND_PER=Y","EQY_FUND_YEAR",O$2)="#N/A N/A","",_xll.BDP($C$2,$D46,"FUND_PER=Y","EQY_FUND_YEAR",O$2)) -> 1229 | P46: =IF(_xll.BDP($C$2,$D46,"FUND_PER=Y","EQY_FUND_YEAR",P$2)="#N/A N/A","",_xll.BDP($C$2,$D46,"FUND_PER=Y","EQY_FUND_YEAR",P$2)) -> -857 | Q46: =IF(_xll.BDP($C$2,$D46,"FUND_PER=Y","EQY_FUND_YEAR",Q$2)="#N/A N/A","",_xll.BDP($C$2,$D46,"FUND_PER=Y","EQY_FUND_YEAR",Q$2)) -> -1439 | R46: =IF(_xll.BDP($C$2,$D46,"FUND_PER=Y","EQY_FUND_YEAR",R$2)="#N/A N/A","",_xll.BDP($C$2,$D46,"FUND_PER=Y","EQY_FUND_YEAR",R$2)) -> -4225 | S46: =IF(_xll.BDP($C$2,$D46,"FUND_PER=Y","EQY_FUND_YEAR",S$2)="#N/A N/A","",_xll.BDP($C$2,$D46,"FUND_PER=Y","EQY_FUND_YEAR",S$2)) -> -8332 | T46: =IF(_xll.BDP($C$2,$D46,"FUND_PER=Y","EQY_FUND_YEAR",T$2)="#N/A N/A","",_xll.BDP($C$2,$D46,"FUND_PER=Y","EQY_FUND_YEAR",T$2)) -> -8298 | U46: =IF(_xll.BDP($C$2,$D46,"FUND_PER=Y","EQY_FUND_YEAR",U$2)="#N/A N/A","",_xll.BDP($C$2,$D46,"FUND_PER=Y","EQY_FUND_YEAR",U$2)) -> -13179 | V46: =IF(_xll.BDP($C$2,$D46,"FUND_PER=Y","EQY_FUND_YEAR",V$2)="#N/A N/A","",_xll.BDP($C$2,$D46,"FUND_PER=Y","EQY_FUND_YEAR",V$2)) -> -23209 | W46: =IF(_xll.BDP($C$2,$D46,"FUND_PER=Y","EQY_FUND_YEAR",W$2)="#N/A N/A","",_xll.BDP($C$2,$D46,"FUND_PER=Y","EQY_FUND_YEAR",W$2)) ->  | X46: =IF(_xll.BDP($C$2,$D46,"FUND_PER=Y","EQY_FUND_YEAR",X$2)="#N/A N/A","",_xll.BDP($C$2,$D46,"FUND_PER=Y","EQY_FUND_YEAR",X$2)) -> 
C47: 投資CF(グラフ用） | E47: =-E45 -> 109.717003 | F47: =-F45 -> 313.95401 | G47: 1901.356 | H47: 3358.193 | I47: 6899.15 | J47: 3681.589 | K47: 5319.422 | L47: 8019.205 | M47: 10680 | N47: 19041 | O47: 13056 | P47: 13679 | Q47: 21055 | R47: 23711 | S47: 31165 | T47: 31401 | U47: 28504 | V47: 29491
A48: 〇 | C48: 財務CF（グラフ用） | D48: CF_DVD_PAID | E48: =-E46 -> 5.473 | F48: =-F46 -> -9.752 | G48: -1202.19 | H48: -4349.072 | I48: -2986.139 | J48: -443.101 | K48: -41.644 | L48: -233.412 | M48: -3050 | N48: -807 | O48: -1229 | P48: 857 | Q48: 1439 | R48: 4225 | S48: 8332 | T48: 8298 | U48: 13179 | V48: 23209
A49: 〇 | C49: 配当金支払い | D49: CF_DVD_PAID | E49: =IF(_xll.BDP($C$2,$D49,"FUND_PER=Y","EQY_FUND_YEAR",E$2)="#N/A N/A","",_xll.BDP($C$2,$D49,"FUND_PER=Y","EQY_FUND_YEAR",E$2)) -> 0 | F49: =IF(_xll.BDP($C$2,$D49,"FUND_PER=Y","EQY_FUND_YEAR",F$2)="#N/A N/A","",_xll.BDP($C$2,$D49,"FUND_PER=Y","EQY_FUND_YEAR",F$2)) -> 0 | G49: =IF(_xll.BDP($C$2,$D49,"FUND_PER=Y","EQY_FUND_YEAR",G$2)="#N/A N/A","",_xll.BDP($C$2,$D49,"FUND_PER=Y","EQY_FUND_YEAR",G$2)) -> 0 | H49: =IF(_xll.BDP($C$2,$D49,"FUND_PER=Y","EQY_FUND_YEAR",H$2)="#N/A N/A","",_xll.BDP($C$2,$D49,"FUND_PER=Y","EQY_FUND_YEAR",H$2)) -> 0 | I49: =IF(_xll.BDP($C$2,$D49,"FUND_PER=Y","EQY_FUND_YEAR",I$2)="#N/A N/A","",_xll.BDP($C$2,$D49,"FUND_PER=Y","EQY_FUND_YEAR",I$2)) -> 0 | J49: =IF(_xll.BDP($C$2,$D49,"FUND_PER=Y","EQY_FUND_YEAR",J$2)="#N/A N/A","",_xll.BDP($C$2,$D49,"FUND_PER=Y","EQY_FUND_YEAR",J$2)) -> 0 | K49: =IF(_xll.BDP($C$2,$D49,"FUND_PER=Y","EQY_FUND_YEAR",K$2)="#N/A N/A","",_xll.BDP($C$2,$D49,"FUND_PER=Y","EQY_FUND_YEAR",K$2)) -> 0 | L49: =IF(_xll.BDP($C$2,$D49,"FUND_PER=Y","EQY_FUND_YEAR",L$2)="#N/A N/A","",_xll.BDP($C$2,$D49,"FUND_PER=Y","EQY_FUND_YEAR",L$2)) -> 0 | M49: =IF(_xll.BDP($C$2,$D49,"FUND_PER=Y","EQY_FUND_YEAR",M$2)="#N/A N/A","",_xll.BDP($C$2,$D49,"FUND_PER=Y","EQY_FUND_YEAR",M$2)) -> 0 | N49: =IF(_xll.BDP($C$2,$D49,"FUND_PER=Y","EQY_FUND_YEAR",N$2)="#N/A N/A","",_xll.BDP($C$2,$D49,"FUND_PER=Y","EQY_FUND_YEAR",N$2)) -> 0 | O49: =IF(_xll.BDP($C$2,$D49,"FUND_PER=Y","EQY_FUND_YEAR",O$2)="#N/A N/A","",_xll.BDP($C$2,$D49,"FUND_PER=Y","EQY_FUND_YEAR",O$2)) -> 0 | P49: =IF(_xll.BDP($C$2,$D49,"FUND_PER=Y","EQY_FUND_YEAR",P$2)="#N/A N/A","",_xll.BDP($C$2,$D49,"FUND_PER=Y","EQY_FUND_YEAR",P$2)) -> 0 | Q49: =IF(_xll.BDP($C$2,$D49,"FUND_PER=Y","EQY_FUND_YEAR",Q$2)="#N/A N/A","",_xll.BDP($C$2,$D49,"FUND_PER=Y","EQY_FUND_YEAR",Q$2)) -> 0 | R49: =IF(_xll.BDP($C$2,$D49,"FUND_PER=Y","EQY_FUND_YEAR",R$2)="#N/A N/A","",_xll.BDP($C$2,$D49,"FUND_PER=Y","EQY_FUND_YEAR",R$2)) -> 0 | S49: =IF(_xll.BDP($C$2,$D49,"FUND_PER=Y","EQY_FUND_YEAR",S$2)="#N/A N/A","",_xll.BDP($C$2,$D49,"FUND_PER=Y","EQY_FUND_YEAR",S$2)) -> 0 | T49: =IF(_xll.BDP($C$2,$D49,"FUND_PER=Y","EQY_FUND_YEAR",T$2)="#N/A N/A","",_xll.BDP($C$2,$D49,"FUND_PER=Y","EQY_FUND_YEAR",T$2)) -> 0 | U49: =IF(_xll.BDP($C$2,$D49,"FUND_PER=Y","EQY_FUND_YEAR",U$2)="#N/A N/A","",_xll.BDP($C$2,$D49,"FUND_PER=Y","EQY_FUND_YEAR",U$2)) -> 0 | V49: =IF(_xll.BDP($C$2,$D49,"FUND_PER=Y","EQY_FUND_YEAR",V$2)="#N/A N/A","",_xll.BDP($C$2,$D49,"FUND_PER=Y","EQY_FUND_YEAR",V$2)) -> 0 | W49: =IF(_xll.BDP($C$2,$D49,"FUND_PER=Y","EQY_FUND_YEAR",W$2)="#N/A N/A","",_xll.BDP($C$2,$D49,"FUND_PER=Y","EQY_FUND_YEAR",W$2)) ->  | X49: =IF(_xll.BDP($C$2,$D49,"FUND_PER=Y","EQY_FUND_YEAR",X$2)="#N/A N/A","",_xll.BDP($C$2,$D49,"FUND_PER=Y","EQY_FUND_YEAR",X$2)) -> 
C50: 株価
A51: 〇 | C51: PER | D51: PE_RATIO | E51: =IF(_xll.BDP($C$2,$D51,"FUND_PER=Y","EQY_FUND_YEAR",E$2)="#N/A N/A","",_xll.BDP($C$2,$D51,"FUND_PER=Y","EQY_FUND_YEAR",E$2)) ->  | F51: =IF(_xll.BDP($C$2,$D51,"FUND_PER=Y","EQY_FUND_YEAR",F$2)="#N/A N/A","",_xll.BDP($C$2,$D51,"FUND_PER=Y","EQY_FUND_YEAR",F$2)) ->  | G51: =IF(_xll.BDP($C$2,$D51,"FUND_PER=Y","EQY_FUND_YEAR",G$2)="#N/A N/A","",_xll.BDP($C$2,$D51,"FUND_PER=Y","EQY_FUND_YEAR",G$2)) -> 76.80876494 | H51: =IF(_xll.BDP($C$2,$D51,"FUND_PER=Y","EQY_FUND_YEAR",H$2)="#N/A N/A","",_xll.BDP($C$2,$D51,"FUND_PER=Y","EQY_FUND_YEAR",H$2)) -> 72.78245614 | I51: =IF(_xll.BDP($C$2,$D51,"FUND_PER=Y","EQY_FUND_YEAR",I$2)="#N/A N/A","",_xll.BDP($C$2,$D51,"FUND_PER=Y","EQY_FUND_YEAR",I$2)) -> 48.98723404 | J51: =IF(_xll.BDP($C$2,$D51,"FUND_PER=Y","EQY_FUND_YEAR",J$2)="#N/A N/A","",_xll.BDP($C$2,$D51,"FUND_PER=Y","EQY_FUND_YEAR",J$2)) -> 52.03009782 | K51: =IF(_xll.BDP($C$2,$D51,"FUND_PER=Y","EQY_FUND_YEAR",K$2)="#N/A N/A","",_xll.BDP($C$2,$D51,"FUND_PER=Y","EQY_FUND_YEAR",K$2)) -> 18.4442446 | L51: =IF(_xll.BDP($C$2,$D51,"FUND_PER=Y","EQY_FUND_YEAR",L$2)="#N/A N/A","",_xll.BDP($C$2,$D51,"FUND_PER=Y","EQY_FUND_YEAR",L$2)) -> 30.67212411 | M51: =IF(_xll.BDP($C$2,$D51,"FUND_PER=Y","EQY_FUND_YEAR",M$2)="#N/A N/A","",_xll.BDP($C$2,$D51,"FUND_PER=Y","EQY_FUND_YEAR",M$2)) -> 22.89960852 | N51: =IF(_xll.BDP($C$2,$D51,"FUND_PER=Y","EQY_FUND_YEAR",N$2)="#N/A N/A","",_xll.BDP($C$2,$D51,"FUND_PER=Y","EQY_FUND_YEAR",N$2)) -> 21.19986023 | O51: =IF(_xll.BDP($C$2,$D51,"FUND_PER=Y","EQY_FUND_YEAR",O$2)="#N/A N/A","",_xll.BDP($C$2,$D51,"FUND_PER=Y","EQY_FUND_YEAR",O$2)) -> 20.89090751 | P51: =IF(_xll.BDP($C$2,$D51,"FUND_PER=Y","EQY_FUND_YEAR",P$2)="#N/A N/A","",_xll.BDP($C$2,$D51,"FUND_PER=Y","EQY_FUND_YEAR",P$2)) -> 28.81274181 | Q51: =IF(_xll.BDP($C$2,$D51,"FUND_PER=Y","EQY_FUND_YEAR",Q$2)="#N/A N/A","",_xll.BDP($C$2,$D51,"FUND_PER=Y","EQY_FUND_YEAR",Q$2)) -> 26.54571805 | R51: =IF(_xll.BDP($C$2,$D51,"FUND_PER=Y","EQY_FUND_YEAR",R$2)="#N/A N/A","",_xll.BDP($C$2,$D51,"FUND_PER=Y","EQY_FUND_YEAR",R$2)) -> 33.57462302 | S51: =IF(_xll.BDP($C$2,$D51,"FUND_PER=Y","EQY_FUND_YEAR",S$2)="#N/A N/A","",_xll.BDP($C$2,$D51,"FUND_PER=Y","EQY_FUND_YEAR",S$2)) -> 30.13763137 | T51: =IF(_xll.BDP($C$2,$D51,"FUND_PER=Y","EQY_FUND_YEAR",T$2)="#N/A N/A","",_xll.BDP($C$2,$D51,"FUND_PER=Y","EQY_FUND_YEAR",T$2)) -> 30.09824273 | U51: =IF(_xll.BDP($C$2,$D51,"FUND_PER=Y","EQY_FUND_YEAR",U$2)="#N/A N/A","",_xll.BDP($C$2,$D51,"FUND_PER=Y","EQY_FUND_YEAR",U$2)) -> 23.94061035 | V51: =IF(_xll.BDP($C$2,$D51,"FUND_PER=Y","EQY_FUND_YEAR",V$2)="#N/A N/A","",_xll.BDP($C$2,$D51,"FUND_PER=Y","EQY_FUND_YEAR",V$2)) -> 27.68310941 | W51: =IF(_xll.BDP($C$2,$D51,"FUND_PER=Y","EQY_FUND_YEAR",W$2)="#N/A N/A","",_xll.BDP($C$2,$D51,"FUND_PER=Y","EQY_FUND_YEAR",W$2)) ->  | X51: =IF(_xll.BDP($C$2,$D51,"FUND_PER=Y","EQY_FUND_YEAR",X$2)="#N/A N/A","",_xll.BDP($C$2,$D51,"FUND_PER=Y","EQY_FUND_YEAR",X$2)) -> 
A52: 〇 | C52: EPS | D52: IS_EPS | E52: =IF(_xll.BDP($C$2,$D52,"FUND_PER=Y","EQY_FUND_YEAR",E$2)="#N/A N/A","",_xll.BDP($C$2,$D52,"FUND_PER=Y","EQY_FUND_YEAR",E$2)) -> 0.43 | F52: =IF(_xll.BDP($C$2,$D52,"FUND_PER=Y","EQY_FUND_YEAR",F$2)="#N/A N/A","",_xll.BDP($C$2,$D52,"FUND_PER=Y","EQY_FUND_YEAR",F$2)) -> 0.385 | G52: =IF(_xll.BDP($C$2,$D52,"FUND_PER=Y","EQY_FUND_YEAR",G$2)="#N/A N/A","",_xll.BDP($C$2,$D52,"FUND_PER=Y","EQY_FUND_YEAR",G$2)) -> 1.035 | H52: =IF(_xll.BDP($C$2,$D52,"FUND_PER=Y","EQY_FUND_YEAR",H$2)="#N/A N/A","",_xll.BDP($C$2,$D52,"FUND_PER=Y","EQY_FUND_YEAR",H$2)) -> 2.655 | I52: =IF(_xll.BDP($C$2,$D52,"FUND_PER=Y","EQY_FUND_YEAR",I$2)="#N/A N/A","",_xll.BDP($C$2,$D52,"FUND_PER=Y","EQY_FUND_YEAR",I$2)) -> 5.105 | J52: =IF(_xll.BDP($C$2,$D52,"FUND_PER=Y","EQY_FUND_YEAR",J$2)="#N/A N/A","",_xll.BDP($C$2,$D52,"FUND_PER=Y","EQY_FUND_YEAR",J$2)) -> 6.765 | K52: =IF(_xll.BDP($C$2,$D52,"FUND_PER=Y","EQY_FUND_YEAR",K$2)="#N/A N/A","",_xll.BDP($C$2,$D52,"FUND_PER=Y","EQY_FUND_YEAR",K$2)) -> 6.73 | L52: =IF(_xll.BDP($C$2,$D52,"FUND_PER=Y","EQY_FUND_YEAR",L$2)="#N/A N/A","",_xll.BDP($C$2,$D52,"FUND_PER=Y","EQY_FUND_YEAR",L$2)) -> 10.31 | M52: =IF(_xll.BDP($C$2,$D52,"FUND_PER=Y","EQY_FUND_YEAR",M$2)="#N/A N/A","",_xll.BDP($C$2,$D52,"FUND_PER=Y","EQY_FUND_YEAR",M$2)) -> 13.345 | N52: =IF(_xll.BDP($C$2,$D52,"FUND_PER=Y","EQY_FUND_YEAR",N$2)="#N/A N/A","",_xll.BDP($C$2,$D52,"FUND_PER=Y","EQY_FUND_YEAR",N$2)) -> 15.085 | O52: =IF(_xll.BDP($C$2,$D52,"FUND_PER=Y","EQY_FUND_YEAR",O$2)="#N/A N/A","",_xll.BDP($C$2,$D52,"FUND_PER=Y","EQY_FUND_YEAR",O$2)) -> 16.41 | P52: =IF(_xll.BDP($C$2,$D52,"FUND_PER=Y","EQY_FUND_YEAR",P$2)="#N/A N/A","",_xll.BDP($C$2,$D52,"FUND_PER=Y","EQY_FUND_YEAR",P$2)) -> 19.129943 | Q52: =IF(_xll.BDP($C$2,$D52,"FUND_PER=Y","EQY_FUND_YEAR",Q$2)="#N/A N/A","",_xll.BDP($C$2,$D52,"FUND_PER=Y","EQY_FUND_YEAR",Q$2)) -> 20.91 | R52: =IF(_xll.BDP($C$2,$D52,"FUND_PER=Y","EQY_FUND_YEAR",R$2)="#N/A N/A","",_xll.BDP($C$2,$D52,"FUND_PER=Y","EQY_FUND_YEAR",R$2)) -> 23.11 | S52: =IF(_xll.BDP($C$2,$D52,"FUND_PER=Y","EQY_FUND_YEAR",S$2)="#N/A N/A","",_xll.BDP($C$2,$D52,"FUND_PER=Y","EQY_FUND_YEAR",S$2)) -> 28.142966 | T52: =IF(_xll.BDP($C$2,$D52,"FUND_PER=Y","EQY_FUND_YEAR",T$2)="#N/A N/A","",_xll.BDP($C$2,$D52,"FUND_PER=Y","EQY_FUND_YEAR",T$2)) -> 18.27 | U52: =IF(_xll.BDP($C$2,$D52,"FUND_PER=Y","EQY_FUND_YEAR",U$2)="#N/A N/A","",_xll.BDP($C$2,$D52,"FUND_PER=Y","EQY_FUND_YEAR",U$2)) -> 44.22 | V52: =IF(_xll.BDP($C$2,$D52,"FUND_PER=Y","EQY_FUND_YEAR",V$2)="#N/A N/A","",_xll.BDP($C$2,$D52,"FUND_PER=Y","EQY_FUND_YEAR",V$2)) -> 49.59 | W52: =IF(_xll.BDP($C$2,$D52,"FUND_PER=Y","EQY_FUND_YEAR",W$2)="#N/A N/A","",_xll.BDP($C$2,$D52,"FUND_PER=Y","EQY_FUND_YEAR",W$2)) ->  | X52: =IF(_xll.BDP($C$2,$D52,"FUND_PER=Y","EQY_FUND_YEAR",X$2)="#N/A N/A","",_xll.BDP($C$2,$D52,"FUND_PER=Y","EQY_FUND_YEAR",X$2)) -> 
A53: 〇 | C53: 時価総額 | D53: HISTORICAL_MARKET_CAP | E53: =IF(_xll.BDP($C$2,$D53,"FUND_PER=Y","EQY_FUND_YEAR",E$2)="#N/A N/A","",_xll.BDP($C$2,$D53,"FUND_PER=Y","EQY_FUND_YEAR",E$2)) ->  | F53: =IF(_xll.BDP($C$2,$D53,"FUND_PER=Y","EQY_FUND_YEAR",F$2)="#N/A N/A","",_xll.BDP($C$2,$D53,"FUND_PER=Y","EQY_FUND_YEAR",F$2)) ->  | G53: =IF(_xll.BDP($C$2,$D53,"FUND_PER=Y","EQY_FUND_YEAR",G$2)="#N/A N/A","",_xll.BDP($C$2,$D53,"FUND_PER=Y","EQY_FUND_YEAR",G$2)) -> 51458.92843 | H53: =IF(_xll.BDP($C$2,$D53,"FUND_PER=Y","EQY_FUND_YEAR",H$2)="#N/A N/A","",_xll.BDP($C$2,$D53,"FUND_PER=Y","EQY_FUND_YEAR",H$2)) -> 121565.1812 | I53: =IF(_xll.BDP($C$2,$D53,"FUND_PER=Y","EQY_FUND_YEAR",I$2)="#N/A N/A","",_xll.BDP($C$2,$D53,"FUND_PER=Y","EQY_FUND_YEAR",I$2)) -> 142286.9386 | J53: =IF(_xll.BDP($C$2,$D53,"FUND_PER=Y","EQY_FUND_YEAR",J$2)="#N/A N/A","",_xll.BDP($C$2,$D53,"FUND_PER=Y","EQY_FUND_YEAR",J$2)) -> 216375.8472 | K53: =IF(_xll.BDP($C$2,$D53,"FUND_PER=Y","EQY_FUND_YEAR",K$2)="#N/A N/A","",_xll.BDP($C$2,$D53,"FUND_PER=Y","EQY_FUND_YEAR",K$2)) -> 96944.8221 | L53: =IF(_xll.BDP($C$2,$D53,"FUND_PER=Y","EQY_FUND_YEAR",L$2)="#N/A N/A","",_xll.BDP($C$2,$D53,"FUND_PER=Y","EQY_FUND_YEAR",L$2)) -> 197012.2846 | M53: =IF(_xll.BDP($C$2,$D53,"FUND_PER=Y","EQY_FUND_YEAR",M$2)="#N/A N/A","",_xll.BDP($C$2,$D53,"FUND_PER=Y","EQY_FUND_YEAR",M$2)) -> 190843.155 | N53: =IF(_xll.BDP($C$2,$D53,"FUND_PER=Y","EQY_FUND_YEAR",N$2)="#N/A N/A","",_xll.BDP($C$2,$D53,"FUND_PER=Y","EQY_FUND_YEAR",N$2)) -> 209849.6805 | O53: =IF(_xll.BDP($C$2,$D53,"FUND_PER=Y","EQY_FUND_YEAR",O$2)="#N/A N/A","",_xll.BDP($C$2,$D53,"FUND_PER=Y","EQY_FUND_YEAR",O$2)) -> 233420.545 | P53: =IF(_xll.BDP($C$2,$D53,"FUND_PER=Y","EQY_FUND_YEAR",P$2)="#N/A N/A","",_xll.BDP($C$2,$D53,"FUND_PER=Y","EQY_FUND_YEAR",P$2)) -> 376371.4048 | Q53: =IF(_xll.BDP($C$2,$D53,"FUND_PER=Y","EQY_FUND_YEAR",Q$2)="#N/A N/A","",_xll.BDP($C$2,$D53,"FUND_PER=Y","EQY_FUND_YEAR",Q$2)) -> 359376.6225 | R53: =IF(_xll.BDP($C$2,$D53,"FUND_PER=Y","EQY_FUND_YEAR",R$2)="#N/A N/A","",_xll.BDP($C$2,$D53,"FUND_PER=Y","EQY_FUND_YEAR",R$2)) -> 527687.3689 | S53: =IF(_xll.BDP($C$2,$D53,"FUND_PER=Y","EQY_FUND_YEAR",S$2)="#N/A N/A","",_xll.BDP($C$2,$D53,"FUND_PER=Y","EQY_FUND_YEAR",S$2)) -> 540170.0351 | T53: =IF(_xll.BDP($C$2,$D53,"FUND_PER=Y","EQY_FUND_YEAR",T$2)="#N/A N/A","",_xll.BDP($C$2,$D53,"FUND_PER=Y","EQY_FUND_YEAR",T$2)) -> 729274.6282 | U53: =IF(_xll.BDP($C$2,$D53,"FUND_PER=Y","EQY_FUND_YEAR",U$2)="#N/A N/A","",_xll.BDP($C$2,$D53,"FUND_PER=Y","EQY_FUND_YEAR",U$2)) -> 723340.7008 | V53: =IF(_xll.BDP($C$2,$D53,"FUND_PER=Y","EQY_FUND_YEAR",V$2)="#N/A N/A","",_xll.BDP($C$2,$D53,"FUND_PER=Y","EQY_FUND_YEAR",V$2)) -> 921949.0157 | W53: =IF(_xll.BDP($C$2,$D53,"FUND_PER=Y","EQY_FUND_YEAR",W$2)="#N/A N/A","",_xll.BDP($C$2,$D53,"FUND_PER=Y","EQY_FUND_YEAR",W$2)) ->  | X53: =IF(_xll.BDP($C$2,$D53,"FUND_PER=Y","EQY_FUND_YEAR",X$2)="#N/A N/A","",_xll.BDP($C$2,$D53,"FUND_PER=Y","EQY_FUND_YEAR",X$2)) -> 
A54: 〇 | C54: 発行済株式数（自己株除き） | D54: BS_SH_OUT | E54: =IF(_xll.BDP($C$2,$D54,"FUND_PER=Y","EQY_FUND_YEAR",E$2)="#N/A N/A","",_xll.BDP($C$2,$D54,"FUND_PER=Y","EQY_FUND_YEAR",E$2)) ->  | F54: =IF(_xll.BDP($C$2,$D54,"FUND_PER=Y","EQY_FUND_YEAR",F$2)="#N/A N/A","",_xll.BDP($C$2,$D54,"FUND_PER=Y","EQY_FUND_YEAR",F$2)) ->  | G54: =IF(_xll.BDP($C$2,$D54,"FUND_PER=Y","EQY_FUND_YEAR",G$2)="#N/A N/A","",_xll.BDP($C$2,$D54,"FUND_PER=Y","EQY_FUND_YEAR",G$2)) -> 533.834 | H54: =IF(_xll.BDP($C$2,$D54,"FUND_PER=Y","EQY_FUND_YEAR",H$2)="#N/A N/A","",_xll.BDP($C$2,$D54,"FUND_PER=Y","EQY_FUND_YEAR",H$2)) -> 586.054 | I54: =IF(_xll.BDP($C$2,$D54,"FUND_PER=Y","EQY_FUND_YEAR",I$2)="#N/A N/A","",_xll.BDP($C$2,$D54,"FUND_PER=Y","EQY_FUND_YEAR",I$2)) -> 617.994 | J54: =IF(_xll.BDP($C$2,$D54,"FUND_PER=Y","EQY_FUND_YEAR",J$2)="#N/A N/A","",_xll.BDP($C$2,$D54,"FUND_PER=Y","EQY_FUND_YEAR",J$2)) -> 625.834 | K54: =IF(_xll.BDP($C$2,$D54,"FUND_PER=Y","EQY_FUND_YEAR",K$2)="#N/A N/A","",_xll.BDP($C$2,$D54,"FUND_PER=Y","EQY_FUND_YEAR",K$2)) -> 630.228 | L54: =IF(_xll.BDP($C$2,$D54,"FUND_PER=Y","EQY_FUND_YEAR",L$2)="#N/A N/A","",_xll.BDP($C$2,$D54,"FUND_PER=Y","EQY_FUND_YEAR",L$2)) -> 635.544 | M54: =IF(_xll.BDP($C$2,$D54,"FUND_PER=Y","EQY_FUND_YEAR",M$2)="#N/A N/A","",_xll.BDP($C$2,$D54,"FUND_PER=Y","EQY_FUND_YEAR",M$2)) -> 642.602 | N54: =IF(_xll.BDP($C$2,$D54,"FUND_PER=Y","EQY_FUND_YEAR",N$2)="#N/A N/A","",_xll.BDP($C$2,$D54,"FUND_PER=Y","EQY_FUND_YEAR",N$2)) -> 649.79 | O54: =IF(_xll.BDP($C$2,$D54,"FUND_PER=Y","EQY_FUND_YEAR",O$2)="#N/A N/A","",_xll.BDP($C$2,$D54,"FUND_PER=Y","EQY_FUND_YEAR",O$2)) -> 659.958 | P54: =IF(_xll.BDP($C$2,$D54,"FUND_PER=Y","EQY_FUND_YEAR",P$2)="#N/A N/A","",_xll.BDP($C$2,$D54,"FUND_PER=Y","EQY_FUND_YEAR",P$2)) -> 671.666006 | Q54: =IF(_xll.BDP($C$2,$D54,"FUND_PER=Y","EQY_FUND_YEAR",Q$2)="#N/A N/A","",_xll.BDP($C$2,$D54,"FUND_PER=Y","EQY_FUND_YEAR",Q$2)) -> 680.172 | R54: =IF(_xll.BDP($C$2,$D54,"FUND_PER=Y","EQY_FUND_YEAR",R$2)="#N/A N/A","",_xll.BDP($C$2,$D54,"FUND_PER=Y","EQY_FUND_YEAR",R$2)) -> 687.348 | S54: =IF(_xll.BDP($C$2,$D54,"FUND_PER=Y","EQY_FUND_YEAR",S$2)="#N/A N/A","",_xll.BDP($C$2,$D54,"FUND_PER=Y","EQY_FUND_YEAR",S$2)) -> 691.293 | T54: =IF(_xll.BDP($C$2,$D54,"FUND_PER=Y","EQY_FUND_YEAR",T$2)="#N/A N/A","",_xll.BDP($C$2,$D54,"FUND_PER=Y","EQY_FUND_YEAR",T$2)) -> 694.783 | U54: =IF(_xll.BDP($C$2,$D54,"FUND_PER=Y","EQY_FUND_YEAR",U$2)="#N/A N/A","",_xll.BDP($C$2,$D54,"FUND_PER=Y","EQY_FUND_YEAR",U$2)) -> 695.556 | V54: =IF(_xll.BDP($C$2,$D54,"FUND_PER=Y","EQY_FUND_YEAR",V$2)="#N/A N/A","",_xll.BDP($C$2,$D54,"FUND_PER=Y","EQY_FUND_YEAR",V$2)) -> 688.335 | W54: =IF(_xll.BDP($C$2,$D54,"FUND_PER=Y","EQY_FUND_YEAR",W$2)="#N/A N/A","",_xll.BDP($C$2,$D54,"FUND_PER=Y","EQY_FUND_YEAR",W$2)) ->  | X54: =IF(_xll.BDP($C$2,$D54,"FUND_PER=Y","EQY_FUND_YEAR",X$2)="#N/A N/A","",_xll.BDP($C$2,$D54,"FUND_PER=Y","EQY_FUND_YEAR",X$2)) -> 
C55: 株価 | D55: 時価総額÷発行済み株式数 | E55: =E53/E54 ->  | F55: =F53/F54 ->  | G55: =G53/G54 -> 96.395 | H55: =H53/H54 -> 207.43 | I55: =I53/I54 -> 230.24 | J55: =J53/J54 -> 345.74 | K55: 153.825 | L55: 309.99 | M55: 296.985 | N55: 322.95 | O55: 353.69 | P55: 560.355 | Q55: 528.3613888 | R55: 767.7149987 | S55: 781.3908648 | T55: 1049.643742 | U55: 1039.94603 | V55: 1339.39
C57: 格付 | AA57: =E2 -> 2002 | AB57: =F2 -> 2003 | AC57: 2004 | AD57: 2005 | AE57: 2006 | AF57: 2007 | AG57: 2008 | AH57: 2009 | AI57: 2010 | AJ57: 2011 | AK57: 2012 | AL57: 2013 | AM57: 2014 | AN57: 2015 | AO57: 2016 | AP57: 2017 | AQ57: 2018 | AR57: 2019 | AS57: 2020 | AT57: 2021
A58: 〇 | C58: S&P | D58: RTG_SP_LT_LC_ISSUER_CREDIT | E58: =IF(_xll.BDP($C$2,$D58,"FUND_PER=Y","EQY_FUND_YEAR",E$2)="#N/A N/A","",_xll.BDP($C$2,$D58,"FUND_PER=Y","EQY_FUND_YEAR",E$2)) -> AA+ | F58: =IF(_xll.BDP($C$2,$D58,"FUND_PER=Y","EQY_FUND_YEAR",F$2)="#N/A N/A","",_xll.BDP($C$2,$D58,"FUND_PER=Y","EQY_FUND_YEAR",F$2)) -> AA+ | G58: =IF(_xll.BDP($C$2,$D58,"FUND_PER=Y","EQY_FUND_YEAR",G$2)="#N/A N/A","",_xll.BDP($C$2,$D58,"FUND_PER=Y","EQY_FUND_YEAR",G$2)) -> AA+ | H58: =IF(_xll.BDP($C$2,$D58,"FUND_PER=Y","EQY_FUND_YEAR",H$2)="#N/A N/A","",_xll.BDP($C$2,$D58,"FUND_PER=Y","EQY_FUND_YEAR",H$2)) -> AA+ | I58: =IF(_xll.BDP($C$2,$D58,"FUND_PER=Y","EQY_FUND_YEAR",I$2)="#N/A N/A","",_xll.BDP($C$2,$D58,"FUND_PER=Y","EQY_FUND_YEAR",I$2)) -> AA+ | J58: =IF(_xll.BDP($C$2,$D58,"FUND_PER=Y","EQY_FUND_YEAR",J$2)="#N/A N/A","",_xll.BDP($C$2,$D58,"FUND_PER=Y","EQY_FUND_YEAR",J$2)) -> AA+ | K58: =IF(_xll.BDP($C$2,$D58,"FUND_PER=Y","EQY_FUND_YEAR",K$2)="#N/A N/A","",_xll.BDP($C$2,$D58,"FUND_PER=Y","EQY_FUND_YEAR",K$2)) -> AA+ | L58: =IF(_xll.BDP($C$2,$D58,"FUND_PER=Y","EQY_FUND_YEAR",L$2)="#N/A N/A","",_xll.BDP($C$2,$D58,"FUND_PER=Y","EQY_FUND_YEAR",L$2)) -> AA+ | M58: =IF(_xll.BDP($C$2,$D58,"FUND_PER=Y","EQY_FUND_YEAR",M$2)="#N/A N/A","",_xll.BDP($C$2,$D58,"FUND_PER=Y","EQY_FUND_YEAR",M$2)) -> AA+ | N58: =IF(_xll.BDP($C$2,$D58,"FUND_PER=Y","EQY_FUND_YEAR",N$2)="#N/A N/A","",_xll.BDP($C$2,$D58,"FUND_PER=Y","EQY_FUND_YEAR",N$2)) -> AA+ | O58: =IF(_xll.BDP($C$2,$D58,"FUND_PER=Y","EQY_FUND_YEAR",O$2)="#N/A N/A","",_xll.BDP($C$2,$D58,"FUND_PER=Y","EQY_FUND_YEAR",O$2)) -> AA+ | P58: =IF(_xll.BDP($C$2,$D58,"FUND_PER=Y","EQY_FUND_YEAR",P$2)="#N/A N/A","",_xll.BDP($C$2,$D58,"FUND_PER=Y","EQY_FUND_YEAR",P$2)) -> AA+ | Q58: =IF(_xll.BDP($C$2,$D58,"FUND_PER=Y","EQY_FUND_YEAR",Q$2)="#N/A N/A","",_xll.BDP($C$2,$D58,"FUND_PER=Y","EQY_FUND_YEAR",Q$2)) -> AA+ | R58: =IF(_xll.BDP($C$2,$D58,"FUND_PER=Y","EQY_FUND_YEAR",R$2)="#N/A N/A","",_xll.BDP($C$2,$D58,"FUND_PER=Y","EQY_FUND_YEAR",R$2)) -> AA+ | S58: =IF(_xll.BDP($C$2,$D58,"FUND_PER=Y","EQY_FUND_YEAR",S$2)="#N/A N/A","",_xll.BDP($C$2,$D58,"FUND_PER=Y","EQY_FUND_YEAR",S$2)) -> AA+ | T58: =IF(_xll.BDP($C$2,$D58,"FUND_PER=Y","EQY_FUND_YEAR",T$2)="#N/A N/A","",_xll.BDP($C$2,$D58,"FUND_PER=Y","EQY_FUND_YEAR",T$2)) -> AA+ | U58: =IF(_xll.BDP($C$2,$D58,"FUND_PER=Y","EQY_FUND_YEAR",U$2)="#N/A N/A","",_xll.BDP($C$2,$D58,"FUND_PER=Y","EQY_FUND_YEAR",U$2)) -> AA+ | V58: =IF(_xll.BDP($C$2,$D58,"FUND_PER=Y","EQY_FUND_YEAR",V$2)="#N/A N/A","",_xll.BDP($C$2,$D58,"FUND_PER=Y","EQY_FUND_YEAR",V$2)) -> AA+ | W58: =IF(_xll.BDP($C$2,$D58,"FUND_PER=Y","EQY_FUND_YEAR",W$2)="#N/A N/A","",_xll.BDP($C$2,$D58,"FUND_PER=Y","EQY_FUND_YEAR",W$2)) -> AA+ | X58: =IF(_xll.BDP($C$2,$D58,"FUND_PER=Y","EQY_FUND_YEAR",X$2)="#N/A N/A","",_xll.BDP($C$2,$D58,"FUND_PER=Y","EQY_FUND_YEAR",X$2)) -> AA+ | Z58: =C99 -> PBR | AA58: =E99 ->  | AC58: 17.56843448 | AD58: 12.90643765 | AE58: 8.350250857 | AF58: 9.536311517 | AG58: 3.433028643 | AH58: 5.471921421 | AI58: 4.127141605 | AJ58: 3.609075252 | AK58: =O99 -> 3.254835739 | AL58: 4.310797338 | AM58: 3.460202412 | AN58: 4.385298626 | AO58: 3.885109145 | AP58: 4.782065994 | AQ58: 4.072222289 | AR58: 4.576746734
A59: 〇 | C59: Moody's | D59: RTG_MDY_ISSUER | E59: =IF(_xll.BDP($C$2,$D59,"FUND_PER=Y","EQY_FUND_YEAR",E$2)="#N/A N/A","",_xll.BDP($C$2,$D59,"FUND_PER=Y","EQY_FUND_YEAR",E$2)) -> Aa2 | F59: =IF(_xll.BDP($C$2,$D59,"FUND_PER=Y","EQY_FUND_YEAR",F$2)="#N/A N/A","",_xll.BDP($C$2,$D59,"FUND_PER=Y","EQY_FUND_YEAR",F$2)) -> Aa2 | G59: =IF(_xll.BDP($C$2,$D59,"FUND_PER=Y","EQY_FUND_YEAR",G$2)="#N/A N/A","",_xll.BDP($C$2,$D59,"FUND_PER=Y","EQY_FUND_YEAR",G$2)) -> Aa2 | H59: =IF(_xll.BDP($C$2,$D59,"FUND_PER=Y","EQY_FUND_YEAR",H$2)="#N/A N/A","",_xll.BDP($C$2,$D59,"FUND_PER=Y","EQY_FUND_YEAR",H$2)) -> Aa2 | I59: =IF(_xll.BDP($C$2,$D59,"FUND_PER=Y","EQY_FUND_YEAR",I$2)="#N/A N/A","",_xll.BDP($C$2,$D59,"FUND_PER=Y","EQY_FUND_YEAR",I$2)) -> Aa2 | J59: =IF(_xll.BDP($C$2,$D59,"FUND_PER=Y","EQY_FUND_YEAR",J$2)="#N/A N/A","",_xll.BDP($C$2,$D59,"FUND_PER=Y","EQY_FUND_YEAR",J$2)) -> Aa2 | K59: =IF(_xll.BDP($C$2,$D59,"FUND_PER=Y","EQY_FUND_YEAR",K$2)="#N/A N/A","",_xll.BDP($C$2,$D59,"FUND_PER=Y","EQY_FUND_YEAR",K$2)) -> Aa2 | L59: =IF(_xll.BDP($C$2,$D59,"FUND_PER=Y","EQY_FUND_YEAR",L$2)="#N/A N/A","",_xll.BDP($C$2,$D59,"FUND_PER=Y","EQY_FUND_YEAR",L$2)) -> Aa2 | M59: =IF(_xll.BDP($C$2,$D59,"FUND_PER=Y","EQY_FUND_YEAR",M$2)="#N/A N/A","",_xll.BDP($C$2,$D59,"FUND_PER=Y","EQY_FUND_YEAR",M$2)) -> Aa2 | N59: =IF(_xll.BDP($C$2,$D59,"FUND_PER=Y","EQY_FUND_YEAR",N$2)="#N/A N/A","",_xll.BDP($C$2,$D59,"FUND_PER=Y","EQY_FUND_YEAR",N$2)) -> Aa2 | O59: =IF(_xll.BDP($C$2,$D59,"FUND_PER=Y","EQY_FUND_YEAR",O$2)="#N/A N/A","",_xll.BDP($C$2,$D59,"FUND_PER=Y","EQY_FUND_YEAR",O$2)) -> Aa2 | P59: =IF(_xll.BDP($C$2,$D59,"FUND_PER=Y","EQY_FUND_YEAR",P$2)="#N/A N/A","",_xll.BDP($C$2,$D59,"FUND_PER=Y","EQY_FUND_YEAR",P$2)) -> Aa2 | Q59: =IF(_xll.BDP($C$2,$D59,"FUND_PER=Y","EQY_FUND_YEAR",Q$2)="#N/A N/A","",_xll.BDP($C$2,$D59,"FUND_PER=Y","EQY_FUND_YEAR",Q$2)) -> Aa2 | R59: =IF(_xll.BDP($C$2,$D59,"FUND_PER=Y","EQY_FUND_YEAR",R$2)="#N/A N/A","",_xll.BDP($C$2,$D59,"FUND_PER=Y","EQY_FUND_YEAR",R$2)) -> Aa2 | S59: =IF(_xll.BDP($C$2,$D59,"FUND_PER=Y","EQY_FUND_YEAR",S$2)="#N/A N/A","",_xll.BDP($C$2,$D59,"FUND_PER=Y","EQY_FUND_YEAR",S$2)) -> Aa2 | T59: =IF(_xll.BDP($C$2,$D59,"FUND_PER=Y","EQY_FUND_YEAR",T$2)="#N/A N/A","",_xll.BDP($C$2,$D59,"FUND_PER=Y","EQY_FUND_YEAR",T$2)) -> Aa2 | U59: =IF(_xll.BDP($C$2,$D59,"FUND_PER=Y","EQY_FUND_YEAR",U$2)="#N/A N/A","",_xll.BDP($C$2,$D59,"FUND_PER=Y","EQY_FUND_YEAR",U$2)) -> Aa2 | V59: =IF(_xll.BDP($C$2,$D59,"FUND_PER=Y","EQY_FUND_YEAR",V$2)="#N/A N/A","",_xll.BDP($C$2,$D59,"FUND_PER=Y","EQY_FUND_YEAR",V$2)) -> Aa2 | W59: =IF(_xll.BDP($C$2,$D59,"FUND_PER=Y","EQY_FUND_YEAR",W$2)="#N/A N/A","",_xll.BDP($C$2,$D59,"FUND_PER=Y","EQY_FUND_YEAR",W$2)) -> Aa2 | X59: =IF(_xll.BDP($C$2,$D59,"FUND_PER=Y","EQY_FUND_YEAR",X$2)="#N/A N/A","",_xll.BDP($C$2,$D59,"FUND_PER=Y","EQY_FUND_YEAR",X$2)) -> Aa2 | Z59: =C100 -> PER | AC59: 76.80876494 | AD59: 72.78245614 | AE59: 48.98723404 | AF59: 52.03009782 | AG59: 18.4442446 | AH59: 30.67212411 | AI59: 22.89960852 | AJ59: 21.19986023 | AK59: 20.89090751 | AL59: 28.81274181 | AM59: 26.54571805 | AN59: 33.57462302 | AO59: 30.13763137 | AP59: 30.09824273 | AQ59: 23.94061035 | AR59: 27.68310941
A60: 〇 | C60: R&I | D60: RTG_RI_ISSUER_RATING | E60: =IF(_xll.BDP($C$2,$D60,"FUND_PER=Y","EQY_FUND_YEAR",E$2)="#N/A N/A","",_xll.BDP($C$2,$D60,"FUND_PER=Y","EQY_FUND_YEAR",E$2)) ->  | F60: =IF(_xll.BDP($C$2,$D60,"FUND_PER=Y","EQY_FUND_YEAR",F$2)="#N/A N/A","",_xll.BDP($C$2,$D60,"FUND_PER=Y","EQY_FUND_YEAR",F$2)) ->  | G60: =IF(_xll.BDP($C$2,$D60,"FUND_PER=Y","EQY_FUND_YEAR",G$2)="#N/A N/A","",_xll.BDP($C$2,$D60,"FUND_PER=Y","EQY_FUND_YEAR",G$2)) ->  | H60: =IF(_xll.BDP($C$2,$D60,"FUND_PER=Y","EQY_FUND_YEAR",H$2)="#N/A N/A","",_xll.BDP($C$2,$D60,"FUND_PER=Y","EQY_FUND_YEAR",H$2)) ->  | I60: =IF(_xll.BDP($C$2,$D60,"FUND_PER=Y","EQY_FUND_YEAR",I$2)="#N/A N/A","",_xll.BDP($C$2,$D60,"FUND_PER=Y","EQY_FUND_YEAR",I$2)) ->  | J60: =IF(_xll.BDP($C$2,$D60,"FUND_PER=Y","EQY_FUND_YEAR",J$2)="#N/A N/A","",_xll.BDP($C$2,$D60,"FUND_PER=Y","EQY_FUND_YEAR",J$2)) ->  | K60: =IF(_xll.BDP($C$2,$D60,"FUND_PER=Y","EQY_FUND_YEAR",K$2)="#N/A N/A","",_xll.BDP($C$2,$D60,"FUND_PER=Y","EQY_FUND_YEAR",K$2)) ->  | L60: =IF(_xll.BDP($C$2,$D60,"FUND_PER=Y","EQY_FUND_YEAR",L$2)="#N/A N/A","",_xll.BDP($C$2,$D60,"FUND_PER=Y","EQY_FUND_YEAR",L$2)) ->  | M60: =IF(_xll.BDP($C$2,$D60,"FUND_PER=Y","EQY_FUND_YEAR",M$2)="#N/A N/A","",_xll.BDP($C$2,$D60,"FUND_PER=Y","EQY_FUND_YEAR",M$2)) ->  | N60: =IF(_xll.BDP($C$2,$D60,"FUND_PER=Y","EQY_FUND_YEAR",N$2)="#N/A N/A","",_xll.BDP($C$2,$D60,"FUND_PER=Y","EQY_FUND_YEAR",N$2)) ->  | O60: =IF(_xll.BDP($C$2,$D60,"FUND_PER=Y","EQY_FUND_YEAR",O$2)="#N/A N/A","",_xll.BDP($C$2,$D60,"FUND_PER=Y","EQY_FUND_YEAR",O$2)) ->  | P60: =IF(_xll.BDP($C$2,$D60,"FUND_PER=Y","EQY_FUND_YEAR",P$2)="#N/A N/A","",_xll.BDP($C$2,$D60,"FUND_PER=Y","EQY_FUND_YEAR",P$2)) ->  | Q60: =IF(_xll.BDP($C$2,$D60,"FUND_PER=Y","EQY_FUND_YEAR",Q$2)="#N/A N/A","",_xll.BDP($C$2,$D60,"FUND_PER=Y","EQY_FUND_YEAR",Q$2)) ->  | R60: =IF(_xll.BDP($C$2,$D60,"FUND_PER=Y","EQY_FUND_YEAR",R$2)="#N/A N/A","",_xll.BDP($C$2,$D60,"FUND_PER=Y","EQY_FUND_YEAR",R$2)) ->  | S60: =IF(_xll.BDP($C$2,$D60,"FUND_PER=Y","EQY_FUND_YEAR",S$2)="#N/A N/A","",_xll.BDP($C$2,$D60,"FUND_PER=Y","EQY_FUND_YEAR",S$2)) ->  | T60: =IF(_xll.BDP($C$2,$D60,"FUND_PER=Y","EQY_FUND_YEAR",T$2)="#N/A N/A","",_xll.BDP($C$2,$D60,"FUND_PER=Y","EQY_FUND_YEAR",T$2)) ->  | U60: =IF(_xll.BDP($C$2,$D60,"FUND_PER=Y","EQY_FUND_YEAR",U$2)="#N/A N/A","",_xll.BDP($C$2,$D60,"FUND_PER=Y","EQY_FUND_YEAR",U$2)) ->  | V60: =IF(_xll.BDP($C$2,$D60,"FUND_PER=Y","EQY_FUND_YEAR",V$2)="#N/A N/A","",_xll.BDP($C$2,$D60,"FUND_PER=Y","EQY_FUND_YEAR",V$2)) ->  | W60: =IF(_xll.BDP($C$2,$D60,"FUND_PER=Y","EQY_FUND_YEAR",W$2)="#N/A N/A","",_xll.BDP($C$2,$D60,"FUND_PER=Y","EQY_FUND_YEAR",W$2)) ->  | X60: =IF(_xll.BDP($C$2,$D60,"FUND_PER=Y","EQY_FUND_YEAR",X$2)="#N/A N/A","",_xll.BDP($C$2,$D60,"FUND_PER=Y","EQY_FUND_YEAR",X$2)) ->  | Z60: ROE | AB60: 0.3134811265 | AC60: 0.2298092972 | AD60: 0.2373494424 | AE60: 0.2326217628 | AF60: 0.2116169592 | AG60: 0.1659917177 | AH60: 0.2029929882 | AI60: 0.2068205201 | AJ60: 0.1865575844 | AK60: 0.1653626983 | AL60: 0.16013935 | AM60: 0.1478900868 | AN60: 0.1411831875 | AO60: 0.1501964398 | AP60: 0.08686346205 | AQ60: 0.1862054342 | AR60: 0.1811960852
A61: 〇 | C61: JCR | D61: RTG_JCR_LT_ISSUER | E61: =IF(_xll.BDP($C$2,$D61,"FUND_PER=Y","EQY_FUND_YEAR",E$2)="#N/A N/A","",_xll.BDP($C$2,$D61,"FUND_PER=Y","EQY_FUND_YEAR",E$2)) ->  | F61: =IF(_xll.BDP($C$2,$D61,"FUND_PER=Y","EQY_FUND_YEAR",F$2)="#N/A N/A","",_xll.BDP($C$2,$D61,"FUND_PER=Y","EQY_FUND_YEAR",F$2)) ->  | G61: =IF(_xll.BDP($C$2,$D61,"FUND_PER=Y","EQY_FUND_YEAR",G$2)="#N/A N/A","",_xll.BDP($C$2,$D61,"FUND_PER=Y","EQY_FUND_YEAR",G$2)) ->  | H61: =IF(_xll.BDP($C$2,$D61,"FUND_PER=Y","EQY_FUND_YEAR",H$2)="#N/A N/A","",_xll.BDP($C$2,$D61,"FUND_PER=Y","EQY_FUND_YEAR",H$2)) ->  | I61: =IF(_xll.BDP($C$2,$D61,"FUND_PER=Y","EQY_FUND_YEAR",I$2)="#N/A N/A","",_xll.BDP($C$2,$D61,"FUND_PER=Y","EQY_FUND_YEAR",I$2)) ->  | J61: =IF(_xll.BDP($C$2,$D61,"FUND_PER=Y","EQY_FUND_YEAR",J$2)="#N/A N/A","",_xll.BDP($C$2,$D61,"FUND_PER=Y","EQY_FUND_YEAR",J$2)) ->  | K61: =IF(_xll.BDP($C$2,$D61,"FUND_PER=Y","EQY_FUND_YEAR",K$2)="#N/A N/A","",_xll.BDP($C$2,$D61,"FUND_PER=Y","EQY_FUND_YEAR",K$2)) ->  | L61: =IF(_xll.BDP($C$2,$D61,"FUND_PER=Y","EQY_FUND_YEAR",L$2)="#N/A N/A","",_xll.BDP($C$2,$D61,"FUND_PER=Y","EQY_FUND_YEAR",L$2)) ->  | M61: =IF(_xll.BDP($C$2,$D61,"FUND_PER=Y","EQY_FUND_YEAR",M$2)="#N/A N/A","",_xll.BDP($C$2,$D61,"FUND_PER=Y","EQY_FUND_YEAR",M$2)) ->  | N61: =IF(_xll.BDP($C$2,$D61,"FUND_PER=Y","EQY_FUND_YEAR",N$2)="#N/A N/A","",_xll.BDP($C$2,$D61,"FUND_PER=Y","EQY_FUND_YEAR",N$2)) ->  | O61: =IF(_xll.BDP($C$2,$D61,"FUND_PER=Y","EQY_FUND_YEAR",O$2)="#N/A N/A","",_xll.BDP($C$2,$D61,"FUND_PER=Y","EQY_FUND_YEAR",O$2)) ->  | P61: =IF(_xll.BDP($C$2,$D61,"FUND_PER=Y","EQY_FUND_YEAR",P$2)="#N/A N/A","",_xll.BDP($C$2,$D61,"FUND_PER=Y","EQY_FUND_YEAR",P$2)) ->  | Q61: =IF(_xll.BDP($C$2,$D61,"FUND_PER=Y","EQY_FUND_YEAR",Q$2)="#N/A N/A","",_xll.BDP($C$2,$D61,"FUND_PER=Y","EQY_FUND_YEAR",Q$2)) ->  | R61: =IF(_xll.BDP($C$2,$D61,"FUND_PER=Y","EQY_FUND_YEAR",R$2)="#N/A N/A","",_xll.BDP($C$2,$D61,"FUND_PER=Y","EQY_FUND_YEAR",R$2)) ->  | S61: =IF(_xll.BDP($C$2,$D61,"FUND_PER=Y","EQY_FUND_YEAR",S$2)="#N/A N/A","",_xll.BDP($C$2,$D61,"FUND_PER=Y","EQY_FUND_YEAR",S$2)) ->  | T61: =IF(_xll.BDP($C$2,$D61,"FUND_PER=Y","EQY_FUND_YEAR",T$2)="#N/A N/A","",_xll.BDP($C$2,$D61,"FUND_PER=Y","EQY_FUND_YEAR",T$2)) ->  | U61: =IF(_xll.BDP($C$2,$D61,"FUND_PER=Y","EQY_FUND_YEAR",U$2)="#N/A N/A","",_xll.BDP($C$2,$D61,"FUND_PER=Y","EQY_FUND_YEAR",U$2)) ->  | V61: =IF(_xll.BDP($C$2,$D61,"FUND_PER=Y","EQY_FUND_YEAR",V$2)="#N/A N/A","",_xll.BDP($C$2,$D61,"FUND_PER=Y","EQY_FUND_YEAR",V$2)) ->  | W61: =IF(_xll.BDP($C$2,$D61,"FUND_PER=Y","EQY_FUND_YEAR",W$2)="#N/A N/A","",_xll.BDP($C$2,$D61,"FUND_PER=Y","EQY_FUND_YEAR",W$2)) ->  | X61: =IF(_xll.BDP($C$2,$D61,"FUND_PER=Y","EQY_FUND_YEAR",X$2)="#N/A N/A","",_xll.BDP($C$2,$D61,"FUND_PER=Y","EQY_FUND_YEAR",X$2)) ->  | Z61: ROS | AA61: 0.2267444527 | AB61: 0.07206872888 | AC61: 0.1251461563 | AD61: 0.238719993 | AE61: 0.2901904843 | AF61: 0.2533279225 | AG61: 0.1939321559 | AH61: 0.2756994833 | AI61: 0.290065141 | AJ61: 0.2568790397 | AK61: 0.2332153174 | AL61: 0.229344909 | AM61: 0.2141785731 | AN61: 0.2180053074 | AO61: 0.215770117 | AP61: 0.1142212801 | AQ61: 0.2246471616 | AR61: 0.2121811228
Z62: 総資産回転率 | AA62: 1.531963244 | AB62: 2.531072633 | AC62: 1.524190468 | AD62: 0.9037152588 | AE62: 0.7378574706 | AF62: 0.7575578777 | AG62: 0.7633716119 | AH62: 0.6545568325 | AI62: 0.5962717327 | AJ62: 0.581253594 | AK62: 0.5534464934 | AL62: 0.5423949042 | AM62: 0.5497632306 | AN62: 0.5421257338 | AO62: 0.5732319865 | AP62: 0.6077710038 | AQ62: 0.6362387145 | AR62: 0.6363541648
C63: 成長性分析 | W63: =N2&"年～"&X2&"年のCAGR>>" -> 2011年～2021年のCAGR>> | X63: =(X5/N5)^(1/(X2-N2))-1 ->  | Z63: 財務レバレッジ | AA63: 1.527451245 | AB63: 1.446064894 | AC63: 1.131200974 | AD63: 1.090546756 | AE63: 1.084127022 | AF63: 1.116622496 | AG63: 1.124959462 | AH63: 1.124778526 | AI63: 1.251075885 | AJ63: 1.248155473 | AK63: 1.307927212 | AL63: 1.270430311 | AM63: 1.243857115 | AN63: 1.225461436 | AO63: 1.204702379 | AP63: 1.293720738 | AQ63: 1.310559146 | AR63: 1.369669682
C64: 売上高YoY% | F64: =F4/E4-1 -> 2.335397793 | G64: 1.175557017 | H64: 0.9247823059 | I64: 0.7275903469 | J64: 0.5647445426 | K64: 0.3134607924 | L64: 0.08510971276 | M64: 0.2397590704 | N64: 0.2927594557 | O64: 0.2145891043 | P64: 0.2059123786 | Q64: 0.1888002306 | R64: 0.1361797549 | S64: 0.2038032245 | T64: 0.2280109004 | U64: 0.2342158676 | V64: 0.183000899
C65: 売上高 | E65: =E4/$E4 -> 1 | F65: 3.335397793 | G65: 7.256348073 | H65: 13.96689038 | I65: 24.12906499 | J65: 37.75582276 | K65: 49.59079288 | L65: 53.81145102 | M65: 66.7132345 | N65: 86.24416471 | O65: 104.7512228 | P65: 126.3207962 | Q65: 150.1701917 | R65: 170.6203316 | S65: 205.3933053 | T65: 252.2252178 | U65: 311.300366 | V65: 368.2686128
C66: 売上総利益 | E66: 1 | F66: 2.72755017 | G66: 5.622017008 | H66: 11.58140958 | I66: 20.71406301 | J66: 32.28884917 | K66: 42.77314774 | L66: 48.07319512 | M66: 61.37702173 | N66: 80.25052085 | O66: 93.71164717 | P66: 108.8513558 | Q66: 130.8774728 | R66: 152.0302075 | S66: 179.0076553 | T66: 211.9234534 | U66: 250.8782516 | V66: 292.0830645
C67: 営業利益 | E67: 1 | F67: 1.83660289 | G67: 4.51123522 | H67: 11.30113783 | I67: 19.03830158 | J67: 27.26716891 | K67: 35.56663892 | L67: 44.57748794 | M67: 55.67234688 | N67: 62.97126453 | O67: 74.19046785 | P67: 82.60487034 | Q67: 88.46652867 | R67: 103.8258969 | S67: 127.1867237 | T67: 140.2185899 | U67: 147.608677 | V67: 183.5777002
C68: 純利益 | E68: 1 | F68: 1.060126836 | G68: 4.004967087 | H68: 14.70455366 | I68: 30.88068957 | J68: 42.18230714 | K68: 42.41448583 | L68: 65.42955768 | M68: 85.34358192 | N68: 97.70610902 | O68: 107.7406278 | P68: 127.7695272 | Q68: 141.847957 | R68: 164.0443124 | S68: 195.4523561 | T68: 127.0570763 | U68: 308.4209681 | V68: 344.6154772
C69: 総資産 | E69: =E26/$E26 -> 1 | F69: 3.037582136 | G69: 11.5491231 | H69: 35.80376264 | I69: 64.39130798 | J69: 88.31130243 | K69: 110.7300839 | L69: 141.1568753 | M69: 201.6473112 | N69: 252.9662748 | O69: 326.9453336 | P69: 386.626329 | Q69: 450.2983733 | R69: 513.994817 | S69: 583.8329447 | T69: 687.6978144 | U69: 811.4273023 | V69: 961.717308
C70: 自己資本 | E70: =E39/$E39 -> 1 | F70: 3.208541079 | G70: 15.59468463 | H70: 50.14778277 | I70: 90.72237985 | J70: 120.8028759 | K70: 150.347466 | L70: 191.6912885 | M70: 246.1932487 | N70: 309.5717317 | O70: 381.8202208 | P70: 464.8447557 | Q70: 552.9644862 | R70: 640.6582861 | S70: 740.2461997 | T70: 811.940979 | U70: 945.7151527 | V70: 1072.504063
C72: 収益性分析
C73: 売上総利益率 | E73: =E5/E4 -> 0.7007790616 | F73: 0.5730680917 | G73: 0.5429441591 | H73: 0.5810892131 | I73: 0.6015973534 | J73: 0.5993075443 | K73: 0.6044373278 | L73: 0.6260505511 | M73: 0.6447256233 | N73: 0.6520775623 | O73: 0.6269249984 | P73: 0.6038653434 | Q73: 0.610748322 | R73: 0.6244249157 | S73: 0.6107541652 | T73: 0.588805196 | U73: 0.5647607423 | V73: 0.5558054332
C74: 営業利益率 | E74: =E6/E4 -> 0.424260775 | F74: 0.2336148831 | G74: 0.2637607969 | H74: 0.3432853959 | I74: 0.3347500032 | J74: 0.3064001621 | K74: 0.3042808738 | L74: 0.3514582718 | M74: 0.3540465878 | N74: 0.3097744361 | O74: 0.3004843719 | P74: 0.2774365533 | Q74: 0.249935607 | R74: 0.2581711984 | S74: 0.2627171216 | T74: 0.2358576519 | U74: 0.20117089 | V74: 0.211489154
C75: 純利益率 | E75: =E7/E4 -> 0.2267444527 | F75: 0.07206872888 | G75: 0.1251461563 | H75: 0.238719993 | I75: 0.2901904843 | J75: 0.2533279225 | K75: 0.1939321559 | L75: 0.2756994833 | M75: 0.290065141 | N75: 0.2568790397 | O75: 0.2332153174 | P75: 0.229344909 | Q75: 0.2141785731 | R75: 0.2180053074 | S75: 0.215770117 | T75: 0.1142212801 | U75: 0.2246471616 | V75: 0.2121811228
C76: ROA | E76: =E7/E26 -> 0.3473641673 | F76: =F7/((F26+E26)/2) -> 0.1824111874 | G76: 0.1907465785 | H76: 0.2157349002 | I76: 0.2141192167 | J76: 0.1919105634 | K76: 0.1480423024 | L76: 0.1804609805 | M76: 0.1729576442 | N76: 0.1493118651 | O76: 0.1290721996 | P76: 0.1243955099 | Q76: 0.1177475042 | R76: 0.1181862873 | S76: 0.1236863328 | T76: 0.06942038203 | U76: 0.1429292213 | V76: 0.1350223412
A77: 〇 | C77: ROE | D77: RETURN_COM_EQY | E77: =IF(_xll.BDP($C$2,$D77,"FUND_PER=Y","EQY_FUND_YEAR",E$2)="#N/A N/A","",_xll.BDP($C$2,$D77,"FUND_PER=Y","EQY_FUND_YEAR",E$2))/100 ->  | F77: =IF(_xll.BDP($C$2,$D77,"FUND_PER=Y","EQY_FUND_YEAR",F$2)="#N/A N/A","",_xll.BDP($C$2,$D77,"FUND_PER=Y","EQY_FUND_YEAR",F$2))/100 -> 0.3134811265 | G77: =IF(_xll.BDP($C$2,$D77,"FUND_PER=Y","EQY_FUND_YEAR",G$2)="#N/A N/A","",_xll.BDP($C$2,$D77,"FUND_PER=Y","EQY_FUND_YEAR",G$2))/100 -> 0.2298092972 | H77: =IF(_xll.BDP($C$2,$D77,"FUND_PER=Y","EQY_FUND_YEAR",H$2)="#N/A N/A","",_xll.BDP($C$2,$D77,"FUND_PER=Y","EQY_FUND_YEAR",H$2))/100 -> 0.2373494424 | I77: =IF(_xll.BDP($C$2,$D77,"FUND_PER=Y","EQY_FUND_YEAR",I$2)="#N/A N/A","",_xll.BDP($C$2,$D77,"FUND_PER=Y","EQY_FUND_YEAR",I$2))/100 -> 0.2326217628 | J77: =IF(_xll.BDP($C$2,$D77,"FUND_PER=Y","EQY_FUND_YEAR",J$2)="#N/A N/A","",_xll.BDP($C$2,$D77,"FUND_PER=Y","EQY_FUND_YEAR",J$2))/100 -> 0.2116169592 | K77: =IF(_xll.BDP($C$2,$D77,"FUND_PER=Y","EQY_FUND_YEAR",K$2)="#N/A N/A","",_xll.BDP($C$2,$D77,"FUND_PER=Y","EQY_FUND_YEAR",K$2))/100 -> 0.1659917177 | L77: =IF(_xll.BDP($C$2,$D77,"FUND_PER=Y","EQY_FUND_YEAR",L$2)="#N/A N/A","",_xll.BDP($C$2,$D77,"FUND_PER=Y","EQY_FUND_YEAR",L$2))/100 -> 0.2029929882 | M77: =IF(_xll.BDP($C$2,$D77,"FUND_PER=Y","EQY_FUND_YEAR",M$2)="#N/A N/A","",_xll.BDP($C$2,$D77,"FUND_PER=Y","EQY_FUND_YEAR",M$2))/100 -> 0.2068205201 | N77: =IF(_xll.BDP($C$2,$D77,"FUND_PER=Y","EQY_FUND_YEAR",N$2)="#N/A N/A","",_xll.BDP($C$2,$D77,"FUND_PER=Y","EQY_FUND_YEAR",N$2))/100 -> 0.1865575844 | O77: =IF(_xll.BDP($C$2,$D77,"FUND_PER=Y","EQY_FUND_YEAR",O$2)="#N/A N/A","",_xll.BDP($C$2,$D77,"FUND_PER=Y","EQY_FUND_YEAR",O$2))/100 -> 0.1653626983 | P77: =IF(_xll.BDP($C$2,$D77,"FUND_PER=Y","EQY_FUND_YEAR",P$2)="#N/A N/A","",_xll.BDP($C$2,$D77,"FUND_PER=Y","EQY_FUND_YEAR",P$2))/100 -> 0.16013935 | Q77: =IF(_xll.BDP($C$2,$D77,"FUND_PER=Y","EQY_FUND_YEAR",Q$2)="#N/A N/A","",_xll.BDP($C$2,$D77,"FUND_PER=Y","EQY_FUND_YEAR",Q$2))/100 -> 0.1478900868 | R77: =IF(_xll.BDP($C$2,$D77,"FUND_PER=Y","EQY_FUND_YEAR",R$2)="#N/A N/A","",_xll.BDP($C$2,$D77,"FUND_PER=Y","EQY_FUND_YEAR",R$2))/100 -> 0.1411831875 | S77: =IF(_xll.BDP($C$2,$D77,"FUND_PER=Y","EQY_FUND_YEAR",S$2)="#N/A N/A","",_xll.BDP($C$2,$D77,"FUND_PER=Y","EQY_FUND_YEAR",S$2))/100 -> 0.1501964398 | T77: =IF(_xll.BDP($C$2,$D77,"FUND_PER=Y","EQY_FUND_YEAR",T$2)="#N/A N/A","",_xll.BDP($C$2,$D77,"FUND_PER=Y","EQY_FUND_YEAR",T$2))/100 -> 0.08686346205 | U77: =IF(_xll.BDP($C$2,$D77,"FUND_PER=Y","EQY_FUND_YEAR",U$2)="#N/A N/A","",_xll.BDP($C$2,$D77,"FUND_PER=Y","EQY_FUND_YEAR",U$2))/100 -> 0.1862054342 | V77: =IF(_xll.BDP($C$2,$D77,"FUND_PER=Y","EQY_FUND_YEAR",V$2)="#N/A N/A","",_xll.BDP($C$2,$D77,"FUND_PER=Y","EQY_FUND_YEAR",V$2))/100 -> 0.1811960852 | W77: =IF(_xll.BDP($C$2,$D77,"FUND_PER=Y","EQY_FUND_YEAR",W$2)="#N/A N/A","",_xll.BDP($C$2,$D77,"FUND_PER=Y","EQY_FUND_YEAR",W$2))/100 ->  | X77: =X7/((X39-X38+W39-W38)/2) -> 
C78: 効率性分析 | AA78: 収益性分析
C79: 総資産回転率（回） | E79: =E4/E26 -> 1.531963244 | F79: =F4/((F26+E26)/2) -> 2.531072633 | G79: 1.524190468 | H79: 0.9037152588 | I79: 0.7378574706 | J79: 0.7575578777 | K79: 0.7633716119 | L79: 0.6545568325 | M79: 0.5962717327 | N79: 0.581253594 | O79: 0.5534464934 | P79: 0.5423949042 | Q79: 0.5497632306 | R79: 0.5421257338 | S79: 0.5732319865 | T79: 0.6077710038 | U79: 0.6362387145 | V79: 0.6363541648
C80: 有形固定資産回転率（回） | E80: =E4/E21 -> 8.158223746 | F80: =F4/((F21+E21)/2) -> 12.1087521 | G80: 11.24607207 | H80: 9.157485278 | I80: 6.318114333 | J80: 5.157816769 | K80: 4.700809998 | L80: 4.693292314 | M80: 4.652793922 | N80: 4.366432439 | O80: 4.291280235 | P80: 3.91281979 | Q80: 3.266810206 | R80: 2.835176468 | S80: 2.854450593 | T80: 2.893744208 | U80: 2.680045445 | V80: 2.243246989
C81: 棚卸資産回転率（回） | E81: =IFERROR(E4/E19,0) -> 0 | F81: =IFERROR(F4/((F19+E19)/2),0) -> 0 | G81: 0 | H81: 0 | I81: 0 | J81: 0 | K81: 0 | L81: 0 | M81: 0 | N81: 0 | O81: 182.3326733 | P81: 119.2674544 | Q81: 309.8638498 | R81: 305.4541752 | S81: 237.8708827 | T81: 218.0039331 | U81: 147.4342672 | V81: 153.7103514 | W81: 0 | X81: 0
C82: 売上債権回転率（回） | E82: =E4/E18 -> 7.089524843 | F82: =F4/((F18+E18)/2) -> 13.53061595 | G82: 13.67221971 | H82: 12.27942853 | I82: 10.55049753 | J82: 9.523470807 | K82: 9.072571036 | L82: 8.126415496 | M82: 7.892097284 | N82: 7.832420705 | O82: 6.916917067 | P82: 6.622413073 | Q82: 7.227046263 | R82: 7.162615216 | S82: 7.026972327 | T82: 6.827518246 | U82: 6.985194261 | V82: 7.012260636
C83: CCC（日） | E83: =E84+E85+E86 -> 43.68293594 | F83: =F84+F85+F86 -> 27.01893543 | G83: 31.9497445 | H83: 34.03507744 | I83: 38.24427999 | J83: 41.36145921 | K83: 41.26661727 | L83: 11.05655138 | M83: 6.025033253 | N83: 2.811766258 | O83: -6.524794196 | P83: -7.567049118 | Q83: -10.24749625 | R83: -3.923108723 | S83: -4.568969337 | T83: -10.91164133 | U83: -28.43296618 | V83: -34.77328753
C84: 棚卸資産回転日数（日） | E84: =E19/(E4/365)+E88 -> 0 | F84: 0 | G84: 0 | H84: 0 | I84: 0 | J84: 0 | K84: 0 | L84: 0 | M84: 0 | N84: 0 | O84: 4.003670801 | P84: 2.800662836 | Q84: 0 | R84: 2.38988385 | S84: 1.083613967 | T84: 2.466149475 | U84: 2.953208253 | V84: 2.252821935 | AA84: 資産回転率分析
C85: 売上債権回転日数（日） | E85: =E18/(E4/365) -> 51.48440948 | F85: 38.51595688 | G85: 35.68898757 | H85: 40.90718996 | I85: 45.51229397 | J85: 47.56664041 | K85: 44.24756797 | L85: 49.05345869 | M85: 52.93066403 | N85: 52.25840918 | O85: 62.51276092 | P85: 58.3931627 | Q85: 51.89004712 | R85: 56.24744963 | S85: 57.16063674 | T85: 60.37291958 | U85: 55.59074398 | V85: 57.11208042
C86: 仕入債務回転日数（日） | E86: =-E27/(E4/365) -> -7.801473537 | F86: =-F27/(F4/365) -> -11.49702145 | G86: -3.73924307 | H86: -6.872112515 | I86: -7.268013979 | J86: -6.205181202 | K86: -2.980950699 | L86: -37.9969073 | M86: -46.90563078 | N86: -49.44664292 | O86: -73.04122592 | P86: -68.76087466 | Q86: -62.13754337 | R86: -62.5604422 | S86: -62.81322005 | T86: -73.75071039 | U86: -86.97691841 | V86: -94.13818988
C88: 安全性分析
C89: 手元流動性比率 | E89: =E17/(E4/12) -> 3.995313004 | F89: 2.739970574 | G89: 8.023134162 | H89: 15.70579484 | I89: 12.72305743 | J89: 10.28224057 | K89: 8.724223614 | L89: 12.42326874 | M89: 14.31397292 | N89: 14.1277404 | O89: 12.53406894 | P89: 12.69122282 | Q89: 11.70800442 | R89: 11.69227487 | S89: 11.47638249 | T89: 11.02748636 | U89: 9.572354717 | V89: 8.872646843
C90: 流動比率 | E90: =E20/E30 ->  | G90: 7.913390801 | H90: 12.07575022 | I90: 9.995383213 | J90: 8.493378372 | K90: 8.765157748 | L90: 10.6159448 | M90: 4.157863145 | N90: 5.919219118 | O90: 4.216642254 | P90: 4.581719889 | Q90: 4.687764467 | R90: 4.666701191 | S90: 6.290761518 | T90: 5.140305173 | U90: 3.919006355 | V90: 3.374051879
C91: 自己資本比率 | E91: =(E39-E38)/E26 -> 0.6546853809 | F91: 0.6915318977 | G91: 0.884016212 | H91: 0.9169712299 | I91: 0.9224011388 | J91: 0.8955578125 | K91: 0.8889209202 | L91: 0.8890639152 | M91: 0.7993120257 | N91: 0.8011822416 | O91: 0.7645685409 | P91: 0.787134872 | Q91: 0.8039508619 | R91: 0.8160191508 | S91: 0.8300805388 | T91: 0.7729643427 | U91: 0.7630330939 | V91: 0.7301030412
C92: DEレシオ | E92: =(E28+E31)/(E39-E38) -> 0.05783073608 | F92: =(F28+F31)/(F39-F38) -> 0.01096672794 | G92: 0.00064935597 | H92: 0 | I92: 0 | J92: 0 | K92: 0 | L92: 0 | M92: 0.07493350057 | N92: 0.07230200361 | O92: 0.07720839434 | P92: 0.06007399008 | Q92: 0.05042364722 | R92: 0.04338034256 | S92: 0.0283020225 | T92: 0.02602588819 | U92: 0.02258652915 | V92: 0.07926351009
C93: ネットDEレシオ | E93: =(E28-E17+E31)/(E39-E38) -> -0.7212550215 | F93: =(F28-F17+F31)/(F39-F38) -> -0.5444518321 | G93: -0.7273316044 | H93: -0.8529869071 | I93: -0.6598603039 | J93: -0.626655538 | K93: -0.5611334834 | L93: -0.680052846 | M93: -0.6814298999 | N93: -0.6951930519 | O93: -0.5933347277 | P93: -0.6124454524 | Q93: -0.5695936838 | R93: -0.5638281075 | S93: -0.592637878 | T93: -0.6419719086 | U93: -0.5918436283 | V93: -0.5148280895
C94: 固定比率 | E94: =E33/(E39-E38) -> 0.0508987145 | F94: 0.0553646374 | G94: 0.01499698196 | H94: 0.01141018055 | I94: 0.007566033484 | J94: 0.02690760852 | K94: 0.04343740906 | L94: 0.04846895187 | M94: 0.03490408944 | N94: 0.09486628257 | O94: 0.1080108764 | P94: 0.08822687237 | Q94: 0.08230310033 | R94: 0.06498740973 | S94: 0.08418682931 | T94: 0.1351457686 | U94: 0.1156574414 | V94: 0.1451832289
C95: 固定長期適合率 | E95: =E25/(E39-E38+E32) -> 0.2886541864 | F95: 0.4908756559 | G95: 0.2085064059 | H95: 0.1333912214 | I95: 0.3164761307 | J95: 0.3453475343 | K95: 0.3933209652 | L95: 0.30013316 | M95: 0.3403824052 | N95: 0.326592501 | O95: 0.4360231716 | P95: 0.4099551608 | Q95: 0.4628228613 | R95: 0.4545721171 | S95: 0.4229323052 | T95: 0.4315106153 | U95: 0.5001854141 | V95: 0.5711884031
C96: Net Debt EBITDAマルチプル | E96: =(E28+E31-E17)/E8 -> -0.6624530472 | F96: =(F28+F31-F17)/F8 -> -0.83562928 | G96: -2.152642561 | H96: -3.346083237 | I96: -2.727824189 | J96: -2.349384788 | K96: -1.948604476 | L96: -2.489177038 | M96: -2.675554046 | N96: -2.973736482 | O96: -2.53340081 | P96: -2.764553821 | Q96: -2.754738068 | R96: -2.777955206 | S96: -2.759477562 | T96: -2.961253441 | U96: -2.875570995 | V96: -2.168171935 | AA96: 成長性分析
C97: NetDebt/営業CF | E97: =(E28+E31-E17)/E44 -> -0.8725018637 | F97: =(F28+F31-F17)/F44 -> -0.8297209377 | G97: -2.180449396 | H97: -3.266721612 | I97: -3.140312492 | J97: -2.461922703 | K97: -2.017835165 | L97: -2.628193926 | M97: -2.843606173 | N97: -2.775283213 | O97: -2.560382695 | P97: -2.865748432 | Q97: -2.643814802 | R97: -2.553289177 | S97: -2.286546787 | T97: -2.639508236 | U97: -2.191490692 | V97: -1.902201027
C98: 企業価値分析
C99: PBR | E99: =E53/E39 ->  | G99: 17.56843448 | H99: 12.90643765 | I99: 8.350250857 | J99: 9.536311517 | K99: 3.433028643 | L99: 5.471921421 | M99: 4.127141605 | N99: 3.609075252 | O99: 3.254835739 | P99: 4.310797338 | Q99: 3.460202412 | R99: 4.385298626 | S99: 3.885109145 | T99: 4.782065994 | U99: 4.072222289 | V99: 4.576746734 | X99: =X53/X39 -> 
C100: PER | E100: =E51 ->  | G100: 76.80876494 | H100: 72.78245614 | I100: 48.98723404 | J100: 52.03009782 | K100: 18.4442446 | L100: 30.67212411 | M100: 22.89960852 | N100: 21.19986023 | O100: 20.89090751 | P100: 28.81274181 | Q100: 26.54571805 | R100: 33.57462302 | S100: 30.13763137 | T100: 30.09824273 | U100: 23.94061035 | V100: 27.68310941 | X100: =X51 -> 
C101: ROE | E101: =E77 ->  | F101: 0.3134811265 | G101: 0.2298092972 | H101: 0.2373494424 | I101: 0.2326217628 | J101: 0.2116169592 | K101: 0.1659917177 | L101: 0.2029929882 | M101: 0.2068205201 | N101: 0.1865575844 | O101: 0.1653626983 | P101: 0.16013935 | Q101: 0.1478900868 | R101: 0.1411831875 | S101: 0.1501964398 | T101: 0.08686346205 | U101: 0.1862054342 | V101: 0.1811960852
C102: ROS | E102: =E75 -> 0.2267444527 | F102: 0.07206872888 | G102: 0.1251461563 | H102: 0.238719993 | I102: 0.2901904843 | J102: 0.2533279225 | K102: 0.1939321559 | L102: 0.2756994833 | M102: 0.290065141 | N102: 0.2568790397 | O102: 0.2332153174 | P102: 0.229344909 | Q102: 0.2141785731 | R102: 0.2180053074 | S102: 0.215770117 | T102: 0.1142212801 | U102: 0.2246471616 | V102: 0.2121811228
C103: 総資産回転率 | E103: =E4/E26 -> 1.531963244 | F103: =F4/((F26+E26)/2) -> 2.531072633 | G103: =G4/((G26+F26)/2) -> 1.524190468 | H103: 0.9037152588 | I103: 0.7378574706 | J103: 0.7575578777 | K103: 0.7633716119 | L103: 0.6545568325 | M103: 0.5962717327 | N103: 0.581253594 | O103: 0.5534464934 | P103: 0.5423949042 | Q103: 0.5497632306 | R103: 0.5421257338 | S103: 0.5732319865 | T103: 0.6077710038 | U103: 0.6362387145 | V103: 0.6363541648
C104: 財務レバレッジ | E104: =E26/E39 -> 1.527451245 | F104: =F26/F39 -> 1.446064894 | G104: 1.131200974 | H104: 1.090546756 | I104: 1.084127022 | J104: 1.116622496 | K104: 1.124959462 | L104: 1.124778526 | M104: 1.251075885 | N104: 1.248155473 | O104: 1.307927212 | P104: 1.270430311 | Q104: 1.243857115 | R104: 1.225461436 | S104: 1.204702379 | T104: 1.293720738 | U104: 1.310559146 | V104: 1.369669682
A106: 〇 | C106: 配当性向 | D106: DVD_PAYOUT_RATIO | E106: =IF(_xll.BDP($C$2,$D106,"FUND_PER=Y","EQY_FUND_YEAR",E$2)="#N/A N/A","",_xll.BDP($C$2,$D106,"FUND_PER=Y","EQY_FUND_YEAR",E$2)) -> 0 | F106: =IF(_xll.BDP($C$2,$D106,"FUND_PER=Y","EQY_FUND_YEAR",F$2)="#N/A N/A","",_xll.BDP($C$2,$D106,"FUND_PER=Y","EQY_FUND_YEAR",F$2)) -> 0 | G106: =IF(_xll.BDP($C$2,$D106,"FUND_PER=Y","EQY_FUND_YEAR",G$2)="#N/A N/A","",_xll.BDP($C$2,$D106,"FUND_PER=Y","EQY_FUND_YEAR",G$2)) -> 0 | H106: =IF(_xll.BDP($C$2,$D106,"FUND_PER=Y","EQY_FUND_YEAR",H$2)="#N/A N/A","",_xll.BDP($C$2,$D106,"FUND_PER=Y","EQY_FUND_YEAR",H$2)) -> 0 | I106: =IF(_xll.BDP($C$2,$D106,"FUND_PER=Y","EQY_FUND_YEAR",I$2)="#N/A N/A","",_xll.BDP($C$2,$D106,"FUND_PER=Y","EQY_FUND_YEAR",I$2)) -> 0 | J106: =IF(_xll.BDP($C$2,$D106,"FUND_PER=Y","EQY_FUND_YEAR",J$2)="#N/A N/A","",_xll.BDP($C$2,$D106,"FUND_PER=Y","EQY_FUND_YEAR",J$2)) -> 0 | K106: =IF(_xll.BDP($C$2,$D106,"FUND_PER=Y","EQY_FUND_YEAR",K$2)="#N/A N/A","",_xll.BDP($C$2,$D106,"FUND_PER=Y","EQY_FUND_YEAR",K$2)) -> 0 | L106: =IF(_xll.BDP($C$2,$D106,"FUND_PER=Y","EQY_FUND_YEAR",L$2)="#N/A N/A","",_xll.BDP($C$2,$D106,"FUND_PER=Y","EQY_FUND_YEAR",L$2)) -> 0 | M106: =IF(_xll.BDP($C$2,$D106,"FUND_PER=Y","EQY_FUND_YEAR",M$2)="#N/A N/A","",_xll.BDP($C$2,$D106,"FUND_PER=Y","EQY_FUND_YEAR",M$2)) -> 0 | N106: =IF(_xll.BDP($C$2,$D106,"FUND_PER=Y","EQY_FUND_YEAR",N$2)="#N/A N/A","",_xll.BDP($C$2,$D106,"FUND_PER=Y","EQY_FUND_YEAR",N$2)) -> 0 | O106: =IF(_xll.BDP($C$2,$D106,"FUND_PER=Y","EQY_FUND_YEAR",O$2)="#N/A N/A","",_xll.BDP($C$2,$D106,"FUND_PER=Y","EQY_FUND_YEAR",O$2)) -> 0 | P106: =IF(_xll.BDP($C$2,$D106,"FUND_PER=Y","EQY_FUND_YEAR",P$2)="#N/A N/A","",_xll.BDP($C$2,$D106,"FUND_PER=Y","EQY_FUND_YEAR",P$2)) -> 0 | Q106: =IF(_xll.BDP($C$2,$D106,"FUND_PER=Y","EQY_FUND_YEAR",Q$2)="#N/A N/A","",_xll.BDP($C$2,$D106,"FUND_PER=Y","EQY_FUND_YEAR",Q$2)) -> 0 | R106: =IF(_xll.BDP($C$2,$D106,"FUND_PER=Y","EQY_FUND_YEAR",R$2)="#N/A N/A","",_xll.BDP($C$2,$D106,"FUND_PER=Y","EQY_FUND_YEAR",R$2)) -> 0 | S106: =IF(_xll.BDP($C$2,$D106,"FUND_PER=Y","EQY_FUND_YEAR",S$2)="#N/A N/A","",_xll.BDP($C$2,$D106,"FUND_PER=Y","EQY_FUND_YEAR",S$2)) -> 0 | T106: =IF(_xll.BDP($C$2,$D106,"FUND_PER=Y","EQY_FUND_YEAR",T$2)="#N/A N/A","",_xll.BDP($C$2,$D106,"FUND_PER=Y","EQY_FUND_YEAR",T$2)) -> 0 | U106: =IF(_xll.BDP($C$2,$D106,"FUND_PER=Y","EQY_FUND_YEAR",U$2)="#N/A N/A","",_xll.BDP($C$2,$D106,"FUND_PER=Y","EQY_FUND_YEAR",U$2)) -> 0 | V106: =IF(_xll.BDP($C$2,$D106,"FUND_PER=Y","EQY_FUND_YEAR",V$2)="#N/A N/A","",_xll.BDP($C$2,$D106,"FUND_PER=Y","EQY_FUND_YEAR",V$2)) -> 0 | W106: =IF(_xll.BDP($C$2,$D106,"FUND_PER=Y","EQY_FUND_YEAR",W$2)="#N/A N/A","",_xll.BDP($C$2,$D106,"FUND_PER=Y","EQY_FUND_YEAR",W$2)) ->  | X106: =IF(_xll.BDP($C$2,$D106,"FUND_PER=Y","EQY_FUND_YEAR",X$2)="#N/A N/A","",_xll.BDP($C$2,$D106,"FUND_PER=Y","EQY_FUND_YEAR",X$2)) -> 
A107: 〇 | C107: サステナブル成長率 | D107: SUSTAIN_GROWTH_RT | E107: =IF(_xll.BDP($C$2,$D107,"FUND_PER=Y","EQY_FUND_YEAR",E$2)="#N/A N/A","",_xll.BDP($C$2,$D107,"FUND_PER=Y","EQY_FUND_YEAR",E$2)) ->  | F107: =IF(_xll.BDP($C$2,$D107,"FUND_PER=Y","EQY_FUND_YEAR",F$2)="#N/A N/A","",_xll.BDP($C$2,$D107,"FUND_PER=Y","EQY_FUND_YEAR",F$2)) -> 31.34811265 | G107: =IF(_xll.BDP($C$2,$D107,"FUND_PER=Y","EQY_FUND_YEAR",G$2)="#N/A N/A","",_xll.BDP($C$2,$D107,"FUND_PER=Y","EQY_FUND_YEAR",G$2)) -> 22.98092972 | H107: =IF(_xll.BDP($C$2,$D107,"FUND_PER=Y","EQY_FUND_YEAR",H$2)="#N/A N/A","",_xll.BDP($C$2,$D107,"FUND_PER=Y","EQY_FUND_YEAR",H$2)) -> 23.73494424 | I107: =IF(_xll.BDP($C$2,$D107,"FUND_PER=Y","EQY_FUND_YEAR",I$2)="#N/A N/A","",_xll.BDP($C$2,$D107,"FUND_PER=Y","EQY_FUND_YEAR",I$2)) -> 23.26217628 | J107: =IF(_xll.BDP($C$2,$D107,"FUND_PER=Y","EQY_FUND_YEAR",J$2)="#N/A N/A","",_xll.BDP($C$2,$D107,"FUND_PER=Y","EQY_FUND_YEAR",J$2)) -> 21.16169592 | K107: =IF(_xll.BDP($C$2,$D107,"FUND_PER=Y","EQY_FUND_YEAR",K$2)="#N/A N/A","",_xll.BDP($C$2,$D107,"FUND_PER=Y","EQY_FUND_YEAR",K$2)) -> 16.59917177 | L107: =IF(_xll.BDP($C$2,$D107,"FUND_PER=Y","EQY_FUND_YEAR",L$2)="#N/A N/A","",_xll.BDP($C$2,$D107,"FUND_PER=Y","EQY_FUND_YEAR",L$2)) -> 20.29929882 | M107: =IF(_xll.BDP($C$2,$D107,"FUND_PER=Y","EQY_FUND_YEAR",M$2)="#N/A N/A","",_xll.BDP($C$2,$D107,"FUND_PER=Y","EQY_FUND_YEAR",M$2)) -> 20.68205201 | N107: =IF(_xll.BDP($C$2,$D107,"FUND_PER=Y","EQY_FUND_YEAR",N$2)="#N/A N/A","",_xll.BDP($C$2,$D107,"FUND_PER=Y","EQY_FUND_YEAR",N$2)) -> 18.65575844 | O107: =IF(_xll.BDP($C$2,$D107,"FUND_PER=Y","EQY_FUND_YEAR",O$2)="#N/A N/A","",_xll.BDP($C$2,$D107,"FUND_PER=Y","EQY_FUND_YEAR",O$2)) -> 16.53626983 | P107: =IF(_xll.BDP($C$2,$D107,"FUND_PER=Y","EQY_FUND_YEAR",P$2)="#N/A N/A","",_xll.BDP($C$2,$D107,"FUND_PER=Y","EQY_FUND_YEAR",P$2)) -> 16.013935 | Q107: =IF(_xll.BDP($C$2,$D107,"FUND_PER=Y","EQY_FUND_YEAR",Q$2)="#N/A N/A","",_xll.BDP($C$2,$D107,"FUND_PER=Y","EQY_FUND_YEAR",Q$2)) -> 14.78900868 | R107: =IF(_xll.BDP($C$2,$D107,"FUND_PER=Y","EQY_FUND_YEAR",R$2)="#N/A N/A","",_xll.BDP($C$2,$D107,"FUND_PER=Y","EQY_FUND_YEAR",R$2)) -> 14.11831875 | S107: =IF(_xll.BDP($C$2,$D107,"FUND_PER=Y","EQY_FUND_YEAR",S$2)="#N/A N/A","",_xll.BDP($C$2,$D107,"FUND_PER=Y","EQY_FUND_YEAR",S$2)) -> 15.01964398 | T107: =IF(_xll.BDP($C$2,$D107,"FUND_PER=Y","EQY_FUND_YEAR",T$2)="#N/A N/A","",_xll.BDP($C$2,$D107,"FUND_PER=Y","EQY_FUND_YEAR",T$2)) -> 8.686346205 | U107: =IF(_xll.BDP($C$2,$D107,"FUND_PER=Y","EQY_FUND_YEAR",U$2)="#N/A N/A","",_xll.BDP($C$2,$D107,"FUND_PER=Y","EQY_FUND_YEAR",U$2)) -> 18.62054342 | V107: =IF(_xll.BDP($C$2,$D107,"FUND_PER=Y","EQY_FUND_YEAR",V$2)="#N/A N/A","",_xll.BDP($C$2,$D107,"FUND_PER=Y","EQY_FUND_YEAR",V$2)) -> 18.11960852 | W107: =IF(_xll.BDP($C$2,$D107,"FUND_PER=Y","EQY_FUND_YEAR",W$2)="#N/A N/A","",_xll.BDP($C$2,$D107,"FUND_PER=Y","EQY_FUND_YEAR",W$2)) ->  | X107: =IF(_xll.BDP($C$2,$D107,"FUND_PER=Y","EQY_FUND_YEAR",X$2)="#N/A N/A","",_xll.BDP($C$2,$D107,"FUND_PER=Y","EQY_FUND_YEAR",X$2)) -> 
A109: 〇 | C109: EV/EBITDA | D109: EV_TO_T12M_EBITDA | E109: =IF(_xll.BDP($C$2,$D109,"FUND_PER=Y","EQY_FUND_YEAR",E$2)="#N/A N/A","",_xll.BDP($C$2,$D109,"FUND_PER=Y","EQY_FUND_YEAR",E$2)) ->  | F109: =IF(_xll.BDP($C$2,$D109,"FUND_PER=Y","EQY_FUND_YEAR",F$2)="#N/A N/A","",_xll.BDP($C$2,$D109,"FUND_PER=Y","EQY_FUND_YEAR",F$2)) ->  | G109: =IF(_xll.BDP($C$2,$D109,"FUND_PER=Y","EQY_FUND_YEAR",G$2)="#N/A N/A","",_xll.BDP($C$2,$D109,"FUND_PER=Y","EQY_FUND_YEAR",G$2)) -> 49.84366774 | H109: =IF(_xll.BDP($C$2,$D109,"FUND_PER=Y","EQY_FUND_YEAR",H$2)="#N/A N/A","",_xll.BDP($C$2,$D109,"FUND_PER=Y","EQY_FUND_YEAR",H$2)) -> 47.28308153 | I109: =IF(_xll.BDP($C$2,$D109,"FUND_PER=Y","EQY_FUND_YEAR",I$2)="#N/A N/A","",_xll.BDP($C$2,$D109,"FUND_PER=Y","EQY_FUND_YEAR",I$2)) -> 31.7916281 | J109: =IF(_xll.BDP($C$2,$D109,"FUND_PER=Y","EQY_FUND_YEAR",J$2)="#N/A N/A","",_xll.BDP($C$2,$D109,"FUND_PER=Y","EQY_FUND_YEAR",J$2)) -> 33.40305631 | K109: =IF(_xll.BDP($C$2,$D109,"FUND_PER=Y","EQY_FUND_YEAR",K$2)="#N/A N/A","",_xll.BDP($C$2,$D109,"FUND_PER=Y","EQY_FUND_YEAR",K$2)) -> 9.973006298 | L109: =IF(_xll.BDP($C$2,$D109,"FUND_PER=Y","EQY_FUND_YEAR",L$2)="#N/A N/A","",_xll.BDP($C$2,$D109,"FUND_PER=Y","EQY_FUND_YEAR",L$2)) -> 17.53953284 | M109: =IF(_xll.BDP($C$2,$D109,"FUND_PER=Y","EQY_FUND_YEAR",M$2)="#N/A N/A","",_xll.BDP($C$2,$D109,"FUND_PER=Y","EQY_FUND_YEAR",M$2)) -> 13.52918018 | N109: =IF(_xll.BDP($C$2,$D109,"FUND_PER=Y","EQY_FUND_YEAR",N$2)="#N/A N/A","",_xll.BDP($C$2,$D109,"FUND_PER=Y","EQY_FUND_YEAR",N$2)) -> 12.46433315 | O109: =IF(_xll.BDP($C$2,$D109,"FUND_PER=Y","EQY_FUND_YEAR",O$2)="#N/A N/A","",_xll.BDP($C$2,$D109,"FUND_PER=Y","EQY_FUND_YEAR",O$2)) -> 11.36398815 | P109: =IF(_xll.BDP($C$2,$D109,"FUND_PER=Y","EQY_FUND_YEAR",P$2)="#N/A N/A","",_xll.BDP($C$2,$D109,"FUND_PER=Y","EQY_FUND_YEAR",P$2)) -> 16.69420974 | Q109: =IF(_xll.BDP($C$2,$D109,"FUND_PER=Y","EQY_FUND_YEAR",Q$2)="#N/A N/A","",_xll.BDP($C$2,$D109,"FUND_PER=Y","EQY_FUND_YEAR",Q$2)) -> 13.97991257 | R109: =IF(_xll.BDP($C$2,$D109,"FUND_PER=Y","EQY_FUND_YEAR",R$2)="#N/A N/A","",_xll.BDP($C$2,$D109,"FUND_PER=Y","EQY_FUND_YEAR",R$2)) -> 18.82820984 | S109: =IF(_xll.BDP($C$2,$D109,"FUND_PER=Y","EQY_FUND_YEAR",S$2)="#N/A N/A","",_xll.BDP($C$2,$D109,"FUND_PER=Y","EQY_FUND_YEAR",S$2)) -> 15.33061069 | T109: =IF(_xll.BDP($C$2,$D109,"FUND_PER=Y","EQY_FUND_YEAR",T$2)="#N/A N/A","",_xll.BDP($C$2,$D109,"FUND_PER=Y","EQY_FUND_YEAR",T$2)) -> 19.09720299 | U109: =IF(_xll.BDP($C$2,$D109,"FUND_PER=Y","EQY_FUND_YEAR",U$2)="#N/A N/A","",_xll.BDP($C$2,$D109,"FUND_PER=Y","EQY_FUND_YEAR",U$2)) -> 16.91000029 | V109: =IF(_xll.BDP($C$2,$D109,"FUND_PER=Y","EQY_FUND_YEAR",V$2)="#N/A N/A","",_xll.BDP($C$2,$D109,"FUND_PER=Y","EQY_FUND_YEAR",V$2)) -> 17.10656079 | W109: =IF(_xll.BDP($C$2,$D109,"FUND_PER=Y","EQY_FUND_YEAR",W$2)="#N/A N/A","",_xll.BDP($C$2,$D109,"FUND_PER=Y","EQY_FUND_YEAR",W$2)) ->  | X109: =IF(_xll.BDP($C$2,$D109,"FUND_PER=Y","EQY_FUND_YEAR",X$2)="#N/A N/A","",_xll.BDP($C$2,$D109,"FUND_PER=Y","EQY_FUND_YEAR",X$2)) -> 
C112: 構成比率
C113: 資産
C114: 現預金 | E114: =IFERROR(E17/E$26,"") -> 0.510056056 | F114: =IFERROR(F17/F$26,"") -> 0.3840896508 | G114: 0.643546971 | H114: 0.7821644533 | I114: 0.6086558957 | J114: 0.5612062628 | K114: 0.4988032924 | L114: 0.6046104458 | M114: 0.6045703618 | N114: 0.6149034089 | O114: 0.5126761765 | P114: 0.5293635052 | Q114: 0.4984634677 | R114: 0.4954937238 | S114: 0.5154301271 | T114: 0.5163384779 | U114: 0.468830544 | V114: 0.4337480836
C115: その他流動資産 | E115: =IFERROR((E20-E17)/E$26,"") ->  | F115: =IFERROR((F20-F17)/F$26,"") ->  | G115: 0.1693656965 | H115: 0.09412398765 | I115: 0.09721749995 | J115: 0.1211931051 | K115: 0.1363783984 | L115: 0.1156186549 | M115: 0.1138614717 | N115: 0.1120511478 | O115: 0.1318364997 | P115: 0.127740714 | Q115: 0.1103903644 | R115: 0.1156102291 | S115: 0.1138826367 | T115: 0.113723105 | U115: 0.1139901715 | V115: 0.1192530871 | AA115: 資産効率分析（上がるとGood、下がるとBad）
C116: 有形固定資産 | E116: =IFERROR(E21/E$26,"") -> 0.1877814696 | F116: =IFERROR(F21/F$26,"") -> 0.2160230364 | G116: 0.114360356 | H116: 0.09362991713 | I116: 0.1296591506 | J116: 0.1594289521 | K116: 0.1647542502 | L116: 0.1196295172 | M116: 0.1341204128 | N116: 0.1323201146 | O116: 0.1263779612 | P116: 0.1489722322 | Q116: 0.1848715428 | R116: 0.1967706716 | S116: 0.2043857502 | T116: 0.2148204465 | U116: 0.2565337297 | V116: 0.3065757188
C117: のれん | E117: =IFERROR(E24/E$26,"") ->  | F117: =IFERROR(F24/F$26,"") ->  | G117: 0.0370676092 | H117: 0.01897425508 | I117: 0.08364042885 | J117: 0.09075566808 | K117: 0.152352013 | L117: 0.1210606187 | M117: 0.1081398766 | N117: 0.1012208229 | O117: 0.11233715 | P117: 0.1036062027 | Q117: 0.1207474436 | R117: 0.1076148948 | S117: 0.09831817883 | T117: 0.08488304316 | U117: 0.07684112856 | V117: 0.07474928328
C118: その他固定資産 | E118: =1-SUM(E114:E117) -> 0.3021624744 | F118: =1-SUM(F114:F117) -> 0.3998873128 | G118: 0.03565936721 | H118: 0.01110738679 | I118: 0.08082702483 | J118: 0.06741601195 | K118: 0.04771204601 | L118: 0.03908076341 | M118: 0.03930787713 | N118: 0.03950450575 | O118: 0.1167722126 | P118: 0.09031734583 | Q118: 0.08552718153 | R118: 0.08451048074 | S118: 0.06798330716 | T118: 0.07023492739 | U118: 0.08380442627 | V118: 0.06567382724 | W118: 1 | X118: 1
C119: 負債
C120: 流動負債 | E120: =IFERROR(E30/E$26,"") -> 0.3119919817 | F120: =IFERROR(F30/F$26,"") -> 0.2701816884 | G120: 0.1027262128 | H120: 0.0725659628 | I120: 0.07061994329 | J120: 0.08034486844 | K120: 0.07246665822 | L120: 0.06784408873 | M120: 0.1727887158 | N120: 0.1228125775 | O120: 0.1528497409 | P120: 0.1434186801 | Q120: 0.1298814896 | R120: 0.1309498783 | S120: 0.1000376126 | T120: 0.1225727971 | U120: 0.1487164507 | V120: 0.1638982418
C121: 固定負債 | E121: =IFERROR(E33/E$26,"") -> 0.03332264429 | F121: =IFERROR(F33/F$26,"") -> 0.03828641276 | G121: 0.01325757519 | H121: 0.0104628073 | I121: 0.006978917902 | J121: 0.02409731903 | K121: 0.03861242163 | L121: 0.04309199611 | M121: 0.02789925844 | N121: 0.07600518092 | O121: 0.08258171816 | P121: 0.06944644789 | Q121: 0.06616764845 | R121: 0.0530309709 | S121: 0.06988184863 | T121: 0.1044628602 | U121: 0.08825045534 | V121: 0.105998717
C122: 純資産
C123: 自己資本 | E123: =IFERROR((E39-E38)/E$26,"") -> 0.6546853809 | F123: =IFERROR((F39-F38)/F$26,"") -> 0.6915318977 | G123: 0.884016212 | H123: 0.9169712299 | I123: 0.9224011388 | J123: 0.8955578125 | K123: 0.8889209202 | L123: 0.8890639152 | M123: 0.7993120257 | N123: 0.8011822416 | O123: 0.7645685409 | P123: 0.787134872 | Q123: 0.8039508619 | R123: 0.8160191508 | S123: 0.8300805388 | T123: 0.7729643427 | U123: 0.7630330939 | V123: 0.7301030412
C124: 少数株主持分 | E124: =IFERROR(E38/E$26,"") -> 0 | F124: =IFERROR(F38/F$26,"") -> 0 | G124: 0 | H124: 0 | I124: 0 | J124: 0 | K124: 0 | L124: 0 | M124: 0 | N124: 0 | O124: 0 | P124: 0 | Q124: 0 | R124: 0 | S124: 0 | T124: 0 | U124: 0 | V124: 0

Sheet Alphabet (hidden)
B1: 会社名 | C1: Alphabet | E1: =E2&"0331" -> 20020331 | F1: 20030331 | G1: 20040331 | H1: 20050331 | I1: 20060331 | J1: 20070331 | K1: 20080331 | L1: 20090331 | M1: 20100331 | N1: 20110331 | O1: 20120331 | P1: 20130331 | Q1: 20140331 | R1: 20150331 | S1: 20160331 | T1: 20170331 | U1: 20180331 | V1: 20190331 | W1: 20200331 | X1: =X2&"0331" -> 20210331 | AA1: BS構成
A2: リンク | B2: Ticker | C2: GOOGL US Equity | E2: 2002 | F2: =E2+1 -> 2003 | G2: =F2+1 -> 2004 | H2: 2005 | I2: 2006 | J2: 2007 | K2: 2008 | L2: 2009 | M2: 2010 | N2: 2011 | O2: 2012 | P2: 2013 | Q2: =P2+1 -> 2014 | R2: =Q2+1 -> 2015 | S2: 2016 | T2: 2017 | U2: 2018 | V2: 2019 | W2: 2020 | X2: 2021
B3: 決算月 | C3: 12 | E3: =DATE(E$2,$C$3,31) -> 2002-12-31 | F3: =DATE(F$2,$C$3,31) -> 2003-12-31 | G3: 2004-12-31 | H3: 2005-12-31 | I3: 2006-12-31 | J3: 2007-12-31 | K3: 2008-12-31 | L3: 2009-12-31 | M3: 2010-12-31 | N3: 2011-12-31 | O3: 2012-12-31 | P3: 2013-12-31 | Q3: 2014-12-31 | R3: 2015-12-31 | S3: 2016-12-31 | T3: 2017-12-31 | U3: 2018-12-31 | V3: 2019-12-31 | W3: 2020-12-31 | X3: 2021-12-31
A4: 〇 | C4: 売上高 | D4: SALES_REV_TURN | E4: 439.507996 | F4: 1465.934 | G4: 3189.223 | H4: 6138.56 | I4: 10604.917 | J4: 16593.986 | K4: 21795.55 | L4: 23650.563 | M4: 29321 | N4: 37905 | O4: 46039 | P4: 55519 | Q4: 66001 | R4: 74989 | S4: 90272 | T4: 110855 | U4: 136819 | V4: 161857 | W4: =IF(_xll.BDP($C$2,$D4,"FUND_PER=Y","EQY_FUND_YEAR",W$2)="#N/A N/A","",_xll.BDP($C$2,$D4,"FUND_PER=Y","EQY_FUND_YEAR",W$2)) ->  | X4: =IF(_xll.BDP($C$2,$D4,"FUND_PER=Y","EQY_FUND_YEAR",X$2)="#N/A N/A","",_xll.BDP($C$2,$D4,"FUND_PER=Y","EQY_FUND_YEAR",X$2)) -> 
A5: 〇 | C5: 売上総利益 | D5: GROSS_PROFIT | E5: 307.998001 | F5: 840.08 | G5: 1731.57 | H5: 3567.051 | I5: 6379.89 | J5: 9944.901 | K5: 13174.044 | L5: 14806.448 | M5: 18904 | N5: 24717 | O5: 28863 | P5: 33526 | Q5: 40310 | R5: 46825 | S5: 55134 | T5: 65272 | U5: 77270 | V5: 89961 | W5: =IF(_xll.BDP($C$2,$D5,"FUND_PER=Y","EQY_FUND_YEAR",W$2)="#N/A N/A","",_xll.BDP($C$2,$D5,"FUND_PER=Y","EQY_FUND_YEAR",W$2)) ->  | X5: =IF(_xll.BDP($C$2,$D5,"FUND_PER=Y","EQY_FUND_YEAR",X$2)="#N/A N/A","",_xll.BDP($C$2,$D5,"FUND_PER=Y","EQY_FUND_YEAR",X$2)) -> 
A6: 〇 | C6: 営業利益 | D6: IS_OPER_INC | E6: 186.466003 | F6: 342.464 | G6: 841.192 | H6: 2107.278 | I6: 3549.996 | J6: 5084.4 | K6: 6631.969 | L6: 8312.186 | M6: 10381 | N6: 11742 | O6: 13834 | P6: 15403 | Q6: 16496 | R6: 19360 | S6: 23716 | T6: 26146 | U6: 27524 | V6: 34231 | W6: =IF(_xll.BDP($C$2,$D6,"FUND_PER=Y","EQY_FUND_YEAR",W$2)="#N/A N/A","",_xll.BDP($C$2,$D6,"FUND_PER=Y","EQY_FUND_YEAR",W$2)) ->  | X6: =IF(_xll.BDP($C$2,$D6,"FUND_PER=Y","EQY_FUND_YEAR",X$2)="#N/A N/A","",_xll.BDP($C$2,$D6,"FUND_PER=Y","EQY_FUND_YEAR",X$2)) -> 
A7: 〇 | C7: 純利益 | D7: ARD_NET_INC | E7: 99.656 | F7: 105.648 | G7: 399.119 | H7: 1465.397 | I7: 3077.446 | J7: 4203.72 | K7: 4226.858 | L7: 6520.448 | M7: 8505 | N7: 9737 | O7: 10737 | P7: 12733 | Q7: 14136 | R7: 16348 | S7: 19478 | T7: 12662 | U7: 30736 | V7: 34343 | W7: =IF(_xll.BDP($C$2,$D7,"FUND_PER=Y","EQY_FUND_YEAR",W$2)="#N/A N/A","",_xll.BDP($C$2,$D7,"FUND_PER=Y","EQY_FUND_YEAR",W$2)) ->  | X7: =IF(_xll.BDP($C$2,$D7,"FUND_PER=Y","EQY_FUND_YEAR",X$2)="#N/A N/A","",_xll.BDP($C$2,$D7,"FUND_PER=Y","EQY_FUND_YEAR",X$2)) -> 
A8: 〇 | C8: EBITDA | D8: EBITDA | E8: 204.496004 | F8: 392.649001 | G8: 989.665 | H8: 2401.09 | I8: 4121.935 | J8: 6052.058 | K8: 8131.856 | L8: 9836.494 | M8: 11777 | N8: 13593 | O8: 16796 | P8: 19342 | Q8: 21475 | R8: 24423 | S8: 29860 | T8: 33061 | U8: 36559 | V8: 47832 | W8: =IF(_xll.BDP($C$2,$D8,"FUND_PER=Y","EQY_FUND_YEAR",W$2)="#N/A N/A","",_xll.BDP($C$2,$D8,"FUND_PER=Y","EQY_FUND_YEAR",W$2)) ->  | X8: =IF(_xll.BDP($C$2,$D8,"FUND_PER=Y","EQY_FUND_YEAR",X$2)="#N/A N/A","",_xll.BDP($C$2,$D8,"FUND_PER=Y","EQY_FUND_YEAR",X$2)) -> 
A12: 〇 | C12: FCF | D12: CF_FREE_CASH_FLOW | E12: 118.066997 | F12: 218.644012 | G12: 658.049 | H12: 1621.205 | I12: 1677.71 | J12: 3372.57 | K12: 5494.396 | L12: 8506.31 | M12: 7063 | N12: 11127 | O12: 13346 | P12: 11301 | Q12: 11417 | R12: 16622 | S12: 25824 | T12: 23907 | U12: 22832 | V12: 30972 | W12: =IF(_xll.BDP($C$2,$D12,"FUND_PER=Y","EQY_FUND_YEAR",W$2)="#N/A N/A","",_xll.BDP($C$2,$D12,"FUND_PER=Y","EQY_FUND_YEAR",W$2)) ->  | X12: =IF(_xll.BDP($C$2,$D12,"FUND_PER=Y","EQY_FUND_YEAR",X$2)="#N/A N/A","",_xll.BDP($C$2,$D12,"FUND_PER=Y","EQY_FUND_YEAR",X$2)) -> 
A13: 〇 | C13: 1株当たり利益 | D13: IS_EPS | E13: 0.43 | F13: 0.385 | G13: 1.035 | H13: 2.655 | I13: 5.105 | J13: 6.765 | K13: 6.73 | L13: 10.31 | M13: 13.345 | N13: 15.085 | O13: 16.41 | P13: 19.129943 | Q13: 20.91 | R13: 23.11 | S13: 28.142966 | T13: 18.27 | U13: 44.22 | V13: 49.59 | W13: =IF(_xll.BDP($C$2,$D13,"FUND_PER=Y","EQY_FUND_YEAR",W$2)="#N/A N/A","",_xll.BDP($C$2,$D13,"FUND_PER=Y","EQY_FUND_YEAR",W$2)) ->  | X13: =IF(_xll.BDP($C$2,$D13,"FUND_PER=Y","EQY_FUND_YEAR",X$2)="#N/A N/A","",_xll.BDP($C$2,$D13,"FUND_PER=Y","EQY_FUND_YEAR",X$2)) -> 
A17: 〇 | C17: 現預金 | D17: C&CE_AND_STI_DETAILED | E17: 146.331001 | F17: 334.718002 | G17: 2132.297 | H17: 8034.247 | I17: 11243.914 | J17: 14218.613 | K17: 15845.771 | L17: 24484.775 | M17: 34975 | N17: 44626 | O17: 48088 | P17: 58717 | Q17: 64395 | R17: 73066 | S17: 86333 | T17: 101871 | U17: 109140 | V17: 119675 | W17: =IF(_xll.BDP($C$2,$D17,"FUND_PER=Y","EQY_FUND_YEAR",W$2)="#N/A N/A","",_xll.BDP($C$2,$D17,"FUND_PER=Y","EQY_FUND_YEAR",W$2)) ->  | X17: =IF(_xll.BDP($C$2,$D17,"FUND_PER=Y","EQY_FUND_YEAR",X$2)="#N/A N/A","",_xll.BDP($C$2,$D17,"FUND_PER=Y","EQY_FUND_YEAR",X$2)) -> 
A18: 〇 | C18: 売上債権 | D18: BS_ACCT_NOTE_RCV | E18: 61.993999 | F18: 154.690002 | G18: 311.836 | H18: 687.976 | I18: 1322.34 | J18: 2162.521 | K18: 2642.192 | L18: 3178.471 | M18: 4252 | N18: 5427 | O18: 7885 | P18: 8882 | Q18: 9383 | R18: 11556 | S18: 14137 | T18: 18336 | U18: 20838 | V18: 25326 | W18: =IF(_xll.BDP($C$2,$D18,"FUND_PER=Y","EQY_FUND_YEAR",W$2)="#N/A N/A","",_xll.BDP($C$2,$D18,"FUND_PER=Y","EQY_FUND_YEAR",W$2)) ->  | X18: =IF(_xll.BDP($C$2,$D18,"FUND_PER=Y","EQY_FUND_YEAR",X$2)="#N/A N/A","",_xll.BDP($C$2,$D18,"FUND_PER=Y","EQY_FUND_YEAR",X$2)) -> 
A19: 〇 | C19: 棚卸資産 | D19: BS_INVENTORIES | E19: 0 | F19: 0 | G19: 0 | H19: 0 | I19: 0 | J19: 0 | K19: 0 | L19: 0 | M19: 0 | N19: 0 | O19: 505 | P19: 426 | Q19: 0 | R19: 491 | S19: 268 | T19: 749 | U19: 1107 | V19: 999 | W19: =IF(_xll.BDP($C$2,$D19,"FUND_PER=Y","EQY_FUND_YEAR",W$2)="#N/A N/A","",_xll.BDP($C$2,$D19,"FUND_PER=Y","EQY_FUND_YEAR",W$2)) ->  | X19: =IF(_xll.BDP($C$2,$D19,"FUND_PER=Y","EQY_FUND_YEAR",X$2)="#N/A N/A","",_xll.BDP($C$2,$D19,"FUND_PER=Y","EQY_FUND_YEAR",X$2)) -> 
A20: 〇 | C20: 流動資産 | D20: ARD_TOTAL_CUR_ASSETS | G20: 2693.465 | H20: 9001.071 | I20: 13039.847 | J20: 17289.138 | K20: 20178.182 | L20: 29166.958 | M20: 41562 | N20: 52758 | O20: 60454 | P20: 72886 | Q20: 78656 | R20: 90114 | S20: 105408 | T20: 124308 | U20: 135676 | V20: 152578 | W20: =IF(_xll.BDP($C$2,$D20,"FUND_PER=Y","EQY_FUND_YEAR",W$2)="#N/A N/A","",_xll.BDP($C$2,$D20,"FUND_PER=Y","EQY_FUND_YEAR",W$2)) ->  | X20: =IF(_xll.BDP($C$2,$D20,"FUND_PER=Y","EQY_FUND_YEAR",X$2)="#N/A N/A","",_xll.BDP($C$2,$D20,"FUND_PER=Y","EQY_FUND_YEAR",X$2)) -> 
A21: 〇 | C21: 固定資産（純額） | D21: BS_NET_FIX_ASSET | E21: 53.873001 | F21: 188.255005 | G21: 378.916 | H21: 961.749 | I21: 2395.239 | J21: 4039.261 | K21: 5233.843 | L21: 4844.61 | M21: 7759 | N21: 9603 | O21: 11854 | P21: 16524 | Q21: 23883 | R21: 29016 | S21: 34234 | T21: 42383 | U21: 59719 | V21: 84587 | W21: =IF(_xll.BDP($C$2,$D21,"FUND_PER=Y","EQY_FUND_YEAR",W$2)="#N/A N/A","",_xll.BDP($C$2,$D21,"FUND_PER=Y","EQY_FUND_YEAR",W$2)) ->  | X21: =IF(_xll.BDP($C$2,$D21,"FUND_PER=Y","EQY_FUND_YEAR",X$2)="#N/A N/A","",_xll.BDP($C$2,$D21,"FUND_PER=Y","EQY_FUND_YEAR",X$2)) -> 
A22: 〇 | C22: 総長期投資 | D22: BS_LT_INVEST | E22: 0 | F22: 0 | G22: 0 | H22: 0 | I22: 1031.85 | J22: 1059.694 | K22: 85.16 | L22: 128.977 | M22: 523 | N22: 790 | O22: 1469 | P22: 1976 | Q22: 3079 | R22: 5183 | S22: 5878 | T22: 7813 | U22: 13859 | V22: 13078 | W22: =IF(_xll.BDP($C$2,$D22,"FUND_PER=Y","EQY_FUND_YEAR",W$2)="#N/A N/A","",_xll.BDP($C$2,$D22,"FUND_PER=Y","EQY_FUND_YEAR",W$2)) ->  | X22: =IF(_xll.BDP($C$2,$D22,"FUND_PER=Y","EQY_FUND_YEAR",X$2)="#N/A N/A","",_xll.BDP($C$2,$D22,"FUND_PER=Y","EQY_FUND_YEAR",X$2)) -> 
A23: 〇 | C23: その他の固定資産 | D23: BS_OTHER_ASSETS_DEF_CHRG_OTHER | E23: 1.223 | F23: 122.969002 | G23: 240.97 | H23: 308.993 | I23: 2006.415 | J23: 2947.713 | K23: 6270.39 | L23: 6356.233 | M23: 8007 | N23: 9423 | O23: 20021 | P23: 19534 | Q23: 23569 | R23: 23148 | S23: 21977 | T23: 22791 | U23: 23538 | V23: 25666 | W23: =IF(_xll.BDP($C$2,$D23,"FUND_PER=Y","EQY_FUND_YEAR",W$2)="#N/A N/A","",_xll.BDP($C$2,$D23,"FUND_PER=Y","EQY_FUND_YEAR",W$2)) ->  | X23: =IF(_xll.BDP($C$2,$D23,"FUND_PER=Y","EQY_FUND_YEAR",X$2)="#N/A N/A","",_xll.BDP($C$2,$D23,"FUND_PER=Y","EQY_FUND_YEAR",X$2)) -> 
A24: 〇 | C24: のれん | D24: ARD_GOODWLL | G24: 122.818 | H24: 194.9 | I24: 1545.119 | J24: 2299.368 | K24: 4839.854 | L24: 4902.565 | M24: 6256 | N24: 7346 | O24: 10537 | P24: 11492 | Q24: 15599 | R24: 15869 | S24: 16468 | T24: 16747 | U24: 17888 | V24: 20624 | W24: =IF(_xll.BDP($C$2,$D24,"FUND_PER=Y","EQY_FUND_YEAR",W$2)="#N/A N/A","",_xll.BDP($C$2,$D24,"FUND_PER=Y","EQY_FUND_YEAR",W$2)) ->  | X24: =IF(_xll.BDP($C$2,$D24,"FUND_PER=Y","EQY_FUND_YEAR",X$2)="#N/A N/A","",_xll.BDP($C$2,$D24,"FUND_PER=Y","EQY_FUND_YEAR",X$2)) -> 
A25: 〇 | C25: 非流動資産合計 | D25: BS_TOT_NON_CUR_ASSET | E25: 55.096001 | F25: 311.224007 | G25: 619.886 | H25: 1270.742 | I25: 5433.504 | J25: 8046.668 | K25: 11589.393 | L25: 11329.82 | M25: 16289 | N25: 19816 | O25: 33344 | P25: 38034 | Q25: 50531 | R25: 57347 | S25: 62089 | T25: 72987 | U25: 97116 | V25: 123331 | W25: =IF(_xll.BDP($C$2,$D25,"FUND_PER=Y","EQY_FUND_YEAR",W$2)="#N/A N/A","",_xll.BDP($C$2,$D25,"FUND_PER=Y","EQY_FUND_YEAR",W$2)) ->  | X25: =IF(_xll.BDP($C$2,$D25,"FUND_PER=Y","EQY_FUND_YEAR",X$2)="#N/A N/A","",_xll.BDP($C$2,$D25,"FUND_PER=Y","EQY_FUND_YEAR",X$2)) -> 
A26: 〇 | C26: 総資産 | D26: BS_TOT_ASSET | E26: 286.891998 | F26: 871.458008 | G26: 3313.351 | H26: 10271.813 | I26: 18473.351 | J26: 25335.806 | K26: 31767.575 | L26: 40496.778 | M26: 57851 | N26: 72574 | O26: 93798 | P26: 110920 | Q26: 129187 | R26: 147461 | S26: 167497 | T26: 197295 | U26: 232792 | V26: 275909 | W26: =IF(_xll.BDP($C$2,$D26,"FUND_PER=Y","EQY_FUND_YEAR",W$2)="#N/A N/A","",_xll.BDP($C$2,$D26,"FUND_PER=Y","EQY_FUND_YEAR",W$2)) ->  | X26: =IF(_xll.BDP($C$2,$D26,"FUND_PER=Y","EQY_FUND_YEAR",X$2)="#N/A N/A","",_xll.BDP($C$2,$D26,"FUND_PER=Y","EQY_FUND_YEAR",X$2)) -> 
A27: 〇 | C27: 買掛金・未払金 | D27: ACCT_PAYABLE_&_ACCRUALS_DETAILED | E27: 9.394 | F27: 46.174999 | G27: 32.672 | H27: 115.575 | I27: 211.169 | J27: 282.106 | K27: 178.004 | L27: 2462.05 | M27: 3768 | N27: 5135 | O27: 9213 | P27: 10459 | Q27: 11236 | R27: 12853 | S27: 15535 | T27: 22399 | U27: 32603 | V27: 41745 | W27: =IF(_xll.BDP($C$2,$D27,"FUND_PER=Y","EQY_FUND_YEAR",W$2)="#N/A N/A","",_xll.BDP($C$2,$D27,"FUND_PER=Y","EQY_FUND_YEAR",W$2)) ->  | X27: =IF(_xll.BDP($C$2,$D27,"FUND_PER=Y","EQY_FUND_YEAR",X$2)="#N/A N/A","",_xll.BDP($C$2,$D27,"FUND_PER=Y","EQY_FUND_YEAR",X$2)) -> 
A28: 〇 | C28: 短期有利子負債 | D28: BS_ST_BORROW | E28: 4.35 | F28: 4.621 | G28: 1.902 | H28: 0 | I28: 0 | J28: 0 | K28: 0 | L28: 0 | M28: 3465 | N28: 1218 | O28: 2549 | P28: 3009 | Q28: 2009 | R28: 3225 | S28: 0 | T28: 0 | U28: 0 | V28: 1199 | W28: =IF(_xll.BDP($C$2,$D28,"FUND_PER=Y","EQY_FUND_YEAR",W$2)="#N/A N/A","",_xll.BDP($C$2,$D28,"FUND_PER=Y","EQY_FUND_YEAR",W$2)) ->  | X28: =IF(_xll.BDP($C$2,$D28,"FUND_PER=Y","EQY_FUND_YEAR",X$2)="#N/A N/A","",_xll.BDP($C$2,$D28,"FUND_PER=Y","EQY_FUND_YEAR",X$2)) -> 
A29: 〇 | C29: その他流動資産 | D29: OTHER_CURRENT_LIABS_SUB_DETAILED | E29: 75.764003 | F29: 184.655997 | G29: 305.794 | H29: 629.809 | I29: 1093.418 | J29: 1753.496 | K29: 2124.086 | L29: 285.417 | M29: 2763 | N29: 2560 | O29: 2575 | P29: 2440 | Q29: 3534 | R29: 3232 | S29: 1221 | T29: 1784 | U29: 2017 | V29: 2277 | W29: =IF(_xll.BDP($C$2,$D29,"FUND_PER=Y","EQY_FUND_YEAR",W$2)="#N/A N/A","",_xll.BDP($C$2,$D29,"FUND_PER=Y","EQY_FUND_YEAR",W$2)) ->  | X29: =IF(_xll.BDP($C$2,$D29,"FUND_PER=Y","EQY_FUND_YEAR",X$2)="#N/A N/A","",_xll.BDP($C$2,$D29,"FUND_PER=Y","EQY_FUND_YEAR",X$2)) -> 
A30: 〇 | C30: 流動負債 合計 | D30: BS_CUR_LIAB | E30: 89.508003 | F30: 235.451996 | G30: 340.368 | H30: 745.384 | I30: 1304.587 | J30: 2035.602 | K30: 2302.09 | L30: 2747.467 | M30: 9996 | N30: 8913 | O30: 14337 | P30: 15908 | Q30: 16779 | R30: 19310 | S30: 16756 | T30: 24183 | U30: 34620 | V30: 45221 | W30: =IF(_xll.BDP($C$2,$D30,"FUND_PER=Y","EQY_FUND_YEAR",W$2)="#N/A N/A","",_xll.BDP($C$2,$D30,"FUND_PER=Y","EQY_FUND_YEAR",W$2)) ->  | X30: =IF(_xll.BDP($C$2,$D30,"FUND_PER=Y","EQY_FUND_YEAR",X$2)="#N/A N/A","",_xll.BDP($C$2,$D30,"FUND_PER=Y","EQY_FUND_YEAR",X$2)) -> 
A31: 〇 | C31: 長期有利子負債 | D31: BS_LT_BORROW | E31: 6.512 | F31: 1.988 | G31: 0 | H31: 0 | I31: 0 | J31: 0 | K31: 0 | L31: 0 | M31: 0 | N31: 2986 | O31: 2988 | P31: 2236 | Q31: 3228 | R31: 1995 | S31: 3935 | T31: 3969 | U31: 4012 | V31: 14768 | W31: =IF(_xll.BDP($C$2,$D31,"FUND_PER=Y","EQY_FUND_YEAR",W$2)="#N/A N/A","",_xll.BDP($C$2,$D31,"FUND_PER=Y","EQY_FUND_YEAR",W$2)) ->  | X31: =IF(_xll.BDP($C$2,$D31,"FUND_PER=Y","EQY_FUND_YEAR",X$2)="#N/A N/A","",_xll.BDP($C$2,$D31,"FUND_PER=Y","EQY_FUND_YEAR",X$2)) -> 
A32: 〇 | C32: その他の固定負債 | D32: OTHER_NONCUR_LIABS_SUB_DETAILED | E32: 3.048 | F32: 31.377001 | G32: 43.927 | H32: 107.472 | I32: 128.924 | J32: 610.525 | K32: 1226.623 | L32: 1745.087 | M32: 1614 | N32: 2530 | O32: 4758 | P32: 5467 | Q32: 5320 | R32: 5825 | S32: 7770 | T32: 16641 | U32: 16532 | V32: 14478 | W32: =IF(_xll.BDP($C$2,$D32,"FUND_PER=Y","EQY_FUND_YEAR",W$2)="#N/A N/A","",_xll.BDP($C$2,$D32,"FUND_PER=Y","EQY_FUND_YEAR",W$2)) ->  | X32: =IF(_xll.BDP($C$2,$D32,"FUND_PER=Y","EQY_FUND_YEAR",X$2)="#N/A N/A","",_xll.BDP($C$2,$D32,"FUND_PER=Y","EQY_FUND_YEAR",X$2)) -> 
A33: 〇 | C33: 非流動負債 合計 | D33: NON_CUR_LIAB | E33: 9.56 | F33: 33.365001 | G33: 43.927 | H33: 107.472 | I33: 128.924 | J33: 610.525 | K33: 1226.623 | L33: 1745.087 | M33: 1614 | N33: 5516 | O33: 7746 | P33: 7703 | Q33: 8548 | R33: 7820 | S33: 11705 | T33: 20610 | U33: 20544 | V33: 29246 | W33: =IF(_xll.BDP($C$2,$D33,"FUND_PER=Y","EQY_FUND_YEAR",W$2)="#N/A N/A","",_xll.BDP($C$2,$D33,"FUND_PER=Y","EQY_FUND_YEAR",W$2)) ->  | X33: =IF(_xll.BDP($C$2,$D33,"FUND_PER=Y","EQY_FUND_YEAR",X$2)="#N/A N/A","",_xll.BDP($C$2,$D33,"FUND_PER=Y","EQY_FUND_YEAR",X$2)) -> 
A34: 〇 | C34: 資本金・資本剰余金 | D34: BS_SH_CAP_AND_APIC | E34: 83.555 | F34: 725.380005 | G34: 2582.619 | H34: 7478.085 | I34: 11883.215 | J34: 13241.534 | K34: 14450.653 | L34: 15817.056 | M34: 18235 | N34: 20264 | O34: 22835 | P34: 25922 | Q34: 28767 | R34: 32982 | S34: 36307 | T34: 40247 | U34: 45049 | V34: 50552 | W34: =IF(_xll.BDP($C$2,$D34,"FUND_PER=Y","EQY_FUND_YEAR",W$2)="#N/A N/A","",_xll.BDP($C$2,$D34,"FUND_PER=Y","EQY_FUND_YEAR",W$2)) ->  | X34: =IF(_xll.BDP($C$2,$D34,"FUND_PER=Y","EQY_FUND_YEAR",X$2)="#N/A N/A","",_xll.BDP($C$2,$D34,"FUND_PER=Y","EQY_FUND_YEAR",X$2)) -> 
A35: 〇 | C35: 自己株式 | D35: BS_AMT_OF_TSY_STOCK | E35: 0 | G35: 0 | H35: 0 | I35: 0 | J35: 0 | K35: 0 | L35: 0 | M35: 0 | N35: 0 | O35: 0 | P35: 0 | Q35: 0 | R35: 0 | S35: 0 | T35: 0 | U35: 0 | V35: 0 | W35: =IF(_xll.BDP($C$2,$D35,"FUND_PER=Y","EQY_FUND_YEAR",W$2)="#N/A N/A","",_xll.BDP($C$2,$D35,"FUND_PER=Y","EQY_FUND_YEAR",W$2)) ->  | X35: =IF(_xll.BDP($C$2,$D35,"FUND_PER=Y","EQY_FUND_YEAR",X$2)="#N/A N/A","",_xll.BDP($C$2,$D35,"FUND_PER=Y","EQY_FUND_YEAR",X$2)) ->  | AA35: ROE分析
A36: 〇 | C36: 利益剰余金 | D36: BS_PURE_RETAINED_EARNINGS | E36: 85.704002 | F36: 191.352005 | G36: 590.471 | H36: 2055.868 | I36: 5133.314 | J36: 9334.772 | K36: 13561.63 | L36: 20082.078 | M36: 27868 | N36: 37605 | O36: 48342 | P36: 61262 | Q36: 75066 | R36: 89223 | S36: 105131 | T36: 113247 | U36: 134885 | V36: 152122 | W36: =IF(_xll.BDP($C$2,$D36,"FUND_PER=Y","EQY_FUND_YEAR",W$2)="#N/A N/A","",_xll.BDP($C$2,$D36,"FUND_PER=Y","EQY_FUND_YEAR",W$2)) ->  | X36: =IF(_xll.BDP($C$2,$D36,"FUND_PER=Y","EQY_FUND_YEAR",X$2)="#N/A N/A","",_xll.BDP($C$2,$D36,"FUND_PER=Y","EQY_FUND_YEAR",X$2)) -> 
A37: 〇 | C37: その他持分 | D37: OTHER_EQUITY_RATIO | E37: -39.652004 | F37: -372.307999 | G37: -244.034 | H37: -114.996 | I37: 23.311 | J37: 113.373 | K37: 226.579 | L37: 105.09 | M37: 138 | N37: 276 | O37: 538 | P37: 125 | Q37: 27 | R37: -1874 | S37: -2402 | T37: -992 | U37: -2306 | V37: -1232 | W37: =IF(_xll.BDP($C$2,$D37,"FUND_PER=Y","EQY_FUND_YEAR",W$2)="#N/A N/A","",_xll.BDP($C$2,$D37,"FUND_PER=Y","EQY_FUND_YEAR",W$2)) ->  | X37: =IF(_xll.BDP($C$2,$D37,"FUND_PER=Y","EQY_FUND_YEAR",X$2)="#N/A N/A","",_xll.BDP($C$2,$D37,"FUND_PER=Y","EQY_FUND_YEAR",X$2)) -> 
A38: 〇 | C38: 少数株主持分 | D38: MINORITY_NONCONTROLLING_INTEREST | E38: 0 | F38: 0 | G38: 0 | H38: 0 | I38: 0 | J38: 0 | K38: 0 | L38: 0 | M38: 0 | N38: 0 | O38: 0 | P38: 0 | Q38: 0 | R38: 0 | S38: 0 | T38: 0 | U38: 0 | V38: 0 | W38: =IF(_xll.BDP($C$2,$D38,"FUND_PER=Y","EQY_FUND_YEAR",W$2)="#N/A N/A","",_xll.BDP($C$2,$D38,"FUND_PER=Y","EQY_FUND_YEAR",W$2)) ->  | X38: =IF(_xll.BDP($C$2,$D38,"FUND_PER=Y","EQY_FUND_YEAR",X$2)="#N/A N/A","",_xll.BDP($C$2,$D38,"FUND_PER=Y","EQY_FUND_YEAR",X$2)) -> 
A39: 〇 | C39: 純資産 | D39: TOTAL_EQUITY | E39: 187.823997 | F39: 602.64101 | G39: 2929.056 | H39: 9418.957 | I39: 17039.84 | J39: 22689.679 | K39: 28238.862 | L39: 36004.224 | M39: 46241 | N39: 58145 | O39: 71715 | P39: 87309 | Q39: 103860 | R39: 120331 | S39: 139036 | T39: 152502 | U39: 177628 | V39: 201442 | W39: =IF(_xll.BDP($C$2,$D39,"FUND_PER=Y","EQY_FUND_YEAR",W$2)="#N/A N/A","",_xll.BDP($C$2,$D39,"FUND_PER=Y","EQY_FUND_YEAR",W$2)) ->  | X39: =IF(_xll.BDP($C$2,$D39,"FUND_PER=Y","EQY_FUND_YEAR",X$2)="#N/A N/A","",_xll.BDP($C$2,$D39,"FUND_PER=Y","EQY_FUND_YEAR",X$2)) -> 
A42: 〇 | C42: 1株当たり配当 | D42: IS_DIV_PER_SHR | E42: 0 | F42: 0 | G42: 0 | H42: 0 | I42: 0 | J42: 0 | K42: 0 | L42: 0 | M42: 0 | N42: 0 | O42: 0 | P42: 0 | Q42: 0 | R42: 0 | S42: 0 | T42: 0 | U42: 0 | V42: 0 | W42: =IF(_xll.BDP($C$2,$D42,"FUND_PER=Y","EQY_FUND_YEAR",W$2)="#N/A N/A","",_xll.BDP($C$2,$D42,"FUND_PER=Y","EQY_FUND_YEAR",W$2)) ->  | X42: =IF(_xll.BDP($C$2,$D42,"FUND_PER=Y","EQY_FUND_YEAR",X$2)="#N/A N/A","",_xll.BDP($C$2,$D42,"FUND_PER=Y","EQY_FUND_YEAR",X$2)) -> 
A44: 〇 | C44: 営業CF | D44: CF_CASH_FROM_OPER | E44: 155.264999 | F44: 395.445007 | G44: 977.044 | H44: 2459.422 | I44: 3580.508 | J44: 5775.41 | K44: 7852.857 | L44: 9316.198 | M44: 11081 | N44: 14565 | O44: 16619 | P44: 18659 | Q44: 22376 | R44: 26572 | S44: 36036 | T44: 37091 | U44: 47971 | V44: 54520 | W44: =IF(_xll.BDP($C$2,$D44,"FUND_PER=Y","EQY_FUND_YEAR",W$2)="#N/A N/A","",_xll.BDP($C$2,$D44,"FUND_PER=Y","EQY_FUND_YEAR",W$2)) ->  | X44: =IF(_xll.BDP($C$2,$D44,"FUND_PER=Y","EQY_FUND_YEAR",X$2)="#N/A N/A","",_xll.BDP($C$2,$D44,"FUND_PER=Y","EQY_FUND_YEAR",X$2)) -> 
A45: 〇 | C45: 投資CF | D45: CF_CASH_FROM_INV_ACT | E45: -109.717003 | F45: -313.95401 | G45: -1901.356 | H45: -3358.193 | I45: -6899.15 | J45: -3681.589 | K45: -5319.422 | L45: -8019.205 | M45: -10680 | N45: -19041 | O45: -13056 | P45: -13679 | Q45: -21055 | R45: -23711 | S45: -31165 | T45: -31401 | U45: -28504 | V45: -29491 | W45: =IF(_xll.BDP($C$2,$D45,"FUND_PER=Y","EQY_FUND_YEAR",W$2)="#N/A N/A","",_xll.BDP($C$2,$D45,"FUND_PER=Y","EQY_FUND_YEAR",W$2)) ->  | X45: =IF(_xll.BDP($C$2,$D45,"FUND_PER=Y","EQY_FUND_YEAR",X$2)="#N/A N/A","",_xll.BDP($C$2,$D45,"FUND_PER=Y","EQY_FUND_YEAR",X$2)) -> 
A46: 〇 | C46: 財務CF | D46: CFF_ACTIVITIES_DETAILED | E46: -5.473 | F46: 9.752 | G46: 1202.19 | H46: 4349.072 | I46: 2986.139 | J46: 443.101 | K46: 41.644 | L46: 233.412 | M46: 3050 | N46: 807 | O46: 1229 | P46: -857 | Q46: -1439 | R46: -4225 | S46: -8332 | T46: -8298 | U46: -13179 | V46: -23209 | W46: =IF(_xll.BDP($C$2,$D46,"FUND_PER=Y","EQY_FUND_YEAR",W$2)="#N/A N/A","",_xll.BDP($C$2,$D46,"FUND_PER=Y","EQY_FUND_YEAR",W$2)) ->  | X46: =IF(_xll.BDP($C$2,$D46,"FUND_PER=Y","EQY_FUND_YEAR",X$2)="#N/A N/A","",_xll.BDP($C$2,$D46,"FUND_PER=Y","EQY_FUND_YEAR",X$2)) -> 
C47: 投資CF(グラフ用） | E47: 109.717003 | F47: 313.95401 | G47: 1901.356 | H47: 3358.193 | I47: 6899.15 | J47: 3681.589 | K47: 5319.422 | L47: 8019.205 | M47: 10680 | N47: 19041 | O47: 13056 | P47: 13679 | Q47: 21055 | R47: 23711 | S47: 31165 | T47: 31401 | U47: 28504 | V47: 29491 | W47: =-W45 -> 
A48: 〇 | C48: 財務CF（グラフ用） | D48: CF_DVD_PAID | E48: 5.473 | F48: -9.752 | G48: -1202.19 | H48: -4349.072 | I48: -2986.139 | J48: -443.101 | K48: -41.644 | L48: -233.412 | M48: -3050 | N48: -807 | O48: -1229 | P48: 857 | Q48: 1439 | R48: 4225 | S48: 8332 | T48: 8298 | U48: 13179 | V48: 23209
A49: 〇 | C49: 配当金支払い | D49: CF_DVD_PAID | E49: 0 | F49: 0 | G49: 0 | H49: 0 | I49: 0 | J49: 0 | K49: 0 | L49: 0 | M49: 0 | N49: 0 | O49: 0 | P49: 0 | Q49: 0 | R49: 0 | S49: 0 | T49: 0 | U49: 0 | V49: 0 | W49: =IF(_xll.BDP($C$2,$D49,"FUND_PER=Y","EQY_FUND_YEAR",W$2)="#N/A N/A","",_xll.BDP($C$2,$D49,"FUND_PER=Y","EQY_FUND_YEAR",W$2)) ->  | X49: =IF(_xll.BDP($C$2,$D49,"FUND_PER=Y","EQY_FUND_YEAR",X$2)="#N/A N/A","",_xll.BDP($C$2,$D49,"FUND_PER=Y","EQY_FUND_YEAR",X$2)) -> 
C50: 株価
A51: 〇 | C51: PER | D51: PE_RATIO | G51: 76.80876494 | H51: 72.78245614 | I51: 48.98723404 | J51: 52.03009782 | K51: 18.4442446 | L51: 30.67212411 | M51: 22.89960852 | N51: 21.19986023 | O51: 20.89090751 | P51: 28.81274181 | Q51: 26.54571805 | R51: 33.57462302 | S51: 30.13763137 | T51: 30.09824273 | U51: 23.94061035 | V51: 27.68310941 | W51: =IF(_xll.BDP($C$2,$D51,"FUND_PER=Y","EQY_FUND_YEAR",W$2)="#N/A N/A","",_xll.BDP($C$2,$D51,"FUND_PER=Y","EQY_FUND_YEAR",W$2)) ->  | X51: =IF(_xll.BDP($C$2,$D51,"FUND_PER=Y","EQY_FUND_YEAR",X$2)="#N/A N/A","",_xll.BDP($C$2,$D51,"FUND_PER=Y","EQY_FUND_YEAR",X$2)) -> 
A52: 〇 | C52: EPS | D52: IS_EPS | E52: 0.43 | F52: 0.385 | G52: 1.035 | H52: 2.655 | I52: 5.105 | J52: 6.765 | K52: 6.73 | L52: 10.31 | M52: 13.345 | N52: 15.085 | O52: 16.41 | P52: 19.129943 | Q52: 20.91 | R52: 23.11 | S52: 28.142966 | T52: 18.27 | U52: 44.22 | V52: 49.59 | W52: =IF(_xll.BDP($C$2,$D52,"FUND_PER=Y","EQY_FUND_YEAR",W$2)="#N/A N/A","",_xll.BDP($C$2,$D52,"FUND_PER=Y","EQY_FUND_YEAR",W$2)) ->  | X52: =IF(_xll.BDP($C$2,$D52,"FUND_PER=Y","EQY_FUND_YEAR",X$2)="#N/A N/A","",_xll.BDP($C$2,$D52,"FUND_PER=Y","EQY_FUND_YEAR",X$2)) -> 
A53: 〇 | C53: 時価総額 | D53: HISTORICAL_MARKET_CAP | G53: 51458.92843 | H53: 121565.1812 | I53: 142286.9386 | J53: 216375.8472 | K53: 96944.8221 | L53: 197012.2846 | M53: 190843.155 | N53: 209849.6805 | O53: 233420.545 | P53: 376371.4048 | Q53: 359376.6225 | R53: 527687.3689 | S53: 540170.0351 | T53: 729274.6282 | U53: 723340.7008 | V53: 921949.0157 | W53: =IF(_xll.BDP($C$2,$D53,"FUND_PER=Y","EQY_FUND_YEAR",W$2)="#N/A N/A","",_xll.BDP($C$2,$D53,"FUND_PER=Y","EQY_FUND_YEAR",W$2)) ->  | X53: =IF(_xll.BDP($C$2,$D53,"FUND_PER=Y","EQY_FUND_YEAR",X$2)="#N/A N/A","",_xll.BDP($C$2,$D53,"FUND_PER=Y","EQY_FUND_YEAR",X$2)) -> 
A54: 〇 | C54: 発行済株式数（自己株除き） | D54: BS_SH_OUT | G54: 533.834 | H54: 586.054 | I54: 617.994 | J54: 625.834 | K54: 630.228 | L54: 635.544 | M54: 642.602 | N54: 649.79 | O54: 659.958 | P54: 671.666006 | Q54: 680.172 | R54: 687.348 | S54: 691.293 | T54: 694.783 | U54: 695.556 | V54: 688.335 | W54: =IF(_xll.BDP($C$2,$D54,"FUND_PER=Y","EQY_FUND_YEAR",W$2)="#N/A N/A","",_xll.BDP($C$2,$D54,"FUND_PER=Y","EQY_FUND_YEAR",W$2)) ->  | X54: =IF(_xll.BDP($C$2,$D54,"FUND_PER=Y","EQY_FUND_YEAR",X$2)="#N/A N/A","",_xll.BDP($C$2,$D54,"FUND_PER=Y","EQY_FUND_YEAR",X$2)) -> 
C55: 株価 | D55: 時価総額÷発行済み株式数 | G55: 96.395 | H55: 207.43 | I55: 230.24 | J55: 345.74 | K55: 153.825 | L55: 309.99 | M55: 296.985 | N55: 322.95 | O55: 353.69 | P55: 560.355 | Q55: 528.3613888 | R55: 767.7149987 | S55: 781.3908648 | T55: 1049.643742 | U55: 1039.94603 | V55: 1339.39 | W55: =W53/W54 -> 
C57: 格付 | AA57: =E2 -> 2002 | AB57: =F2 -> 2003 | AC57: 2004 | AD57: 2005 | AE57: 2006 | AF57: 2007 | AG57: 2008 | AH57: 2009 | AI57: 2010 | AJ57: 2011 | AK57: 2012 | AL57: 2013 | AM57: 2014 | AN57: 2015 | AO57: 2016 | AP57: 2017 | AQ57: 2018 | AR57: 2019 | AS57: 2020 | AT57: 2021
A58: 〇 | C58: S&P | D58: RTG_SP_LT_LC_ISSUER_CREDIT | E58: AA+ | F58: AA+ | G58: AA+ | H58: AA+ | I58: AA+ | J58: AA+ | K58: AA+ | L58: AA+ | M58: AA+ | N58: AA+ | O58: AA+ | P58: AA+ | Q58: AA+ | R58: AA+ | S58: AA+ | T58: AA+ | U58: AA+ | V58: AA+ | W58: =IF(_xll.BDP($C$2,$D58,"FUND_PER=Y","EQY_FUND_YEAR",W$2)="#N/A N/A","",_xll.BDP($C$2,$D58,"FUND_PER=Y","EQY_FUND_YEAR",W$2)) -> AA+ | X58: =IF(_xll.BDP($C$2,$D58,"FUND_PER=Y","EQY_FUND_YEAR",X$2)="#N/A N/A","",_xll.BDP($C$2,$D58,"FUND_PER=Y","EQY_FUND_YEAR",X$2)) -> AA+ | Z58: =C99 -> PBR | AA58: =E99 ->  | AC58: 17.56843448 | AD58: 12.90643765 | AE58: 8.350250857 | AF58: 9.536311517 | AG58: 3.433028643 | AH58: 5.471921421 | AI58: 4.127141605 | AJ58: 3.609075252 | AK58: 3.254835739 | AL58: 4.310797338 | AM58: 3.460202412 | AN58: 4.385298626 | AO58: 3.885109145 | AP58: 4.782065994 | AQ58: =U99 -> 4.072222289 | AR58: 4.576746734
A59: 〇 | C59: Moody's | D59: RTG_MDY_ISSUER | E59: Aa2 | F59: Aa2 | G59: Aa2 | H59: Aa2 | I59: Aa2 | J59: Aa2 | K59: Aa2 | L59: Aa2 | M59: Aa2 | N59: Aa2 | O59: Aa2 | P59: Aa2 | Q59: Aa2 | R59: Aa2 | S59: Aa2 | T59: Aa2 | U59: Aa2 | V59: Aa2 | W59: =IF(_xll.BDP($C$2,$D59,"FUND_PER=Y","EQY_FUND_YEAR",W$2)="#N/A N/A","",_xll.BDP($C$2,$D59,"FUND_PER=Y","EQY_FUND_YEAR",W$2)) -> Aa2 | X59: =IF(_xll.BDP($C$2,$D59,"FUND_PER=Y","EQY_FUND_YEAR",X$2)="#N/A N/A","",_xll.BDP($C$2,$D59,"FUND_PER=Y","EQY_FUND_YEAR",X$2)) -> Aa2 | Z59: =C100 -> PER | AC59: 76.80876494 | AD59: 72.78245614 | AE59: 48.98723404 | AF59: 52.03009782 | AG59: 18.4442446 | AH59: 30.67212411 | AI59: 22.89960852 | AJ59: 21.19986023 | AK59: 20.89090751 | AL59: 28.81274181 | AM59: 26.54571805 | AN59: 33.57462302 | AO59: 30.13763137 | AP59: 30.09824273 | AQ59: 23.94061035 | AR59: 27.68310941
A60: 〇 | C60: R&I | D60: RTG_RI_ISSUER_RATING | W60: =IF(_xll.BDP($C$2,$D60,"FUND_PER=Y","EQY_FUND_YEAR",W$2)="#N/A N/A","",_xll.BDP($C$2,$D60,"FUND_PER=Y","EQY_FUND_YEAR",W$2)) ->  | X60: =IF(_xll.BDP($C$2,$D60,"FUND_PER=Y","EQY_FUND_YEAR",X$2)="#N/A N/A","",_xll.BDP($C$2,$D60,"FUND_PER=Y","EQY_FUND_YEAR",X$2)) ->  | Z60: ROE | AB60: 0.3134811265 | AC60: 0.2298092972 | AD60: 0.2373494424 | AE60: 0.2326217628 | AF60: 0.2116169592 | AG60: 0.1659917177 | AH60: 0.2029929882 | AI60: 0.2068205201 | AJ60: 0.1865575844 | AK60: 0.1653626983 | AL60: 0.16013935 | AM60: 0.1478900868 | AN60: 0.1411831875 | AO60: 0.1501964398 | AP60: 0.08686346205 | AQ60: 0.1862054342 | AR60: 0.1811960852
A61: 〇 | C61: JCR | D61: RTG_JCR_LT_ISSUER | W61: =IF(_xll.BDP($C$2,$D61,"FUND_PER=Y","EQY_FUND_YEAR",W$2)="#N/A N/A","",_xll.BDP($C$2,$D61,"FUND_PER=Y","EQY_FUND_YEAR",W$2)) ->  | X61: =IF(_xll.BDP($C$2,$D61,"FUND_PER=Y","EQY_FUND_YEAR",X$2)="#N/A N/A","",_xll.BDP($C$2,$D61,"FUND_PER=Y","EQY_FUND_YEAR",X$2)) ->  | Z61: ROS | AA61: 0.2267444527 | AB61: 0.07206872888 | AC61: 0.1251461563 | AD61: 0.238719993 | AE61: 0.2901904843 | AF61: 0.2533279225 | AG61: 0.1939321559 | AH61: 0.2756994833 | AI61: 0.290065141 | AJ61: 0.2568790397 | AK61: 0.2332153174 | AL61: 0.229344909 | AM61: 0.2141785731 | AN61: 0.2180053074 | AO61: 0.215770117 | AP61: 0.1142212801 | AQ61: 0.2246471616 | AR61: 0.2121811228
Z62: 総資産回転率 | AA62: 1.531963244 | AB62: 2.531072633 | AC62: 1.524190468 | AD62: 0.9037152588 | AE62: 0.7378574706 | AF62: 0.7575578777 | AG62: 0.7633716119 | AH62: 0.6545568325 | AI62: 0.5962717327 | AJ62: 0.581253594 | AK62: 0.5534464934 | AL62: 0.5423949042 | AM62: 0.5497632306 | AN62: 0.5421257338 | AO62: 0.5732319865 | AP62: 0.6077710038 | AQ62: 0.6362387145 | AR62: 0.6363541648
C63: 成長性分析 | W63: =N2&"年～"&X2&"年のCAGR>>" -> 2011年～2021年のCAGR>> | X63: =(X5/N5)^(1/(X2-N2))-1 ->  | Z63: 財務レバレッジ | AA63: 1.527451245 | AB63: 1.446064894 | AC63: 1.131200974 | AD63: 1.090546756 | AE63: 1.084127022 | AF63: 1.116622496 | AG63: 1.124959462 | AH63: 1.124778526 | AI63: 1.251075885 | AJ63: 1.248155473 | AK63: 1.307927212 | AL63: 1.270430311 | AM63: 1.243857115 | AN63: 1.225461436 | AO63: 1.204702379 | AP63: 1.293720738 | AQ63: 1.310559146 | AR63: 1.369669682
C64: 売上高YoY% | F64: =F4/E4-1 -> 2.335397793 | G64: 1.175557017 | H64: 0.9247823059 | I64: 0.7275903469 | J64: 0.5647445426 | K64: 0.3134607924 | L64: 0.08510971276 | M64: 0.2397590704 | N64: 0.2927594557 | O64: 0.2145891043 | P64: 0.2059123786 | Q64: 0.1888002306 | R64: 0.1361797549 | S64: 0.2038032245 | T64: 0.2280109004 | U64: 0.2342158676 | V64: 0.183000899
C65: 売上高 | E65: =E4/$E4 -> 1 | F65: 3.335397793 | G65: 7.256348073 | H65: 13.96689038 | I65: 24.12906499 | J65: 37.75582276 | K65: 49.59079288 | L65: 53.81145102 | M65: 66.7132345 | N65: 86.24416471 | O65: 104.7512228 | P65: 126.3207962 | Q65: 150.1701917 | R65: 170.6203316 | S65: 205.3933053 | T65: 252.2252178 | U65: 311.300366 | V65: 368.2686128
C66: 売上総利益 | E66: 1 | F66: 2.72755017 | G66: 5.622017008 | H66: 11.58140958 | I66: 20.71406301 | J66: 32.28884917 | K66: 42.77314774 | L66: 48.07319512 | M66: 61.37702173 | N66: 80.25052085 | O66: 93.71164717 | P66: 108.8513558 | Q66: 130.8774728 | R66: 152.0302075 | S66: 179.0076553 | T66: 211.9234534 | U66: 250.8782516 | V66: 292.0830645
C67: 営業利益 | E67: 1 | F67: 1.83660289 | G67: 4.51123522 | H67: 11.30113783 | I67: 19.03830158 | J67: 27.26716891 | K67: 35.56663892 | L67: 44.57748794 | M67: 55.67234688 | N67: 62.97126453 | O67: 74.19046785 | P67: 82.60487034 | Q67: 88.46652867 | R67: 103.8258969 | S67: 127.1867237 | T67: 140.2185899 | U67: 147.608677 | V67: 183.5777002
C68: 純利益 | E68: 1 | F68: 1.060126836 | G68: 4.004967087 | H68: 14.70455366 | I68: 30.88068957 | J68: 42.18230714 | K68: 42.41448583 | L68: 65.42955768 | M68: 85.34358192 | N68: 97.70610902 | O68: 107.7406278 | P68: 127.7695272 | Q68: 141.847957 | R68: 164.0443124 | S68: 195.4523561 | T68: 127.0570763 | U68: 308.4209681 | V68: 344.6154772
C69: 総資産 | E69: =E26/$E26 -> 1 | F69: 3.037582136 | G69: 11.5491231 | H69: 35.80376264 | I69: 64.39130798 | J69: 88.31130243 | K69: 110.7300839 | L69: 141.1568753 | M69: 201.6473112 | N69: 252.9662748 | O69: 326.9453336 | P69: 386.626329 | Q69: 450.2983733 | R69: 513.994817 | S69: 583.8329447 | T69: 687.6978144 | U69: 811.4273023 | V69: 961.717308
C70: 自己資本 | E70: =E39/$E39 -> 1 | F70: 3.208541079 | G70: 15.59468463 | H70: 50.14778277 | I70: 90.72237985 | J70: 120.8028759 | K70: 150.347466 | L70: 191.6912885 | M70: 246.1932487 | N70: 309.5717317 | O70: 381.8202208 | P70: 464.8447557 | Q70: 552.9644862 | R70: 640.6582861 | S70: 740.2461997 | T70: 811.940979 | U70: 945.7151527 | V70: 1072.504063
C72: 収益性分析
C73: 売上総利益率 | E73: =E5/E4 -> 0.7007790616 | F73: 0.5730680917 | G73: 0.5429441591 | H73: 0.5810892131 | I73: 0.6015973534 | J73: 0.5993075443 | K73: 0.6044373278 | L73: 0.6260505511 | M73: 0.6447256233 | N73: 0.6520775623 | O73: 0.6269249984 | P73: 0.6038653434 | Q73: 0.610748322 | R73: 0.6244249157 | S73: 0.6107541652 | T73: 0.588805196 | U73: 0.5647607423 | V73: 0.5558054332
C74: 営業利益率 | E74: =E6/E4 -> 0.424260775 | F74: 0.2336148831 | G74: 0.2637607969 | H74: 0.3432853959 | I74: 0.3347500032 | J74: 0.3064001621 | K74: 0.3042808738 | L74: 0.3514582718 | M74: 0.3540465878 | N74: 0.3097744361 | O74: 0.3004843719 | P74: 0.2774365533 | Q74: 0.249935607 | R74: 0.2581711984 | S74: 0.2627171216 | T74: 0.2358576519 | U74: 0.20117089 | V74: 0.211489154
C75: 純利益率 | E75: =E7/E4 -> 0.2267444527 | F75: 0.07206872888 | G75: 0.1251461563 | H75: 0.238719993 | I75: 0.2901904843 | J75: 0.2533279225 | K75: 0.1939321559 | L75: 0.2756994833 | M75: 0.290065141 | N75: 0.2568790397 | O75: 0.2332153174 | P75: 0.229344909 | Q75: 0.2141785731 | R75: 0.2180053074 | S75: 0.215770117 | T75: 0.1142212801 | U75: 0.2246471616 | V75: 0.2121811228
C76: ROA | E76: =E7/E26 -> 0.3473641673 | F76: =F7/((F26+E26)/2) -> 0.1824111874 | G76: 0.1907465785 | H76: 0.2157349002 | I76: 0.2141192167 | J76: 0.1919105634 | K76: 0.1480423024 | L76: 0.1804609805 | M76: 0.1729576442 | N76: 0.1493118651 | O76: 0.1290721996 | P76: 0.1243955099 | Q76: 0.1177475042 | R76: 0.1181862873 | S76: 0.1236863328 | T76: 0.06942038203 | U76: 0.1429292213 | V76: 0.1350223412
A77: 〇 | C77: ROE | D77: RETURN_COM_EQY | F77: 0.3134811265 | G77: 0.2298092972 | H77: 0.2373494424 | I77: 0.2326217628 | J77: 0.2116169592 | K77: 0.1659917177 | L77: 0.2029929882 | M77: 0.2068205201 | N77: 0.1865575844 | O77: 0.1653626983 | P77: 0.16013935 | Q77: 0.1478900868 | R77: 0.1411831875 | S77: 0.1501964398 | T77: 0.08686346205 | U77: 0.1862054342 | V77: 0.1811960852 | W77: =IF(_xll.BDP($C$2,$D77,"FUND_PER=Y","EQY_FUND_YEAR",W$2)="#N/A N/A","",_xll.BDP($C$2,$D77,"FUND_PER=Y","EQY_FUND_YEAR",W$2))/100 ->  | X77: =X7/((X39-X38+W39-W38)/2) -> 
C78: 効率性分析 | AA78: 収益性分析
C79: 総資産回転率（回） | E79: =E4/E26 -> 1.531963244 | F79: =F4/((F26+E26)/2) -> 2.531072633 | G79: 1.524190468 | H79: 0.9037152588 | I79: 0.7378574706 | J79: 0.7575578777 | K79: 0.7633716119 | L79: 0.6545568325 | M79: 0.5962717327 | N79: 0.581253594 | O79: 0.5534464934 | P79: 0.5423949042 | Q79: 0.5497632306 | R79: 0.5421257338 | S79: 0.5732319865 | T79: 0.6077710038 | U79: 0.6362387145 | V79: 0.6363541648
C80: 有形固定資産回転率（回） | E80: =E4/E21 -> 8.158223746 | F80: =F4/((F21+E21)/2) -> 12.1087521 | G80: 11.24607207 | H80: 9.157485278 | I80: 6.318114333 | J80: 5.157816769 | K80: 4.700809998 | L80: 4.693292314 | M80: 4.652793922 | N80: 4.366432439 | O80: 4.291280235 | P80: 3.91281979 | Q80: 3.266810206 | R80: 2.835176468 | S80: 2.854450593 | T80: 2.893744208 | U80: 2.680045445 | V80: 2.243246989
C81: 棚卸資産回転率（回） | E81: =IFERROR(E4/E19,0) -> 0 | F81: =IFERROR(F4/((F19+E19)/2),0) -> 0 | G81: 0 | H81: 0 | I81: 0 | J81: 0 | K81: 0 | L81: 0 | M81: 0 | N81: 0 | O81: 182.3326733 | P81: 119.2674544 | Q81: 309.8638498 | R81: 305.4541752 | S81: 237.8708827 | T81: 218.0039331 | U81: 147.4342672 | V81: 153.7103514 | W81: 0 | X81: 0
C82: 売上債権回転率（回） | E82: =E4/E18 -> 7.089524843 | F82: =F4/((F18+E18)/2) -> 13.53061595 | G82: 13.67221971 | H82: 12.27942853 | I82: 10.55049753 | J82: 9.523470807 | K82: 9.072571036 | L82: 8.126415496 | M82: 7.892097284 | N82: 7.832420705 | O82: 6.916917067 | P82: 6.622413073 | Q82: 7.227046263 | R82: 7.162615216 | S82: 7.026972327 | T82: 6.827518246 | U82: 6.985194261 | V82: 7.012260636
C83: CCC（日） | E83: =E84+E85+E86 -> 43.68293594 | F83: =F84+F85+F86 -> 27.01893543 | G83: 31.9497445 | H83: 34.03507744 | I83: 38.24427999 | J83: 41.36145921 | K83: 41.26661727 | L83: 11.05655138 | M83: 6.025033253 | N83: 2.811766258 | O83: -6.524794196 | P83: -7.567049118 | Q83: -10.24749625 | R83: -3.923108723 | S83: -4.568969337 | T83: -10.91164133 | U83: -28.43296618 | V83: -34.77328753
C84: 棚卸資産回転日数（日） | E84: =E19/(E4/365)+E88 -> 0 | F84: 0 | G84: 0 | H84: 0 | I84: 0 | J84: 0 | K84: 0 | L84: 0 | M84: 0 | N84: 0 | O84: 4.003670801 | P84: 2.800662836 | Q84: 0 | R84: 2.38988385 | S84: 1.083613967 | T84: 2.466149475 | U84: 2.953208253 | V84: 2.252821935 | AA84: 資産回転率分析
C85: 売上債権回転日数（日） | E85: =E18/(E4/365) -> 51.48440948 | F85: 38.51595688 | G85: 35.68898757 | H85: 40.90718996 | I85: 45.51229397 | J85: 47.56664041 | K85: 44.24756797 | L85: 49.05345869 | M85: 52.93066403 | N85: 52.25840918 | O85: 62.51276092 | P85: 58.3931627 | Q85: 51.89004712 | R85: 56.24744963 | S85: 57.16063674 | T85: 60.37291958 | U85: 55.59074398 | V85: 57.11208042
C86: 仕入債務回転日数（日） | E86: =-E27/(E4/365) -> -7.801473537 | F86: =-F27/(F4/365) -> -11.49702145 | G86: -3.73924307 | H86: -6.872112515 | I86: -7.268013979 | J86: -6.205181202 | K86: -2.980950699 | L86: -37.9969073 | M86: -46.90563078 | N86: -49.44664292 | O86: -73.04122592 | P86: -68.76087466 | Q86: -62.13754337 | R86: -62.5604422 | S86: -62.81322005 | T86: -73.75071039 | U86: -86.97691841 | V86: -94.13818988
C88: 安全性分析
C89: 手元流動性比率 | E89: =E17/(E4/12) -> 3.995313004 | F89: 2.739970574 | G89: 8.023134162 | H89: 15.70579484 | I89: 12.72305743 | J89: 10.28224057 | K89: 8.724223614 | L89: 12.42326874 | M89: 14.31397292 | N89: 14.1277404 | O89: 12.53406894 | P89: 12.69122282 | Q89: 11.70800442 | R89: 11.69227487 | S89: 11.47638249 | T89: 11.02748636 | U89: 9.572354717 | V89: 8.872646843
C90: 流動比率 | E90: =E20/E30 ->  | G90: 7.913390801 | H90: 12.07575022 | I90: 9.995383213 | J90: 8.493378372 | K90: 8.765157748 | L90: 10.6159448 | M90: 4.157863145 | N90: 5.919219118 | O90: 4.216642254 | P90: 4.581719889 | Q90: 4.687764467 | R90: 4.666701191 | S90: 6.290761518 | T90: 5.140305173 | U90: 3.919006355 | V90: 3.374051879
C91: 自己資本比率 | E91: =(E39-E38)/E26 -> 0.6546853809 | F91: 0.6915318977 | G91: 0.884016212 | H91: 0.9169712299 | I91: 0.9224011388 | J91: 0.8955578125 | K91: 0.8889209202 | L91: 0.8890639152 | M91: 0.7993120257 | N91: 0.8011822416 | O91: 0.7645685409 | P91: 0.787134872 | Q91: 0.8039508619 | R91: 0.8160191508 | S91: 0.8300805388 | T91: 0.7729643427 | U91: 0.7630330939 | V91: 0.7301030412
C92: DEレシオ | E92: =(E28+E31)/(E39-E38) -> 0.05783073608 | F92: =(F28+F31)/(F39-F38) -> 0.01096672794 | G92: 0.00064935597 | H92: 0 | I92: 0 | J92: 0 | K92: 0 | L92: 0 | M92: 0.07493350057 | N92: 0.07230200361 | O92: 0.07720839434 | P92: 0.06007399008 | Q92: 0.05042364722 | R92: 0.04338034256 | S92: 0.0283020225 | T92: 0.02602588819 | U92: 0.02258652915 | V92: 0.07926351009
C93: ネットDEレシオ | E93: =(E28-E17+E31)/(E39-E38) -> -0.7212550215 | F93: =(F28-F17+F31)/(F39-F38) -> -0.5444518321 | G93: -0.7273316044 | H93: -0.8529869071 | I93: -0.6598603039 | J93: -0.626655538 | K93: -0.5611334834 | L93: -0.680052846 | M93: -0.6814298999 | N93: -0.6951930519 | O93: -0.5933347277 | P93: -0.6124454524 | Q93: -0.5695936838 | R93: -0.5638281075 | S93: -0.592637878 | T93: -0.6419719086 | U93: -0.5918436283 | V93: -0.5148280895
C94: 固定比率 | E94: =E33/(E39-E38) -> 0.0508987145 | F94: 0.0553646374 | G94: 0.01499698196 | H94: 0.01141018055 | I94: 0.007566033484 | J94: 0.02690760852 | K94: 0.04343740906 | L94: 0.04846895187 | M94: 0.03490408944 | N94: 0.09486628257 | O94: 0.1080108764 | P94: 0.08822687237 | Q94: 0.08230310033 | R94: 0.06498740973 | S94: 0.08418682931 | T94: 0.1351457686 | U94: 0.1156574414 | V94: 0.1451832289
C95: 固定長期適合率 | E95: =E25/(E39-E38+E32) -> 0.2886541864 | F95: 0.4908756559 | G95: 0.2085064059 | H95: 0.1333912214 | I95: 0.3164761307 | J95: 0.3453475343 | K95: 0.3933209652 | L95: 0.30013316 | M95: 0.3403824052 | N95: 0.326592501 | O95: 0.4360231716 | P95: 0.4099551608 | Q95: 0.4628228613 | R95: 0.4545721171 | S95: 0.4229323052 | T95: 0.4315106153 | U95: 0.5001854141 | V95: 0.5711884031
C96: Net Debt EBITDAマルチプル | E96: =(E28+E31-E17)/E8 -> -0.6624530472 | F96: =(F28+F31-F17)/F8 -> -0.83562928 | G96: -2.152642561 | H96: -3.346083237 | I96: -2.727824189 | J96: -2.349384788 | K96: -1.948604476 | L96: -2.489177038 | M96: -2.675554046 | N96: -2.973736482 | O96: -2.53340081 | P96: -2.764553821 | Q96: -2.754738068 | R96: -2.777955206 | S96: -2.759477562 | T96: -2.961253441 | U96: -2.875570995 | V96: -2.168171935 | AA96: 成長性分析
C97: NetDebt/営業CF | E97: =(E28+E31-E17)/E44 -> -0.8725018637 | F97: =(F28+F31-F17)/F44 -> -0.8297209377 | G97: -2.180449396 | H97: -3.266721612 | I97: -3.140312492 | J97: -2.461922703 | K97: -2.017835165 | L97: -2.628193926 | M97: -2.843606173 | N97: -2.775283213 | O97: -2.560382695 | P97: -2.865748432 | Q97: -2.643814802 | R97: -2.553289177 | S97: -2.286546787 | T97: -2.639508236 | U97: -2.191490692 | V97: -1.902201027
C98: 企業価値分析
C99: PBR | E99: =E53/E39 ->  | G99: 17.56843448 | H99: 12.90643765 | I99: 8.350250857 | J99: 9.536311517 | K99: 3.433028643 | L99: 5.471921421 | M99: 4.127141605 | N99: 3.609075252 | O99: 3.254835739 | P99: 4.310797338 | Q99: 3.460202412 | R99: 4.385298626 | S99: 3.885109145 | T99: 4.782065994 | U99: 4.072222289 | V99: 4.576746734 | X99: =X53/X39 -> 
C100: PER | E100: =E51 ->  | G100: 76.80876494 | H100: 72.78245614 | I100: 48.98723404 | J100: 52.03009782 | K100: 18.4442446 | L100: 30.67212411 | M100: 22.89960852 | N100: 21.19986023 | O100: 20.89090751 | P100: 28.81274181 | Q100: 26.54571805 | R100: 33.57462302 | S100: 30.13763137 | T100: 30.09824273 | U100: 23.94061035 | V100: 27.68310941 | X100: =X51 -> 
C101: ROE | E101: =E77 ->  | F101: 0.3134811265 | G101: 0.2298092972 | H101: 0.2373494424 | I101: 0.2326217628 | J101: 0.2116169592 | K101: 0.1659917177 | L101: 0.2029929882 | M101: 0.2068205201 | N101: 0.1865575844 | O101: 0.1653626983 | P101: 0.16013935 | Q101: 0.1478900868 | R101: 0.1411831875 | S101: 0.1501964398 | T101: 0.08686346205 | U101: 0.1862054342 | V101: 0.1811960852
C102: ROS | E102: =E75 -> 0.2267444527 | F102: 0.07206872888 | G102: 0.1251461563 | H102: 0.238719993 | I102: 0.2901904843 | J102: 0.2533279225 | K102: 0.1939321559 | L102: 0.2756994833 | M102: 0.290065141 | N102: 0.2568790397 | O102: 0.2332153174 | P102: 0.229344909 | Q102: 0.2141785731 | R102: 0.2180053074 | S102: 0.215770117 | T102: 0.1142212801 | U102: 0.2246471616 | V102: 0.2121811228
C103: 総資産回転率 | E103: =E4/E26 -> 1.531963244 | F103: =F4/((F26+E26)/2) -> 2.531072633 | G103: =G4/((G26+F26)/2) -> 1.524190468 | H103: 0.9037152588 | I103: 0.7378574706 | J103: 0.7575578777 | K103: 0.7633716119 | L103: 0.6545568325 | M103: 0.5962717327 | N103: 0.581253594 | O103: 0.5534464934 | P103: 0.5423949042 | Q103: 0.5497632306 | R103: 0.5421257338 | S103: 0.5732319865 | T103: 0.6077710038 | U103: 0.6362387145 | V103: 0.6363541648
C104: 財務レバレッジ | E104: =E26/E39 -> 1.527451245 | F104: =F26/F39 -> 1.446064894 | G104: 1.131200974 | H104: 1.090546756 | I104: 1.084127022 | J104: 1.116622496 | K104: 1.124959462 | L104: 1.124778526 | M104: 1.251075885 | N104: 1.248155473 | O104: 1.307927212 | P104: 1.270430311 | Q104: 1.243857115 | R104: 1.225461436 | S104: 1.204702379 | T104: 1.293720738 | U104: 1.310559146 | V104: 1.369669682
A106: 〇 | C106: 配当性向 | D106: DVD_PAYOUT_RATIO | E106: =IF(_xll.BDP($C$2,$D106,"FUND_PER=Y","EQY_FUND_YEAR",E$2)="#N/A N/A","",_xll.BDP($C$2,$D106,"FUND_PER=Y","EQY_FUND_YEAR",E$2)) -> 0 | F106: =IF(_xll.BDP($C$2,$D106,"FUND_PER=Y","EQY_FUND_YEAR",F$2)="#N/A N/A","",_xll.BDP($C$2,$D106,"FUND_PER=Y","EQY_FUND_YEAR",F$2)) -> 0 | G106: =IF(_xll.BDP($C$2,$D106,"FUND_PER=Y","EQY_FUND_YEAR",G$2)="#N/A N/A","",_xll.BDP($C$2,$D106,"FUND_PER=Y","EQY_FUND_YEAR",G$2)) -> 0 | H106: =IF(_xll.BDP($C$2,$D106,"FUND_PER=Y","EQY_FUND_YEAR",H$2)="#N/A N/A","",_xll.BDP($C$2,$D106,"FUND_PER=Y","EQY_FUND_YEAR",H$2)) -> 0 | I106: =IF(_xll.BDP($C$2,$D106,"FUND_PER=Y","EQY_FUND_YEAR",I$2)="#N/A N/A","",_xll.BDP($C$2,$D106,"FUND_PER=Y","EQY_FUND_YEAR",I$2)) -> 0 | J106: =IF(_xll.BDP($C$2,$D106,"FUND_PER=Y","EQY_FUND_YEAR",J$2)="#N/A N/A","",_xll.BDP($C$2,$D106,"FUND_PER=Y","EQY_FUND_YEAR",J$2)) -> 0 | K106: =IF(_xll.BDP($C$2,$D106,"FUND_PER=Y","EQY_FUND_YEAR",K$2)="#N/A N/A","",_xll.BDP($C$2,$D106,"FUND_PER=Y","EQY_FUND_YEAR",K$2)) -> 0 | L106: =IF(_xll.BDP($C$2,$D106,"FUND_PER=Y","EQY_FUND_YEAR",L$2)="#N/A N/A","",_xll.BDP($C$2,$D106,"FUND_PER=Y","EQY_FUND_YEAR",L$2)) -> 0 | M106: =IF(_xll.BDP($C$2,$D106,"FUND_PER=Y","EQY_FUND_YEAR",M$2)="#N/A N/A","",_xll.BDP($C$2,$D106,"FUND_PER=Y","EQY_FUND_YEAR",M$2)) -> 0 | N106: =IF(_xll.BDP($C$2,$D106,"FUND_PER=Y","EQY_FUND_YEAR",N$2)="#N/A N/A","",_xll.BDP($C$2,$D106,"FUND_PER=Y","EQY_FUND_YEAR",N$2)) -> 0 | O106: =IF(_xll.BDP($C$2,$D106,"FUND_PER=Y","EQY_FUND_YEAR",O$2)="#N/A N/A","",_xll.BDP($C$2,$D106,"FUND_PER=Y","EQY_FUND_YEAR",O$2)) -> 0 | P106: =IF(_xll.BDP($C$2,$D106,"FUND_PER=Y","EQY_FUND_YEAR",P$2)="#N/A N/A","",_xll.BDP($C$2,$D106,"FUND_PER=Y","EQY_FUND_YEAR",P$2)) -> 0 | Q106: =IF(_xll.BDP($C$2,$D106,"FUND_PER=Y","EQY_FUND_YEAR",Q$2)="#N/A N/A","",_xll.BDP($C$2,$D106,"FUND_PER=Y","EQY_FUND_YEAR",Q$2)) -> 0 | R106: =IF(_xll.BDP($C$2,$D106,"FUND_PER=Y","EQY_FUND_YEAR",R$2)="#N/A N/A","",_xll.BDP($C$2,$D106,"FUND_PER=Y","EQY_FUND_YEAR",R$2)) -> 0 | S106: =IF(_xll.BDP($C$2,$D106,"FUND_PER=Y","EQY_FUND_YEAR",S$2)="#N/A N/A","",_xll.BDP($C$2,$D106,"FUND_PER=Y","EQY_FUND_YEAR",S$2)) -> 0 | T106: =IF(_xll.BDP($C$2,$D106,"FUND_PER=Y","EQY_FUND_YEAR",T$2)="#N/A N/A","",_xll.BDP($C$2,$D106,"FUND_PER=Y","EQY_FUND_YEAR",T$2)) -> 0 | U106: =IF(_xll.BDP($C$2,$D106,"FUND_PER=Y","EQY_FUND_YEAR",U$2)="#N/A N/A","",_xll.BDP($C$2,$D106,"FUND_PER=Y","EQY_FUND_YEAR",U$2)) -> 0 | V106: =IF(_xll.BDP($C$2,$D106,"FUND_PER=Y","EQY_FUND_YEAR",V$2)="#N/A N/A","",_xll.BDP($C$2,$D106,"FUND_PER=Y","EQY_FUND_YEAR",V$2)) -> 0 | W106: =IF(_xll.BDP($C$2,$D106,"FUND_PER=Y","EQY_FUND_YEAR",W$2)="#N/A N/A","",_xll.BDP($C$2,$D106,"FUND_PER=Y","EQY_FUND_YEAR",W$2)) ->  | X106: =IF(_xll.BDP($C$2,$D106,"FUND_PER=Y","EQY_FUND_YEAR",X$2)="#N/A N/A","",_xll.BDP($C$2,$D106,"FUND_PER=Y","EQY_FUND_YEAR",X$2)) -> 
A107: 〇 | C107: サステナブル成長率 | D107: SUSTAIN_GROWTH_RT | E107: =IF(_xll.BDP($C$2,$D107,"FUND_PER=Y","EQY_FUND_YEAR",E$2)="#N/A N/A","",_xll.BDP($C$2,$D107,"FUND_PER=Y","EQY_FUND_YEAR",E$2)) ->  | F107: =IF(_xll.BDP($C$2,$D107,"FUND_PER=Y","EQY_FUND_YEAR",F$2)="#N/A N/A","",_xll.BDP($C$2,$D107,"FUND_PER=Y","EQY_FUND_YEAR",F$2)) -> 31.34811265 | G107: =IF(_xll.BDP($C$2,$D107,"FUND_PER=Y","EQY_FUND_YEAR",G$2)="#N/A N/A","",_xll.BDP($C$2,$D107,"FUND_PER=Y","EQY_FUND_YEAR",G$2)) -> 22.98092972 | H107: =IF(_xll.BDP($C$2,$D107,"FUND_PER=Y","EQY_FUND_YEAR",H$2)="#N/A N/A","",_xll.BDP($C$2,$D107,"FUND_PER=Y","EQY_FUND_YEAR",H$2)) -> 23.73494424 | I107: =IF(_xll.BDP($C$2,$D107,"FUND_PER=Y","EQY_FUND_YEAR",I$2)="#N/A N/A","",_xll.BDP($C$2,$D107,"FUND_PER=Y","EQY_FUND_YEAR",I$2)) -> 23.26217628 | J107: =IF(_xll.BDP($C$2,$D107,"FUND_PER=Y","EQY_FUND_YEAR",J$2)="#N/A N/A","",_xll.BDP($C$2,$D107,"FUND_PER=Y","EQY_FUND_YEAR",J$2)) -> 21.16169592 | K107: =IF(_xll.BDP($C$2,$D107,"FUND_PER=Y","EQY_FUND_YEAR",K$2)="#N/A N/A","",_xll.BDP($C$2,$D107,"FUND_PER=Y","EQY_FUND_YEAR",K$2)) -> 16.59917177 | L107: =IF(_xll.BDP($C$2,$D107,"FUND_PER=Y","EQY_FUND_YEAR",L$2)="#N/A N/A","",_xll.BDP($C$2,$D107,"FUND_PER=Y","EQY_FUND_YEAR",L$2)) -> 20.29929882 | M107: =IF(_xll.BDP($C$2,$D107,"FUND_PER=Y","EQY_FUND_YEAR",M$2)="#N/A N/A","",_xll.BDP($C$2,$D107,"FUND_PER=Y","EQY_FUND_YEAR",M$2)) -> 20.68205201 | N107: =IF(_xll.BDP($C$2,$D107,"FUND_PER=Y","EQY_FUND_YEAR",N$2)="#N/A N/A","",_xll.BDP($C$2,$D107,"FUND_PER=Y","EQY_FUND_YEAR",N$2)) -> 18.65575844 | O107: =IF(_xll.BDP($C$2,$D107,"FUND_PER=Y","EQY_FUND_YEAR",O$2)="#N/A N/A","",_xll.BDP($C$2,$D107,"FUND_PER=Y","EQY_FUND_YEAR",O$2)) -> 16.53626983 | P107: =IF(_xll.BDP($C$2,$D107,"FUND_PER=Y","EQY_FUND_YEAR",P$2)="#N/A N/A","",_xll.BDP($C$2,$D107,"FUND_PER=Y","EQY_FUND_YEAR",P$2)) -> 16.013935 | Q107: =IF(_xll.BDP($C$2,$D107,"FUND_PER=Y","EQY_FUND_YEAR",Q$2)="#N/A N/A","",_xll.BDP($C$2,$D107,"FUND_PER=Y","EQY_FUND_YEAR",Q$2)) -> 14.78900868 | R107: =IF(_xll.BDP($C$2,$D107,"FUND_PER=Y","EQY_FUND_YEAR",R$2)="#N/A N/A","",_xll.BDP($C$2,$D107,"FUND_PER=Y","EQY_FUND_YEAR",R$2)) -> 14.11831875 | S107: =IF(_xll.BDP($C$2,$D107,"FUND_PER=Y","EQY_FUND_YEAR",S$2)="#N/A N/A","",_xll.BDP($C$2,$D107,"FUND_PER=Y","EQY_FUND_YEAR",S$2)) -> 15.01964398 | T107: =IF(_xll.BDP($C$2,$D107,"FUND_PER=Y","EQY_FUND_YEAR",T$2)="#N/A N/A","",_xll.BDP($C$2,$D107,"FUND_PER=Y","EQY_FUND_YEAR",T$2)) -> 8.686346205 | U107: =IF(_xll.BDP($C$2,$D107,"FUND_PER=Y","EQY_FUND_YEAR",U$2)="#N/A N/A","",_xll.BDP($C$2,$D107,"FUND_PER=Y","EQY_FUND_YEAR",U$2)) -> 18.62054342 | V107: =IF(_xll.BDP($C$2,$D107,"FUND_PER=Y","EQY_FUND_YEAR",V$2)="#N/A N/A","",_xll.BDP($C$2,$D107,"FUND_PER=Y","EQY_FUND_YEAR",V$2)) -> 18.11960852 | W107: =IF(_xll.BDP($C$2,$D107,"FUND_PER=Y","EQY_FUND_YEAR",W$2)="#N/A N/A","",_xll.BDP($C$2,$D107,"FUND_PER=Y","EQY_FUND_YEAR",W$2)) ->  | X107: =IF(_xll.BDP($C$2,$D107,"FUND_PER=Y","EQY_FUND_YEAR",X$2)="#N/A N/A","",_xll.BDP($C$2,$D107,"FUND_PER=Y","EQY_FUND_YEAR",X$2)) -> 
A109: 〇 | C109: EV/EBITDA | D109: EV_TO_T12M_EBITDA | E109: =IF(_xll.BDP($C$2,$D109,"FUND_PER=Y","EQY_FUND_YEAR",E$2)="#N/A N/A","",_xll.BDP($C$2,$D109,"FUND_PER=Y","EQY_FUND_YEAR",E$2)) ->  | F109: =IF(_xll.BDP($C$2,$D109,"FUND_PER=Y","EQY_FUND_YEAR",F$2)="#N/A N/A","",_xll.BDP($C$2,$D109,"FUND_PER=Y","EQY_FUND_YEAR",F$2)) ->  | G109: =IF(_xll.BDP($C$2,$D109,"FUND_PER=Y","EQY_FUND_YEAR",G$2)="#N/A N/A","",_xll.BDP($C$2,$D109,"FUND_PER=Y","EQY_FUND_YEAR",G$2)) -> 49.84366774 | H109: =IF(_xll.BDP($C$2,$D109,"FUND_PER=Y","EQY_FUND_YEAR",H$2)="#N/A N/A","",_xll.BDP($C$2,$D109,"FUND_PER=Y","EQY_FUND_YEAR",H$2)) -> 47.28308153 | I109: =IF(_xll.BDP($C$2,$D109,"FUND_PER=Y","EQY_FUND_YEAR",I$2)="#N/A N/A","",_xll.BDP($C$2,$D109,"FUND_PER=Y","EQY_FUND_YEAR",I$2)) -> 31.7916281 | J109: =IF(_xll.BDP($C$2,$D109,"FUND_PER=Y","EQY_FUND_YEAR",J$2)="#N/A N/A","",_xll.BDP($C$2,$D109,"FUND_PER=Y","EQY_FUND_YEAR",J$2)) -> 33.40305631 | K109: =IF(_xll.BDP($C$2,$D109,"FUND_PER=Y","EQY_FUND_YEAR",K$2)="#N/A N/A","",_xll.BDP($C$2,$D109,"FUND_PER=Y","EQY_FUND_YEAR",K$2)) -> 9.973006298 | L109: =IF(_xll.BDP($C$2,$D109,"FUND_PER=Y","EQY_FUND_YEAR",L$2)="#N/A N/A","",_xll.BDP($C$2,$D109,"FUND_PER=Y","EQY_FUND_YEAR",L$2)) -> 17.53953284 | M109: =IF(_xll.BDP($C$2,$D109,"FUND_PER=Y","EQY_FUND_YEAR",M$2)="#N/A N/A","",_xll.BDP($C$2,$D109,"FUND_PER=Y","EQY_FUND_YEAR",M$2)) -> 13.52918018 | N109: =IF(_xll.BDP($C$2,$D109,"FUND_PER=Y","EQY_FUND_YEAR",N$2)="#N/A N/A","",_xll.BDP($C$2,$D109,"FUND_PER=Y","EQY_FUND_YEAR",N$2)) -> 12.46433315 | O109: =IF(_xll.BDP($C$2,$D109,"FUND_PER=Y","EQY_FUND_YEAR",O$2)="#N/A N/A","",_xll.BDP($C$2,$D109,"FUND_PER=Y","EQY_FUND_YEAR",O$2)) -> 11.36398815 | P109: =IF(_xll.BDP($C$2,$D109,"FUND_PER=Y","EQY_FUND_YEAR",P$2)="#N/A N/A","",_xll.BDP($C$2,$D109,"FUND_PER=Y","EQY_FUND_YEAR",P$2)) -> 16.69420974 | Q109: =IF(_xll.BDP($C$2,$D109,"FUND_PER=Y","EQY_FUND_YEAR",Q$2)="#N/A N/A","",_xll.BDP($C$2,$D109,"FUND_PER=Y","EQY_FUND_YEAR",Q$2)) -> 13.97991257 | R109: =IF(_xll.BDP($C$2,$D109,"FUND_PER=Y","EQY_FUND_YEAR",R$2)="#N/A N/A","",_xll.BDP($C$2,$D109,"FUND_PER=Y","EQY_FUND_YEAR",R$2)) -> 18.82820984 | S109: =IF(_xll.BDP($C$2,$D109,"FUND_PER=Y","EQY_FUND_YEAR",S$2)="#N/A N/A","",_xll.BDP($C$2,$D109,"FUND_PER=Y","EQY_FUND_YEAR",S$2)) -> 15.33061069 | T109: =IF(_xll.BDP($C$2,$D109,"FUND_PER=Y","EQY_FUND_YEAR",T$2)="#N/A N/A","",_xll.BDP($C$2,$D109,"FUND_PER=Y","EQY_FUND_YEAR",T$2)) -> 19.09720299 | U109: =IF(_xll.BDP($C$2,$D109,"FUND_PER=Y","EQY_FUND_YEAR",U$2)="#N/A N/A","",_xll.BDP($C$2,$D109,"FUND_PER=Y","EQY_FUND_YEAR",U$2)) -> 16.91000029 | V109: =IF(_xll.BDP($C$2,$D109,"FUND_PER=Y","EQY_FUND_YEAR",V$2)="#N/A N/A","",_xll.BDP($C$2,$D109,"FUND_PER=Y","EQY_FUND_YEAR",V$2)) -> 17.10656079 | W109: =IF(_xll.BDP($C$2,$D109,"FUND_PER=Y","EQY_FUND_YEAR",W$2)="#N/A N/A","",_xll.BDP($C$2,$D109,"FUND_PER=Y","EQY_FUND_YEAR",W$2)) ->  | X109: =IF(_xll.BDP($C$2,$D109,"FUND_PER=Y","EQY_FUND_YEAR",X$2)="#N/A N/A","",_xll.BDP($C$2,$D109,"FUND_PER=Y","EQY_FUND_YEAR",X$2)) -> 
C112: 構成比率
C113: 資産
C114: 現預金 | E114: =IFERROR(E17/E$26,"") -> 0.510056056 | F114: =IFERROR(F17/F$26,"") -> 0.3840896508 | G114: 0.643546971 | H114: 0.7821644533 | I114: 0.6086558957 | J114: 0.5612062628 | K114: 0.4988032924 | L114: 0.6046104458 | M114: 0.6045703618 | N114: 0.6149034089 | O114: 0.5126761765 | P114: 0.5293635052 | Q114: 0.4984634677 | R114: 0.4954937238 | S114: 0.5154301271 | T114: 0.5163384779 | U114: 0.468830544 | V114: 0.4337480836
C115: その他流動資産 | E115: =IFERROR((E20-E17)/E$26,"") ->  | F115: =IFERROR((F20-F17)/F$26,"") ->  | G115: 0.1693656965 | H115: 0.09412398765 | I115: 0.09721749995 | J115: 0.1211931051 | K115: 0.1363783984 | L115: 0.1156186549 | M115: 0.1138614717 | N115: 0.1120511478 | O115: 0.1318364997 | P115: 0.127740714 | Q115: 0.1103903644 | R115: 0.1156102291 | S115: 0.1138826367 | T115: 0.113723105 | U115: 0.1139901715 | V115: 0.1192530871 | AA115: 資産効率分析（上がるとGood、下がるとBad）
C116: 有形固定資産 | E116: =IFERROR(E21/E$26,"") -> 0.1877814696 | F116: =IFERROR(F21/F$26,"") -> 0.2160230364 | G116: 0.114360356 | H116: 0.09362991713 | I116: 0.1296591506 | J116: 0.1594289521 | K116: 0.1647542502 | L116: 0.1196295172 | M116: 0.1341204128 | N116: 0.1323201146 | O116: 0.1263779612 | P116: 0.1489722322 | Q116: 0.1848715428 | R116: 0.1967706716 | S116: 0.2043857502 | T116: 0.2148204465 | U116: 0.2565337297 | V116: 0.3065757188
C117: のれん | E117: =IFERROR(E24/E$26,"") ->  | F117: =IFERROR(F24/F$26,"") ->  | G117: 0.0370676092 | H117: 0.01897425508 | I117: 0.08364042885 | J117: 0.09075566808 | K117: 0.152352013 | L117: 0.1210606187 | M117: 0.1081398766 | N117: 0.1012208229 | O117: 0.11233715 | P117: 0.1036062027 | Q117: 0.1207474436 | R117: 0.1076148948 | S117: 0.09831817883 | T117: 0.08488304316 | U117: 0.07684112856 | V117: 0.07474928328
C118: その他固定資産 | E118: =1-SUM(E114:E117) -> 0.3021624744 | F118: =1-SUM(F114:F117) -> 0.3998873128 | G118: 0.03565936721 | H118: 0.01110738679 | I118: 0.08082702483 | J118: 0.06741601195 | K118: 0.04771204601 | L118: 0.03908076341 | M118: 0.03930787713 | N118: 0.03950450575 | O118: 0.1167722126 | P118: 0.09031734583 | Q118: 0.08552718153 | R118: 0.08451048074 | S118: 0.06798330716 | T118: 0.07023492739 | U118: 0.08380442627 | V118: 0.06567382724 | W118: 1 | X118: 1
C119: 負債
C120: 流動負債 | E120: =IFERROR(E30/E$26,"") -> 0.3119919817 | F120: =IFERROR(F30/F$26,"") -> 0.2701816884 | G120: 0.1027262128 | H120: 0.0725659628 | I120: 0.07061994329 | J120: 0.08034486844 | K120: 0.07246665822 | L120: 0.06784408873 | M120: 0.1727887158 | N120: 0.1228125775 | O120: 0.1528497409 | P120: 0.1434186801 | Q120: 0.1298814896 | R120: 0.1309498783 | S120: 0.1000376126 | T120: 0.1225727971 | U120: 0.1487164507 | V120: 0.1638982418
C121: 固定負債 | E121: =IFERROR(E33/E$26,"") -> 0.03332264429 | F121: =IFERROR(F33/F$26,"") -> 0.03828641276 | G121: 0.01325757519 | H121: 0.0104628073 | I121: 0.006978917902 | J121: 0.02409731903 | K121: 0.03861242163 | L121: 0.04309199611 | M121: 0.02789925844 | N121: 0.07600518092 | O121: 0.08258171816 | P121: 0.06944644789 | Q121: 0.06616764845 | R121: 0.0530309709 | S121: 0.06988184863 | T121: 0.1044628602 | U121: 0.08825045534 | V121: 0.105998717
C122: 純資産
C123: 自己資本 | E123: =IFERROR((E39-E38)/E$26,"") -> 0.6546853809 | F123: =IFERROR((F39-F38)/F$26,"") -> 0.6915318977 | G123: 0.884016212 | H123: 0.9169712299 | I123: 0.9224011388 | J123: 0.8955578125 | K123: 0.8889209202 | L123: 0.8890639152 | M123: 0.7993120257 | N123: 0.8011822416 | O123: 0.7645685409 | P123: 0.787134872 | Q123: 0.8039508619 | R123: 0.8160191508 | S123: 0.8300805388 | T123: 0.7729643427 | U123: 0.7630330939 | V123: 0.7301030412
C124: 少数株主持分 | E124: =IFERROR(E38/E$26,"") -> 0 | F124: =IFERROR(F38/F$26,"") -> 0 | G124: 0 | H124: 0 | I124: 0 | J124: 0 | K124: 0 | L124: 0 | M124: 0 | N124: 0 | O124: 0 | P124: 0 | Q124: 0 | R124: 0 | S124: 0 | T124: 0 | U124: 0 | V124: 0

Sheet RHC (hidden)
B1: 会社名 | C1: Recruit | E1: =E2&"0331" -> 20130331 | F1: 20140331 | G1: 20150331 | H1: 20160331 | I1: 20170331 | J1: 20180331 | K1: 20190331 | L1: 20200331 | M1: 20210331 | N1: 20220331 | O1: 20230331 | P1: 20240331 | Q1: 20250331 | R1: 20260331 | S1: 20270331 | T1: 20280331 | U1: 20290331 | V1: 20300331 | W1: 20310331 | X1: =X2&"0331" -> 20320331 | AA1: BS構成
A2: リンク | B2: Ticker | C2: 6098 JP Equity | E2: 2013 | F2: =E2+1 -> 2014 | G2: =F2+1 -> 2015 | H2: 2016 | I2: 2017 | J2: 2018 | K2: 2019 | L2: 2020 | M2: 2021 | N2: 2022 | O2: 2023 | P2: 2024 | Q2: =P2+1 -> 2025 | R2: =Q2+1 -> 2026 | S2: 2027 | T2: 2028 | U2: 2029 | V2: 2030 | W2: 2031 | X2: 2032
B3: 決算月 | C3: 3 | E3: =DATE(E$2,$C$3,31) -> 2013-03-31 | F3: =DATE(F$2,$C$3,31) -> 2014-03-31 | G3: 2015-03-31 | H3: 2016-03-31 | I3: 2017-03-31 | J3: 2018-03-31 | K3: 2019-03-31 | L3: 2020-03-31 | M3: 2021-03-31 | N3: 2022-03-31 | O3: 2023-03-31 | P3: 2024-03-31 | Q3: 2025-03-31 | R3: 2026-03-31 | S3: 2027-03-31 | T3: 2028-03-31 | U3: 2029-03-31 | V3: 2030-03-31 | W3: 2031-03-31 | X3: 2032-03-31
A4: 〇 | C4: 売上高 | D4: SALES_REV_TURN | E4: 1049224 | F4: 1191567 | G4: 1299930 | H4: 1588623 | I4: 1941922 | J4: 2173385 | K4: 2310756 | L4: 2399465 | W4: =IF(_xll.BDP($C$2,$D4,"FUND_PER=Y","EQY_FUND_YEAR",W$2)="#N/A N/A","",_xll.BDP($C$2,$D4,"FUND_PER=Y","EQY_FUND_YEAR",W$2)) ->  | X4: =IF(_xll.BDP($C$2,$D4,"FUND_PER=Y","EQY_FUND_YEAR",X$2)="#N/A N/A","",_xll.BDP($C$2,$D4,"FUND_PER=Y","EQY_FUND_YEAR",X$2)) -> 
A5: 〇 | C5: 売上総利益 | D5: GROSS_PROFIT | E5: 519154 | F5: 602316 | G5: 655193 | H5: 756293 | I5: 890412 | J5: 1014283 | K5: 1169162 | L5: 1293216 | W5: =IF(_xll.BDP($C$2,$D5,"FUND_PER=Y","EQY_FUND_YEAR",W$2)="#N/A N/A","",_xll.BDP($C$2,$D5,"FUND_PER=Y","EQY_FUND_YEAR",W$2)) ->  | X5: =IF(_xll.BDP($C$2,$D5,"FUND_PER=Y","EQY_FUND_YEAR",X$2)="#N/A N/A","",_xll.BDP($C$2,$D5,"FUND_PER=Y","EQY_FUND_YEAR",X$2)) -> 
A6: 〇 | C6: 営業利益 | D6: IS_OPER_INC | E6: 124983 | F6: 117438 | G6: 122499 | H6: 114032 | I6: 193513 | J6: 191794 | K6: 223090 | L6: 206011 | W6: =IF(_xll.BDP($C$2,$D6,"FUND_PER=Y","EQY_FUND_YEAR",W$2)="#N/A N/A","",_xll.BDP($C$2,$D6,"FUND_PER=Y","EQY_FUND_YEAR",W$2)) ->  | X6: =IF(_xll.BDP($C$2,$D6,"FUND_PER=Y","EQY_FUND_YEAR",X$2)="#N/A N/A","",_xll.BDP($C$2,$D6,"FUND_PER=Y","EQY_FUND_YEAR",X$2)) -> 
A7: 〇 | C7: 純利益 | D7: ARD_NET_INC | E7: 71800 | F7: 65421 | G7: 69702 | H7: 64535 | I7: 136654 | J7: 151667 | K7: 174280 | L7: 179880 | W7: =IF(_xll.BDP($C$2,$D7,"FUND_PER=Y","EQY_FUND_YEAR",W$2)="#N/A N/A","",_xll.BDP($C$2,$D7,"FUND_PER=Y","EQY_FUND_YEAR",W$2)) ->  | X7: =IF(_xll.BDP($C$2,$D7,"FUND_PER=Y","EQY_FUND_YEAR",X$2)="#N/A N/A","",_xll.BDP($C$2,$D7,"FUND_PER=Y","EQY_FUND_YEAR",X$2)) -> 
A8: 〇 | C8: EBITDA | D8: EBITDA | E8: 170041 | F8: 180646 | G8: 191404 | H8: 202249 | I8: 245938 | J8: 253157 | K8: 294212 | L8: 321773 | W8: =IF(_xll.BDP($C$2,$D8,"FUND_PER=Y","EQY_FUND_YEAR",W$2)="#N/A N/A","",_xll.BDP($C$2,$D8,"FUND_PER=Y","EQY_FUND_YEAR",W$2)) ->  | X8: =IF(_xll.BDP($C$2,$D8,"FUND_PER=Y","EQY_FUND_YEAR",X$2)="#N/A N/A","",_xll.BDP($C$2,$D8,"FUND_PER=Y","EQY_FUND_YEAR",X$2)) -> 
A12: 〇 | C12: FCF | D12: CF_FREE_CASH_FLOW | E12: 154676 | F12: 120687 | G12: 130802 | H12: 149481 | I12: 135992 | J12: 174120 | K12: 248480 | L12: 268668 | W12: =IF(_xll.BDP($C$2,$D12,"FUND_PER=Y","EQY_FUND_YEAR",W$2)="#N/A N/A","",_xll.BDP($C$2,$D12,"FUND_PER=Y","EQY_FUND_YEAR",W$2)) ->  | X12: =IF(_xll.BDP($C$2,$D12,"FUND_PER=Y","EQY_FUND_YEAR",X$2)="#N/A N/A","",_xll.BDP($C$2,$D12,"FUND_PER=Y","EQY_FUND_YEAR",X$2)) -> 
A13: 〇 | C13: 1株当たり利益 | D13: IS_EPS | E13: 47.81666667 | F13: 42.21333333 | G13: 42.59666667 | H13: 38.09333333 | I13: 27.11 | J13: 90.79 | K13: 104.31 | L13: 108.27 | W13: =IF(_xll.BDP($C$2,$D13,"FUND_PER=Y","EQY_FUND_YEAR",W$2)="#N/A N/A","",_xll.BDP($C$2,$D13,"FUND_PER=Y","EQY_FUND_YEAR",W$2)) ->  | X13: =IF(_xll.BDP($C$2,$D13,"FUND_PER=Y","EQY_FUND_YEAR",X$2)="#N/A N/A","",_xll.BDP($C$2,$D13,"FUND_PER=Y","EQY_FUND_YEAR",X$2)) -> 
A17: 〇 | C17: 現預金 | D17: C&CE_AND_STI_DETAILED | E17: 201461 | F17: 187183 | G17: 313339 | H17: 310917 | I17: 355196 | J17: 389822 | K17: 402911 | L17: 421253 | W17: =IF(_xll.BDP($C$2,$D17,"FUND_PER=Y","EQY_FUND_YEAR",W$2)="#N/A N/A","",_xll.BDP($C$2,$D17,"FUND_PER=Y","EQY_FUND_YEAR",W$2)) ->  | X17: =IF(_xll.BDP($C$2,$D17,"FUND_PER=Y","EQY_FUND_YEAR",X$2)="#N/A N/A","",_xll.BDP($C$2,$D17,"FUND_PER=Y","EQY_FUND_YEAR",X$2)) -> 
A18: 〇 | C18: 売上債権 | D18: BS_ACCT_NOTE_RCV | E18: 137824 | F18: 155863 | G18: 190354 | H18: 218032 | I18: 293531 | J18: 322139 | K18: 339450 | L18: 326971 | W18: =IF(_xll.BDP($C$2,$D18,"FUND_PER=Y","EQY_FUND_YEAR",W$2)="#N/A N/A","",_xll.BDP($C$2,$D18,"FUND_PER=Y","EQY_FUND_YEAR",W$2)) ->  | X18: =IF(_xll.BDP($C$2,$D18,"FUND_PER=Y","EQY_FUND_YEAR",X$2)="#N/A N/A","",_xll.BDP($C$2,$D18,"FUND_PER=Y","EQY_FUND_YEAR",X$2)) -> 
A19: 〇 | C19: 棚卸資産 | D19: BS_INVENTORIES | E19: 0 | F19: 0 | G19: 0 | H19: 0 | I19: 0 | J19: 0 | K19: 0 | L19: 0 | W19: =IF(_xll.BDP($C$2,$D19,"FUND_PER=Y","EQY_FUND_YEAR",W$2)="#N/A N/A","",_xll.BDP($C$2,$D19,"FUND_PER=Y","EQY_FUND_YEAR",W$2)) ->  | X19: =IF(_xll.BDP($C$2,$D19,"FUND_PER=Y","EQY_FUND_YEAR",X$2)="#N/A N/A","",_xll.BDP($C$2,$D19,"FUND_PER=Y","EQY_FUND_YEAR",X$2)) -> 
A20: 〇 | C20: 流動資産 | D20: ARD_TOTAL_CUR_ASSETS | E20: 388954 | F20: 390312 | G20: 566639 | H20: 589739 | I20: 691394 | J20: 770962 | K20: 809007 | L20: 829979 | W20: =IF(_xll.BDP($C$2,$D20,"FUND_PER=Y","EQY_FUND_YEAR",W$2)="#N/A N/A","",_xll.BDP($C$2,$D20,"FUND_PER=Y","EQY_FUND_YEAR",W$2)) ->  | X20: =IF(_xll.BDP($C$2,$D20,"FUND_PER=Y","EQY_FUND_YEAR",X$2)="#N/A N/A","",_xll.BDP($C$2,$D20,"FUND_PER=Y","EQY_FUND_YEAR",X$2)) -> 
A21: 〇 | C21: 固定資産（純額） | D21: BS_NET_FIX_ASSET | E21: 20933 | F21: 23543 | G21: 25754 | H21: 32432 | I21: 49158 | J21: 57211 | K21: 74566 | L21: 350430 | W21: =IF(_xll.BDP($C$2,$D21,"FUND_PER=Y","EQY_FUND_YEAR",W$2)="#N/A N/A","",_xll.BDP($C$2,$D21,"FUND_PER=Y","EQY_FUND_YEAR",W$2)) ->  | X21: =IF(_xll.BDP($C$2,$D21,"FUND_PER=Y","EQY_FUND_YEAR",X$2)="#N/A N/A","",_xll.BDP($C$2,$D21,"FUND_PER=Y","EQY_FUND_YEAR",X$2)) -> 
A22: 〇 | C22: 総長期投資 | D22: BS_LT_INVEST | E22: 68909 | F22: 79759 | G22: 100626 | H22: 83892 | W22: =IF(_xll.BDP($C$2,$D22,"FUND_PER=Y","EQY_FUND_YEAR",W$2)="#N/A N/A","",_xll.BDP($C$2,$D22,"FUND_PER=Y","EQY_FUND_YEAR",W$2)) ->  | X22: =IF(_xll.BDP($C$2,$D22,"FUND_PER=Y","EQY_FUND_YEAR",X$2)="#N/A N/A","",_xll.BDP($C$2,$D22,"FUND_PER=Y","EQY_FUND_YEAR",X$2)) -> 
A23: 〇 | C23: その他の固定資産 | D23: BS_OTHER_ASSETS_DEF_CHRG_OTHER | E23: 329726 | F23: 366767 | G23: 407763 | H23: 444618 | I23: 722351 | J23: 745859 | K23: 865409 | L23: 818508 | W23: =IF(_xll.BDP($C$2,$D23,"FUND_PER=Y","EQY_FUND_YEAR",W$2)="#N/A N/A","",_xll.BDP($C$2,$D23,"FUND_PER=Y","EQY_FUND_YEAR",W$2)) ->  | X23: =IF(_xll.BDP($C$2,$D23,"FUND_PER=Y","EQY_FUND_YEAR",X$2)="#N/A N/A","",_xll.BDP($C$2,$D23,"FUND_PER=Y","EQY_FUND_YEAR",X$2)) -> 
A24: 〇 | C24: のれん | D24: ARD_GOODWLL | E24: 172841 | F24: 193713 | G24: 216394 | H24: 213051 | I24: 303273 | J24: 312944 | K24: 410651 | L24: 383163 | W24: =IF(_xll.BDP($C$2,$D24,"FUND_PER=Y","EQY_FUND_YEAR",W$2)="#N/A N/A","",_xll.BDP($C$2,$D24,"FUND_PER=Y","EQY_FUND_YEAR",W$2)) ->  | X24: =IF(_xll.BDP($C$2,$D24,"FUND_PER=Y","EQY_FUND_YEAR",X$2)="#N/A N/A","",_xll.BDP($C$2,$D24,"FUND_PER=Y","EQY_FUND_YEAR",X$2)) -> 
A25: 〇 | C25: 非流動資産合計 | D25: BS_TOT_NON_CUR_ASSET | E25: 419568 | F25: 470069 | G25: 534143 | H25: 560942 | I25: 771509 | J25: 803070 | K25: 939975 | L25: 1168938 | W25: =IF(_xll.BDP($C$2,$D25,"FUND_PER=Y","EQY_FUND_YEAR",W$2)="#N/A N/A","",_xll.BDP($C$2,$D25,"FUND_PER=Y","EQY_FUND_YEAR",W$2)) ->  | X25: =IF(_xll.BDP($C$2,$D25,"FUND_PER=Y","EQY_FUND_YEAR",X$2)="#N/A N/A","",_xll.BDP($C$2,$D25,"FUND_PER=Y","EQY_FUND_YEAR",X$2)) -> 
A26: 〇 | C26: 総資産 | D26: BS_TOT_ASSET | E26: 808522 | F26: 860381 | G26: 1100782 | H26: 1150681 | I26: 1462903 | J26: 1574032 | K26: 1748982 | L26: 1998917 | W26: =IF(_xll.BDP($C$2,$D26,"FUND_PER=Y","EQY_FUND_YEAR",W$2)="#N/A N/A","",_xll.BDP($C$2,$D26,"FUND_PER=Y","EQY_FUND_YEAR",W$2)) ->  | X26: =IF(_xll.BDP($C$2,$D26,"FUND_PER=Y","EQY_FUND_YEAR",X$2)="#N/A N/A","",_xll.BDP($C$2,$D26,"FUND_PER=Y","EQY_FUND_YEAR",X$2)) -> 
A27: 〇 | C27: 買掛金・未払金 | D27: ACCT_PAYABLE_&_ACCRUALS_DETAILED | E27: 142353 | F27: 151637 | G27: 149725 | H27: 185508 | I27: 187258 | J27: 204907 | K27: 227271 | L27: 215548 | W27: =IF(_xll.BDP($C$2,$D27,"FUND_PER=Y","EQY_FUND_YEAR",W$2)="#N/A N/A","",_xll.BDP($C$2,$D27,"FUND_PER=Y","EQY_FUND_YEAR",W$2)) ->  | X27: =IF(_xll.BDP($C$2,$D27,"FUND_PER=Y","EQY_FUND_YEAR",X$2)="#N/A N/A","",_xll.BDP($C$2,$D27,"FUND_PER=Y","EQY_FUND_YEAR",X$2)) -> 
A28: 〇 | C28: 短期有利子負債 | D28: BS_ST_BORROW | E28: 36700 | F28: 26719 | G28: 15000 | H28: 15000 | I28: 24967 | J28: 24068 | K28: 24869 | L28: 56010 | W28: =IF(_xll.BDP($C$2,$D28,"FUND_PER=Y","EQY_FUND_YEAR",W$2)="#N/A N/A","",_xll.BDP($C$2,$D28,"FUND_PER=Y","EQY_FUND_YEAR",W$2)) ->  | X28: =IF(_xll.BDP($C$2,$D28,"FUND_PER=Y","EQY_FUND_YEAR",X$2)="#N/A N/A","",_xll.BDP($C$2,$D28,"FUND_PER=Y","EQY_FUND_YEAR",X$2)) -> 
A29: 〇 | C29: その他流動資産 | D29: OTHER_CURRENT_LIABS_SUB_DETAILED | E29: 57705 | F29: 54752 | G29: 75511 | H29: 81489 | I29: 201299 | J29: 218793 | K29: 245454 | L29: 240175 | W29: =IF(_xll.BDP($C$2,$D29,"FUND_PER=Y","EQY_FUND_YEAR",W$2)="#N/A N/A","",_xll.BDP($C$2,$D29,"FUND_PER=Y","EQY_FUND_YEAR",W$2)) ->  | X29: =IF(_xll.BDP($C$2,$D29,"FUND_PER=Y","EQY_FUND_YEAR",X$2)="#N/A N/A","",_xll.BDP($C$2,$D29,"FUND_PER=Y","EQY_FUND_YEAR",X$2)) -> 
A30: 〇 | C30: 流動負債 合計 | D30: BS_CUR_LIAB | E30: 236758 | F30: 233108 | G30: 240236 | H30: 281997 | I30: 413524 | J30: 447768 | K30: 497594 | L30: 511733 | W30: =IF(_xll.BDP($C$2,$D30,"FUND_PER=Y","EQY_FUND_YEAR",W$2)="#N/A N/A","",_xll.BDP($C$2,$D30,"FUND_PER=Y","EQY_FUND_YEAR",W$2)) ->  | X30: =IF(_xll.BDP($C$2,$D30,"FUND_PER=Y","EQY_FUND_YEAR",X$2)="#N/A N/A","",_xll.BDP($C$2,$D30,"FUND_PER=Y","EQY_FUND_YEAR",X$2)) -> 
A31: 〇 | C31: 長期有利子負債 | D31: BS_LT_BORROW | E31: 121719 | F31: 30000 | G31: 15000 | H31: 0 | I31: 186620 | J31: 159007 | K31: 137212 | L31: 352402 | W31: =IF(_xll.BDP($C$2,$D31,"FUND_PER=Y","EQY_FUND_YEAR",W$2)="#N/A N/A","",_xll.BDP($C$2,$D31,"FUND_PER=Y","EQY_FUND_YEAR",W$2)) ->  | X31: =IF(_xll.BDP($C$2,$D31,"FUND_PER=Y","EQY_FUND_YEAR",X$2)="#N/A N/A","",_xll.BDP($C$2,$D31,"FUND_PER=Y","EQY_FUND_YEAR",X$2)) -> 
A32: 〇 | C32: その他の固定負債 | D32: OTHER_NONCUR_LIABS_SUB_DETAILED | E32: 30798 | F32: 50652 | G32: 91389 | H32: 91684 | I32: 119994 | J32: 126597 | K32: 141925 | L32: 139039 | W32: =IF(_xll.BDP($C$2,$D32,"FUND_PER=Y","EQY_FUND_YEAR",W$2)="#N/A N/A","",_xll.BDP($C$2,$D32,"FUND_PER=Y","EQY_FUND_YEAR",W$2)) ->  | X32: =IF(_xll.BDP($C$2,$D32,"FUND_PER=Y","EQY_FUND_YEAR",X$2)="#N/A N/A","",_xll.BDP($C$2,$D32,"FUND_PER=Y","EQY_FUND_YEAR",X$2)) -> 
A33: 〇 | C33: 非流動負債 合計 | D33: NON_CUR_LIAB | E33: 152517 | F33: 80652 | G33: 106389 | H33: 91684 | I33: 306614 | J33: 285604 | K33: 279137 | L33: 491441 | W33: =IF(_xll.BDP($C$2,$D33,"FUND_PER=Y","EQY_FUND_YEAR",W$2)="#N/A N/A","",_xll.BDP($C$2,$D33,"FUND_PER=Y","EQY_FUND_YEAR",W$2)) ->  | X33: =IF(_xll.BDP($C$2,$D33,"FUND_PER=Y","EQY_FUND_YEAR",X$2)="#N/A N/A","",_xll.BDP($C$2,$D33,"FUND_PER=Y","EQY_FUND_YEAR",X$2)) -> 
A34: 〇 | C34: 資本金・資本剰余金 | D34: BS_SH_CAP_AND_APIC | E34: 17682 | F34: 20955 | G34: 64885 | H34: 65893 | I34: 62529 | J34: 60115 | K34: 59136 | L34: 58904 | W34: =IF(_xll.BDP($C$2,$D34,"FUND_PER=Y","EQY_FUND_YEAR",W$2)="#N/A N/A","",_xll.BDP($C$2,$D34,"FUND_PER=Y","EQY_FUND_YEAR",W$2)) ->  | X34: =IF(_xll.BDP($C$2,$D34,"FUND_PER=Y","EQY_FUND_YEAR",X$2)="#N/A N/A","",_xll.BDP($C$2,$D34,"FUND_PER=Y","EQY_FUND_YEAR",X$2)) -> 
A35: 〇 | C35: 自己株式 | D35: BS_AMT_OF_TSY_STOCK | E35: 85698 | F35: 60815 | G35: 531 | H35: 495 | I35: 31640 | J35: 32049 | K35: 32378 | L35: 113244 | W35: =IF(_xll.BDP($C$2,$D35,"FUND_PER=Y","EQY_FUND_YEAR",W$2)="#N/A N/A","",_xll.BDP($C$2,$D35,"FUND_PER=Y","EQY_FUND_YEAR",W$2)) ->  | X35: =IF(_xll.BDP($C$2,$D35,"FUND_PER=Y","EQY_FUND_YEAR",X$2)="#N/A N/A","",_xll.BDP($C$2,$D35,"FUND_PER=Y","EQY_FUND_YEAR",X$2)) ->  | AA35: ROE分析
A36: 〇 | C36: 利益剰余金 | D36: BS_PURE_RETAINED_EARNINGS | E36: 450599 | F36: 503008 | G36: 558312 | H36: 596305 | I36: 714055 | J36: 811287 | K36: 942449 | L36: 1067492 | W36: =IF(_xll.BDP($C$2,$D36,"FUND_PER=Y","EQY_FUND_YEAR",W$2)="#N/A N/A","",_xll.BDP($C$2,$D36,"FUND_PER=Y","EQY_FUND_YEAR",W$2)) ->  | X36: =IF(_xll.BDP($C$2,$D36,"FUND_PER=Y","EQY_FUND_YEAR",X$2)="#N/A N/A","",_xll.BDP($C$2,$D36,"FUND_PER=Y","EQY_FUND_YEAR",X$2)) -> 
A37: 〇 | C37: その他持分 | D37: OTHER_EQUITY_RATIO | E37: 33968 | F37: 80530 | G37: 128169 | H37: 110712 | I37: -7369 | J37: -3748 | K37: -3431 | L37: -24702 | W37: =IF(_xll.BDP($C$2,$D37,"FUND_PER=Y","EQY_FUND_YEAR",W$2)="#N/A N/A","",_xll.BDP($C$2,$D37,"FUND_PER=Y","EQY_FUND_YEAR",W$2)) ->  | X37: =IF(_xll.BDP($C$2,$D37,"FUND_PER=Y","EQY_FUND_YEAR",X$2)="#N/A N/A","",_xll.BDP($C$2,$D37,"FUND_PER=Y","EQY_FUND_YEAR",X$2)) -> 
A38: 〇 | C38: 少数株主持分 | D38: MINORITY_NONCONTROLLING_INTEREST | E38: 2696 | F38: 2943 | G38: 3322 | H38: 4585 | I38: 5190 | J38: 5055 | K38: 6475 | L38: 7293 | W38: =IF(_xll.BDP($C$2,$D38,"FUND_PER=Y","EQY_FUND_YEAR",W$2)="#N/A N/A","",_xll.BDP($C$2,$D38,"FUND_PER=Y","EQY_FUND_YEAR",W$2)) ->  | X38: =IF(_xll.BDP($C$2,$D38,"FUND_PER=Y","EQY_FUND_YEAR",X$2)="#N/A N/A","",_xll.BDP($C$2,$D38,"FUND_PER=Y","EQY_FUND_YEAR",X$2)) -> 
A39: 〇 | C39: 純資産 | D39: TOTAL_EQUITY | E39: 419247 | F39: 546621 | G39: 754157 | H39: 777000 | I39: 742765 | J39: 840660 | K39: 972251 | L39: 995743 | W39: =IF(_xll.BDP($C$2,$D39,"FUND_PER=Y","EQY_FUND_YEAR",W$2)="#N/A N/A","",_xll.BDP($C$2,$D39,"FUND_PER=Y","EQY_FUND_YEAR",W$2)) ->  | X39: =IF(_xll.BDP($C$2,$D39,"FUND_PER=Y","EQY_FUND_YEAR",X$2)="#N/A N/A","",_xll.BDP($C$2,$D39,"FUND_PER=Y","EQY_FUND_YEAR",X$2)) -> 
A42: 〇 | C42: 1株当たり配当 | D42: IS_DIV_PER_SHR | E42: 8.666666667 | F42: 8.666666667 | G42: 15.66666667 | H42: 16.66666667 | I42: 21.66666667 | J42: 23 | K42: 28 | L42: 30 | W42: =IF(_xll.BDP($C$2,$D42,"FUND_PER=Y","EQY_FUND_YEAR",W$2)="#N/A N/A","",_xll.BDP($C$2,$D42,"FUND_PER=Y","EQY_FUND_YEAR",W$2)) ->  | X42: =IF(_xll.BDP($C$2,$D42,"FUND_PER=Y","EQY_FUND_YEAR",X$2)="#N/A N/A","",_xll.BDP($C$2,$D42,"FUND_PER=Y","EQY_FUND_YEAR",X$2)) -> 
A44: 〇 | C44: 営業CF | D44: CF_CASH_FROM_OPER | E44: 158598 | F44: 126127 | G44: 137497 | H44: 162511 | I44: 154373 | J44: 194117 | K44: 276960 | L44: 303325 | W44: =IF(_xll.BDP($C$2,$D44,"FUND_PER=Y","EQY_FUND_YEAR",W$2)="#N/A N/A","",_xll.BDP($C$2,$D44,"FUND_PER=Y","EQY_FUND_YEAR",W$2)) ->  | X44: =IF(_xll.BDP($C$2,$D44,"FUND_PER=Y","EQY_FUND_YEAR",X$2)="#N/A N/A","",_xll.BDP($C$2,$D44,"FUND_PER=Y","EQY_FUND_YEAR",X$2)) -> 
A45: 〇 | C45: 投資CF | D45: CF_CASH_FROM_INV_ACT | E45: -113795 | F45: -48818 | G45: -80358 | H45: -109613 | I45: -213886 | J45: -65937 | K45: -204619 | L45: -88993 | W45: =IF(_xll.BDP($C$2,$D45,"FUND_PER=Y","EQY_FUND_YEAR",W$2)="#N/A N/A","",_xll.BDP($C$2,$D45,"FUND_PER=Y","EQY_FUND_YEAR",W$2)) ->  | X45: =IF(_xll.BDP($C$2,$D45,"FUND_PER=Y","EQY_FUND_YEAR",X$2)="#N/A N/A","",_xll.BDP($C$2,$D45,"FUND_PER=Y","EQY_FUND_YEAR",X$2)) -> 
A46: 〇 | C46: 財務CF | D46: CFF_ACTIVITIES_DETAILED | E46: 7756 | F46: -92923 | G46: 62581 | H46: -53548 | I46: 107151 | J46: -83171 | K46: -68523 | L46: -192721 | W46: =IF(_xll.BDP($C$2,$D46,"FUND_PER=Y","EQY_FUND_YEAR",W$2)="#N/A N/A","",_xll.BDP($C$2,$D46,"FUND_PER=Y","EQY_FUND_YEAR",W$2)) ->  | X46: =IF(_xll.BDP($C$2,$D46,"FUND_PER=Y","EQY_FUND_YEAR",X$2)="#N/A N/A","",_xll.BDP($C$2,$D46,"FUND_PER=Y","EQY_FUND_YEAR",X$2)) -> 
C47: 投資CF(グラフ用） | E47: 113795 | F47: 48818 | G47: 80358 | H47: 109613 | I47: 213886 | J47: 65937 | K47: 204619 | L47: 88993 | W47: =-W45 -> 
A48: 〇 | C48: 財務CF（グラフ用） | D48: CF_DVD_PAID | E48: -7756 | F48: 92923 | G48: -62581 | H48: 53548 | I48: -107151 | J48: 83171 | K48: 68523 | L48: 192721
A49: 〇 | C49: 配当金支払い | D49: CF_DVD_PAID | E49: -13012 | F49: -12880 | G49: -13670 | H49: -26422 | I49: -28513 | J49: -54552 | K49: -42616 | L49: -49268 | W49: =IF(_xll.BDP($C$2,$D49,"FUND_PER=Y","EQY_FUND_YEAR",W$2)="#N/A N/A","",_xll.BDP($C$2,$D49,"FUND_PER=Y","EQY_FUND_YEAR",W$2)) ->  | X49: =IF(_xll.BDP($C$2,$D49,"FUND_PER=Y","EQY_FUND_YEAR",X$2)="#N/A N/A","",_xll.BDP($C$2,$D49,"FUND_PER=Y","EQY_FUND_YEAR",X$2)) -> 
C50: 株価
A51: 〇 | C51: PER | D51: PE_RATIO | G51: 29.34501917 | H51: 30.05775289 | I51: 69.83892782 | J51: 29.12765723 | K51: 30.30390183 | L51: 25.82432807 | W51: =IF(_xll.BDP($C$2,$D51,"FUND_PER=Y","EQY_FUND_YEAR",W$2)="#N/A N/A","",_xll.BDP($C$2,$D51,"FUND_PER=Y","EQY_FUND_YEAR",W$2)) ->  | X51: =IF(_xll.BDP($C$2,$D51,"FUND_PER=Y","EQY_FUND_YEAR",X$2)="#N/A N/A","",_xll.BDP($C$2,$D51,"FUND_PER=Y","EQY_FUND_YEAR",X$2)) -> 
A52: 〇 | C52: EPS | D52: IS_EPS | E52: 47.81666667 | F52: 42.21333333 | G52: 42.59666667 | H52: 38.09333333 | I52: 27.11 | J52: 90.79 | K52: 104.31 | L52: 108.27 | W52: =IF(_xll.BDP($C$2,$D52,"FUND_PER=Y","EQY_FUND_YEAR",W$2)="#N/A N/A","",_xll.BDP($C$2,$D52,"FUND_PER=Y","EQY_FUND_YEAR",W$2)) ->  | X52: =IF(_xll.BDP($C$2,$D52,"FUND_PER=Y","EQY_FUND_YEAR",X$2)="#N/A N/A","",_xll.BDP($C$2,$D52,"FUND_PER=Y","EQY_FUND_YEAR",X$2)) -> 
A53: 〇 | C53: 時価総額 | D53: HISTORICAL_MARKET_CAP | G53: 2117602.538 | H53: 1939867.507 | I53: 3162973.036 | J53: 4417762.766 | K53: 5281348.098 | L53: 4608886.057 | W53: =IF(_xll.BDP($C$2,$D53,"FUND_PER=Y","EQY_FUND_YEAR",W$2)="#N/A N/A","",_xll.BDP($C$2,$D53,"FUND_PER=Y","EQY_FUND_YEAR",W$2)) ->  | X53: =IF(_xll.BDP($C$2,$D53,"FUND_PER=Y","EQY_FUND_YEAR",X$2)="#N/A N/A","",_xll.BDP($C$2,$D53,"FUND_PER=Y","EQY_FUND_YEAR",X$2)) -> 
A54: 〇 | C54: 発行済株式数（自己株除き） | D54: BS_SH_OUT | E54: 1501.48497 | F54: 1589.38473 | G54: 1694.08203 | H54: 1694.20743 | I54: 1670.58435 | J54: 1670.547463 | K54: 1670.78396 | L54: 1648.385571 | W54: =IF(_xll.BDP($C$2,$D54,"FUND_PER=Y","EQY_FUND_YEAR",W$2)="#N/A N/A","",_xll.BDP($C$2,$D54,"FUND_PER=Y","EQY_FUND_YEAR",W$2)) ->  | X54: =IF(_xll.BDP($C$2,$D54,"FUND_PER=Y","EQY_FUND_YEAR",X$2)="#N/A N/A","",_xll.BDP($C$2,$D54,"FUND_PER=Y","EQY_FUND_YEAR",X$2)) -> 
C55: 株価 | D55: 時価総額÷発行済み株式数 | G55: 1250 | H55: 1145 | I55: 1893.333333 | J55: 2644.5 | K55: 3161 | L55: 2796 | W55: =W53/W54 -> 
C57: 格付 | AA57: =E2 -> 2013 | AB57: =F2 -> 2014 | AC57: 2015 | AD57: 2016 | AE57: 2017 | AF57: 2018 | AG57: 2019 | AH57: 2020 | AI57: 2021 | AJ57: 2022 | AK57: 2023 | AL57: 2024 | AM57: 2025 | AN57: 2026 | AO57: 2027 | AP57: 2028 | AQ57: 2029 | AR57: 2030 | AS57: 2031 | AT57: 2032
A58: 〇 | C58: S&P | D58: RTG_SP_LT_LC_ISSUER_CREDIT | E58: A | F58: A | G58: A | H58: A | I58: A | J58: A | K58: A | L58: A | M58: A | N58: A | O58: A | P58: A | Q58: A | R58: A | S58: A | T58: A | U58: A | V58: A | W58: =IF(_xll.BDP($C$2,$D58,"FUND_PER=Y","EQY_FUND_YEAR",W$2)="#N/A N/A","",_xll.BDP($C$2,$D58,"FUND_PER=Y","EQY_FUND_YEAR",W$2)) -> A | X58: =IF(_xll.BDP($C$2,$D58,"FUND_PER=Y","EQY_FUND_YEAR",X$2)="#N/A N/A","",_xll.BDP($C$2,$D58,"FUND_PER=Y","EQY_FUND_YEAR",X$2)) -> A | Z58: =C99 -> PBR | AA58: =E99 ->  | AC58: 2.807906759 | AD58: 2.496611979 | AE58: 4.25837652 | AF58: 5.255112371 | AG58: 5.432082968 | AH58: 4.628589964 | AQ58: =U99 -> 
A59: 〇 | C59: Moody's | D59: RTG_MDY_ISSUER | W59: =IF(_xll.BDP($C$2,$D59,"FUND_PER=Y","EQY_FUND_YEAR",W$2)="#N/A N/A","",_xll.BDP($C$2,$D59,"FUND_PER=Y","EQY_FUND_YEAR",W$2)) ->  | X59: =IF(_xll.BDP($C$2,$D59,"FUND_PER=Y","EQY_FUND_YEAR",X$2)="#N/A N/A","",_xll.BDP($C$2,$D59,"FUND_PER=Y","EQY_FUND_YEAR",X$2)) ->  | Z59: =C100 -> PER | AC59: 29.34501917 | AD59: 30.05775289 | AE59: 69.83892782 | AF59: 29.12765723 | AG59: 30.30390183 | AH59: 25.82432807
A60: 〇 | C60: R&I | D60: RTG_RI_ISSUER_RATING | E60: AA- | F60: AA- | G60: AA- | H60: AA- | I60: AA- | J60: AA- | K60: AA- | L60: AA- | M60: AA- | N60: AA- | O60: AA- | P60: AA- | Q60: AA- | R60: AA- | S60: AA- | T60: AA- | U60: AA- | V60: AA- | W60: =IF(_xll.BDP($C$2,$D60,"FUND_PER=Y","EQY_FUND_YEAR",W$2)="#N/A N/A","",_xll.BDP($C$2,$D60,"FUND_PER=Y","EQY_FUND_YEAR",W$2)) -> AA- | X60: =IF(_xll.BDP($C$2,$D60,"FUND_PER=Y","EQY_FUND_YEAR",X$2)="#N/A N/A","",_xll.BDP($C$2,$D60,"FUND_PER=Y","EQY_FUND_YEAR",X$2)) -> AA- | Z60: ROE | AB60: 0.136261246 | AC60: 0.1076883739 | AD60: 0.08473330051 | AE60: 0.1809998742 | AF60: 0.1928158253 | AG60: 0.19349599 | AH60: 0.1840933444
A61: 〇 | C61: JCR | D61: RTG_JCR_LT_ISSUER | W61: =IF(_xll.BDP($C$2,$D61,"FUND_PER=Y","EQY_FUND_YEAR",W$2)="#N/A N/A","",_xll.BDP($C$2,$D61,"FUND_PER=Y","EQY_FUND_YEAR",W$2)) ->  | X61: =IF(_xll.BDP($C$2,$D61,"FUND_PER=Y","EQY_FUND_YEAR",X$2)="#N/A N/A","",_xll.BDP($C$2,$D61,"FUND_PER=Y","EQY_FUND_YEAR",X$2)) ->  | Z61: ROS | AA61: 0.06843152654 | AB61: 0.05490333317 | AC61: 0.0536198103 | AD61: 0.04062323157 | AE61: 0.07037048862 | AF61: 0.06978377048 | AG61: 0.07542120414 | AH61: 0.07496671133
Z62: 総資産回転率 | AA62: 1.297706185 | AB62: 1.427964357 | AC62: 1.325672573 | AD62: 1.411191745 | AE62: 1.486022259 | AF62: 1.431301625 | AG62: 1.390759112 | AH62: 1.28043205
C63: 成長性分析 | W63: =N2&"年～"&X2&"年のCAGR>>" -> 2022年～2032年のCAGR>> | X63: =(X5/N5)^(1/(X2-N2))-1 ->  | Z63: 財務レバレッジ | AA63: 1.928509924 | AB63: 1.573999169 | AC63: 1.459619151 | AD63: 1.480927928 | AE63: 1.969536798 | AF63: 1.872376466 | AG63: 1.798899667 | AH63: 2.007462769
C64: 売上高YoY% | F64: =F4/E4-1 -> 0.1356650248 | G64: 0.09094159204 | H64: 0.2220834968 | I64: 0.2223932299 | J64: 0.1191927379 | K64: 0.06320601274 | L64: 0.03838960063
C65: 売上高 | E65: =E4/$E4 -> 1 | F65: 1.135665025 | G65: 1.23894421 | H65: 1.514093273 | I65: 1.850817366 | J65: 2.071421355 | K65: 2.20234764 | L65: 2.286894886
C66: 売上総利益 | E66: 1 | F66: 1.160187536 | G66: 1.26203978 | H66: 1.456779684 | I66: 1.715121139 | J66: 1.953722787 | K66: 2.252052378 | L66: 2.491006522
C67: 営業利益 | E67: 1 | F67: 0.9396317899 | G67: 0.980125297 | H67: 0.9123800837 | I67: 1.548314571 | J67: 1.5345607 | K67: 1.784962755 | L67: 1.64831217
C68: 純利益 | E68: 1 | F68: 0.9111559889 | G68: 0.9707799443 | H68: 0.898816156 | I68: 1.903259053 | J68: 2.11235376 | K68: 2.42729805 | L68: 2.505292479
C69: 総資産 | E69: =E26/$E26 -> 1 | F69: 1.064140493 | G69: 1.361474394 | H69: 1.423190711 | I69: 1.8093546 | J69: 1.946801695 | K69: 2.163184181 | L69: 2.472309968
C70: 自己資本 | E70: =E39/$E39 -> 1 | F70: 1.303816127 | G70: 1.798836962 | H70: 1.853322743 | I70: 1.771664436 | J70: 2.005166405 | K70: 2.319041043 | L70: 2.375074837
C72: 収益性分析
C73: 売上総利益率 | E73: =E5/E4 -> 0.4947980603 | F73: 0.5054822767 | G73: 0.504021755 | H73: 0.4760682679 | I73: 0.4585209911 | J73: 0.4666835374 | K73: 0.5059651473 | L73: 0.5389601432
C74: 営業利益率 | E74: =E6/E4 -> 0.1191194635 | F74: 0.09855761363 | G74: 0.0942350742 | H74: 0.07178040353 | I74: 0.09965024342 | J74: 0.08824667512 | K74: 0.0965441613 | L74: 0.08585705564
C75: 純利益率 | E75: =E7/E4 -> 0.06843152654 | F75: 0.05490333317 | G75: 0.0536198103 | H75: 0.04062323157 | I75: 0.07037048862 | J75: 0.06978377048 | K75: 0.07542120414 | L75: 0.07496671133
C76: ROA | E76: =E7/E26 -> 0.08880401523 | F76: =F7/((F26+E26)/2) -> 0.07840000288 | G76: 0.07108231187 | H76: 0.05732716905 | I76: 0.1045721125 | J76: 0.09988162407 | K76: 0.1048927269 | L76: 0.09598977987
A77: 〇 | C77: ROE | D77: RETURN_COM_EQY | F77: 0.136261246 | G77: 0.1076883739 | H77: 0.08473330051 | I77: 0.1809998742 | J77: 0.1928158253 | K77: 0.19349599 | L77: 0.1840933444 | W77: =IF(_xll.BDP($C$2,$D77,"FUND_PER=Y","EQY_FUND_YEAR",W$2)="#N/A N/A","",_xll.BDP($C$2,$D77,"FUND_PER=Y","EQY_FUND_YEAR",W$2))/100 ->  | X77: =X7/((X39-X38+W39-W38)/2) -> 
C78: 効率性分析 | AA78: 収益性分析
C79: 総資産回転率（回） | E79: =E4/E26 -> 1.297706185 | F79: =F4/((F26+E26)/2) -> 1.427964357 | G79: 1.325672573 | H79: 1.411191745 | I79: 1.486022259 | J79: 1.431301625 | K79: 1.390759112 | L79: 1.28043205
C80: 有形固定資産回転率（回） | E80: =E4/E21 -> 50.12296374 | F80: =F4/((F21+E21)/2) -> 53.58247145 | G80: 52.73870621 | H80: 54.60499089 | I80: 47.60196102 | J80: 40.86500766 | K80: 35.07070278 | L80: 11.29170627
C81: 棚卸資産回転率（回） | E81: =IFERROR(E4/E19,0) -> 0 | F81: =IFERROR(F4/((F19+E19)/2),0) -> 0 | G81: 0 | H81: 0 | I81: 0 | J81: 0 | K81: 0 | L81: 0 | M81: 0 | N81: 0 | O81: 0 | P81: 0 | Q81: 0 | R81: 0 | S81: 0 | T81: 0 | U81: 0 | V81: 0 | W81: 0 | X81: 0
C82: 売上債権回転率（回） | E82: =E4/E18 -> 7.612781518 | F82: =F4/((F18+E18)/2) -> 8.114536905 | G82: 7.50933663 | H82: 7.78000715 | I82: 7.592112799 | J82: 7.06022707 | K82: 6.985472854 | L82: 7.201048586
C83: CCC（日） | E83: =E84+E85+E86 -> -1.575531059 | F83: =F84+F85+F86 -> 1.294505471 | G83: 11.40798735 | H83: 7.472672875 | I83: 19.97487283 | J83: 19.68803502 | K83: 17.71945415 | L83: 16.94935954
C84: 棚卸資産回転日数（日） | E84: =E19/(E4/365)+E88 -> 0 | F84: 0 | G84: 0 | H84: 0 | I84: 0 | J84: 0 | K84: 0 | L84: 0 | AA84: 資産回転率分析
C85: 売上債権回転日数（日） | E85: =E18/(E4/365) -> 47.94568176 | F85: 47.74384907 | G85: 53.44842415 | H85: 50.09475502 | I85: 55.17153367 | J85: 54.10027906 | K85: 53.61849109 | L85: 49.737927
C86: 仕入債務回転日数（日） | E86: =-E27/(E4/365) -> -49.52121282 | F86: =-F27/(F4/365) -> -46.4493436 | G86: -42.04043679 | H86: -42.62208214 | I86: -35.19666083 | J86: -34.41224403 | K86: -35.89903694 | L86: -32.78856745
C88: 安全性分析
C89: 手元流動性比率 | E89: =E17/(E4/12) -> 2.304114279 | F89: 1.885077381 | G89: 2.892515751 | H89: 2.348577353 | I89: 2.194914111 | J89: 2.152340243 | K89: 2.092359384 | L89: 2.106734626
C90: 流動比率 | E90: =E20/E30 -> 1.642833611 | F90: 1.67438269 | G90: 2.358676468 | H90: 2.091295297 | I90: 1.671956162 | J90: 1.721788962 | K90: 1.62583753 | L90: 1.621898529
C91: 自己資本比率 | E91: =(E39-E38)/E26 -> 0.5152005759 | F91: 0.6319037729 | G91: 0.6820923671 | H91: 0.6712677102 | I91: 0.5041858551 | J91: 0.530869131 | K91: 0.5521932187 | L91: 0.4944927678
C92: DEレシオ | E92: =(E28+E31)/(E39-E38) -> 0.3803111744 | F92: =(F28+F31)/(F39-F38) -> 0.1043246186 | G92: 0.03995551619 | H92: 0.01941961251 | I92: 0.2868684541 | J92: 0.2190927532 | K92: 0.1678246301 | L92: 0.4131842784
C93: ネットDEレシオ | E93: =(E28-E17+E31)/(E39-E38) -> -0.1033294843 | F93: =(F28-F17+F31)/(F39-F38) -> -0.2399655679 | G93: -0.3773652001 | H93: -0.3831062318 | I93: -0.1947042674 | J93: -0.2474219278 | K93: -0.2493642418 | L93: -0.01299104659
C94: 固定比率 | E94: =E33/(E39-E38) -> 0.3661424411 | F94: 0.1483451602 | G94: 0.1416942471 | H94: 0.1186978502 | I94: 0.4157055215 | J94: 0.3417930721 | K94: 0.2890287189 | L94: 0.4971834691
C95: 固定長期適合率 | E95: =E25/(E39-E38+E32) -> 0.9378985982 | F95: 0.7909225514 | G95: 0.6342053895 | H95: 0.6491640425 | I95: 0.8996465591 | J95: 0.8346168476 | K95: 0.8485818827 | L95: 1.036762221
C96: Net Debt EBITDAマルチプル | E96: =(E28+E31-E17)/E8 -> -0.253127187 | F96: =(F28+F31-F17)/F8 -> -0.7222080755 | G96: -1.480319116 | H96: -1.46313208 | I96: -0.5839235905 | J96: -0.8166750277 | K96: -0.8185594061 | L96: -0.03990701519 | AA96: 成長性分析
C97: NetDebt/営業CF | E97: =(E28+E31-E17)/E44 -> -0.2713905598 | F97: =(F28+F31-F17)/F44 -> -1.034385976 | G97: -2.060692233 | H97: -1.820904431 | I97: -0.9302727809 | J97: -1.065063853 | K97: -0.8695479492 | L97: -0.04233413006
C98: 企業価値分析
C99: PBR | E99: =E53/E39 ->  | G99: 2.807906759 | H99: 2.496611979 | I99: 4.25837652 | J99: 5.255112371 | K99: 5.432082968 | L99: 4.628589964 | X99: =X53/X39 -> 
C100: PER | E100: =E51 ->  | G100: 29.34501917 | H100: 30.05775289 | I100: 69.83892782 | J100: 29.12765723 | K100: 30.30390183 | L100: 25.82432807 | X100: =X51 -> 
C101: ROE | E101: =E77 ->  | F101: 0.136261246 | G101: 0.1076883739 | H101: 0.08473330051 | I101: 0.1809998742 | J101: 0.1928158253 | K101: 0.19349599 | L101: 0.1840933444
C102: ROS | E102: =E75 -> 0.06843152654 | F102: 0.05490333317 | G102: 0.0536198103 | H102: 0.04062323157 | I102: 0.07037048862 | J102: 0.06978377048 | K102: 0.07542120414 | L102: 0.07496671133
C103: 総資産回転率 | E103: =E4/E26 -> 1.297706185 | F103: =F4/((F26+E26)/2) -> 1.427964357 | G103: =G4/((G26+F26)/2) -> 1.325672573 | H103: 1.411191745 | I103: 1.486022259 | J103: 1.431301625 | K103: 1.390759112 | L103: 1.28043205
C104: 財務レバレッジ | E104: =E26/E39 -> 1.928509924 | F104: =F26/F39 -> 1.573999169 | G104: 1.459619151 | H104: 1.480927928 | I104: 1.969536798 | J104: 1.872376466 | K104: 1.798899667 | L104: 2.007462769
A106: 〇 | C106: 配当性向 | D106: DVD_PAYOUT_RATIO | E106: =IF(_xll.BDP($C$2,$D106,"FUND_PER=Y","EQY_FUND_YEAR",E$2)="#N/A N/A","",_xll.BDP($C$2,$D106,"FUND_PER=Y","EQY_FUND_YEAR",E$2)) -> 18.12256267 | F106: =IF(_xll.BDP($C$2,$D106,"FUND_PER=Y","EQY_FUND_YEAR",F$2)="#N/A N/A","",_xll.BDP($C$2,$D106,"FUND_PER=Y","EQY_FUND_YEAR",F$2)) -> 21.05440149 | G106: =IF(_xll.BDP($C$2,$D106,"FUND_PER=Y","EQY_FUND_YEAR",G$2)="#N/A N/A","",_xll.BDP($C$2,$D106,"FUND_PER=Y","EQY_FUND_YEAR",G$2)) -> 38.07638231 | H106: =IF(_xll.BDP($C$2,$D106,"FUND_PER=Y","EQY_FUND_YEAR",H$2)="#N/A N/A","",_xll.BDP($C$2,$D106,"FUND_PER=Y","EQY_FUND_YEAR",H$2)) -> 43.75300225 | I106: =IF(_xll.BDP($C$2,$D106,"FUND_PER=Y","EQY_FUND_YEAR",I$2)="#N/A N/A","",_xll.BDP($C$2,$D106,"FUND_PER=Y","EQY_FUND_YEAR",I$2)) -> 26.49977315 | J106: =IF(_xll.BDP($C$2,$D106,"FUND_PER=Y","EQY_FUND_YEAR",J$2)="#N/A N/A","",_xll.BDP($C$2,$D106,"FUND_PER=Y","EQY_FUND_YEAR",J$2)) -> 25.35027396 | K106: =IF(_xll.BDP($C$2,$D106,"FUND_PER=Y","EQY_FUND_YEAR",K$2)="#N/A N/A","",_xll.BDP($C$2,$D106,"FUND_PER=Y","EQY_FUND_YEAR",K$2)) -> 26.86481524 | L106: =IF(_xll.BDP($C$2,$D106,"FUND_PER=Y","EQY_FUND_YEAR",L$2)="#N/A N/A","",_xll.BDP($C$2,$D106,"FUND_PER=Y","EQY_FUND_YEAR",L$2)) -> 27.69068268 | M106: =IF(_xll.BDP($C$2,$D106,"FUND_PER=Y","EQY_FUND_YEAR",M$2)="#N/A N/A","",_xll.BDP($C$2,$D106,"FUND_PER=Y","EQY_FUND_YEAR",M$2)) ->  | N106: =IF(_xll.BDP($C$2,$D106,"FUND_PER=Y","EQY_FUND_YEAR",N$2)="#N/A N/A","",_xll.BDP($C$2,$D106,"FUND_PER=Y","EQY_FUND_YEAR",N$2)) ->  | O106: =IF(_xll.BDP($C$2,$D106,"FUND_PER=Y","EQY_FUND_YEAR",O$2)="#N/A N/A","",_xll.BDP($C$2,$D106,"FUND_PER=Y","EQY_FUND_YEAR",O$2)) ->  | P106: =IF(_xll.BDP($C$2,$D106,"FUND_PER=Y","EQY_FUND_YEAR",P$2)="#N/A N/A","",_xll.BDP($C$2,$D106,"FUND_PER=Y","EQY_FUND_YEAR",P$2)) ->  | Q106: =IF(_xll.BDP($C$2,$D106,"FUND_PER=Y","EQY_FUND_YEAR",Q$2)="#N/A N/A","",_xll.BDP($C$2,$D106,"FUND_PER=Y","EQY_FUND_YEAR",Q$2)) ->  | R106: =IF(_xll.BDP($C$2,$D106,"FUND_PER=Y","EQY_FUND_YEAR",R$2)="#N/A N/A","",_xll.BDP($C$2,$D106,"FUND_PER=Y","EQY_FUND_YEAR",R$2)) ->  | S106: =IF(_xll.BDP($C$2,$D106,"FUND_PER=Y","EQY_FUND_YEAR",S$2)="#N/A N/A","",_xll.BDP($C$2,$D106,"FUND_PER=Y","EQY_FUND_YEAR",S$2)) ->  | T106: =IF(_xll.BDP($C$2,$D106,"FUND_PER=Y","EQY_FUND_YEAR",T$2)="#N/A N/A","",_xll.BDP($C$2,$D106,"FUND_PER=Y","EQY_FUND_YEAR",T$2)) ->  | U106: =IF(_xll.BDP($C$2,$D106,"FUND_PER=Y","EQY_FUND_YEAR",U$2)="#N/A N/A","",_xll.BDP($C$2,$D106,"FUND_PER=Y","EQY_FUND_YEAR",U$2)) ->  | V106: =IF(_xll.BDP($C$2,$D106,"FUND_PER=Y","EQY_FUND_YEAR",V$2)="#N/A N/A","",_xll.BDP($C$2,$D106,"FUND_PER=Y","EQY_FUND_YEAR",V$2)) ->  | W106: =IF(_xll.BDP($C$2,$D106,"FUND_PER=Y","EQY_FUND_YEAR",W$2)="#N/A N/A","",_xll.BDP($C$2,$D106,"FUND_PER=Y","EQY_FUND_YEAR",W$2)) ->  | X106: =IF(_xll.BDP($C$2,$D106,"FUND_PER=Y","EQY_FUND_YEAR",X$2)="#N/A N/A","",_xll.BDP($C$2,$D106,"FUND_PER=Y","EQY_FUND_YEAR",X$2)) -> 
A107: 〇 | C107: サステナブル成長率 | D107: SUSTAIN_GROWTH_RT | E107: =IF(_xll.BDP($C$2,$D107,"FUND_PER=Y","EQY_FUND_YEAR",E$2)="#N/A N/A","",_xll.BDP($C$2,$D107,"FUND_PER=Y","EQY_FUND_YEAR",E$2)) ->  | F107: =IF(_xll.BDP($C$2,$D107,"FUND_PER=Y","EQY_FUND_YEAR",F$2)="#N/A N/A","",_xll.BDP($C$2,$D107,"FUND_PER=Y","EQY_FUND_YEAR",F$2)) -> 10.75722562 | G107: =IF(_xll.BDP($C$2,$D107,"FUND_PER=Y","EQY_FUND_YEAR",G$2)="#N/A N/A","",_xll.BDP($C$2,$D107,"FUND_PER=Y","EQY_FUND_YEAR",G$2)) -> 6.668453696 | H107: =IF(_xll.BDP($C$2,$D107,"FUND_PER=Y","EQY_FUND_YEAR",H$2)="#N/A N/A","",_xll.BDP($C$2,$D107,"FUND_PER=Y","EQY_FUND_YEAR",H$2)) -> 4.765993763 | I107: =IF(_xll.BDP($C$2,$D107,"FUND_PER=Y","EQY_FUND_YEAR",I$2)="#N/A N/A","",_xll.BDP($C$2,$D107,"FUND_PER=Y","EQY_FUND_YEAR",I$2)) -> 13.30353181 | J107: =IF(_xll.BDP($C$2,$D107,"FUND_PER=Y","EQY_FUND_YEAR",J$2)="#N/A N/A","",_xll.BDP($C$2,$D107,"FUND_PER=Y","EQY_FUND_YEAR",J$2)) -> 14.39364853 | K107: =IF(_xll.BDP($C$2,$D107,"FUND_PER=Y","EQY_FUND_YEAR",K$2)="#N/A N/A","",_xll.BDP($C$2,$D107,"FUND_PER=Y","EQY_FUND_YEAR",K$2)) -> 14.15136498 | L107: =IF(_xll.BDP($C$2,$D107,"FUND_PER=Y","EQY_FUND_YEAR",L$2)="#N/A N/A","",_xll.BDP($C$2,$D107,"FUND_PER=Y","EQY_FUND_YEAR",L$2)) -> 13.31166406 | M107: =IF(_xll.BDP($C$2,$D107,"FUND_PER=Y","EQY_FUND_YEAR",M$2)="#N/A N/A","",_xll.BDP($C$2,$D107,"FUND_PER=Y","EQY_FUND_YEAR",M$2)) ->  | N107: =IF(_xll.BDP($C$2,$D107,"FUND_PER=Y","EQY_FUND_YEAR",N$2)="#N/A N/A","",_xll.BDP($C$2,$D107,"FUND_PER=Y","EQY_FUND_YEAR",N$2)) ->  | O107: =IF(_xll.BDP($C$2,$D107,"FUND_PER=Y","EQY_FUND_YEAR",O$2)="#N/A N/A","",_xll.BDP($C$2,$D107,"FUND_PER=Y","EQY_FUND_YEAR",O$2)) ->  | P107: =IF(_xll.BDP($C$2,$D107,"FUND_PER=Y","EQY_FUND_YEAR",P$2)="#N/A N/A","",_xll.BDP($C$2,$D107,"FUND_PER=Y","EQY_FUND_YEAR",P$2)) ->  | Q107: =IF(_xll.BDP($C$2,$D107,"FUND_PER=Y","EQY_FUND_YEAR",Q$2)="#N/A N/A","",_xll.BDP($C$2,$D107,"FUND_PER=Y","EQY_FUND_YEAR",Q$2)) ->  | R107: =IF(_xll.BDP($C$2,$D107,"FUND_PER=Y","EQY_FUND_YEAR",R$2)="#N/A N/A","",_xll.BDP($C$2,$D107,"FUND_PER=Y","EQY_FUND_YEAR",R$2)) ->  | S107: =IF(_xll.BDP($C$2,$D107,"FUND_PER=Y","EQY_FUND_YEAR",S$2)="#N/A N/A","",_xll.BDP($C$2,$D107,"FUND_PER=Y","EQY_FUND_YEAR",S$2)) ->  | T107: =IF(_xll.BDP($C$2,$D107,"FUND_PER=Y","EQY_FUND_YEAR",T$2)="#N/A N/A","",_xll.BDP($C$2,$D107,"FUND_PER=Y","EQY_FUND_YEAR",T$2)) ->  | U107: =IF(_xll.BDP($C$2,$D107,"FUND_PER=Y","EQY_FUND_YEAR",U$2)="#N/A N/A","",_xll.BDP($C$2,$D107,"FUND_PER=Y","EQY_FUND_YEAR",U$2)) ->  | V107: =IF(_xll.BDP($C$2,$D107,"FUND_PER=Y","EQY_FUND_YEAR",V$2)="#N/A N/A","",_xll.BDP($C$2,$D107,"FUND_PER=Y","EQY_FUND_YEAR",V$2)) ->  | W107: =IF(_xll.BDP($C$2,$D107,"FUND_PER=Y","EQY_FUND_YEAR",W$2)="#N/A N/A","",_xll.BDP($C$2,$D107,"FUND_PER=Y","EQY_FUND_YEAR",W$2)) ->  | X107: =IF(_xll.BDP($C$2,$D107,"FUND_PER=Y","EQY_FUND_YEAR",X$2)="#N/A N/A","",_xll.BDP($C$2,$D107,"FUND_PER=Y","EQY_FUND_YEAR",X$2)) -> 
A109: 〇 | C109: EV/EBITDA | D109: EV_TO_T12M_EBITDA | E109: =IF(_xll.BDP($C$2,$D109,"FUND_PER=Y","EQY_FUND_YEAR",E$2)="#N/A N/A","",_xll.BDP($C$2,$D109,"FUND_PER=Y","EQY_FUND_YEAR",E$2)) ->  | F109: =IF(_xll.BDP($C$2,$D109,"FUND_PER=Y","EQY_FUND_YEAR",F$2)="#N/A N/A","",_xll.BDP($C$2,$D109,"FUND_PER=Y","EQY_FUND_YEAR",F$2)) ->  | G109: =IF(_xll.BDP($C$2,$D109,"FUND_PER=Y","EQY_FUND_YEAR",G$2)="#N/A N/A","",_xll.BDP($C$2,$D109,"FUND_PER=Y","EQY_FUND_YEAR",G$2)) -> 9.600559745 | H109: =IF(_xll.BDP($C$2,$D109,"FUND_PER=Y","EQY_FUND_YEAR",H$2)="#N/A N/A","",_xll.BDP($C$2,$D109,"FUND_PER=Y","EQY_FUND_YEAR",H$2)) -> 8.151019324 | I109: =IF(_xll.BDP($C$2,$D109,"FUND_PER=Y","EQY_FUND_YEAR",I$2)="#N/A N/A","",_xll.BDP($C$2,$D109,"FUND_PER=Y","EQY_FUND_YEAR",I$2)) -> 12.29803461 | J109: =IF(_xll.BDP($C$2,$D109,"FUND_PER=Y","EQY_FUND_YEAR",J$2)="#N/A N/A","",_xll.BDP($C$2,$D109,"FUND_PER=Y","EQY_FUND_YEAR",J$2)) -> 16.65397665 | K109: =IF(_xll.BDP($C$2,$D109,"FUND_PER=Y","EQY_FUND_YEAR",K$2)="#N/A N/A","",_xll.BDP($C$2,$D109,"FUND_PER=Y","EQY_FUND_YEAR",K$2)) -> 17.15427344 | L109: =IF(_xll.BDP($C$2,$D109,"FUND_PER=Y","EQY_FUND_YEAR",L$2)="#N/A N/A","",_xll.BDP($C$2,$D109,"FUND_PER=Y","EQY_FUND_YEAR",L$2)) -> 14.30616632 | M109: =IF(_xll.BDP($C$2,$D109,"FUND_PER=Y","EQY_FUND_YEAR",M$2)="#N/A N/A","",_xll.BDP($C$2,$D109,"FUND_PER=Y","EQY_FUND_YEAR",M$2)) ->  | N109: =IF(_xll.BDP($C$2,$D109,"FUND_PER=Y","EQY_FUND_YEAR",N$2)="#N/A N/A","",_xll.BDP($C$2,$D109,"FUND_PER=Y","EQY_FUND_YEAR",N$2)) ->  | O109: =IF(_xll.BDP($C$2,$D109,"FUND_PER=Y","EQY_FUND_YEAR",O$2)="#N/A N/A","",_xll.BDP($C$2,$D109,"FUND_PER=Y","EQY_FUND_YEAR",O$2)) ->  | P109: =IF(_xll.BDP($C$2,$D109,"FUND_PER=Y","EQY_FUND_YEAR",P$2)="#N/A N/A","",_xll.BDP($C$2,$D109,"FUND_PER=Y","EQY_FUND_YEAR",P$2)) ->  | Q109: =IF(_xll.BDP($C$2,$D109,"FUND_PER=Y","EQY_FUND_YEAR",Q$2)="#N/A N/A","",_xll.BDP($C$2,$D109,"FUND_PER=Y","EQY_FUND_YEAR",Q$2)) ->  | R109: =IF(_xll.BDP($C$2,$D109,"FUND_PER=Y","EQY_FUND_YEAR",R$2)="#N/A N/A","",_xll.BDP($C$2,$D109,"FUND_PER=Y","EQY_FUND_YEAR",R$2)) ->  | S109: =IF(_xll.BDP($C$2,$D109,"FUND_PER=Y","EQY_FUND_YEAR",S$2)="#N/A N/A","",_xll.BDP($C$2,$D109,"FUND_PER=Y","EQY_FUND_YEAR",S$2)) ->  | T109: =IF(_xll.BDP($C$2,$D109,"FUND_PER=Y","EQY_FUND_YEAR",T$2)="#N/A N/A","",_xll.BDP($C$2,$D109,"FUND_PER=Y","EQY_FUND_YEAR",T$2)) ->  | U109: =IF(_xll.BDP($C$2,$D109,"FUND_PER=Y","EQY_FUND_YEAR",U$2)="#N/A N/A","",_xll.BDP($C$2,$D109,"FUND_PER=Y","EQY_FUND_YEAR",U$2)) ->  | V109: =IF(_xll.BDP($C$2,$D109,"FUND_PER=Y","EQY_FUND_YEAR",V$2)="#N/A N/A","",_xll.BDP($C$2,$D109,"FUND_PER=Y","EQY_FUND_YEAR",V$2)) ->  | W109: =IF(_xll.BDP($C$2,$D109,"FUND_PER=Y","EQY_FUND_YEAR",W$2)="#N/A N/A","",_xll.BDP($C$2,$D109,"FUND_PER=Y","EQY_FUND_YEAR",W$2)) ->  | X109: =IF(_xll.BDP($C$2,$D109,"FUND_PER=Y","EQY_FUND_YEAR",X$2)="#N/A N/A","",_xll.BDP($C$2,$D109,"FUND_PER=Y","EQY_FUND_YEAR",X$2)) -> 
C112: 構成比率
C113: 資産
C114: 現預金 | E114: =IFERROR(E17/E$26,"") -> 0.2491719458 | F114: =IFERROR(F17/F$26,"") -> 0.2175582678 | G114: 0.2846512752 | H114: 0.2702026018 | I114: 0.2428021543 | J114: 0.2476582433 | K114: 0.230368866 | L114: 0.210740616
C115: その他流動資産 | E115: =IFERROR((E20-E17)/E$26,"") -> 0.2318959781 | F115: =IFERROR((F20-F17)/F$26,"") -> 0.2360919174 | G115: 0.2301091406 | H115: 0.2423104231 | I115: 0.2298156474 | J115: 0.2421424723 | K115: 0.2321899253 | L115: 0.2044737225 | AA115: 資産効率分析（上がるとGood、下がるとBad）
C116: 有形固定資産 | E116: =IFERROR(E21/E$26,"") -> 0.02589045196 | F116: =IFERROR(F21/F$26,"") -> 0.02736345875 | G116: 0.02339609478 | H116: 0.02818504868 | I116: 0.03360304819 | J116: 0.03634678329 | K116: 0.04263394363 | L116: 0.1753099303
C117: のれん | E117: =IFERROR(E24/E$26,"") -> 0.2137740222 | F117: =IFERROR(F24/F$26,"") -> 0.2251479287 | G117: 0.1965820662 | H117: 0.1851520969 | I117: 0.2073090287 | J117: 0.1988167966 | K117: 0.2347942975 | L117: 0.1916852976
C118: その他固定資産 | E118: =1-SUM(E114:E117) -> 0.2792676019 | F118: =1-SUM(F114:F117) -> 0.2938384274 | G118: 0.2652614232 | H118: 0.2741498295 | I118: 0.2864701214 | J118: 0.2750357045 | K118: 0.2600129675 | L118: 0.2177904335 | M118: 1 | N118: 1 | O118: 1 | P118: 1 | Q118: 1 | R118: 1 | S118: 1 | T118: 1 | U118: 1 | V118: 1 | W118: 1 | X118: 1
C119: 負債
C120: 流動負債 | E120: =IFERROR(E30/E$26,"") -> 0.2928281482 | F120: =IFERROR(F30/F$26,"") -> 0.2709357831 | G120: 0.218241214 | H120: 0.2450696587 | I120: 0.2826735607 | J120: 0.2844719802 | K120: 0.2845049292 | L120: 0.2560051268
C121: 固定負債 | E121: =IFERROR(E33/E$26,"") -> 0.1886367965 | F121: =IFERROR(F33/F$26,"") -> 0.09373986641 | G121: 0.09664856438 | H121: 0.07967803414 | I121: 0.2095928438 | J121: 0.1814473912 | K121: 0.1595996986 | L121: 0.2458536297
C122: 純資産
C123: 自己資本 | E123: =IFERROR((E39-E38)/E$26,"") -> 0.5152005759 | F123: =IFERROR((F39-F38)/F$26,"") -> 0.6319037729 | G123: 0.6820923671 | H123: 0.6712677102 | I123: 0.5041858551 | J123: 0.530869131 | K123: 0.5521932187 | L123: 0.4944927678
C124: 少数株主持分 | E124: =IFERROR(E38/E$26,"") -> 0.003334479458 | F124: =IFERROR(F38/F$26,"") -> 0.003420577628 | G124: 0.00301785458 | H124: 0.003984596947 | I124: 0.003547740349 | J124: 0.003211497606 | K124: 0.003702153596 | L124: 0.00364847565

Sheet TOTO
B1: 会社名 | C1: TOTO | E1: =E2&"0331" -> 20010331 | F1: 20020331 | G1: 20030331 | H1: 20040331 | I1: 20050331 | J1: 20060331 | K1: 20070331 | L1: 20080331 | M1: 20090331 | N1: 20100331 | O1: 20110331 | P1: 20120331 | Q1: 20130331 | R1: 20140331 | S1: 20150331 | T1: 20160331 | U1: 20170331 | V1: 20180331 | W1: 20190331 | X1: =X2&"0331" -> 20200331 | AA1: BS構成
A2: リンク | B2: Ticker | C2: 5332 JP Equity | E2: 2001 | F2: =E2+1 -> 2002 | G2: =F2+1 -> 2003 | H2: 2004 | I2: 2005 | J2: 2006 | K2: 2007 | L2: 2008 | M2: 2009 | N2: 2010 | O2: 2011 | P2: 2012 | Q2: =P2+1 -> 2013 | R2: =Q2+1 -> 2014 | S2: 2015 | T2: 2016 | U2: 2017 | V2: 2018 | W2: 2019 | X2: 2020
B3: 決算月 | C3: 3 | E3: =DATE(E$2,$C$3,31) -> 2001-03-31 | F3: =DATE(F$2,$C$3,31) -> 2002-03-31 | G3: 2003-03-31 | H3: 2004-03-31 | I3: 2005-03-31 | J3: 2006-03-31 | K3: 2007-03-31 | L3: 2008-03-31 | M3: 2009-03-31 | N3: 2010-03-31 | O3: 2011-03-31 | P3: 2012-03-31 | Q3: 2013-03-31 | R3: 2014-03-31 | S3: 2015-03-31 | T3: 2016-03-31 | U3: 2017-03-31 | V3: 2018-03-31 | W3: 2019-03-31 | X3: 2020-03-31
A4: 〇 | C4: 売上高 | D4: SALES_REV_TURN | E4: 425917 | F4: 424096 | G4: 439683 | H4: 467924 | I4: 484191 | J4: 494784 | K4: 512200 | L4: 501060 | M4: 464505 | N4: 421929 | O4: 433557 | P4: 452686 | Q4: 476275 | R4: 553448 | S4: 544509 | T4: 567889 | U4: 567305 | V4: 592301 | W4: 586086 | X4: 596497
A5: 〇 | C5: 売上総利益 | D5: GROSS_PROFIT | E5: 149937 | F5: 146187 | G5: 154529 | H5: 167569 | I5: 176125 | J5: 173571 | K5: 174465 | L5: 170278 | M5: 152740 | N5: 146290 | O5: 160298 | P5: 165883 | Q5: 173044 | R5: 211668 | S5: 207224 | T5: 216290 | U5: 218898 | V5: 224153 | W5: 214521 | X5: 213345
A6: 〇 | C6: 営業利益 | D6: IS_OPER_INC | E6: 14447 | F6: 11622 | G6: 17619 | H6: 27434 | I6: 30419 | J6: 25164 | K6: 26187 | L6: 22722 | M6: 6566 | N6: 6589 | O6: 14014 | P6: 18779 | Q6: 23376 | R6: 47181 | S6: 37426 | T6: 46137 | U6: 47446 | V6: 52602 | W6: 40167 | X6: 36760
A7: 〇 | C7: 純利益 | D7: ARD_NET_INC | E7: 3378 | F7: 1139 | G7: 4073 | H7: 11731 | I7: 13058 | J7: 12996 | K7: 13544 | L7: 13239 | M7: -26261 | N7: 878 | O7: 5115 | P7: 9270 | Q7: 16956 | R7: 44122 | S7: 24813 | T7: 35723 | U7: 32960 | V7: 36798 | W7: 32380 | X7: 23583
A8: 〇 | C8: EBITDA | D8: EBITDA | E8: 34184 | F8: 31816 | G8: 37235 | H8: 45913 | I8: 49144 | J8: 46134 | K8: 48226 | L8: 45111 | M8: 28991 | N8: 27164 | O8: 33760 | P8: 37127 | Q8: 42884 | R8: 62103 | S8: 54653 | T8: 64534 | U8: 66440 | V8: 73959 | W8: 63514 | X8: 62103
A12: 〇 | C12: FCF | D12: CF_FREE_CASH_FLOW | E12: -637 | F12: -891 | G12: 22734 | H12: 23333 | I12: 22204 | J12: 9018 | K12: 10830 | L12: 15572 | M12: 7221 | N12: 23583 | O12: 12179 | P12: -283 | Q12: 23246 | R12: 28798 | S12: 9179 | T12: 31375 | U12: 31109 | V12: 10325 | W12: -16305 | X12: 33434
A13: 〇 | C13: 1株当たり利益 | D13: IS_EPS | E13: 18.18 | F13: 6.16 | G13: 22.1 | H13: 67.260002 | I13: 74.580002 | J13: 74.239998 | K13: 78.14 | L13: 76.42 | M13: -151.6 | N13: 5.08 | O13: 29.72 | P13: 54.2 | Q13: 98.9 | R13: 260.38 | S13: 147.6 | T13: 212.03 | U13: 194.86 | V13: 217.5 | W13: 191.26 | X13: 139.26
A17: 〇 | C17: 現預金 | D17: C&CE_AND_STI_DETAILED | E17: 49054 | F17: 42541 | G17: 47712 | H17: 60171 | I17: 59128 | J17: 47904 | K17: 41106 | L17: 43684 | M17: 46251 | N17: 53027 | O17: 48170 | P17: 33920 | Q17: 57339 | R17: 86176 | S17: 87014 | T17: 100053 | U17: 106962 | V17: 103728 | W17: 98377 | X17: 104845
A18: 〇 | C18: 売上債権 | D18: BS_ACCT_NOTE_RCV | E18: 98734 | F18: 81020 | G18: 88900 | H18: 81930 | I18: 84721 | J18: 88509 | K18: 90743 | L18: 83395 | M18: 72004 | N18: 69142 | O18: 73145 | P18: 84072 | Q18: 83628 | R18: 101918 | S18: 94172 | T18: 97387 | U18: 95851 | V18: 95677 | W18: 96455 | X18: 85059
A19: 〇 | C19: 棚卸資産 | D19: BS_INVENTORIES | E19: 75424 | F19: 75843 | G19: 65526 | H19: 63233 | I19: 58753 | J19: 61251 | K19: 67205 | L19: 66763 | M19: 55921 | N19: 43358 | O19: 47091 | P19: 50711 | Q19: 51018 | R19: 52967 | S19: 65442 | T19: 64425 | U19: 62392 | V19: 67178 | W19: 81977 | X19: 84229
A20: 〇 | C20: 流動資産 | D20: ARD_TOTAL_CUR_ASSETS | E20: 234547 | F20: 215729 | G20: 219918 | H20: 224074 | I20: 218597 | J20: 214130 | K20: 217780 | L20: 210126 | M20: 187689 | N20: 180149 | O20: 184203 | P20: 181554 | Q20: 205485 | R20: 258800 | S20: 266637 | T20: 279383 | U20: 282076 | V20: 277845 | W20: 287630 | X20: 291124
A21: 〇 | C21: 固定資産（純額） | D21: BS_NET_FIX_ASSET | E21: 174123 | F21: 183198 | G21: 172993 | H21: 164492 | I21: 163126 | J21: 166756 | K21: 161044 | L21: 157924 | M21: 133168 | N21: 125046 | O21: 121212 | P21: 125084 | Q21: 127601 | R21: 137789 | S21: 155974 | T21: 164508 | U21: 178687 | V21: 188940 | W21: 197801 | X21: 206658
A22: 〇 | C22: 総長期投資 | D22: BS_LT_INVEST | E22: 44844 | F22: 29759 | G22: 20398 | H22: 24613 | I22: 30348 | J22: 51130 | K22: 46692 | L22: 31556 | M22: 24919 | N22: 29396 | O22: 29513 | P22: 29600 | Q22: 35016 | R22: 41692 | S22: 53645 | T22: 48916 | U22: 54483 | V22: 58262 | W22: 47455 | X22: 38509
A23: 〇 | C23: その他の固定資産 | D23: BS_OTHER_ASSETS_DEF_CHRG_OTHER | E23: 51419 | F23: 59521 | G23: 58172 | H23: 49442 | I23: 48878 | J23: 42807 | K23: 41220 | L23: 52138 | M23: 42869 | N23: 43675 | O23: 44287 | P23: 40834 | Q23: 40352 | R23: 38106 | S23: 40739 | T23: 43458 | U23: 38750 | V23: 39272 | W23: 42074 | X23: 47643
A24: 〇 | C24: のれん | D24: ARD_GOODWLL | E24: 223 | F24: 184 | G24: 132 | H24: 186 | I24: 116 | J24: 191 | K24: 25 | L24: 400 | M24: 557 | N24: 174 | O24: 111 | P24: 62 | Q24: 0 | R24: 359 | S24: 350 | T24: 224 | U24: 124 | V24: 31
A25: 〇 | C25: 非流動資産合計 | D25: BS_TOT_NON_CUR_ASSET | E25: 270386 | F25: 272478 | G25: 251563 | H25: 238547 | I25: 242352 | J25: 260693 | K25: 248956 | L25: 241618 | M25: 200956 | N25: 198117 | O25: 195012 | P25: 195518 | Q25: 202969 | R25: 217587 | S25: 250358 | T25: 256882 | U25: 271920 | V25: 286474 | W25: 287330 | X25: 292810
A26: 〇 | C26: 総資産 | D26: BS_TOT_ASSET | E26: 504933 | F26: 488207 | G26: 471481 | H26: 462621 | I26: 460949 | J26: 474823 | K26: 466736 | L26: 451744 | M26: 388645 | N26: 378266 | O26: 379215 | P26: 377072 | Q26: 408454 | R26: 476387 | S26: 516995 | T26: 536265 | U26: 553996 | V26: 564319 | W26: 574960 | X26: 583934
A27: 〇 | C27: 買掛金・未払金 | D27: ACCT_PAYABLE_&_ACCRUALS_DETAILED | E27: 53773 | F27: 51666 | G27: 53319 | H27: 54886 | I27: 56013 | J27: 59587 | K27: 61919 | L27: 59316 | M27: 78316 | N27: 74046 | O27: 85591 | P27: 89178 | Q27: 93476 | R27: 118879 | S27: 118844 | T27: 123792 | U27: 130774 | V27: 127641 | W27: 112815 | X27: 117453
A28: 〇 | C28: 短期有利子負債 | D28: BS_ST_BORROW | E28: 50351 | F28: 60004 | G28: 67905 | H28: 61450 | I28: 52302 | J28: 43582 | K28: 98853 | L28: 53476 | M28: 54923 | N28: 51794 | O28: 29147 | P28: 30720 | Q28: 43932 | R28: 20990 | S28: 22799 | T28: 36690 | U28: 30219 | V28: 32853 | W28: 63354 | X28: 60517
A29: 〇 | C29: その他流動資産 | D29: OTHER_CURRENT_LIABS_SUB_DETAILED | E29: 49763 | F29: 43677 | G29: 51106 | H29: 52031 | I29: 50554 | J29: 51080 | K29: 21179 | L29: 47504 | M29: 13550 | N29: 12651 | O29: 13304 | P29: 12973 | Q29: 11802 | R29: 13086 | S29: 14595 | T29: 16006 | U29: 19114 | V29: 15828 | W29: 14479 | X29: 15886
A30: 〇 | C30: 流動負債 合計 | D30: BS_CUR_LIAB | E30: 153887 | F30: 155347 | G30: 172330 | H30: 168367 | I30: 158869 | J30: 154249 | K30: 181951 | L30: 160296 | M30: 146789 | N30: 138491 | O30: 128042 | P30: 132871 | Q30: 149210 | R30: 152955 | S30: 156238 | T30: 176488 | U30: 180107 | V30: 176322 | W30: 190648 | X30: 193856
A31: 〇 | C31: 長期有利子負債 | D31: BS_LT_BORROW | E31: 57997 | F31: 45648 | G31: 32544 | H31: 33138 | I31: 32628 | J31: 32159 | K31: 1693 | L31: 15376 | M31: 15152 | N31: 10423 | O31: 32262 | P31: 22033 | Q31: 10854 | R31: 26960 | S31: 23228 | T31: 4058 | U31: 3883 | V31: 3098 | W31: 2229 | X31: 2558
A32: 〇 | C32: その他の固定負債 | D32: OTHER_NONCUR_LIABS_SUB_DETAILED | E32: 89843 | F32: 86165 | G32: 79107 | H32: 61593 | I32: 59187 | J32: 54865 | K32: 49850 | L32: 44542 | M32: 41811 | N32: 40803 | O32: 38747 | P32: 36588 | Q32: 34980 | R32: 39876 | S32: 56947 | T32: 70197 | U32: 63953 | V32: 42680 | W32: 35425 | X32: 46379
A33: 〇 | C33: 非流動負債 合計 | D33: NON_CUR_LIAB | E33: 147840 | F33: 131813 | G33: 111651 | H33: 94731 | I33: 91815 | J33: 87024 | K33: 51543 | L33: 59918 | M33: 56963 | N33: 51226 | O33: 71009 | P33: 58621 | Q33: 45834 | R33: 66836 | S33: 80175 | T33: 74255 | U33: 67836 | V33: 45778 | W33: 37654 | X33: 48937
A34: 〇 | C34: 資本金・資本剰余金 | D34: BS_SH_CAP_AND_APIC | E34: 64680 | F34: 64680 | G34: 64680 | H34: 64767 | I34: 64943 | J34: 64948 | K34: 64959 | L34: 65181 | M34: 65304 | N34: 65383 | O34: 65378 | P34: 65462 | Q34: 65537 | R34: 65378 | S34: 65373 | T34: 65334 | U34: 65396 | V34: 65304 | W34: 65307 | X34: 65308
A35: 〇 | C35: 自己株式 | D35: BS_AMT_OF_TSY_STOCK | E35: 2 | F35: 3327 | G35: 13622 | H35: 13778 | I35: 13867 | J35: 13996 | K35: 14217 | L35: 14274 | M35: 14456 | N35: 14530 | O35: 17284 | P35: 16722 | Q35: 16254 | R35: 15858 | S35: 15505 | T35: 14492 | U35: 14481 | V35: 14248 | W35: 14194 | X35: 14079 | AA35: ROE分析
A36: 〇 | C36: 利益剰余金 | D36: BS_PURE_RETAINED_EARNINGS | M36: 144323 | N36: 141646 | O36: 143355 | P36: 149167 | Q36: 162357 | R36: 190410 | S36: 186232 | T36: 212256 | U36: 231486 | V36: 256353 | W36: 275020 | X36: 283294
A37: 〇 | C37: その他持分 | D37: OTHER_EQUITY_RATIO | E37: 135099 | F37: 130592 | G37: 127253 | H37: 138868 | I37: 148296 | J37: 170513 | K37: 177868 | L37: 175469 | M37: -14707 | N37: -8528 | O37: -15742 | P37: -17463 | Q37: -4379 | R37: 8460 | S37: 34637 | T37: 13467 | U37: 15220 | V37: 26354 | W37: 13063 | X37: 185
A38: 〇 | C38: 少数株主持分 | D38: MINORITY_NONCONTROLLING_INTEREST | E38: 3429 | F38: 9102 | G38: 9189 | H38: 9666 | I38: 10893 | J38: 12085 | K38: 4632 | L38: 5154 | M38: 4429 | N38: 4578 | O38: 4457 | P38: 5136 | Q38: 6149 | R38: 8206 | S38: 9845 | T38: 8957 | U38: 8432 | V38: 8456 | W38: 7462 | X38: 6433
A39: 〇 | C39: 純資産 | D39: TOTAL_EQUITY | E39: 203206 | F39: 201047 | G39: 187500 | H39: 199523 | I39: 210265 | J39: 233550 | K39: 233242 | L39: 231530 | M39: 184893 | N39: 188549 | O39: 180164 | P39: 185580 | Q39: 213410 | R39: 256596 | S39: 280582 | T39: 285522 | U39: 306053 | V39: 342219 | W39: 346658 | X39: 341141
A42: 〇 | C42: 1株当たり配当 | D42: IS_DIV_PER_SHR | E42: 18 | F42: 20 | G42: 20 | H42: 22 | I42: 23 | J42: 24 | K42: 26 | L42: 28 | M42: 20 | N42: 20 | O42: 20 | P42: 20 | Q42: 28 | R42: 46 | S42: 52 | T42: 64 | U42: 68 | V42: 72 | W42: 90 | X42: 90
A44: 〇 | C44: 営業CF | D44: CF_CASH_FROM_OPER | E44: 17381 | F44: 22480 | G44: 32413 | H44: 35762 | I44: 40440 | J44: 26872 | K44: 28575 | L44: 32884 | M44: 23403 | N44: 33627 | O44: 28117 | P44: 19678 | Q44: 44498 | R44: 48015 | S44: 34713 | T44: 58695 | U44: 62604 | V44: 45489 | W44: 14593 | X44: 63843
A45: 〇 | C45: 投資CF | D45: CF_CASH_FROM_INV_ACT | E45: 7366 | F45: -25651 | G45: -4679 | H45: -4988 | I45: -42087 | J45: -7260 | K45: -25310 | L45: -21517 | M45: -18127 | N45: -14828 | O45: -22758 | P45: -20230 | Q45: -22971 | R45: -4033 | S45: -30040 | T45: -29952 | U45: -35257 | V45: -36374 | W45: -26928 | X45: -36705
A46: 〇 | C46: 財務CF | D46: CFF_ACTIVITIES_DETAILED | E46: -8313 | F46: -11407 | G46: -18571 | H46: -11613 | I46: -13551 | J46: -15321 | K46: -10514 | L46: -8272 | M46: -2215 | N46: -12225 | O46: -7260 | P46: -12165 | Q46: -2179 | R46: -23329 | S46: -11392 | T46: -15056 | U46: -18907 | V46: -11243 | W46: 14564 | X46: -20879
C47: 投資CF(グラフ用） | E47: -7366 | F47: 25651 | G47: 4679 | H47: 4988 | I47: 42087 | J47: 7260 | K47: 25310 | L47: 21517 | M47: 18127 | N47: 14828 | O47: 22758 | P47: 20230 | Q47: 22971 | R47: 4033 | S47: 30040 | T47: 29952 | U47: 35257 | V47: 36374 | W47: 26928 | X47: 36705
A48: 〇 | C48: 財務CF（グラフ用） | D48: CF_DVD_PAID | E48: 8313 | F48: 11407 | G48: 18571 | H48: 11613 | I48: 13551 | J48: 15321 | K48: 10514 | L48: 8272 | M48: 2215 | N48: 12225 | O48: 7260 | P48: 12165 | Q48: 2179 | R48: 23329 | S48: 11392 | T48: 15056 | U48: 18907 | V48: 11243 | W48: -14564 | X48: 20879
A49: 〇 | C49: 配当金支払い | D49: CF_DVD_PAID | E49: -3344 | F49: -3531 | G49: -3661 | H49: -3643 | I49: -3816 | J49: -4161 | K49: -4335 | L49: -4679 | M49: -4158 | N49: -3464 | O49: -3463 | P49: -3417 | Q49: -3768 | R49: -6116 | S49: -8737 | T49: -9650 | U49: -11501 | V49: -11840 | W49: -13712 | X49: -15240
C50: 株価
A51: 〇 | C51: PER | D51: PE_RATIO | E51: 89.21892189 | F51: 181.8181818 | G51: 47.60180995 | H51: 34.76062936 | I51: 24.67149304 | J51: 29.4450439 | K51: 30.22779626 | L51: 24.6794033 | N51: 250.7874016 | O51: 45.02018843 | P51: 22.98892989 | Q51: 16.88574317 | R51: 10.99162762 | S51: 24.18699187 | T51: 16.55426119 | U51: 21.57959561 | V51: 25.79310345 | W51: 24.54773607 | X51: 25.81502226
A52: 〇 | C52: EPS | D52: IS_EPS | E52: 18.18 | F52: 6.16 | G52: 22.1 | H52: 67.260002 | I52: 74.580002 | J52: 74.239998 | K52: 78.14 | L52: 76.42 | M52: -151.6 | N52: 5.08 | O52: 29.72 | P52: 54.2 | Q52: 98.9 | R52: 260.38 | S52: 147.6 | T52: 212.03 | U52: 194.86 | V52: 217.5 | W52: 191.26 | X52: 139.26
A53: 〇 | C53: 時価総額 | D53: HISTORICAL_MARKET_CAP | E53: 301415.4466 | F53: 205296.8406 | G53: 182463.6182 | H53: 405418.5684 | I53: 319107.509 | J53: 378972.6001 | K53: 409273.188 | L53: 326795.707 | M53: 170419.944 | N53: 220606.477 | O53: 228429.381 | P53: 213346.973 | Q53: 286648.82 | R53: 480675.762 | S53: 600640.005 | T53: 593691.93 | U53: 711287.4231 | V53: 949694.46 | W53: 794943.315 | X53: 608928.29
A54: 〇 | C54: 発行済株式数（自己株除き） | D54: BS_SH_OUT | E54: 185.8294985 | F54: 183.3007505 | G54: 173.444504 | H54: 173.404007 | I54: 173.427994 | J54: 173.363495 | K54: 173.274 | L54: 173.2745 | M54: 173.191 | N54: 173.1605 | O54: 170.7245 | P54: 171.2255 | Q54: 171.646 | R54: 167.951 | S54: 168.2465 | T54: 169.143 | U54: 169.152776 | V54: 169.286 | W54: 169.317 | X54: 169.382
C55: 株価 | D55: 時価総額÷発行済み株式数 | E55: 1622 | F55: 1120 | G55: 1052 | H55: 2338 | I55: 1840 | J55: 2186 | K55: 2362 | L55: 1886 | M55: 984 | N55: 1274 | O55: 1338 | P55: 1246 | Q55: 1670 | R55: 2862 | S55: 3570 | T55: 3510 | U55: 4205 | V55: 5610 | W55: 4695 | X55: 3595
C57: 格付 | AA57: =E2 -> 2001 | AB57: =F2 -> 2002 | AC57: 2003 | AD57: 2004 | AE57: 2005 | AF57: 2006 | AG57: 2007 | AH57: 2008 | AI57: 2009 | AJ57: 2010 | AK57: 2011 | AL57: 2012 | AM57: 2013 | AN57: 2014 | AO57: 2015 | AP57: 2016 | AQ57: 2017 | AR57: 2018 | AS57: 2019 | AT57: 2020
A58: 〇 | C58: S&P | D58: RTG_SP_LT_LC_ISSUER_CREDIT | E58: NR | F58: NR | G58: NR | H58: NR | I58: NR | J58: NR | K58: NR | L58: NR | M58: NR | N58: NR | O58: NR | P58: NR | Q58: NR | R58: NR | S58: NR | T58: NR | U58: NR | V58: NR | W58: NR | X58: NR | Z58: =C99 -> PBR | AA58: =E99 -> 1.483299935 | AB58: 1.021138543 | AC58: 0.9731392971 | AD58: 2.031939016 | AE58: 1.517644444 | AF58: 1.622661529 | AG58: 1.754714794 | AH58: 1.411461612 | AI58: 0.9217219906 | AJ58: 1.170021994 | AK58: 1.267896922 | AL58: 1.149622659 | AM58: 1.343183637 | AN58: 1.873278469 | AO58: 2.140693291 | AP58: 2.079321138 | AQ58: =U99 -> 2.324066169 | AR58: 2.775107344 | AS58: 2.293163045 | AT58: 1.784975391
A59: 〇 | C59: Moody's | D59: RTG_MDY_ISSUER | Z59: =C100 -> PER | AA59: 89.21892189 | AB59: 181.8181818 | AC59: 47.60180995 | AD59: 34.76062936 | AE59: 24.67149304 | AF59: 29.4450439 | AG59: 30.22779626 | AH59: 24.6794033 | AJ59: 250.7874016 | AK59: 45.02018843 | AL59: 22.98892989 | AM59: 16.88574317 | AN59: 10.99162762 | AO59: 24.18699187 | AP59: 16.55426119 | AQ59: 21.57959561 | AR59: 25.79310345 | AS59: 24.54773607 | AT59: 25.81502226
A60: 〇 | C60: R&I | D60: RTG_RI_ISSUER_RATING | E60: A+ | F60: A+ | G60: A+ | H60: A+ | I60: A+ | J60: A+ | K60: A+ | L60: A+ | M60: A+ | N60: A+ | O60: A+ | P60: A+ | Q60: A+ | R60: A+ | S60: A+ | T60: A+ | U60: A+ | V60: A+ | W60: A+ | X60: A+ | Z60: ROE | AA60: 0.01690771083 | AB60: 0.00581534864 | AC60: 0.02172010717 | AD60: 0.06336237804 | AE60: 0.0664493139 | AF60: 0.06118283326 | AG60: 0.06018552463 | AH60: 0.05819519721 | AI60: -0.1290974339 | AJ60: 0.00481841755 | AK60: 0.02844210655 | AL60: 0.05205657151 | AM60: 0.08746856502 | AN60: 0.1936657661 | AO60: 0.09559510486 | AP60: 0.1305421869 | AQ60: 0.1148060036 | AR60: 0.1165629791 | AS60: 0.09623171694 | AT60: 0.06998919727
A61: 〇 | C61: JCR | D61: RTG_JCR_LT_ISSUER | Z61: ROS | AA61: 0.00793112273 | AB61: 0.002685712669 | AC61: 0.009263492107 | AD61: 0.02507031056 | AE61: 0.02696869624 | AF61: 0.02626600698 | AG61: 0.02644279578 | AH61: 0.02642198539 | AI61: -0.05653545172 | AJ61: 0.002080918828 | AK61: 0.0117977567 | AL61: 0.02047777046 | AM61: 0.03560128077 | AN61: 0.07972203351 | AO61: 0.04556949472 | AP61: 0.06290489867 | AQ61: 0.05809925878 | AR61: 0.06212719546 | AS61: 0.05524786465 | AT61: 0.03953582332
Z62: 総資産回転率 | AA62: 0.8435119115 | AB62: 0.8540507884 | AC62: 0.9163040488 | AD62: 1.001869175 | AE62: 1.048520415 | AF62: 1.057488363 | AG62: 1.087982803 | AH62: 1.091063496 | AI62: 1.105452356 | AJ62: 1.100333676 | AK62: 1.144733663 | AL62: 1.197127545 | AM62: 1.212626953 | AN62: 1.250954691 | AO62: 1.096273136 | AP62: 1.078345328 | AQ62: 1.040677416 | AR62: 1.059273997 | AS62: 1.028871769 | AT62: 1.029424607
C63: 成長性分析 | W63: =E2&"年～"&X2&"年のCAGR>>" -> 2001年～2020年のCAGR>> | X63: =(X5/E5)^(1/(X2-E2))-1 -> 0.01873627603 | Z63: 財務レバレッジ | AA63: 2.484833125 | AB63: 2.428322731 | AC63: 2.514565333 | AD63: 2.318634944 | AE63: 2.192228854 | AF63: 2.033067866 | AG63: 2.001080423 | AH63: 1.951125124 | AI63: 2.101999535 | AJ63: 2.006194676 | AK63: 2.104832264 | AL63: 2.031856881 | AM63: 1.913940303 | AN63: 1.856564405 | AO63: 1.842580779 | AP63: 1.878191523 | AQ63: 1.810130925 | AR63: 1.648999617 | AS63: 1.658579926 | AT63: 1.711708648
C64: 売上高YoY% | F64: =F4/E4-1 -> -0.004275480904 | G64: 0.03675347091 | H64: 0.06423036597 | I64: 0.03476419248 | J64: 0.02187773007 | K64: 0.03519919803 | L64: -0.02174931667 | M64: -0.07295533469 | N64: -0.09165886266 | O64: 0.0275591391 | P64: 0.04412107289 | Q64: 0.05210896736 | R64: 0.1620345389 | S64: -0.01615147223 | T64: 0.04293776595 | U64: -0.001028369981 | V64: 0.04406095487 | W64: -0.0104929757 | X64: 0.01776360466
C65: 売上高 | E65: =E4/$E4 -> 1 | F65: 0.9957245191 | G65: 1.032320851 | H65: 1.098627197 | I65: 1.136820085 | J65: 1.161691128 | K65: 1.202581724 | L65: 1.176426393 | M65: 1.090599812 | N65: 0.9906366733 | O65: 1.017937767 | P65: 1.062850274 | Q65: 1.118234304 | R65: 1.299426884 | S65: 1.278439226 | T65: 1.333332551 | U65: 1.331961392 | V65: 1.390648882 | W65: 1.376056837 | X65: 1.400500567
C66: 売上総利益 | E66: 1 | F66: 0.9749894956 | G66: 1.030626196 | H66: 1.117596057 | I66: 1.174660024 | J66: 1.157626203 | K66: 1.163588707 | L66: 1.135663645 | M66: 1.018694518 | N66: 0.9756764508 | O66: 1.069102356 | P66: 1.106351334 | Q66: 1.154111393 | R66: 1.411712919 | S66: 1.382073804 | T66: 1.4425392 | U66: 1.459933172 | V66: 1.494981225 | W66: 1.430740911 | X66: 1.422897617
C67: 営業利益 | E67: 1 | F67: 0.8044576729 | G67: 1.219561155 | H67: 1.898940957 | I67: 2.105558247 | J67: 1.74181491 | K67: 1.812625459 | L67: 1.572783277 | M67: 0.4544888212 | N67: 0.4560808472 | O67: 0.9700283796 | P67: 1.299854641 | Q67: 1.618052191 | R67: 3.265799128 | S67: 2.590572437 | T67: 3.19353499 | U67: 3.284142036 | V67: 3.64103274 | W67: 2.780300408 | X67: 2.544472901
C68: 純利益 | E68: 1 | F68: 0.3371817644 | G68: 1.205743043 | H68: 3.47276495 | I68: 3.865600947 | J68: 3.847246892 | K68: 4.009473061 | L68: 3.919182948 | M68: -7.774126702 | N68: 0.2599171107 | O68: 1.514209591 | P68: 2.744227353 | Q68: 5.019538188 | R68: 13.0615749 | S68: 7.345470693 | T68: 10.57519242 | U68: 9.757252812 | V68: 10.89342806 | W68: 9.585553582 | X68: 6.981349911
C69: 総資産 | E69: =E26/$E26 -> 1 | F69: 0.9668748131 | G69: 0.9337496262 | H69: 0.9162027437 | I69: 0.9128914133 | J69: 0.9403683261 | K69: 0.9243523398 | L69: 0.8946612719 | M69: 0.7696961775 | N69: 0.7491409751 | O69: 0.7510204324 | P69: 0.746776305 | Q69: 0.808927125 | R69: 0.9434657667 | S69: 1.023888318 | T69: 1.062051797 | U69: 1.097167347 | V69: 1.117611644 | W69: 1.138685727 | X69: 1.156458382
C70: 自己資本 | E70: =E39/$E39 -> 1 | F70: 0.9893753137 | G70: 0.9227089751 | H70: 0.9818755352 | I70: 1.034738147 | J70: 1.149326299 | K70: 1.147810596 | L70: 1.139385648 | M70: 0.9098796295 | N70: 0.9278712243 | O70: 0.8866076789 | P70: 0.9132604352 | Q70: 1.050215053 | R70: 1.262738305 | S70: 1.380776158 | T70: 1.405086464 | U70: 1.506121866 | V70: 1.684098895 | W70: 1.705943722 | X70: 1.678793933
C72: 収益性分析
C73: 売上総利益率 | E73: =E5/E4 -> 0.3520333774 | F73: 0.3447026145 | G73: 0.3514554804 | H73: 0.3581115737 | I73: 0.3637510817 | J73: 0.3508015619 | K73: 0.3406188989 | L73: 0.3398355486 | M73: 0.3288231558 | N73: 0.3467171017 | O73: 0.3697276252 | P73: 0.3664416395 | Q73: 0.3633279093 | R73: 0.3824532747 | S73: 0.3805703854 | T73: 0.3808666835 | U73: 0.3858559329 | V73: 0.3784444058 | W73: 0.3660230751 | X73: 0.3576631567
C74: 営業利益率 | E74: =E6/E4 -> 0.03391975432 | F74: 0.02740417264 | G74: 0.04007205191 | H74: 0.0586291791 | I74: 0.06282438129 | J74: 0.05085855646 | K74: 0.05112651308 | L74: 0.04534786253 | M74: 0.01413547755 | N74: 0.01561637147 | O74: 0.0323233162 | P74: 0.0414835007 | Q74: 0.04908088814 | R74: 0.08524920137 | S74: 0.06873348283 | T74: 0.08124298939 | U74: 0.08363402403 | V74: 0.08880957486 | W74: 0.06853431066 | X74: 0.0616264625
C75: 純利益率 | E75: =E7/E4 -> 0.00793112273 | F75: 0.002685712669 | G75: 0.009263492107 | H75: 0.02507031056 | I75: 0.02696869624 | J75: 0.02626600698 | K75: 0.02644279578 | L75: 0.02642198539 | M75: -0.05653545172 | N75: 0.002080918828 | O75: 0.0117977567 | P75: 0.02047777046 | Q75: 0.03560128077 | R75: 0.07972203351 | S75: 0.04556949472 | T75: 0.06290489867 | U75: 0.05809925878 | V75: 0.06212719546 | W75: 0.05524786465 | X75: 0.03953582332
C76: ROA | E76: =E7/E26 -> 0.006689996495 | F76: =F7/((F26+E26)/2) -> 0.002293735022 | G76: 0.008488175324 | H76: 0.02511717136 | I76: 0.02827722858 | J76: 0.02777599672 | K76: 0.02876930707 | L76: 0.02882806376 | M76: -0.0624972483 | N76: 0.002289705064 | O76: 0.01350528924 | P76: 0.02451450309 | Q76: 0.04317107263 | R76: 0.09972865181 | S76: 0.04995661286 | T76: 0.06783320358 | U76: 0.06046258648 | V76: 0.06580972266 | W76: 0.05684296823 | X76: 0.04069914936
A77: 〇 | C77: ROE | D77: RETURN_COM_EQY | E77: 0.01690771083 | F77: 0.00581534864 | G77: 0.02172010717 | H77: 0.06336237804 | I77: 0.0664493139 | J77: 0.06118283326 | K77: 0.06018552463 | L77: 0.05819519721 | M77: -0.1290974339 | N77: 0.00481841755 | O77: 0.02844210655 | P77: 0.05205657151 | Q77: 0.08746856502 | R77: 0.1936657661 | S77: 0.09559510486 | T77: 0.1305421869 | U77: 0.1148060036 | V77: 0.1165629791 | W77: 0.09623171694 | X77: 0.06998919727
C78: 効率性分析 | AA78: 収益性分析
C79: 総資産回転率（回） | E79: =E4/E26 -> 0.8435119115 | F79: =F4/((F26+E26)/2) -> 0.8540507884 | G79: 0.9163040488 | H79: 1.001869175 | I79: 1.048520415 | J79: 1.057488363 | K79: 1.087982803 | L79: 1.091063496 | M79: 1.105452356 | N79: 1.100333676 | O79: 1.144733663 | P79: 1.197127545 | Q79: 1.212626953 | R79: 1.250954691 | S79: 1.096273136 | T79: 1.078345328 | U79: 1.040677416 | V79: 1.059273997 | W79: 1.028871769 | X79: 1.029424607
C80: 有形固定資産回転率（回） | E80: =E4/E21 -> 2.446069732 | F80: =F4/((F21+E21)/2) -> 2.373753572 | G80: 2.468804658 | H80: 2.773006208 | I80: 2.955826603 | J80: 2.999763552 | K80: 3.125076266 | L80: 3.141757167 | M80: 3.191465241 | N80: 3.268056728 | O80: 3.521160734 | P80: 3.675950888 | Q80: 3.769713279 | R80: 4.170827838 | S80: 3.707131259 | T80: 3.543968148 | U80: 3.306021358 | V80: 3.222293248 | W80: 3.030896647 | X80: 2.949604286
C81: 棚卸資産回転率（回） | E81: =IFERROR(E4/E19,0) -> 5.646969134 | F81: =IFERROR(F4/((F19+E19)/2),0) -> 5.607250755 | G81: 6.220359485 | H81: 7.268214261 | I81: 7.938468349 | J81: 8.246125129 | K81: 7.974715078 | L81: 7.480293802 | M81: 7.572381077 | N81: 8.49986402 | O81: 9.586772656 | P81: 9.257193104 | Q81: 9.363603299 | R81: 10.64476607 | S81: 9.197088059 | T81: 8.745701371 | U81: 8.946828895 | V81: 9.142563865 | W81: 7.858750964 | X81: 7.177803449
C82: 売上債権回転率（回） | E82: =E4/E18 -> 4.313782486 | F82: =F4/((F18+E18)/2) -> 4.718626567 | G82: 5.175176554 | H82: 5.478241527 | I82: 5.810838219 | J82: 5.712451654 | K82: 5.714859527 | L82: 5.754746236 | M82: 5.978223798 | N82: 5.978617885 | O82: 6.094119631 | P82: 5.758741103 | Q82: 5.680083482 | R82: 5.965614996 | S82: 5.553664134 | T82: 5.929128885 | U82: 5.871567704 | V82: 6.185006892 | W82: 6.100868153 | X82: 6.57246273
C83: CCC（日） | E83: =E84+E85+E86 -> 103.1668729 | F83: =F84+F85+F86 -> 90.53823898 | G83: 83.93332242 | H83: 70.41977971 | I83: 65.93114081 | J83: 66.52022903 | K83: 68.4314428 | L83: 66.17437033 | M83: 38.98189471 | N83: 33.26557312 | O83: 29.1666955 | P83: 36.77123878 | Q83: 31.55120466 | R83: 23.74602492 | S83: 27.32930034 | T83: 24.43664167 | U83: 17.67335913 | V83: 21.70030103 | W83: 40.86465979 | X83: 31.7181394
C84: 棚卸資産回転日数（日） | E84: =E19/(E4/365)+E88 -> 64.63644325 | F84: 65.27459585 | G84: 54.39598529 | H84: 49.32434541 | I84: 44.29005289 | J84: 45.1845957 | K84: 47.89110699 | L84: 48.63388616 | M84: 43.9417552 | N84: 37.50789825 | O84: 39.6446488 | P84: 40.88819844 | Q84: 39.09835704 | R84: 34.93183641 | S84: 43.86764957 | T84: 41.40796001 | U84: 40.14256881 | V84: 41.39781969 | W84: 51.05326693 | X84: 51.5402173 | AA84: 資産回転率分析
C85: 売上債権回転日数（日） | E85: =E18/(E4/365) -> 84.6125184 | F85: 69.7302026 | G85: 73.79976028 | H85: 63.90877578 | I85: 63.8656336 | J85: 65.29270348 | K85: 64.66457439 | L85: 60.74956093 | M85: 56.57949861 | N85: 59.81297801 | O85: 61.57881201 | P85: 67.78711955 | Q85: 64.08948612 | R85: 67.21511325 | S85: 63.12619259 | T85: 62.59366707 | U85: 61.66985131 | V85: 58.96006422 | W85: 60.06981057 | X85: 52.04809915
C86: 仕入債務回転日数（日） | E86: =-E27/(E4/365) -> -46.08208876 | F86: =-F27/(F4/365) -> -44.46655946 | G86: -44.26242315 | H86: -42.81334148 | I86: -42.22454569 | J86: -43.95707016 | K86: -44.12423858 | L86: -43.20907676 | M86: -61.5393591 | N86: -64.05530314 | O86: -72.05676532 | P86: -71.90407921 | Q86: -71.6366385 | R86: -78.40092475 | S86: -79.66454182 | T86: -79.56498541 | U86: -84.139061 | V86: -78.65758288 | W86: -70.25841771 | X86: -71.87017705
C88: 安全性分析
